Workbook

Sheet Contents And Resources
B3: Tab Name | C3: Description | E3: Source | F3: Use | G3: Link
B4: Resources | C4: List recommended resources for Extreme Value Theory and for documenting methodologies used | E4: Topics in Statistics: Environmental Extremes | F4: A thorough overview of Extreme Value Theory with equations for Loglikelihood and Percentiles | G4: http://www.mas.ncl.ac.uk/~nlf8/teaching/mas8391/background/chapter2.pdf
B5: Introduction | C5: Description of the workbook and its general methodology | E5: Real Statistics | F5: Overview of fitting GEV distributions to data, both analytically and through Excel's Solver | G5: https://real-statistics.com/distribution-fitting/distribution-fitting-via-maximum-likelihood/fitting-gev-distribution-mle/
B6: Data | C6: The raw precipitation data and initial summary statistics | E6: Lamont-Doherty Earth Observatory | F6: Overview of EVT with climate applications of the Block Maxima and Peaks-Over-Threshold approach | G6: https://www.ldeo.columbia.edu/~amfiore/eescG9910_f14_ppts/Rieder_EVTPrimer.pdf
B7: GEV Fitting | C7: Estimates the GEV parameters for the observed data | E7: Statistical Analysis of Climate Extremes | F7: Provides statistical frameworks for stationary and non-stationary models | G7: https://www.manfredmudelsee.com/
B8: Monte Carlo Simulations | C8: Run the GEV Fitting algorithm for 1,000 scenarios to estimate the Standard Errors | E8: A Introduction to Statistical Learning | F8: Chpater 5 provides in-depth algortihms for calculating confidence intervals of estimated parameters | G8: https://www.statlearning.com/
B9: Boostrap Resampling | C9: Implements the bootstrap resampling algorithm for 1,000 scenarios to estimate the Standard Errors
B10: Parameter Fitting Comparison | C10: Compares expected observations from various fitting methodologies
B11: Return Period Comparison | C11: Compares the Estimations and Percentiles for 10 parameter sets

Sheet Introduction
Q4: Steps for Updating
Q5: 1) | R5: Retrieve historical precipitation observations and update columns A-L in the Data tab. Update the years in column O as needed.
Q6: 2) | R6: In the GEV Fitting tab:
Q7: 2a) | R7: Update columns I and J to reflect the new data.
Q8: 2b) | R8: Set increment values for the GEV parameters in cells R7:T7. By default, the initial parameter estimates will be set to the median, standard deviation, and 0.25.
Q9: 2c) | R9: Run the Gradient Descent Algorithm.
Q10: 3) | R10: In the Monte Carlo Simulations tab:
Q11: 3a) | R11: Set increment values for the GEV parameters in cells H3:H5.
Q12: 3b) | R12: Produce Monte Carlo Data
Q13: 3c) | R13: Run the Gradient Descent Algorithm.
Q14: 3d) | R14: Update table ranges in columns CP-DX as needed.
Q15: 4) | R15: In the Bootstrap Resampling tab:
Q16: 4a) | R16: Set increment values for the GEV parameters in cells H3:H5.
Q17: 4b) | R17: Produce Bootstrap Data
Q18: 4c) | R18: Run the Gradient Descent Algorithm.
Q19: 4d) | R19: Update table ranges in columns CP-DX as needed.
Q20: 5) | R20: In the Return Period Comparison tab
Q21: 5a) | R21: Set the parameters in C3:L5 as desired to see the differing impacts on the distribution.
Q22: 5b) | R22: Set the parameters in T4:X6 as desired to see the differing impacts on the return periods.

Sheet Data
A1: Source | B1: https://www.ncdc.noaa.gov/cdo-web/datasets/GHCND/stations/GHCND:USW00013994/detail
B2: https://www.ncei.noaa.gov/pub/data/ghcn/daily/
AE3: Inches | AF3: Observations
A4: GHCN observations for Precipitation at ST LOUIS LAMBERT INTERNATIONAL AIRPORT, MO US | AE4: 0 | AF4: =COUNTIFS(Q:Q,">="&AE4,Q:Q,"<"&AE5) -> 0
A5: Station | B5: Date | C5: Element | D5: Value (10ths of mm) | E5: M-Flag | F5: Q-Flag | G5: S-Flag | H5: ObsTime | I5: Value (Inches) | J5: Year | K5: Month | L5: Day | O5: Year | P5: Days of Observations | Q5: Maximum Daily Rainfall | AE5: =AE4+0.5 -> 0.5 | AF5: =COUNTIFS(Q:Q,">="&AE5,Q:Q,"<"&AE6) -> 0
A6: USW00013994 | B6: 19380401 | C6: PRCP | D6: 0 | G6: Z | I6: =(D6/10)*0.0393701 -> 0 | J6: =INT(LEFT(B6,4)) -> 1938 | K6: =INT(MID(B6,5,2)) -> 4 | L6: =INT(RIGHT(B6,2)) -> 1 | O6: 1938 | P6: =COUNTIFS(J:J,O6) -> 275 | Q6: =_xlfn.MAXIFS(I:I,J:J,O6) -> 2.62992268 | AE6: =AE5+0.5 -> 1 | AF6: 4
A7: USW00013994 | B7: 19380402 | C7: PRCP | D7: 0 | E7: T | G7: Z | I7: 0 | J7: 1938 | K7: 4 | L7: 2 | O7: 1939 | P7: =COUNTIFS(J:J,O7) -> 365 | Q7: =_xlfn.MAXIFS(I:I,J:J,O7) -> 2.33858394 | AE7: 1.5 | AF7: 7
A8: USW00013994 | B8: 19380403 | C8: PRCP | D8: 0 | E8: T | G8: Z | I8: 0 | J8: 1938 | K8: 4 | L8: 3 | O8: 1940 | P8: 366 | Q8: 1.64960719 | AE8: 2 | AF8: 26
A9: USW00013994 | B9: 19380404 | C9: PRCP | D9: 3 | G9: Z | I9: 0.01181103 | J9: 1938 | K9: 4 | L9: 4 | O9: 1941 | P9: 299 | Q9: 2.57086753 | AE9: 2.5 | AF9: 23
A10: USW00013994 | B10: 19380405 | C10: PRCP | D10: 28 | G10: Z | I10: 0.11023628 | J10: 1938 | K10: 4 | L10: 5 | O10: 1942 | P10: 299 | Q10: 4.03937226 | AE10: 3 | AF10: 11
A11: USW00013994 | B11: 19380406 | C11: PRCP | D11: 8 | G11: Z | I11: 0.03149608 | J11: 1938 | K11: 4 | L11: 6 | O11: 1943 | P11: 294 | Q11: 3.44882076 | AE11: 3.5 | AF11: 2
A12: USW00013994 | B12: 19380407 | C12: PRCP | D12: 18 | G12: Z | I12: 0.07086618 | J12: 1938 | K12: 4 | L12: 7 | O12: 1944 | P12: 322 | Q12: 4.14960854 | AE12: 4 | AF12: 5
A13: USW00013994 | B13: 19380408 | C13: PRCP | D13: 145 | G13: Z | I13: 0.57086645 | J13: 1938 | K13: 4 | L13: 8 | O13: 1945 | P13: 335 | Q13: 4.61023871 | AE13: 4.5 | AF13: 5
A14: USW00013994 | B14: 19380409 | C14: PRCP | D14: 216 | G14: Z | I14: 0.85039416 | J14: 1938 | K14: 4 | L14: 9 | O14: 1946 | P14: 365 | Q14: 4.31102595 | AE14: 5 | AF14: 0
A15: USW00013994 | B15: 19380410 | C15: PRCP | D15: 0 | G15: Z | I15: 0 | J15: 1938 | K15: 4 | L15: 10 | O15: 1947 | P15: 361 | Q15: 3.00000162 | AE15: 5.5 | AF15: 1
A16: USW00013994 | B16: 19380411 | C16: PRCP | D16: 0 | G16: Z | I16: 0 | J16: 1938 | K16: 4 | L16: 11 | O16: 1948 | P16: 366 | Q16: 4.68110489 | AE16: 6 | AF16: 0
A17: USW00013994 | B17: 19380412 | C17: PRCP | D17: 0 | G17: Z | I17: 0 | J17: 1938 | K17: 4 | L17: 12 | O17: 1949 | P17: 365 | Q17: 3.7007894 | AE17: 6.5 | AF17: 0
A18: USW00013994 | B18: 19380413 | C18: PRCP | D18: 0 | G18: Z | I18: 0 | J18: 1938 | K18: 4 | L18: 13 | O18: 1950 | P18: 365 | Q18: 4.16141957 | AE18: 7 | AF18: 0
A19: USW00013994 | B19: 19380414 | C19: PRCP | D19: 0 | G19: Z | I19: 0 | J19: 1938 | K19: 4 | L19: 14 | O19: 1951 | P19: 365 | Q19: 1.59055204 | AE19: 7.5 | AF19: 0
A20: USW00013994 | B20: 19380415 | C20: PRCP | D20: 0 | G20: Z | I20: 0 | J20: 1938 | K20: 4 | L20: 15 | O20: 1952 | P20: 366 | Q20: 2.22047364 | AE20: 8 | AF20: 0
A21: USW00013994 | B21: 19380416 | C21: PRCP | D21: 109 | G21: Z | I21: 0.42913409 | J21: 1938 | K21: 4 | L21: 16 | O21: 1953 | P21: 365 | Q21: 1.51968586 | AE21: 8.5 | AF21: 1
A22: USW00013994 | B22: 19380417 | C22: PRCP | D22: 13 | G22: Z | I22: 0.05118113 | J22: 1938 | K22: 4 | L22: 17 | O22: 1954 | P22: 365 | Q22: 2.01181211 | AE22: 9 | AF22: 0
A23: USW00013994 | B23: 19380418 | C23: PRCP | D23: 51 | G23: Z | I23: 0.20078751 | J23: 1938 | K23: 4 | L23: 18 | O23: 1955 | P23: 365 | Q23: 1.48818978 | AE23: 9.5 | AF23: =COUNTIFS(Q:Q,">="&AE23) -> 0
A24: USW00013994 | B24: 19380419 | C24: PRCP | D24: 0 | G24: Z | I24: 0 | J24: 1938 | K24: 4 | L24: 19 | O24: 1956 | P24: 366 | Q24: 2.74015896
A25: USW00013994 | B25: 19380420 | C25: PRCP | D25: 25 | G25: Z | I25: 0.09842525 | J25: 1938 | K25: 4 | L25: 20 | O25: 1957 | P25: 365 | Q25: 3.94882103
A26: USW00013994 | B26: 19380421 | C26: PRCP | D26: 0 | G26: Z | I26: 0 | J26: 1938 | K26: 4 | L26: 21 | O26: 1958 | P26: 365 | Q26: 3.16141903
A27: USW00013994 | B27: 19380422 | C27: PRCP | D27: 0 | G27: Z | I27: 0 | J27: 1938 | K27: 4 | L27: 22 | O27: 1959 | P27: 365 | Q27: 2.35826899
A28: USW00013994 | B28: 19380423 | C28: PRCP | D28: 0 | G28: Z | I28: 0 | J28: 1938 | K28: 4 | L28: 23 | O28: 1960 | P28: 366 | Q28: 2.01181211
A29: USW00013994 | B29: 19380424 | C29: PRCP | D29: 53 | G29: Z | I29: 0.20866153 | J29: 1938 | K29: 4 | L29: 24 | O29: 1961 | P29: 365 | Q29: 2.50000135
A30: USW00013994 | B30: 19380425 | C30: PRCP | D30: 0 | G30: Z | I30: 0 | J30: 1938 | K30: 4 | L30: 25 | O30: 1962 | P30: 365 | Q30: 1.79133955
A31: USW00013994 | B31: 19380426 | C31: PRCP | D31: 0 | G31: Z | I31: 0 | J31: 1938 | K31: 4 | L31: 26 | O31: 1963 | P31: 365 | Q31: 2.27952879
A32: USW00013994 | B32: 19380427 | C32: PRCP | D32: 0 | G32: Z | I32: 0 | J32: 1938 | K32: 4 | L32: 27 | O32: 1964 | P32: 366 | Q32: 2.5984266
A33: USW00013994 | B33: 19380428 | C33: PRCP | D33: 15 | G33: Z | I33: 0.05905515 | J33: 1938 | K33: 4 | L33: 28 | O33: 1965 | P33: 365 | Q33: 1.31889835
A34: USW00013994 | B34: 19380429 | C34: PRCP | D34: 0 | G34: Z | I34: 0 | J34: 1938 | K34: 4 | L34: 29 | O34: 1966 | P34: 365 | Q34: 2.27952879
A35: USW00013994 | B35: 19380430 | C35: PRCP | D35: 94 | G35: Z | I35: 0.37007894 | J35: 1938 | K35: 4 | L35: 30 | O35: 1967 | P35: 365 | Q35: 2.12992241
A36: USW00013994 | B36: 19380501 | C36: PRCP | D36: 0 | G36: Z | I36: 0 | J36: 1938 | K36: 5 | L36: 1 | O36: 1968 | P36: 366 | Q36: 2.46850527
A37: USW00013994 | B37: 19380502 | C37: PRCP | D37: 0 | G37: Z | I37: 0 | J37: 1938 | K37: 5 | L37: 2 | O37: 1969 | P37: 365 | Q37: 2.77952906
A38: USW00013994 | B38: 19380503 | C38: PRCP | D38: 0 | G38: Z | I38: 0 | J38: 1938 | K38: 5 | L38: 3 | O38: 1970 | P38: 365 | Q38: 2.33070992
A39: USW00013994 | B39: 19380504 | C39: PRCP | D39: 0 | G39: Z | I39: 0 | J39: 1938 | K39: 5 | L39: 4 | O39: 1971 | P39: 365 | Q39: 2.38976507
A40: USW00013994 | B40: 19380505 | C40: PRCP | D40: 94 | G40: Z | I40: 0.37007894 | J40: 1938 | K40: 5 | L40: 5 | O40: 1972 | P40: 366 | Q40: 2.87008029
A41: USW00013994 | B41: 19380506 | C41: PRCP | D41: 0 | E41: T | G41: Z | I41: 0 | J41: 1938 | K41: 5 | L41: 6 | O41: 1973 | P41: 365 | Q41: 2.05118221
A42: USW00013994 | B42: 19380507 | C42: PRCP | D42: 0 | E42: T | G42: Z | I42: 0 | J42: 1938 | K42: 5 | L42: 7 | O42: 1974 | P42: 365 | Q42: 2.62992268
A43: USW00013994 | B43: 19380508 | C43: PRCP | D43: 236 | G43: Z | I43: 0.92913436 | J43: 1938 | K43: 5 | L43: 8 | O43: 1975 | P43: 365 | Q43: 2.09055231
A44: USW00013994 | B44: 19380509 | C44: PRCP | D44: 0 | G44: Z | I44: 0 | J44: 1938 | K44: 5 | L44: 9 | O44: 1976 | P44: 366 | Q44: 1.77952852
A45: USW00013994 | B45: 19380510 | C45: PRCP | D45: 0 | G45: Z | I45: 0 | J45: 1938 | K45: 5 | L45: 10 | O45: 1977 | P45: 365 | Q45: 2.38189105
A46: USW00013994 | B46: 19380511 | C46: PRCP | D46: 0 | E46: T | G46: Z | I46: 0 | J46: 1938 | K46: 5 | L46: 11 | O46: 1978 | P46: 365 | Q46: 2.57874155
A47: USW00013994 | B47: 19380512 | C47: PRCP | D47: 0 | G47: Z | I47: 0 | J47: 1938 | K47: 5 | L47: 12 | O47: 1979 | P47: 365 | Q47: 4.79134117
A48: USW00013994 | B48: 19380513 | C48: PRCP | D48: 5 | G48: Z | I48: 0.01968505 | J48: 1938 | K48: 5 | L48: 13 | O48: 1980 | P48: 366 | Q48: 2.07874128
A49: USW00013994 | B49: 19380514 | C49: PRCP | D49: 3 | G49: Z | I49: 0.01181103 | J49: 1938 | K49: 5 | L49: 14 | O49: 1981 | P49: 365 | Q49: 2.59055258
A50: USW00013994 | B50: 19380515 | C50: PRCP | D50: 0 | G50: Z | I50: 0 | J50: 1938 | K50: 5 | L50: 15 | O50: 1982 | P50: 365 | Q50: 3.37008056
A51: USW00013994 | B51: 19380516 | C51: PRCP | D51: 0 | G51: Z | I51: 0 | J51: 1938 | K51: 5 | L51: 16 | O51: 1983 | P51: 365 | Q51: 2.07874128
A52: USW00013994 | B52: 19380517 | C52: PRCP | D52: 46 | G52: Z | I52: 0.18110246 | J52: 1938 | K52: 5 | L52: 17 | O52: 1984 | P52: 366 | Q52: 2.88976534
A53: USW00013994 | B53: 19380518 | C53: PRCP | D53: 13 | G53: Z | I53: 0.05118113 | J53: 1938 | K53: 5 | L53: 18 | O53: 1985 | P53: 365 | Q53: 3.149608
A54: USW00013994 | B54: 19380519 | C54: PRCP | D54: 0 | E54: T | G54: Z | I54: 0 | J54: 1938 | K54: 5 | L54: 19 | O54: 1986 | P54: 365 | Q54: 2.66929278
A55: USW00013994 | B55: 19380520 | C55: PRCP | D55: 25 | G55: Z | I55: 0.09842525 | J55: 1938 | K55: 5 | L55: 20 | O55: 1987 | P55: 365 | Q55: 3.09842687
A56: USW00013994 | B56: 19380521 | C56: PRCP | D56: 0 | G56: Z | I56: 0 | J56: 1938 | K56: 5 | L56: 21 | O56: 1988 | P56: 366 | Q56: 1.75196945
A57: USW00013994 | B57: 19380522 | C57: PRCP | D57: 168 | G57: Z | I57: 0.66141768 | J57: 1938 | K57: 5 | L57: 22 | O57: 1989 | P57: 365 | Q57: 2.01968613
A58: USW00013994 | B58: 19380523 | C58: PRCP | D58: 213 | G58: Z | I58: 0.83858313 | J58: 1938 | K58: 5 | L58: 23 | O58: 1990 | P58: 365 | Q58: 2.79921411
A59: USW00013994 | B59: 19380524 | C59: PRCP | D59: 211 | G59: Z | I59: 0.83070911 | J59: 1938 | K59: 5 | L59: 24 | O59: 1991 | P59: 365 | Q59: 2.46850527
A60: USW00013994 | B60: 19380525 | C60: PRCP | D60: 0 | G60: Z | I60: 0 | J60: 1938 | K60: 5 | L60: 25 | O60: 1992 | P60: 366 | Q60: 2.75984401
A61: USW00013994 | B61: 19380526 | C61: PRCP | D61: 0 | G61: Z | I61: 0 | J61: 1938 | K61: 5 | L61: 26 | O61: 1993 | P61: 365 | Q61: 2.16141849
A62: USW00013994 | B62: 19380527 | C62: PRCP | D62: 3 | G62: Z | I62: 0.01181103 | J62: 1938 | K62: 5 | L62: 27 | O62: 1994 | P62: 365 | Q62: 2.96063152
A63: USW00013994 | B63: 19380528 | C63: PRCP | D63: 69 | G63: Z | I63: 0.27165369 | J63: 1938 | K63: 5 | L63: 28 | O63: 1995 | P63: 365 | Q63: 5.5905542
A64: USW00013994 | B64: 19380529 | C64: PRCP | D64: 0 | E64: T | G64: Z | I64: 0 | J64: 1938 | K64: 5 | L64: 29 | O64: 1996 | P64: 366 | Q64: 4.46063233
A65: USW00013994 | B65: 19380530 | C65: PRCP | D65: 0 | G65: Z | I65: 0 | J65: 1938 | K65: 5 | L65: 30 | O65: 1997 | P65: 365 | Q65: 2.18897756
A66: USW00013994 | B66: 19380531 | C66: PRCP | D66: 0 | G66: Z | I66: 0 | J66: 1938 | K66: 5 | L66: 31 | O66: 1998 | P66: 365 | Q66: 2.46850527
A67: USW00013994 | B67: 19380601 | C67: PRCP | D67: 0 | G67: Z | I67: 0 | J67: 1938 | K67: 6 | L67: 1 | O67: 1999 | P67: 365 | Q67: 3.03937172
A68: USW00013994 | B68: 19380602 | C68: PRCP | D68: 3 | G68: Z | I68: 0.01181103 | J68: 1938 | K68: 6 | L68: 2 | O68: 2000 | P68: 366 | Q68: 2.94094647
A69: USW00013994 | B69: 19380603 | C69: PRCP | D69: 0 | G69: Z | I69: 0 | J69: 1938 | K69: 6 | L69: 3 | O69: 2001 | P69: 365 | Q69: 1.48818978
A70: USW00013994 | B70: 19380604 | C70: PRCP | D70: 5 | G70: Z | I70: 0.01968505 | J70: 1938 | K70: 6 | L70: 4 | O70: 2002 | P70: 365 | Q70: 2.68110381
A71: USW00013994 | B71: 19380605 | C71: PRCP | D71: 0 | E71: T | G71: Z | I71: 0 | J71: 1938 | K71: 6 | L71: 5 | O71: 2003 | P71: =COUNTIFS(J:J,O71) -> 365 | Q71: =_xlfn.MAXIFS(I:I,J:J,O71) -> 3.31102541
A72: USW00013994 | B72: 19380606 | C72: PRCP | D72: 0 | G72: Z | I72: 0 | J72: 1938 | K72: 6 | L72: 6 | O72: 2004 | P72: 366 | Q72: 2.25196972
A73: USW00013994 | B73: 19380607 | C73: PRCP | D73: 86 | G73: Z | I73: 0.33858286 | J73: 1938 | K73: 6 | L73: 7 | O73: 2005 | P73: 365 | Q73: 2.01968613
A74: USW00013994 | B74: 19380608 | C74: PRCP | D74: 0 | G74: Z | I74: 0 | J74: 1938 | K74: 6 | L74: 8 | O74: 2006 | P74: 365 | Q74: 2.92126142
A75: USW00013994 | B75: 19380609 | C75: PRCP | D75: 20 | G75: Z | I75: 0.0787402 | J75: 1938 | K75: 6 | L75: 9 | O75: 2007 | P75: 365 | Q75: 2.11811138
A76: USW00013994 | B76: 19380610 | C76: PRCP | D76: 668 | G76: Z | I76: 2.62992268 | J76: 1938 | K76: 6 | L76: 10 | O76: 2008 | P76: 366 | Q76: 4.57874263
A77: USW00013994 | B77: 19380611 | C77: PRCP | D77: 605 | G77: Z | I77: 2.38189105 | J77: 1938 | K77: 6 | L77: 11 | O77: 2009 | P77: 365 | Q77: 2.66141876
A78: USW00013994 | B78: 19380612 | C78: PRCP | D78: 36 | G78: Z | I78: 0.14173236 | J78: 1938 | K78: 6 | L78: 12 | O78: 2010 | P78: 365 | Q78: 3.07874182
A79: USW00013994 | B79: 19380613 | C79: PRCP | D79: 0 | G79: Z | I79: 0 | J79: 1938 | K79: 6 | L79: 13 | O79: 2011 | P79: 365 | Q79: 2.79921411
A80: USW00013994 | B80: 19380614 | C80: PRCP | D80: 0 | G80: Z | I80: 0 | J80: 1938 | K80: 6 | L80: 14 | O80: 2012 | P80: 366 | Q80: 1.48031576
A81: USW00013994 | B81: 19380615 | C81: PRCP | D81: 0 | G81: Z | I81: 0 | J81: 1938 | K81: 6 | L81: 15 | O81: 2013 | P81: 365 | Q81: 2.4803163
A82: USW00013994 | B82: 19380616 | C82: PRCP | D82: 0 | G82: Z | I82: 0 | J82: 1938 | K82: 6 | L82: 16 | O82: 2014 | P82: 365 | Q82: 2.53149743
A83: USW00013994 | B83: 19380617 | C83: PRCP | D83: 0 | E83: T | G83: Z | I83: 0 | J83: 1938 | K83: 6 | L83: 17 | O83: 2015 | P83: 365 | Q83: 4.87008137
A84: USW00013994 | B84: 19380618 | C84: PRCP | D84: 0 | E84: T | G84: Z | I84: 0 | J84: 1938 | K84: 6 | L84: 18 | O84: 2016 | P84: 366 | Q84: 2.5196864
A85: USW00013994 | B85: 19380619 | C85: PRCP | D85: 13 | G85: Z | I85: 0.05118113 | J85: 1938 | K85: 6 | L85: 19 | O85: 2017 | P85: 365 | Q85: 3.149608
A86: USW00013994 | B86: 19380620 | C86: PRCP | D86: 0 | G86: Z | I86: 0 | J86: 1938 | K86: 6 | L86: 20 | O86: 2018 | P86: 365 | Q86: 1.72834739
A87: USW00013994 | B87: 19380621 | C87: PRCP | D87: 0 | G87: Z | I87: 0 | J87: 1938 | K87: 6 | L87: 21 | O87: 2019 | P87: 365 | Q87: 3.29921438
A88: USW00013994 | B88: 19380622 | C88: PRCP | D88: 0 | G88: Z | I88: 0 | J88: 1938 | K88: 6 | L88: 22 | O88: 2020 | P88: 366 | Q88: 2.33858394
A89: USW00013994 | B89: 19380623 | C89: PRCP | D89: 0 | E89: T | G89: Z | I89: 0 | J89: 1938 | K89: 6 | L89: 23 | O89: 2021 | P89: 365 | Q89: 2.61811165
A90: USW00013994 | B90: 19380624 | C90: PRCP | D90: 5 | G90: Z | I90: 0.01968505 | J90: 1938 | K90: 6 | L90: 24 | O90: 2022 | P90: 365 | Q90: 8.64173695
A91: USW00013994 | B91: 19380625 | C91: PRCP | D91: 0 | G91: Z | I91: 0 | J91: 1938 | K91: 6 | L91: 25
A92: USW00013994 | B92: 19380626 | C92: PRCP | D92: 198 | G92: Z | I92: 0.77952798 | J92: 1938 | K92: 6 | L92: 26
A93: USW00013994 | B93: 19380627 | C93: PRCP | D93: 3 | G93: Z | I93: 0.01181103 | J93: 1938 | K93: 6 | L93: 27
A94: USW00013994 | B94: 19380628 | C94: PRCP | D94: 0 | G94: Z | I94: 0 | J94: 1938 | K94: 6 | L94: 28
A95: USW00013994 | B95: 19380629 | C95: PRCP | D95: 0 | G95: Z | I95: 0 | J95: 1938 | K95: 6 | L95: 29
A96: USW00013994 | B96: 19380630 | C96: PRCP | D96: 0 | G96: Z | I96: 0 | J96: 1938 | K96: 6 | L96: 30
A97: USW00013994 | B97: 19380701 | C97: PRCP | D97: 0 | G97: Z | I97: 0 | J97: 1938 | K97: 7 | L97: 1
A98: USW00013994 | B98: 19380702 | C98: PRCP | D98: 0 | G98: Z | I98: 0 | J98: 1938 | K98: 7 | L98: 2
A99: USW00013994 | B99: 19380703 | C99: PRCP | D99: 0 | G99: Z | I99: 0 | J99: 1938 | K99: 7 | L99: 3
A100: USW00013994 | B100: 19380704 | C100: PRCP | D100: 0 | G100: Z | I100: 0 | J100: 1938 | K100: 7 | L100: 4
A101: USW00013994 | B101: 19380705 | C101: PRCP | D101: 0 | G101: Z | I101: 0 | J101: 1938 | K101: 7 | L101: 5
A102: USW00013994 | B102: 19380706 | C102: PRCP | D102: 0 | G102: Z | I102: 0 | J102: 1938 | K102: 7 | L102: 6
A103: USW00013994 | B103: 19380707 | C103: PRCP | D103: 0 | G103: Z | I103: 0 | J103: 1938 | K103: 7 | L103: 7
A104: USW00013994 | B104: 19380708 | C104: PRCP | D104: 5 | G104: Z | I104: 0.01968505 | J104: 1938 | K104: 7 | L104: 8
A105: USW00013994 | B105: 19380709 | C105: PRCP | D105: 0 | G105: Z | I105: 0 | J105: 1938 | K105: 7 | L105: 9
A106: USW00013994 | B106: 19380710 | C106: PRCP | D106: 0 | G106: Z | I106: 0 | J106: 1938 | K106: 7 | L106: 10
A107: USW00013994 | B107: 19380711 | C107: PRCP | D107: 0 | G107: Z | I107: 0 | J107: 1938 | K107: 7 | L107: 11
A108: USW00013994 | B108: 19380712 | C108: PRCP | D108: 0 | G108: Z | I108: 0 | J108: 1938 | K108: 7 | L108: 12
A109: USW00013994 | B109: 19380713 | C109: PRCP | D109: 0 | G109: Z | I109: 0 | J109: 1938 | K109: 7 | L109: 13
A110: USW00013994 | B110: 19380714 | C110: PRCP | D110: 0 | E110: T | G110: Z | I110: 0 | J110: 1938 | K110: 7 | L110: 14
A111: USW00013994 | B111: 19380715 | C111: PRCP | D111: 0 | G111: Z | I111: 0 | J111: 1938 | K111: 7 | L111: 15
A112: USW00013994 | B112: 19380716 | C112: PRCP | D112: 0 | G112: Z | I112: 0 | J112: 1938 | K112: 7 | L112: 16
A113: USW00013994 | B113: 19380717 | C113: PRCP | D113: 61 | G113: Z | I113: 0.24015761 | J113: 1938 | K113: 7 | L113: 17
A114: USW00013994 | B114: 19380718 | C114: PRCP | D114: 432 | G114: Z | I114: 1.70078832 | J114: 1938 | K114: 7 | L114: 18
A115: USW00013994 | B115: 19380719 | C115: PRCP | D115: 0 | G115: Z | I115: 0 | J115: 1938 | K115: 7 | L115: 19
A116: USW00013994 | B116: 19380720 | C116: PRCP | D116: 0 | G116: Z | I116: 0 | J116: 1938 | K116: 7 | L116: 20
A117: USW00013994 | B117: 19380721 | C117: PRCP | D117: 18 | G117: Z | I117: 0.07086618 | J117: 1938 | K117: 7 | L117: 21
A118: USW00013994 | B118: 19380722 | C118: PRCP | D118: 0 | G118: Z | I118: 0 | J118: 1938 | K118: 7 | L118: 22
A119: USW00013994 | B119: 19380723 | C119: PRCP | D119: 0 | G119: Z | I119: 0 | J119: 1938 | K119: 7 | L119: 23
A120: USW00013994 | B120: 19380724 | C120: PRCP | D120: 0 | G120: Z | I120: 0 | J120: 1938 | K120: 7 | L120: 24
A121: USW00013994 | B121: 19380725 | C121: PRCP | D121: 0 | G121: Z | I121: 0 | J121: 1938 | K121: 7 | L121: 25
A122: USW00013994 | B122: 19380726 | C122: PRCP | D122: 0 | G122: Z | I122: 0 | J122: 1938 | K122: 7 | L122: 26
A123: USW00013994 | B123: 19380727 | C123: PRCP | D123: 0 | G123: Z | I123: 0 | J123: 1938 | K123: 7 | L123: 27
A124: USW00013994 | B124: 19380728 | C124: PRCP | D124: 114 | G124: Z | I124: 0.44881914 | J124: 1938 | K124: 7 | L124: 28
A125: USW00013994 | B125: 19380729 | C125: PRCP | D125: 0 | E125: T | G125: Z | I125: 0 | J125: 1938 | K125: 7 | L125: 29
A126: USW00013994 | B126: 19380730 | C126: PRCP | D126: 0 | E126: T | G126: Z | I126: 0 | J126: 1938 | K126: 7 | L126: 30
A127: USW00013994 | B127: 19380731 | C127: PRCP | D127: 3 | G127: Z | I127: 0.01181103 | J127: 1938 | K127: 7 | L127: 31
A128: USW00013994 | B128: 19380801 | C128: PRCP | D128: 0 | G128: Z | I128: 0 | J128: 1938 | K128: 8 | L128: 1
A129: USW00013994 | B129: 19380802 | C129: PRCP | D129: 0 | G129: Z | I129: 0 | J129: 1938 | K129: 8 | L129: 2
A130: USW00013994 | B130: 19380803 | C130: PRCP | D130: 0 | G130: Z | I130: 0 | J130: 1938 | K130: 8 | L130: 3
A131: USW00013994 | B131: 19380804 | C131: PRCP | D131: 0 | G131: Z | I131: 0 | J131: 1938 | K131: 8 | L131: 4
A132: USW00013994 | B132: 19380805 | C132: PRCP | D132: 0 | E132: T | G132: Z | I132: 0 | J132: 1938 | K132: 8 | L132: 5
A133: USW00013994 | B133: 19380806 | C133: PRCP | D133: 0 | E133: T | G133: Z | I133: 0 | J133: 1938 | K133: 8 | L133: 6
A134: USW00013994 | B134: 19380807 | C134: PRCP | D134: 0 | G134: Z | I134: 0 | J134: 1938 | K134: 8 | L134: 7
A135: USW00013994 | B135: 19380808 | C135: PRCP | D135: 0 | G135: Z | I135: 0 | J135: 1938 | K135: 8 | L135: 8
A136: USW00013994 | B136: 19380809 | C136: PRCP | D136: 0 | G136: Z | I136: 0 | J136: 1938 | K136: 8 | L136: 9
A137: USW00013994 | B137: 19380810 | C137: PRCP | D137: 0 | G137: Z | I137: 0 | J137: 1938 | K137: 8 | L137: 10
A138: USW00013994 | B138: 19380811 | C138: PRCP | D138: 0 | G138: Z | I138: 0 | J138: 1938 | K138: 8 | L138: 11
A139: USW00013994 | B139: 19380812 | C139: PRCP | D139: 0 | G139: Z | I139: 0 | J139: 1938 | K139: 8 | L139: 12
A140: USW00013994 | B140: 19380813 | C140: PRCP | D140: 0 | G140: Z | I140: 0 | J140: 1938 | K140: 8 | L140: 13
A141: USW00013994 | B141: 19380814 | C141: PRCP | D141: 0 | G141: Z | I141: 0 | J141: 1938 | K141: 8 | L141: 14
A142: USW00013994 | B142: 19380815 | C142: PRCP | D142: 10 | G142: Z | I142: 0.0393701 | J142: 1938 | K142: 8 | L142: 15
A143: USW00013994 | B143: 19380816 | C143: PRCP | D143: 0 | E143: T | G143: Z | I143: 0 | J143: 1938 | K143: 8 | L143: 16
A144: USW00013994 | B144: 19380817 | C144: PRCP | D144: 0 | G144: Z | I144: 0 | J144: 1938 | K144: 8 | L144: 17
A145: USW00013994 | B145: 19380818 | C145: PRCP | D145: 0 | G145: Z | I145: 0 | J145: 1938 | K145: 8 | L145: 18
A146: USW00013994 | B146: 19380819 | C146: PRCP | D146: 0 | G146: Z | I146: 0 | J146: 1938 | K146: 8 | L146: 19
A147: USW00013994 | B147: 19380820 | C147: PRCP | D147: 0 | E147: T | G147: Z | I147: 0 | J147: 1938 | K147: 8 | L147: 20
A148: USW00013994 | B148: 19380821 | C148: PRCP | D148: 18 | G148: Z | I148: 0.07086618 | J148: 1938 | K148: 8 | L148: 21
A149: USW00013994 | B149: 19380822 | C149: PRCP | D149: 0 | G149: Z | I149: 0 | J149: 1938 | K149: 8 | L149: 22
A150: USW00013994 | B150: 19380823 | C150: PRCP | D150: 0 | G150: Z | I150: 0 | J150: 1938 | K150: 8 | L150: 23
A151: USW00013994 | B151: 19380824 | C151: PRCP | D151: 0 | G151: Z | I151: 0 | J151: 1938 | K151: 8 | L151: 24
A152: USW00013994 | B152: 19380825 | C152: PRCP | D152: 0 | G152: Z | I152: 0 | J152: 1938 | K152: 8 | L152: 25
A153: USW00013994 | B153: 19380826 | C153: PRCP | D153: 0 | E153: T | G153: Z | I153: 0 | J153: 1938 | K153: 8 | L153: 26
A154: USW00013994 | B154: 19380827 | C154: PRCP | D154: 46 | G154: Z | I154: 0.18110246 | J154: 1938 | K154: 8 | L154: 27
A155: USW00013994 | B155: 19380828 | C155: PRCP | D155: 155 | G155: Z | I155: 0.61023655 | J155: 1938 | K155: 8 | L155: 28
A156: USW00013994 | B156: 19380829 | C156: PRCP | D156: 36 | G156: Z | I156: 0.14173236 | J156: 1938 | K156: 8 | L156: 29
A157: USW00013994 | B157: 19380830 | C157: PRCP | D157: 0 | G157: Z | I157: 0 | J157: 1938 | K157: 8 | L157: 30
A158: USW00013994 | B158: 19380831 | C158: PRCP | D158: 0 | E158: T | G158: Z | I158: 0 | J158: 1938 | K158: 8 | L158: 31
A159: USW00013994 | B159: 19380901 | C159: PRCP | D159: 0 | G159: Z | I159: 0 | J159: 1938 | K159: 9 | L159: 1
A160: USW00013994 | B160: 19380902 | C160: PRCP | D160: 0 | G160: Z | I160: 0 | J160: 1938 | K160: 9 | L160: 2
A161: USW00013994 | B161: 19380903 | C161: PRCP | D161: 0 | E161: T | G161: Z | I161: 0 | J161: 1938 | K161: 9 | L161: 3
A162: USW00013994 | B162: 19380904 | C162: PRCP | D162: 0 | G162: Z | I162: 0 | J162: 1938 | K162: 9 | L162: 4
A163: USW00013994 | B163: 19380905 | C163: PRCP | D163: 13 | G163: Z | I163: 0.05118113 | J163: 1938 | K163: 9 | L163: 5
A164: USW00013994 | B164: 19380906 | C164: PRCP | D164: 0 | G164: Z | I164: 0 | J164: 1938 | K164: 9 | L164: 6
A165: USW00013994 | B165: 19380907 | C165: PRCP | D165: 0 | G165: Z | I165: 0 | J165: 1938 | K165: 9 | L165: 7
A166: USW00013994 | B166: 19380908 | C166: PRCP | D166: 0 | G166: Z | I166: 0 | J166: 1938 | K166: 9 | L166: 8
A167: USW00013994 | B167: 19380909 | C167: PRCP | D167: 0 | E167: T | G167: Z | I167: 0 | J167: 1938 | K167: 9 | L167: 9
A168: USW00013994 | B168: 19380910 | C168: PRCP | D168: 5 | G168: Z | I168: 0.01968505 | J168: 1938 | K168: 9 | L168: 10
A169: USW00013994 | B169: 19380911 | C169: PRCP | D169: 0 | G169: Z | I169: 0 | J169: 1938 | K169: 9 | L169: 11
A170: USW00013994 | B170: 19380912 | C170: PRCP | D170: 10 | G170: Z | I170: 0.0393701 | J170: 1938 | K170: 9 | L170: 12
A171: USW00013994 | B171: 19380913 | C171: PRCP | D171: 137 | G171: Z | I171: 0.53937037 | J171: 1938 | K171: 9 | L171: 13
A172: USW00013994 | B172: 19380914 | C172: PRCP | D172: 20 | G172: Z | I172: 0.0787402 | J172: 1938 | K172: 9 | L172: 14
A173: USW00013994 | B173: 19380915 | C173: PRCP | D173: 0 | G173: Z | I173: 0 | J173: 1938 | K173: 9 | L173: 15
A174: USW00013994 | B174: 19380916 | C174: PRCP | D174: 0 | G174: Z | I174: 0 | J174: 1938 | K174: 9 | L174: 16
A175: USW00013994 | B175: 19380917 | C175: PRCP | D175: 66 | G175: Z | I175: 0.25984266 | J175: 1938 | K175: 9 | L175: 17
A176: USW00013994 | B176: 19380918 | C176: PRCP | D176: 0 | G176: Z | I176: 0 | J176: 1938 | K176: 9 | L176: 18
A177: USW00013994 | B177: 19380919 | C177: PRCP | D177: 3 | G177: Z | I177: 0.01181103 | J177: 1938 | K177: 9 | L177: 19
A178: USW00013994 | B178: 19380920 | C178: PRCP | D178: 0 | G178: Z | I178: 0 | J178: 1938 | K178: 9 | L178: 20
A179: USW00013994 | B179: 19380921 | C179: PRCP | D179: 0 | G179: Z | I179: 0 | J179: 1938 | K179: 9 | L179: 21
A180: USW00013994 | B180: 19380922 | C180: PRCP | D180: 0 | G180: Z | I180: 0 | J180: 1938 | K180: 9 | L180: 22
A181: USW00013994 | B181: 19380923 | C181: PRCP | D181: 0 | G181: Z | I181: 0 | J181: 1938 | K181: 9 | L181: 23
A182: USW00013994 | B182: 19380924 | C182: PRCP | D182: 0 | G182: Z | I182: 0 | J182: 1938 | K182: 9 | L182: 24
A183: USW00013994 | B183: 19380925 | C183: PRCP | D183: 0 | G183: Z | I183: 0 | J183: 1938 | K183: 9 | L183: 25
A184: USW00013994 | B184: 19380926 | C184: PRCP | D184: 0 | G184: Z | I184: 0 | J184: 1938 | K184: 9 | L184: 26
A185: USW00013994 | B185: 19380927 | C185: PRCP | D185: 0 | G185: Z | I185: 0 | J185: 1938 | K185: 9 | L185: 27
A186: USW00013994 | B186: 19380928 | C186: PRCP | D186: 0 | G186: Z | I186: 0 | J186: 1938 | K186: 9 | L186: 28
A187: USW00013994 | B187: 19380929 | C187: PRCP | D187: 0 | G187: Z | I187: 0 | J187: 1938 | K187: 9 | L187: 29
A188: USW00013994 | B188: 19380930 | C188: PRCP | D188: 0 | G188: Z | I188: 0 | J188: 1938 | K188: 9 | L188: 30
A189: USW00013994 | B189: 19381001 | C189: PRCP | D189: 0 | G189: Z | I189: 0 | J189: 1938 | K189: 10 | L189: 1
A190: USW00013994 | B190: 19381002 | C190: PRCP | D190: 0 | G190: Z | I190: 0 | J190: 1938 | K190: 10 | L190: 2
A191: USW00013994 | B191: 19381003 | C191: PRCP | D191: 0 | G191: Z | I191: 0 | J191: 1938 | K191: 10 | L191: 3
A192: USW00013994 | B192: 19381004 | C192: PRCP | D192: 0 | G192: Z | I192: 0 | J192: 1938 | K192: 10 | L192: 4
A193: USW00013994 | B193: 19381005 | C193: PRCP | D193: 0 | E193: T | G193: Z | I193: 0 | J193: 1938 | K193: 10 | L193: 5
A194: USW00013994 | B194: 19381006 | C194: PRCP | D194: 0 | G194: Z | I194: 0 | J194: 1938 | K194: 10 | L194: 6
A195: USW00013994 | B195: 19381007 | C195: PRCP | D195: 0 | G195: Z | I195: 0 | J195: 1938 | K195: 10 | L195: 7
A196: USW00013994 | B196: 19381008 | C196: PRCP | D196: 0 | G196: Z | I196: 0 | J196: 1938 | K196: 10 | L196: 8
A197: USW00013994 | B197: 19381009 | C197: PRCP | D197: 0 | G197: Z | I197: 0 | J197: 1938 | K197: 10 | L197: 9
A198: USW00013994 | B198: 19381010 | C198: PRCP | D198: 0 | G198: Z | I198: 0 | J198: 1938 | K198: 10 | L198: 10
A199: USW00013994 | B199: 19381011 | C199: PRCP | D199: 0 | G199: Z | I199: 0 | J199: 1938 | K199: 10 | L199: 11
A200: USW00013994 | B200: 19381012 | C200: PRCP | D200: 30 | G200: Z | I200: 0.1181103 | J200: 1938 | K200: 10 | L200: 12
... 4300 more rows

Sheet GEV Fitting
R1: Location | S1: Scale | T1: Shape | U1: Log Likelihood | V1: Density Variances | W1: Tail Variance (>=4.5 inches) | X1: Probability of > 2022 Max
Q2: Current | R2: 2.33031461 | S2: 0.6846802691 | T2: 0.1188487612 | U2: =MAX(-I4*LN(S2)-(1+1/T2)*SUM(O6:O91)-SUM(N6:N91),-1000000) -> -107.538821 | V2: =SUM(E5:E24) -> 334.4733236 | W2: =SUM(E15:E25) -> 8.067893283 | X2: =1-IF($T2=0,EXP(-EXP(-($K$90-$R2)/$S2)),IF($T2*($K$90-$R2)/$S2>-1,EXP(-1*(1+$T2*($K$90-$R2)/$S2)^(-1/$T2)),IF(AND($T2>0,$T2*($K$90-$R2)/$S2<=-1),0,1))) -> 0.001977619222
I4: =COUNT(I6:I91) -> 85 | K4: =AVERAGE(K6:K90) -> 2.817463309 | M4: =MIN(M6:M91) -> 0.8244354702
B5: Inches | C5: Observations | D5: Density Estimates | E5: Variance | F5: PDF | G5: CDF | I5: Year | J5: Observations | K5: Max Daily Precipitation | L5: Rank | M5: y(j) | N5: y(i)^shape | O5: ln(y(j)) | R5: Location | S5: Scale | T5: Shape | U5: Log Likelihood
B6: =Data!AE4 -> 0 | C6: =Data!AF4 -> 0 | D6: =G6*$I$4 -> 7.796440178e-33 | E6: =(C6-D6)^2 -> 6.078447944e-65 | F6: =IF($T$2=0,EXP(-(B6-$R$2)/$S$2)*EXP(-EXP(-(B6-$R$2)/$S$2)),IF($T$2*(B6-$R$2)/$S$2>-1,((1+$T$2*(B6-$R$2)/$S$2)^(-(1+1/$T$2)))*EXP(-1*(1+$T$2*(B6-$R$2)/$S$2)^(-1/$T$2)),0)) -> 1.207177815e-32 | G6: =IF($T$2=0,EXP(-EXP(-(B6-$R$2)/$S$2)),IF($T$2*(B6-$R$2)/$S$2>-1,EXP(-1*(1+$T$2*(B6-$R$2)/$S$2)^(-1/$T$2)),IF(AND($T$2>0,$T$2*(B6-$R$2)/$S$2<=-1),0,1))) -> 9.172282562e-35 | I6: =Data!O6 -> 1938 | J6: =Data!P6 -> 275 | K6: =Data!Q6 -> 2.62992268 | L6: =RANK(K6,K$6:K$91) -> 39 | M6: =1+T$2*((K6-R$2)/S$2) -> 1.052006826 | N6: =M6^(-1/$T$2) -> 0.6527316098 | O6: =LN(M6) -> 0.05069960331 | Q6: Best | R6: 2.319420825 | S6: 0.681017421 | T6: 0.1222234479 | U6: -107.5474816
B7: =Data!AE5 -> 0.5 | C7: =Data!AF5 -> 0 | D7: =$I$4*(G7-G6) -> 1.245996941e-09 | E7: 1.552508377e-18 | F7: 5.359575946e-10 | G7: 1.465878754e-11 | I7: =Data!O7 -> 1939 | J7: =Data!P7 -> 365 | K7: =Data!Q7 -> 2.33858394 | L7: 56 | M7: 1.001435414 | N7: 0.9880035464 | O7: =LN(M7) -> 0.001434384718 | Q7: Increments | R7: 0.01 | S7: 0.01 | T7: 0.01
B8: =Data!AE6 -> 1 | C8: =Data!AF6 -> 4 | D8: =$I$4*(G8-G7) -> 0.009412403897 | E8: 15.92478936 | F8: 0.001311448115 | G8: 0.0001107341782 | I8: =Data!O8 -> 1940 | J8: =Data!P8 -> 366 | K8: =Data!Q8 -> 1.64960719 | L8: 79 | M8: 0.8818408573 | N8: 2.880644828 | O8: -0.1257436731 | Q8: Iteration | R8: Location | S8: Scale | T8: Shape | U8: Log Likelihood
B9: =Data!AE7 -> 1.5 | C9: =Data!AF7 -> 7 | D9: 2.082866641 | E9: 24.17820047 | F9: 0.1065392464 | G9: 0.0246150476 | I9: =Data!O9 -> 1941 | J9: =Data!P9 -> 299 | K9: =Data!Q9 -> 2.57086753 | L9: 45 | M9: 1.041755864 | N9: 0.7087878892 | O9: 0.04090762073 | Q9: 0 | R9: =MEDIAN(K6:K90) -> 2.59055258 | S9: =_xlfn.STDEV.S(K6:K90) -> 1.092204787 | T9: 0.25 | U9: -118.6720065
B10: =Data!AE8 -> 2 | C10: =Data!AF8 -> 26 | D10: 14.33864871 | E10: 135.9871139 | F10: 0.3370176535 | G10: 0.1933050324 | I10: =Data!O10 -> 1942 | J10: =Data!P10 -> 299 | K10: =Data!Q10 -> 4.03937226 | L10: 12 | M10: 1.296663119 | N10: 0.112374066 | O10: 0.2597941333 | Q10: 1 | R10: 2.59055258 | S10: 1.081282739 | T10: 0.2 | U10: -118.2909431
B11: =Data!AE9 -> 2.5 | C11: =Data!AF9 -> 23 | D11: 22.40558671 | E11: 0.3533271622 | F11: 0.3476457738 | G11: 0.4569001702 | I11: =Data!O11 -> 1943 | J11: =Data!P11 -> 294 | K11: =Data!Q11 -> 3.44882076 | L11: 15 | M11: 1.194153499 | N11: 0.2247044227 | O11: 0.1774375657 | Q11: 2 | R11: 2.59055258 | S11: 1.070469912 | T11: 0.2 | U11: -117.9203258
B12: =Data!AE10 -> 3 | C12: =Data!AF10 -> 11 | D12: 18.34554515 | E12: 53.95703349 | F12: 0.2389058263 | G12: 0.6727301131 | I12: =Data!O12 -> 1944 | J12: =Data!P12 -> 322 | K12: =Data!Q12 -> 4.14960854 | L12: =RANK(K12,K$6:K$91) -> 11 | M12: 1.315798248 | N12: 0.09934240147 | O12: =LN(M12) -> 0.2744435145 | Q12: 3 | R12: 2.59055258 | S12: 1.059765212 | T12: 0.2 | U12: -117.5604661
B13: =Data!AE11 -> 3.5 | C13: =Data!AF11 -> 2 | D13: 11.64055005 | E13: 92.94020527 | F13: 0.1420889464 | G13: 0.8096777607 | I13: =Data!O13 -> 1945 | J13: =Data!P13 -> 335 | K13: =Data!Q13 -> 4.61023871 | L13: 6 | M13: 1.395755752 | N13: 0.0604735604 | O13: 0.3334360263 | Q13: 4 | R13: 2.59055258 | S13: 1.04916756 | T13: 0.2 | U13: -117.2116882
B14: =Data!AE12 -> 4 | C14: =Data!AF12 -> 5 | D14: 6.755574607 | E14: 3.0820422 | F14: 0.08098836866 | G14: 0.889155109 | I14: =Data!O14 -> 1946 | J14: =Data!P14 -> 365 | K14: =Data!Q14 -> 4.31102595 | L14: 9 | M14: 1.343817545 | N14: 0.08320273714 | O14: 0.2955144774 | Q14: 5 | R14: 2.59055258 | S14: 1.038675885 | T14: 0.2 | U14: -116.8743289
B15: =Data!AE13 -> 4.5 | C15: =Data!AF13 -> 5 | D15: 3.840153414 | E15: 1.345244103 | F15: 0.04609968409 | G15: 0.9343333845 | I15: =Data!O15 -> 1947 | J15: =Data!P15 -> 361 | K15: =Data!Q15 -> 3.00000162 | L15: 25 | M15: 1.116246188 | N15: 0.3964102102 | O15: 0.1099714385 | Q15: 6 | R15: 2.59055258 | S15: 1.028289126 | T15: 0.2 | U15: -116.5487388
B16: =Data!AE14 -> 5 | C16: =Data!AF14 -> 0 | D16: 2.199236281 | E16: 4.836640219 | F16: 0.02664375434 | G16: 0.9602067525 | I16: =Data!O16 -> 1948 | J16: =Data!P16 -> 366 | K16: =Data!Q16 -> 4.68110489 | L16: 5 | M16: 1.408056906 | N16: 0.05616961144 | O16: 0.3422106734 | Q16: 7 | R16: 2.59055258 | S16: 1.018006235 | T16: 0.2 | U16: -116.2352832
B17: =Data!AE15 -> 5.5 | C17: =Data!AF15 -> 1 | D17: 1.283196122 | E17: 0.08020004342 | F17: 0.01573298012 | G17: 0.9753031775 | I17: =Data!O17 -> 1949 | J17: =Data!P17 -> 365 | K17: =Data!Q17 -> 3.7007894 | L17: 14 | M17: 1.237890937 | N17: 0.1660218842 | O17: 0.2134090745 | Q17: 8 | R17: 2.59055258 | S17: 1.007826172 | T17: 0.2 | U17: -115.9343419
B18: =Data!AE16 -> 6 | C18: =Data!AF16 -> 0 | D18: 0.7657551437 | E18: 0.5863809401 | F18: 0.009507810957 | G18: 0.9843120615 | I18: =Data!O18 -> 1950 | J18: =Data!P18 -> 365 | K18: =Data!Q18 -> 4.16141957 | L18: 10 | M18: 1.317848441 | N18: 0.09804949933 | O18: 0.2760004377 | Q18: 9 | R18: 2.59055258 | S18: 0.9977479105 | T18: 0.2 | U18: -115.646311
B19: =Data!AE17 -> 6.5 | C19: =Data!AF17 -> 0 | D19: 0.467682036 | E19: 0.2187264868 | F19: 0.005878772114 | G19: 0.9898142031 | I19: =Data!O19 -> 1951 | J19: =Data!P19 -> 365 | K19: =Data!Q19 -> 1.59055204 | L19: 80 | M19: 0.8715898953 | N19: 3.178458444 | O19: -0.1374362692 | Q19: 10 | R19: 2.59055258 | S19: 0.9877704314 | T19: 0.2 | U19: -115.371603
B20: =Data!AE18 -> 7 | C20: =Data!AF18 -> 0 | D20: 0.2921227311 | E20: 0.08533569001 | F20: 0.003714965587 | G20: 0.9932509411 | I20: =Data!O20 -> 1952 | J20: =Data!P20 -> 366 | K20: =Data!Q20 -> 2.22047364 | L20: 62 | M20: 0.98093349 | N20: 1.175831754 | O20: -0.01925061993 | Q20: 11 | R20: 2.564647054 | S20: 0.9877704314 | T20: 0.2 | U20: -115.0879479
B21: =Data!AE19 -> 7.5 | C21: =Data!AF19 -> 0 | D21: 0.1863735575 | E21: 0.03473510293 | F21: 0.00239596672 | G21: 0.9954435712 | I21: =Data!O21 -> 1953 | J21: =Data!P21 -> 365 | K21: =Data!Q21 -> 1.51968586 | L21: 81 | M21: 0.8592887409 | N21: 3.58225954 | O21: -0.1516502773 | Q21: 12 | R21: 2.564647054 | S21: 0.9778927271 | T21: 0.2 | U21: -114.8034383
B22: =Data!AE20 -> 8 | C22: =Data!AF20 -> 0 | D22: 0.121278195 | E22: 0.01470840059 | F22: 0.001574834569 | G22: 0.9968703735 | I22: =Data!O22 -> 1954 | J22: =Data!P22 -> 365 | K22: =Data!Q22 -> 2.01181211 | L22: 73 | M22: 0.9447134242 | N22: 1.613713479 | O22: -0.05687365226 | Q22: 13 | R22: 2.564647054 | S22: 0.9681137998 | T22: 0.2 | U22: -114.532066
B23: =Data!AE21 -> 8.5 | C23: =Data!AF21 -> 1 | D23: 0.08037770386 | E23: 0.8457051676 | F23: 0.001053438295 | G23: 0.9978159935 | I23: =Data!O23 -> 1955 | J23: =Data!P23 -> 365 | K23: =Data!Q23 -> 1.48818978 | L23: 82 | M23: 0.8538215612 | N23: 3.779904602 | O23: -0.1580330517 | Q23: 14 | R23: 2.564647054 | S23: 0.9584326618 | T23: 0.2 | U23: -114.2742504
B24: =Data!AE22 -> 9 | C24: =Data!AF22 -> 0 | D24: 0.05418140924 | E24: 0.002935625107 | F24: 0.000716202757 | G24: 0.9984534219 | I24: =Data!O24 -> 1956 | J24: =Data!P24 -> 366 | K24: =Data!Q24 -> 2.74015896 | L24: 35 | M24: 1.071141956 | N24: 0.5608741793 | O24: 0.0687253275 | Q24: 15 | R24: 2.539000584 | S24: 0.9584326618 | T24: 0.2 | U24: -114.0139294
B25: =Data!AE23 -> 9.5 | C25: =Data!AF23 -> 0 | D25: =$I$4*(1-G24) -> 0.1314591397 | E25: 0.01728150541 | F25: 0.0004943055332 | G25: 0.9988898978 | I25: =Data!O25 -> 1957 | J25: =Data!P25 -> 365 | K25: =Data!Q25 -> 3.94882103 | L25: 13 | M25: 1.280944978 | N25: 0.1245181555 | O25: 0.2475980694 | Q25: 16 | R25: 2.539000584 | S25: 0.9488483352 | T25: 0.2 | U25: -113.7464634
I26: =Data!O26 -> 1958 | J26: =Data!P26 -> 365 | K26: =Data!Q26 -> 3.16141903 | L26: 19 | M26: 1.144265484 | N26: 0.3217750069 | O26: 0.1347629328 | Q26: 17 | R26: 2.539000584 | S26: 0.9393598519 | T26: 0.2 | U26: -113.4923619
I27: =Data!O27 -> 1959 | J27: =Data!P27 -> 365 | K27: =Data!Q27 -> 2.35826899 | L27: 55 | M27: 1.004852401 | N27: 0.960088672 | O27: 0.004840666319 | Q27: 18 | R27: 2.539000584 | S27: 0.9299662533 | T27: 0.2 | U27: -113.2520513
I28: =Data!O28 -> 1960 | J28: =Data!P28 -> 366 | K28: =Data!Q28 -> 2.01181211 | L28: 73 | M28: 0.9447134242 | N28: 1.613713479 | O28: -0.05687365226 | Q28: 19 | R28: 2.513610578 | S28: 0.9299662533 | T28: 0.2 | U28: -113.0169071
I29: =Data!O29 -> 1961 | J29: =Data!P29 -> 365 | K29: =Data!Q29 -> 2.50000135 | L29: 48 | M29: 1.02945471 | N29: 0.7832888577 | O29: 0.02902925435 | Q29: 20 | R29: 2.513610578 | S29: 0.9206665908 | T29: 0.2 | U29: -112.7671191
I30: =Data!O30 -> 1962 | J30: =Data!P30 -> 365 | K30: =Data!Q30 -> 1.79133955 | L30: 75 | M30: 0.9064431661 | N30: 2.285276266 | O30: -0.0982269467 | Q30: 21 | R30: 2.513610578 | S30: 0.9114599249 | T30: 0.2 | U30: -112.5309229
I31: =Data!O31 -> 1963 | J31: =Data!P31 -> 365 | K31: =Data!Q31 -> 2.27952879 | L31: 59 | M31: 0.9911844519 | N31: 1.077348989 | O31: -0.008854634883 | Q31: 22 | R31: 2.513610578 | S31: 0.9023453257 | T31: 0.2 | U31: -112.3087518
I32: =Data!O32 -> 1964 | J32: =Data!P32 -> 366 | K32: =Data!Q32 -> 2.5984266 | L32: 42 | M32: 1.046539647 | N32: 0.6819846138 | O32: 0.04548914725 | Q32: 23 | R32: 2.488474472 | S32: 0.9023453257 | T32: 0.2 | U32: -112.1006677
I33: =Data!O33 -> 1965 | J33: =Data!P33 -> 365 | K33: =Data!Q33 -> 1.31889835 | L33: 85 | M33: 0.8244354702 | N33: 5.075307897 | O33: -0.1930564055 | Q33: 24 | R33: 2.488474472 | S33: 0.8933218724 | T33: 0.2 | U33: -111.869214
I34: =Data!O34 -> 1966 | J34: =Data!P34 -> 365 | K34: =Data!Q34 -> 2.27952879 | L34: 59 | M34: 0.9911844519 | N34: 1.077348989 | O34: -0.008854634883 | Q34: 25 | R34: 2.488474472 | S34: 0.8843886537 | T34: 0.2 | U34: -111.6515792
I35: =Data!O35 -> 1967 | J35: =Data!P35 -> 365 | K35: =Data!Q35 -> 2.12992241 | L35: 65 | M35: 0.9652153482 | N35: 1.34701572 | O35: -0.03540404376 | Q35: 26 | R35: 2.488474472 | S35: 0.8755447671 | T35: 0.2 | U35: -111.448203
I36: =Data!O36 -> 1968 | J36: =Data!P36 -> 366 | K36: =Data!Q36 -> 2.46850527 | L36: 50 | M36: 1.02398753 | N36: 0.8191814289 | O36: 0.02370434913 | Q36: 27 | R36: 2.488474472 | S36: 0.8667893195 | T36: 0.2 | U36: -111.2595443
I37: =Data!O37 -> 1969 | J37: =Data!P37 -> 365 | K37: =Data!Q37 -> 2.77952906 | L37: 33 | M37: 1.07797593 | N37: 0.5316496692 | O37: 0.07508514401 | Q37: 28 | R37: 2.463589727 | S37: 0.8667893195 | T37: 0.2 | U37: -111.0566584
I38: =Data!O38 -> 1970 | J38: =Data!P38 -> 365 | K38: =Data!Q38 -> 2.33070992 | L38: 58 | M38: =1+T$2*((K38-R$2)/S$2) -> 1.000068619 | N38: =M38^(-1/$T$2) -> 0.9994228223 | O38: 6.861665306e-05 | Q38: 29 | R38: 2.463589727 | S38: 0.8581214263 | T38: 0.2 | U38: -110.8582617
I39: =Data!O39 -> 1971 | J39: =Data!P39 -> 365 | K39: =Data!Q39 -> 2.38976507 | L39: 53 | M39: 1.010319581 | N39: 0.9172414313 | O39: 0.01026669764 | Q39: 30 | R39: 2.463589727 | S39: 0.849540212 | T39: 0.2 | U39: -110.6743559
I40: =Data!O40 -> 1972 | J40: =Data!P40 -> 366 | K40: =Data!Q40 -> 2.87008029 | L40: 30 | M40: 1.093694072 | N40: 0.4706825684 | O40: 0.08956102311 | Q40: 31 | R40: 2.463589727 | S40: 0.8410448099 | T40: 0.2 | U40: -110.5054067
I41: =Data!O41 -> 1973 | J41: =Data!P41 -> 365 | K41: =Data!Q41 -> 2.05118221 | L41: 70 | M41: 0.9515473989 | N41: 1.518754494 | O41: -0.04966577856 | Q41: 32 | R41: 2.43895383 | S41: 0.8410448099 | T41: 0.2 | U41: -110.3334579
I42: =Data!O42 -> 1974 | J42: =Data!P42 -> 365 | K42: =Data!Q42 -> 2.62992268 | L42: 39 | M42: 1.052006826 | N42: 0.6527316098 | O42: 0.05069960331 | Q42: 33 | R42: 2.43895383 | S42: 0.8326343618 | T42: 0.2 | U42: -110.1549958
I43: =Data!O43 -> 1975 | J43: =Data!P43 -> 365 | K43: =Data!Q43 -> 2.09055231 | L43: 67 | M43: 0.9583813736 | N43: 1.430003876 | O43: -0.04250948674 | Q43: 34 | R43: 2.43895383 | S43: 0.8243080182 | T43: 0.2 | U43: -109.9912552
I44: =Data!O44 -> 1976 | J44: =Data!P44 -> 366 | K44: =Data!Q44 -> 1.77952852 | L44: 76 | M44: 0.9043929737 | N44: 2.329233814 | O44: -0.1004913076 | Q44: 35 | R44: 2.43895383 | S44: 0.816064938 | T44: 0.2 | U44: -109.842708
A45: CDF | I45: =Data!O45 -> 1977 | J45: =Data!P45 -> 365 | K45: =Data!Q45 -> 2.38189105 | L45: 54 | M45: 1.008952786 | N45: 0.9277490256 | O45: 0.008912947481 | Q45: 36 | R45: 2.414564292 | S45: 0.816064938 | T45: 0.2 | U45: -109.7037074
I46: =Data!O46 -> 1978 | J46: =Data!P46 -> 365 | K46: =Data!Q46 -> 2.57874155 | L46: 44 | M46: 1.043122659 | N46: 0.7010114477 | O46: 0.04221877158 | Q46: 37 | R46: 2.414564292 | S46: 0.8079042886 | T46: 0.2 | U46: -109.5458949
I47: =Data!O47 -> 1979 | J47: =Data!P47 -> 365 | K47: =Data!Q47 -> 4.79134117 | L47: 4 | M47: 1.427192035 | N47: 0.05013909535 | O47: 0.3557089023 | Q47: 38 | R47: 2.414564292 | S47: 0.7998252457 | T47: 0.2 | U47: -109.4030319
I48: =Data!O48 -> 1980 | J48: =Data!P48 -> 366 | K48: =Data!Q48 -> 2.07874128 | L48: 68 | M48: 0.9563311812 | N48: 1.456004416 | O48: -0.04465100211 | Q48: 39 | R48: 2.414564292 | S48: 0.7918269933 | T48: 0.2 | U48: -109.2755964
I49: =Data!O49 -> 1981 | J49: =Data!P49 -> 365 | K49: =Data!Q49 -> 2.59055258 | L49: 43 | M49: 1.045172852 | N49: 0.6895251337 | O49: 0.04418228014 | Q49: 40 | R49: 2.414564292 | S49: 0.7839087233 | T49: 0.2 | U49: -109.1640876
I50: =Data!O50 -> 1982 | J50: =Data!P50 -> 365 | K50: =Data!Q50 -> 3.37008056 | L50: 16 | M50: 1.18048555 | N50: 0.2475583171 | O50: 0.165925837 | Q50: 41 | R50: 2.390418649 | S50: 0.7839087233 | T50: 0.2 | U50: -109.0351528
I51: =Data!O51 -> 1983 | J51: =Data!P51 -> 365 | K51: =Data!Q51 -> 2.07874128 | L51: 68 | M51: 0.9563311812 | N51: 1.456004416 | O51: -0.04465100211 | Q51: 42 | R51: 2.390418649 | S51: 0.7760696361 | T51: 0.2 | U51: -108.9138964
A52: PDF | I52: =Data!O52 -> 1984 | J52: =Data!P52 -> 366 | K52: =Data!Q52 -> 2.88976534 | L52: 29 | M52: 1.097111059 | N52: 0.4584894026 | O52: 0.09268041521 | Q52: 43 | R52: 2.390418649 | S52: 0.7683089397 | T52: 0.2 | U52: -108.8082978
I53: =Data!O53 -> 1985 | J53: =Data!P53 -> 365 | K53: =Data!Q53 -> 3.149608 | L53: 20 | M53: 1.142215292 | N53: 0.3266671088 | O53: 0.1329696154 | Q53: 44 | R53: 2.390418649 | S53: 0.7606258503 | T53: 0.2 | U53: -108.7188621
I54: =Data!O54 -> 1986 | J54: =Data!P54 -> 365 | K54: =Data!Q54 -> 2.66929278 | L54: 37 | M54: 1.058840801 | N54: 0.6181208554 | O54: 0.05717472587 | Q54: 45 | R54: 2.366514462 | S54: 0.7606258503 | T54: 0.2 | U54: -108.6270356
I55: =Data!O55 -> 1987 | J55: =Data!P55 -> 365 | K55: =Data!Q55 -> 3.09842687 | L55: 22 | M55: 1.133331125 | N55: 0.3488500311 | O55: 0.1251611944 | Q55: 46 | R55: 2.366514462 | S55: 0.7530195918 | T55: 0.2 | U55: -108.5281295
I56: =Data!O56 -> 1988 | J56: =Data!P56 -> 366 | K56: =Data!Q56 -> 1.75196945 | L56: 77 | M56: 0.8996091915 | N56: 2.435528083 | O56: -0.1057948417 | Q56: 47 | R56: 2.366514462 | S56: 0.7454893959 | T56: 0.2 | U56: -108.4451069
I57: =Data!O57 -> 1989 | J57: =Data!P57 -> 365 | K57: =Data!Q57 -> 2.01968613 | L57: 71 | M57: 0.9460802192 | N57: 1.594202357 | O57: -0.05542791525 | Q57: 48 | R57: 2.366514462 | S57: 0.738034502 | T57: 0.2 | U57: -108.3784784
A58: Log-Likelihood | I58: =Data!O58 -> 1990 | J58: =Data!P58 -> 365 | K58: =Data!Q58 -> 2.79921411 | L58: 31 | M58: 1.081392917 | N58: 0.5176792886 | O58: 0.07824994856 | Q58: 49 | R58: 2.342849318 | S58: 0.738034502 | T58: 0.2 | U58: -108.3258731
I59: =Data!O59 -> 1991 | J59: =Data!P59 -> 365 | K59: =Data!Q59 -> 2.46850527 | L59: 50 | M59: 1.02398753 | N59: 0.8191814289 | O59: 0.02370434913 | Q59: 50 | R59: 2.342849318 | S59: 0.7306541569 | T59: 0.2 | U59: -108.250074
I60: =Data!O60 -> 1992 | J60: =Data!P60 -> 366 | K60: =Data!Q60 -> 2.75984401 | L60: 34 | M60: 1.074558943 | N60: 0.5460432242 | O60: 0.07191029166 | Q60: 51 | R60: 2.342849318 | S60: 0.7233476154 | T60: 0.2 | U60: -108.1903786
I61: =Data!O61 -> 1993 | J61: =Data!P61 -> 365 | K61: =Data!Q61 -> 2.16141849 | L61: 64 | M61: 0.970682528 | N61: 1.284496849 | O61: -0.02975581785 | Q61: 52 | R61: 2.342849318 | S61: 0.7161141392 | T61: 0.2 | U61: -108.1473023
I62: =Data!O62 -> 1994 | J62: =Data!P62 -> 365 | K62: =Data!Q62 -> 2.96063152 | L62: 26 | M62: 1.109412214 | N62: 0.4174317749 | O62: 0.1038303378 | Q62: 53 | R62: 2.342849318 | S62: 0.7089529978 | T62: 0.2 | U62: -108.1213846
I63: =Data!O63 -> 1995 | J63: =Data!P63 -> 365 | K63: =Data!Q63 -> 5.5905542 | L63: 2 | M63: 1.565921721 | N63: 0.02297175218 | O63: 0.4484746098 | Q63: 54 | R63: 2.319420825 | S63: 0.7089529978 | T63: 0.2 | U63: -108.0841252
I64: =Data!O64 -> 1996 | J64: =Data!P64 -> 366 | K64: =Data!Q64 -> 4.46063233 | L64: 8 | M64: 1.369786648 | N64: 0.070826333 | O64: 0.3146549965 | Q64: 55 | R64: 2.319420825 | S64: 0.7018634678 | T64: 0.2 | U64: -108.0485181
I65: =Data!O65 -> 1997 | J65: =Data!P65 -> 365 | K65: =Data!Q65 -> 2.18897756 | L65: 63 | M65: 0.9754663102 | N65: 1.23244774 | O65: -0.02483965543 | Q65: 56 | R65: 2.319420825 | S65: 0.7018634678 | T65: 0.198 | U65: -108.0274487
I66: =Data!O66 -> 1998 | J66: =Data!P66 -> 365 | K66: =Data!Q66 -> 2.46850527 | L66: 50 | M66: 1.02398753 | N66: 0.8191814289 | O66: 0.02370434913 | Q66: 57 | R66: 2.319420825 | S66: 0.7018634678 | T66: 0.19602 | U66: -108.0070811
I67: =Data!O67 -> 1999 | J67: =Data!P67 -> 365 | K67: =Data!Q67 -> 3.03937172 | L67: 24 | M67: 1.123080163 | N67: 0.3765660208 | O67: 0.1160750561 | Q67: 58 | R67: 2.319420825 | S67: 0.6948448332 | T67: 0.19602 | U67: -107.9863969
I68: =Data!O68 -> 2000 | J68: =Data!P68 -> 366 | K68: =Data!Q68 -> 2.94094647 | L68: 27 | M68: 1.105995226 | N68: 0.4284081578 | O68: 0.1007455869 | Q68: 59 | R68: 2.319420825 | S68: 0.6948448332 | T68: 0.1940598 | U68: -107.9658101
I69: =Data!O69 -> 2001 | J69: =Data!P69 -> 365 | K69: =Data!Q69 -> 1.48818978 | L69: 82 | M69: 0.8538215612 | N69: 3.779904602 | O69: -0.1580330517 | Q69: 60 | R69: 2.319420825 | S69: 0.6948448332 | T69: 0.192119202 | U69: -107.9459274
I70: =Data!O70 -> 2002 | J70: =Data!P70 -> 365 | K70: =Data!Q70 -> 2.68110381 | L70: 36 | M70: =1+T$2*((K70-R$2)/S$2) -> 1.060890994 | N70: =M70^(-1/$T$2) -> 0.6081417165 | O70: 0.05910911497 | Q70: 61 | R70: 2.319420825 | S70: 0.6948448332 | T70: 0.19019801 | U70: -107.9267329
I71: =Data!O71 -> 2003 | J71: =Data!P71 -> 365 | K71: =Data!Q71 -> 3.31102541 | L71: 17 | M71: 1.170234588 | N71: 0.2664083407 | O71: 0.1572042314 | Q71: 62 | R71: 2.319420825 | S71: 0.6948448332 | T71: 0.1882960299 | U71: -107.9082113
I72: =Data!O72 -> 2004 | J72: =Data!P72 -> 366 | K72: =Data!Q72 -> 2.25196972 | L72: 61 | M72: 0.9864006697 | N72: 1.122109834 | O72: -0.01369264822 | Q72: 63 | R72: 2.319420825 | S72: 0.6948448332 | T72: 0.1864130696 | U72: -107.8903476
I73: =Data!O73 -> 2005 | J73: =Data!P73 -> 365 | K73: =Data!Q73 -> 2.01968613 | L73: 71 | M73: 0.9460802192 | N73: 1.594202357 | O73: -0.05542791525 | Q73: 64 | R73: 2.319420825 | S73: 0.6948448332 | T73: 0.1845489389 | U73: -107.8731272
I74: =Data!O74 -> 2006 | J74: =Data!P74 -> 365 | K74: =Data!Q74 -> 2.92126142 | L74: 28 | M74: 1.102578239 | N74: 0.4397084781 | O74: 0.09765129086 | Q74: 65 | R74: 2.319420825 | S74: 0.6948448332 | T74: 0.1827034495 | U74: -107.8565359
I75: =Data!O75 -> 2007 | J75: =Data!P75 -> 365 | K75: =Data!Q75 -> 2.11811138 | L75: 66 | M75: 0.9631651558 | N75: 1.371332208 | O75: -0.03753038051 | Q75: 66 | R75: 2.319420825 | S75: 0.6948448332 | T75: 0.180876415 | U75: -107.8405597
I76: =Data!O76 -> 2008 | J76: =Data!P76 -> 366 | K76: =Data!Q76 -> 4.57874263 | L76: =RANK(K76,K$6:K$91) -> 7 | M76: 1.390288572 | N76: 0.06250389334 | O76: =LN(M76) -> 0.3295113316 | Q76: 67 | R76: 2.319420825 | S76: 0.6948448332 | T76: 0.1790676509 | U76: -107.825185
I77: =Data!O77 -> 2009 | J77: =Data!P77 -> 365 | K77: =Data!Q77 -> 2.66141876 | L77: 38 | M77: 1.057474006 | N77: 0.6248753681 | O77: 0.05588305119 | Q77: 68 | R77: 2.319420825 | S77: 0.6948448332 | T77: 0.1772769743 | U77: -107.8103988
I78: =Data!O78 -> 2010 | J78: =Data!P78 -> 365 | K78: =Data!Q78 -> 3.07874182 | L78: 23 | M78: 1.129914138 | N78: 0.3578266925 | O78: 0.1221416454 | Q78: 69 | R78: 2.319420825 | S78: 0.6948448332 | T78: 0.1755042046 | U78: -107.7961879
I79: =Data!O79 -> 2011 | J79: =Data!P79 -> 365 | K79: =Data!Q79 -> 2.79921411 | L79: 31 | M79: 1.081392917 | N79: 0.5176792886 | O79: 0.07824994856 | Q79: 70 | R79: 2.319420825 | S79: 0.6948448332 | T79: 0.1737491626 | U79: -107.78254
I80: =Data!O80 -> 2012 | J80: =Data!P80 -> 366 | K80: =Data!Q80 -> 1.48031576 | L80: 84 | M80: 0.8524547663 | N80: 3.831202633 | O80: -0.1596351313 | Q80: 71 | R80: 2.319420825 | S80: 0.6878963848 | T80: 0.1737491626 | U80: -107.7692979
I81: =Data!O81 -> 2013 | J81: =Data!P81 -> 365 | K81: =Data!Q81 -> 2.4803163 | L81: 49 | M81: 1.026037723 | N81: 0.8055103863 | O81: 0.02570451286 | Q81: 72 | R81: 2.319420825 | S81: 0.6878963848 | T81: 0.1720116709 | U81: -107.7555747
I82: =Data!O82 -> 2014 | J82: =Data!P82 -> 365 | K82: =Data!Q82 -> 2.53149743 | L82: 46 | M82: 1.03492189 | N82: 0.7491466876 | O82: 0.03432595507 | Q82: 73 | R82: 2.319420825 | S82: 0.6878963848 | T82: 0.1702915542 | U82: -107.7424153
I83: =Data!O83 -> 2015 | J83: =Data!P83 -> 365 | K83: =Data!Q83 -> 4.87008137 | L83: 3 | M83: 1.440859985 | N83: 0.04627512844 | O83: 0.365240147 | Q83: 74 | R83: 2.319420825 | S83: 0.6878963848 | T83: 0.1685886387 | U83: -107.7298074
I84: =Data!O84 -> 2016 | J84: =Data!P84 -> 366 | K84: =Data!Q84 -> 2.5196864 | L84: 47 | M84: 1.032871697 | N84: 0.7617509631 | O84: 0.03234297854 | Q84: 75 | R84: 2.319420825 | S84: 0.6878963848 | T84: 0.1669027523 | U84: -107.7177387
I85: =Data!O85 -> 2017 | J85: =Data!P85 -> 365 | K85: =Data!Q85 -> 3.149608 | L85: 20 | M85: 1.142215292 | N85: 0.3266671088 | O85: 0.1329696154 | Q85: 76 | R85: 2.319420825 | S85: 0.6878963848 | T85: 0.1652337248 | U85: -107.7061975
I86: =Data!O86 -> 2018 | J86: =Data!P86 -> 365 | K86: =Data!Q86 -> 1.72834739 | L86: 78 | M86: 0.8955088067 | N86: 2.53096896 | O86: -0.1103632232 | Q86: 77 | R86: 2.319420825 | S86: 0.6878963848 | T86: 0.1635813875 | U86: -107.6951722
I87: =Data!O87 -> 2019 | J87: =Data!P87 -> 365 | K87: =Data!Q87 -> 3.29921438 | L87: 18 | M87: 1.168184396 | N87: 0.2703680497 | O87: 0.155450745 | Q87: 78 | R87: 2.319420825 | S87: 0.6878963848 | T87: 0.1619455736 | U87: -107.6846514
I88: =Data!O88 -> 2020 | J88: =Data!P88 -> 366 | K88: =Data!Q88 -> 2.33858394 | L88: 56 | M88: 1.001435414 | N88: 0.9880035464 | O88: 0.001434384718 | Q88: 79 | R88: 2.319420825 | S88: 0.6878963848 | T88: 0.1603261179 | U88: -107.6746242
I89: =Data!O89 -> 2021 | J89: =Data!P89 -> 365 | K89: =Data!Q89 -> 2.61811165 | L89: 41 | M89: 1.049956634 | N89: 0.6635337206 | O89: 0.04874886241 | Q89: 80 | R89: 2.319420825 | S89: 0.6878963848 | T89: 0.1587228567 | U89: -107.6650796
I90: =Data!O90 -> 2022 | J90: =Data!P90 -> 365 | K90: =Data!Q90 -> 8.64173695 | L90: 1 | M90: 2.095554758 | N90: 0.001979577293 | O90: 0.739818319 | Q90: 81 | R90: 2.319420825 | S90: 0.6878963848 | T90: 0.1571356282 | U90: -107.6560072
Q91: 82 | R91: 2.319420825 | S91: 0.6878963848 | T91: 0.1555642719 | U91: -107.6473966
Q92: 83 | R92: 2.319420825 | S92: 0.6878963848 | T92: 0.1540086292 | U92: -107.6392377
Q93: 84 | R93: 2.319420825 | S93: 0.6878963848 | T93: 0.1524685429 | U93: -107.6315205
Q94: 85 | R94: 2.319420825 | S94: 0.6878963848 | T94: 0.1509438574 | U94: -107.6242354
Q95: 86 | R95: 2.319420825 | S95: 0.6878963848 | T95: 0.1494344189 | U95: -107.617373
Q96: 87 | R96: 2.319420825 | S96: 0.6878963848 | T96: 0.1479400747 | U96: -107.6109238
Q97: 88 | R97: 2.319420825 | S97: 0.6878963848 | T97: 0.1464606739 | U97: -107.604879
Q98: 89 | R98: 2.319420825 | S98: 0.6878963848 | T98: 0.1449960672 | U98: -107.5992295
Q99: 90 | R99: 2.319420825 | S99: 0.681017421 | T99: 0.1449960672 | U99: -107.5939361
Q100: 91 | R100: 2.319420825 | S100: 0.681017421 | T100: 0.1435461065 | U100: -107.588372
Q101: 92 | R101: 2.319420825 | S101: 0.681017421 | T101: 0.1421106455 | U101: -107.5832028
Q102: 93 | R102: 2.319420825 | S102: 0.681017421 | T102: 0.140689539 | U102: -107.5784198
Q103: 94 | R103: 2.319420825 | S103: 0.681017421 | T103: 0.1392826436 | U103: -107.5740142
Q104: 95 | R104: 2.319420825 | S104: 0.681017421 | T104: 0.1378898172 | U104: -107.5699777
Q105: 96 | R105: 2.319420825 | S105: 0.681017421 | T105: 0.136510919 | U105: -107.5663021
Q106: 97 | R106: 2.319420825 | S106: 0.681017421 | T106: 0.1351458098 | U106: -107.5629792
Q107: 98 | R107: 2.319420825 | S107: 0.681017421 | T107: 0.1337943517 | U107: -107.560001
Q108: 99 | R108: 2.319420825 | S108: 0.681017421 | T108: 0.1324564082 | U108: -107.55736
Q109: 100 | R109: 2.319420825 | S109: 0.681017421 | T109: 0.1311318441 | U109: -107.5550483
Q110: 101 | R110: 2.319420825 | S110: 0.681017421 | T110: 0.1298205257 | U110: -107.5530586
Q111: 102 | R111: 2.319420825 | S111: 0.681017421 | T111: 0.1285223204 | U111: -107.5513835
Q112: 103 | R112: 2.319420825 | S112: 0.681017421 | T112: 0.1272370972 | U112: -107.550016
Q113: 104 | R113: 2.319420825 | S113: 0.681017421 | T113: 0.1259647262 | U113: -107.5489488
Q114: 105 | R114: 2.319420825 | S114: 0.681017421 | T114: 0.124705079 | U114: -107.5481752
Q115: 106 | R115: 2.319420825 | S115: 0.681017421 | T115: 0.1234580282 | U115: -107.5476883
Q116: 107 | R116: 2.319420825 | S116: 0.681017421 | T116: 0.1222234479 | U116: -107.5474816

Sheet Monte Carlo Simulations
B2: Scenarios | C2: 1000 | F2: Starting | G2: Best | H2: Increment | I2: Current | M2: Best Estimate | N2: Mean | O2: Standard Error | P2: CI Bottom | Q2: CI Top | R2: 2.5th Percentile | S2: 97.5th Percentile | CP2: If the distribution of the simulated parameters is normally distributed then we can build confidence intervals using classical techniques
B3: Years | C3: 85 | E3: Location | F3: 2.319420825 | G3: 2.319420825 | H3: 0.01 | I3: 2.319188882 | L3: =B4 -> Location | M3: 2.33031461 | N3: =$CJ$14 -> 2.319594189 | O3: =CJ13 -> 0.07755436888 | P3: =N3-_xlfn.NORM.INV(0.975,0,1)*O3 -> 2.167590419 | Q3: =N3+_xlfn.NORM.INV(0.975,0,1)*O3 -> 2.471597959 | R3: =_xlfn.PERCENTILE.INC($CJ$17:$CJ$1016,0.025) -> 2.183470296 | S3: =_xlfn.PERCENTILE.INC($CJ$17:$CJ$1016,0.975) -> 2.486733062 | CP3: Location | CQ3: Count | CR3: Mean | CS3: Min | CT3: Max | CU3: Normal
B4: Location | C4: ='GEV Fitting'!CurrentLocation -> 2.33031461 | E4: Scale | F4: 0.681017421 | G4: 0.681017421 | H4: 0.01 | I4: 0.6878275952 | L4: Scale | M4: 0.6846802691 | N4: =CK14 -> 0.6747379204 | O4: =CK13 -> 0.06029785112 | P4: =N4-_xlfn.NORM.INV(0.975,0,1)*O4 -> 0.5565563039 | Q4: =N4+_xlfn.NORM.INV(0.975,0,1)*O4 -> 0.792919537 | R4: =_xlfn.PERCENTILE.INC($CK$17:$CK$1016,0.025) -> 0.5626352255 | S4: =_xlfn.PERCENTILE.INC($CK$17:$CK$1016,0.975) -> 0.7987461213 | CP4: 2.15 | CQ4: =COUNTIFS($CJ:$CJ,"<="&$CP4) -> 12 | CR4: =AVERAGEIFS($CM:$CM,$CJ:$CJ,"<="&$CP4) -> -88.48860982 | CS4: =_xlfn.MAXIFS($CM:$CM,$CJ:$CJ,"<="&$CP4) -> 8.136254157 | CT4: =_xlfn.MINIFS($CM:$CM,$CJ:$CJ,"<="&$CP4) -> -106.0314192 | CU4: =_xlfn.NORM.DIST(CP4,$CJ$14,$CJ$13,TRUE)*1000 -> 14.37936639 | DR4: Best Estimate | DS4: Mean | DT4: Standard Error | DU4: CI Bottom | DV4: CI Top | DW4: 2.5th Percentile | DX4: 97.5th Percentile
B5: Scale | C5: ='GEV Fitting'!S2 -> 0.6846802691 | E5: Shape | F5: 0.1222234479 | G5: 0.1222234479 | H5: 0.01 | I5: 0.04610716366 | L5: Shape | M5: 0.1188487612 | N5: =CL14 -> 0.1269943877 | O5: =CL13 -> 0.06807887555 | P5: -0.006437756466 | Q5: 0.2604265319 | R5: =_xlfn.PERCENTILE.INC($CL$17:$CL$1016,0.025) -> 0.04704332585 | S5: =_xlfn.PERCENTILE.INC($CL$17:$CL$1016,0.975) -> 0.2791441655 | CP5: =CP4+0.05 -> 2.2 | CQ5: =COUNTIFS($CJ:$CJ,"<="&$CP5,$CJ:$CJ,">"&$CP4) -> 43 | CR5: =AVERAGEIFS($CM:$CM,$CJ:$CJ,"<="&$CP5,$CJ:$CJ,">"&$CP4) -> -99.81191485 | CS5: =_xlfn.MAXIFS($CM:$CM,$CJ:$CJ,"<="&$CP5,$CJ:$CJ,">"&$CP4) -> -80.62195759 | CT5: =_xlfn.MINIFS($CM:$CM,$CJ:$CJ,"<="&$CP5,$CJ:$CJ,">"&$CP4) -> -117.9126693 | CU5: =(_xlfn.NORM.DIST(CP5,$CJ$14,$CJ$13,TRUE)-_xlfn.NORM.DIST(CP4,$CJ$14,$CJ$13,TRUE))*1000 -> 47.14904536 | DQ5: Location | DR5: 2.319420825 | DS5: 2.319594189 | DT5: 0.07755436888 | DU5: 2.167590419 | DV5: 2.471597959 | DW5: 2.183470296 | DX5: 2.486733062
B6: Shape | C6: ='GEV Fitting'!T2 -> 0.1188487612 | E6: LLH | F6: -105.4684372 | G6: -105.4684372 | I6: =IFERROR(-C3*LN(I4)-(1+1/I5)*SUM(C14:CI14)-SUM(C13:CI13),-1000000) -> -104.8418757 | CP6: =CP5+0.05 -> 2.25 | CQ6: 103 | CR6: -102.9332269 | CS6: -79.80896345 | CT6: -126.6166354 | CU6: =(_xlfn.NORM.DIST(CP6,$CJ$14,$CJ$13,TRUE)-_xlfn.NORM.DIST(CP5,$CJ$14,$CJ$13,TRUE))*1000 -> 123.2350104 | DQ6: Scale | DR6: 0.681017421 | DS6: 0.6747379204 | DT6: 0.06029785112 | DU6: 0.5565563039 | DV6: 0.792919537 | DW6: 0.5626352255 | DX6: 0.7987461213
B7: Current Scenario | C7: 1000 | CP7: 2.3 | CQ7: 290 | CR7: -104.7346178 | CS7: -85.7408667 | CT7: -121.9483985 | CU7: 215.5055339 | DQ7: Shape | DR7: 0.1222234479 | DS7: 0.1269943877 | DT7: 0.06807887555 | DU7: -0.006437756466 | DV7: 0.2604265319 | DW7: 0.04704332585 | DX7: 0.2791441655
B8: Current LogLikelihood | C8: =IFERROR(-C3*LN(I4)-(1+1/I5)*SUM(C14:CI14)-SUM(C13:CI13),-1000000) -> -104.8418757 | CP8: 2.35 | CQ8: 220 | CR8: -106.5910144 | CS8: -82.21691479 | CT8: -130.5853432 | CU8: 252.2233643
CP9: 2.4 | CQ9: 195 | CR9: -108.4613571 | CS9: -83.96081607 | CT9: -130.9411441 | CU9: 197.5854516
CP10: 2.45 | CQ10: 85 | CR10: -110.4046017 | CS10: -87.01987985 | CT10: -133.1716751 | CU10: 103.5869818
B11: Values | C11: =OFFSET(C16,$C$7,0) -> 3.831651848 | D11: =OFFSET(D16,$C$7,0) -> 1.607981951 | E11: 2.76741033 | F11: 4.417551697 | G11: 2.47390834 | H11: 4.624412029 | I11: 2.081518188 | J11: 2.019027747 | K11: 1.938919887 | L11: 2.344619412 | M11: 2.363684879 | N11: 2.788470555 | O11: 3.104254226 | P11: 3.796680145 | Q11: 3.723723369 | R11: 3.180615937 | S11: 5.924446639 | T11: 2.091409653 | U11: 2.331844296 | V11: 2.435812448 | W11: 2.318374806 | X11: 4.463908208 | Y11: 1.579493237 | Z11: 2.560549302 | AA11: 2.092182178 | AB11: 2.2796324 | AC11: 4.16482483 | AD11: 3.5059363 | AE11: 3.276772594 | AF11: 2.834853553 | AG11: 4.082572452 | AH11: 3.032876886 | AI11: 3.627972081 | AJ11: 2.651105627 | AK11: 4.61524731 | AL11: 2.378365312 | AM11: 2.454770218 | AN11: 3.317529636 | AO11: 2.300665914 | AP11: 1.587199227 | AQ11: 1.766045002 | AR11: 2.20435255 | AS11: 2.584297008 | AT11: 2.804804477 | AU11: 2.934877856 | AV11: 1.894934557 | AW11: 2.97397744 | AX11: 2.177134518 | AY11: 2.211123488 | AZ11: 2.166618154 | BA11: 2.007062168 | BB11: 1.800472213 | BC11: 3.755982037 | BD11: 3.946372988 | BE11: 4.228147401 | BF11: 3.026632762 | BG11: 2.047128758 | BH11: 3.224712146 | BI11: 3.118894042 | BJ11: 2.306145606 | BK11: 2.020417613 | BL11: 1.380271041 | BM11: 2.586733892 | BN11: 2.570045198 | BO11: 2.634521236 | BP11: =OFFSET(BP16,$C$7,0) -> 1.789900896 | BQ11: 2.215725028 | BR11: 1.70729887 | BS11: 1.671098628 | BT11: 4.711361562 | BU11: 3.014101032 | BV11: 2.591443834 | BW11: 2.33966892 | BX11: 2.396690352 | BY11: 2.245642942 | BZ11: 3.164117251 | CA11: 2.551489881 | CB11: 1.307457611 | CC11: 1.372940924 | CD11: 2.609826795 | CE11: 3.869283101 | CF11: 3.746794323 | CG11: 3.017620226 | CH11: 1.690659314 | CI11: 3.230238232 | CP11: 2.5 | CQ11: 46 | CR11: -111.1849528 | CS11: -99.41206278 | CT11: -128.5366517 | CU11: 36.33090481
B12: y(j) | C12: =1+$I$5*((C$11-$I$3)/$I$4) -> 1.101384966 | D12: 0.9523256487 | E12: 1.030045639 | F12: 1.140659605 | G12: 1.010371313 | H12: 1.154526078 | I12: 0.9840682146 | J12: 0.9798792914 | K12: 0.9745094193 | L12: 1.001704685 | M12: 1.002982701 | N12: 1.03145737 | O12: 1.052625304 | P12: 1.099040707 | Q12: 1.094150194 | R12: 1.05774406 | S12: 1.24167133 | T12: 0.9847312694 | U12: 1.000848331 | V12: 1.00781763 | W12: 0.99994543 | X12: 1.143767022 | Y12: 0.9504159641 | Z12: 1.016179119 | AA12: 0.9847830541 | AB12: 0.9973484094 | AC12: 1.123718559 | AD12: 1.079551268 | AE12: 1.064189732 | AF12: 1.034566562 | AG12: 1.118204933 | AH12: 1.047840665 | AI12: =1+$I$5*((AI$11-$I$3)/$I$4) -> 1.087731696 | AJ12: 1.022249383 | AK12: 1.15391174 | AL12: 1.003966775 | AM12: 1.009088427 | AN12: 1.0669218 | AO12: 0.9987583494 | AP12: 0.9509325199 | AQ12: 0.962921093 | AR12: 0.9923021734 | AS12: 1.017770999 | AT12: 1.032552282 | AU12: 1.041271494 | AV12: 0.9715609497 | AW12: 1.043892457 | AX12: 0.9904776664 | AY12: 0.9927560498 | AZ12: 0.9897727227 | BA12: 0.9790772025 | BB12: 0.9652288531 | BC12: 1.09631259 | BD12: 1.109075071 | BE12: 1.127963262 | BF12: 1.047422103 | BG12: 0.9817629872 | BH12: 1.060699963 | BI12: 1.053606655 | BJ12: 0.9991256697 | BK12: 0.9799724583 | BL12: 0.9370614979 | BM12: 1.017934351 | BN12: 1.016815657 | BO12: =1+$I$5*((BO$11-$I$3)/$I$4) -> 1.021137681 | BP12: 0.9645202257 | BQ12: 0.9930645049 | BR12: 0.9589831622 | BS12: 0.9565565505 | BT12: 1.160354569 | BU12: 1.046582063 | BV12: 1.018250073 | BW12: 1.001372839 | BX12: 1.005195158 | BY12: 0.9950699932 | BZ12: 1.056638104 | CA12: 1.015571838 | CB12: 0.9321805934 | CC12: 0.936570138 | CD12: 1.019482338 | CE12: 1.103907503 | CF12: 1.09569671 | CG12: 1.046817965 | CH12: 0.9578677624 | CI12: 1.061070393 | CP12: 2.55 | CQ12: 7 | CR12: -115.2538918 | CS12: -110.9480794 | CT12: -121.1682216 | CU12: 8.519670206 | DS12: Estimated Observations | DV12: CDFs
B13: y(i)^shape | C13: =C12^(-1/$I$5) -> 0.1231398228 | D13: 2.88478393 | E13: 0.5262125067 | F13: 0.05759235373 | G13: 0.7994903281 | H13: 0.04431490866 | I13: 1.416685924 | J13: 1.554012207 | K13: 1.750713609 | L13: 0.9637332196 | M13: 0.9374476726 | N13: 0.5108112457 | O13: 0.3287851953 | P13: 0.1289639756 | Q13: 0.1420612721 | R13: 0.2959503997 | S13: 0.009143804937 | T13: 1.396140516 | U13: 0.9817767802 | V13: 0.8445982868 | W13: 1.00118428 | X13: 0.0542924643 | Y13: 3.013148386 | Z13: 0.7060324355 | AA13: 1.394549094 | AB13: 1.059276024 | AC13: 0.07967249152 | AD13: 0.1901077627 | AE13: 0.2594144864 | AF13: 0.4785310192 | AG13: 0.08864178665 | AH13: 0.3629312746 | AI13: =AI12^(-1/$I$5) -> 0.1613962754 | AJ13: 0.6204761795 | AK13: 0.04482943826 | AL13: 0.9177193781 | AM13: 0.8218273477 | AN13: 0.2453824113 | AO13: 1.027312737 | AP13: 2.977847862 | AQ13: 2.269315094 | AR13: 1.182464741 | AS13: 0.6824653789 | AT13: 0.4991913427 | AU13: 0.4159698157 | AV13: 1.869636183 | AW13: 0.3938969574 | AX13: 1.230617053 | AY13: 1.170794972 | AZ13: 1.249767384 | BA13: 1.581859062 | BB13: 2.154504612 | BC13: 0.136106414 | BD13: 0.10589121 | BE13: 0.07341679966 | BF13: 0.3660898466 | BG13: 1.490611582 | BH13: 0.2785692974 | BI13: 0.3222069386 | BJ13: 1.019152396 | BK13: 1.55081105 | BL13: 4.095534827 | BM13: 0.6800940302 | BN13: 0.6965082267 | BO13: =BO12^(-1/$I$5) -> 0.6352931375 | BP13: 2.189097718 | BQ13: 1.162932987 | BR13: 2.480243986 | BS13: 2.620348563 | BT13: 0.03972990696 | BU13: 0.372516069 | BV13: 0.6755351503 | BW13: 0.9706837704 | BX13: 0.8937009698 | BY13: 1.113145067 | BZ13: 0.3027419894 | CA13: 0.7152459099 | CB13: 4.5867088 | CC13: 4.142390292 | CD13: 0.6580454193 | CE13: 0.1171790594 | CF13: 0.1377753637 | CG13: 0.3706996107 | CH13: 2.543644205 | CI13: 0.2764676518 | CJ13: =_xlfn.STDEV.S(CJ17:CJ1016) -> 0.07755436888 | CK13: =_xlfn.STDEV.S(CK17:CK1016) -> 0.06029785112 | CL13: 0.06807887555 | CM13: =_xlfn.STDEV.S(CM17:CM1016) -> 8.136254157 | CP13: 2.6 | CQ13: 1 | CR13: -103.650015 | CS13: -103.650015 | CT13: -103.650015 | CU13: =(1-_xlfn.NORM.DIST(CP12,$CJ$14,$CJ$13,TRUE))*1000 -> 1.484671147 | DQ13: Inches | DR13: Observations | DS13: Mean | DT13: 2.5th Percentile | DU13: 97.5th Percentile | DV13: Mean | DW13: 2.5th Percentile | DX13: 97.5th Percentile
B14: ln(y(j)) | C14: =LN(C12) -> 0.09656844805 | D14: =LN(D12) -> -0.04884823468 | E14: 0.02960311101 | F14: 0.1316066958 | G14: 0.01031790001 | H14: 0.143689938 | I14: -0.01606006051 | J14: -0.02032588696 | K14: -0.02582109431 | L14: 0.001703233936 | M14: 0.002978261741 | N14: 0.03097272414 | O14: 0.05128733316 | P14: 0.09443771492 | Q14: 0.08997798332 | R14: 0.05613839528 | S14: 0.2164583185 | T14: -0.01538649793 | U14: 0.00084797104 | V14: 0.007787230904 | W14: -5.457148643e-05 | X14: 0.1343272201 | Y14: -0.05085553332 | Z14: 0.01604963163 | AA14: -0.01533391166 | AB14: -0.002655112321 | AC14: 0.1166433275 | AD14: 0.07654546228 | AE14: 0.06221369445 | AF14: 0.03398255852 | AG14: 0.1117246612 | AH14: 0.04673153713 | AI14: 0.08409451463 | AJ14: 0.02200547675 | AK14: 0.143157683 | AL14: 0.003958928137 | AM14: 0.009047375667 | AN14: 0.06477767968 | AO14: -0.001242422074 | AP14: -0.05031217598 | AQ14: -0.03778380927 | AR14: -0.00772760782 | AS14: 0.01761494126 | AT14: 0.03203368065 | AU14: 0.04044255648 | AV14: -0.02885127444 | AW14: 0.04295647367 | AX14: -0.009567960942 | AY14: -0.00727031501 | AZ14: -0.01027993522 | BA14: -0.02114478106 | BB14: -0.03539005229 | BC14: 0.09195235764 | BD14: 0.1035263987 | BE14: 0.1204135835 | BF14: 0.04633200493 | BG14: -0.018405357 | BH14: 0.05892903228 | BI14: 0.052219188 | BJ14: -0.0008747127098 | BK14: -0.02023081147 | BL14: -0.06500636619 | BM14: 0.01777542788 | BN14: 0.01667583951 | BO14: 0.02091737943 | BP14: =LN(BP12) -> -0.03612447668 | BQ14: -0.006959657393 | BR14: -0.04188176195 | BS14: -0.04441536957 | BT14: 0.1487256209 | BU14: 0.04552967623 | BV14: 0.01808553896 | BW14: 0.001371897348 | BX14: 0.005181709579 | BY14: -0.004942199328 | BZ14: 0.0550922675 | CA14: 0.01545184145 | CB14: -0.07022871327 | CC14: -0.06553086619 | CD14: 0.01929498688 | CE14: 0.0988561607 | CF14: 0.09139042549 | CG14: 0.04575505335 | CH14: -0.0430455456 | CI14: 0.05927820319 | CJ14: =AVERAGE(CJ17:CJ1016) -> 2.319594189 | CK14: =AVERAGE(CK17:CK1016) -> 0.6747379204 | CL14: 0.1269943877 | CM14: =AVERAGE(CM17:CM1016) -> -106.2401473 | DQ14: 0 | DR14: ='Parameter Fitting Comparison'!N4 -> 0 | DS14: ='GEV Fitting'!$I$4*'Parameter Fitting Comparison'!DW14 -> 0 | DT14: ='GEV Fitting'!$I$4*'Parameter Fitting Comparison'!DX14 -> 0 | DU14: ='GEV Fitting'!$I$4*'Parameter Fitting Comparison'!DY14 -> 0 | DV14: =IF($DS$7=0,EXP(-EXP(-(DQ14-$DS$5)/$DS$6)),IF($DS$7*(DQ14-$DS$5)/$DS$6>-1,EXP(-1*(1+$DS$7*(DQ14-$DS$5)/$DS$6)^(-1/$DS$7)),IF(AND($DS$7>0,$DS$7*(DQ14-$DS$5)/$DS$6<=-1),0,1))) -> 1.610537524e-40 | DW14: =IF($DW$7=0,EXP(-EXP(-(DQ14-$DW$5)/$DW$6)),IF($DW$7*(DQ14-$DW$5)/$DW$6>-1,EXP(-1*(1+$DW$7*(DQ14-$DW$5)/$DW$6)^(-1/$DW$7)),IF(AND($DW$7>0,$DW$7*(DQ14-$DW$5)/$DW$6<=-1),0,1))) -> 2.928501337e-32 | DX14: =IF($DX$7=0,EXP(-EXP(-(DQ14-$DX$5)/$DX$6)),IF($DX$7*(DQ14-$DX$5)/$DX$6>-1,EXP(-1*(1+$DX$7*(DQ14-$DX$5)/$DX$6)^(-1/$DX$7)),IF(AND($DX$7>0,$DX$7*(DQ14-$DX$5)/$DX$6<=-1),0,1))) -> 0
DQ15: 0.5 | DR15: ='Parameter Fitting Comparison'!N5 -> 0 | DS15: ='GEV Fitting'!$I$4*(DV15-DV14) -> 1.372061782e-10 | DT15: ='GEV Fitting'!$I$4*(DW15-DW14) -> 1.017163231e-09 | DU15: ='GEV Fitting'!$I$4*(DX15-DX14) -> 4.055038448e-29 | DV15: =IF($DS$7=0,EXP(-EXP(-(DQ15-$DS$5)/$DS$6)),IF($DS$7*(DQ15-$DS$5)/$DS$6>-1,EXP(-1*(1+$DS$7*(DQ15-$DS$5)/$DS$6)^(-1/$DS$7)),IF(AND($DS$7>0,$DS$7*(DQ15-$DS$5)/$DS$6<=-1),0,1))) -> 1.614190332e-12 | DW15: =IF($DW$7=0,EXP(-EXP(-(DQ15-$DW$5)/$DW$6)),IF($DW$7*(DQ15-$DW$5)/$DW$6>-1,EXP(-1*(1+$DW$7*(DQ15-$DW$5)/$DW$6)^(-1/$DW$7)),IF(AND($DW$7>0,$DW$7*(DQ15-$DW$5)/$DW$6<=-1),0,1))) -> 1.196662624e-11 | DX15: =IF($DX$7=0,EXP(-EXP(-(DQ15-$DX$5)/$DX$6)),IF($DX$7*(DQ15-$DX$5)/$DX$6>-1,EXP(-1*(1+$DX$7*(DQ15-$DX$5)/$DX$6)^(-1/$DX$7)),IF(AND($DX$7>0,$DX$7*(DQ15-$DX$5)/$DX$6<=-1),0,1))) -> 4.770633468e-31
C16: 1 | D16: =C16+1 -> 2 | E16: =D16+1 -> 3 | F16: 4 | G16: 5 | H16: 6 | I16: 7 | J16: 8 | K16: 9 | L16: 10 | M16: 11 | N16: 12 | O16: 13 | P16: 14 | Q16: 15 | R16: 16 | S16: 17 | T16: 18 | U16: 19 | V16: 20 | W16: 21 | X16: 22 | Y16: 23 | Z16: 24 | AA16: 25 | AB16: 26 | AC16: 27 | AD16: 28 | AE16: 29 | AF16: 30 | AG16: 31 | AH16: 32 | AI16: 33 | AJ16: 34 | AK16: 35 | AL16: 36 | AM16: 37 | AN16: 38 | AO16: 39 | AP16: 40 | AQ16: 41 | AR16: 42 | AS16: 43 | AT16: 44 | AU16: 45 | AV16: 46 | AW16: 47 | AX16: 48 | AY16: 49 | AZ16: 50 | BA16: 51 | BB16: 52 | BC16: 53 | BD16: 54 | BE16: 55 | BF16: 56 | BG16: 57 | BH16: 58 | BI16: 59 | BJ16: 60 | BK16: 61 | BL16: 62 | BM16: 63 | BN16: 64 | BO16: 65 | BP16: 66 | BQ16: =BP16+1 -> 67 | BR16: 68 | BS16: 69 | BT16: 70 | BU16: 71 | BV16: 72 | BW16: 73 | BX16: 74 | BY16: 75 | BZ16: 76 | CA16: 77 | CB16: 78 | CC16: 79 | CD16: 80 | CE16: 81 | CF16: 82 | CG16: 83 | CH16: 84 | CI16: 85 | CJ16: Location | CK16: Scale | CL16: Shape | CM16: LogLikelihood | CN16: Iterations | CP16: Scale | CQ16: Count | CR16: Mean | CS16: Min | CT16: Max | CU16: Normal | DQ16: 1 | DR16: ='Parameter Fitting Comparison'!N6 -> 4 | DS16: ='GEV Fitting'!$I$4*(DV16-DV15) -> 0.006554095646 | DT16: ='GEV Fitting'!$I$4*(DW16-DW15) -> 0.008931885108 | DU16: ='GEV Fitting'!$I$4*(DX16-DX15) -> 8.449247495e-05 | DV16: 7.710700921e-05 | DW16: 0.0001050810132 | DX16: 9.94029117e-07
A17: 1 | C17: 2.166969076 | D17: 2.07211845 | E17: 2.940152379 | F17: 1.457774149 | G17: 3.181020092 | H17: 1.810436521 | I17: 2.78805576 | J17: 3.165779022 | K17: 2.10927148 | L17: 3.677578582 | M17: 3.309733062 | N17: 2.2720999 | O17: 2.153258246 | P17: 2.46701615 | Q17: 2.013180347 | R17: 2.743083589 | S17: 2.006695988 | T17: 1.570977623 | U17: 2.769802172 | V17: 1.977499025 | W17: 2.258842054 | X17: 1.246166772 | Y17: 3.679798066 | Z17: 2.03214108 | AA17: 1.801996698 | AB17: 2.314430481 | AC17: 5.016068406 | AD17: 2.603035402 | AE17: 2.62098453 | AF17: 2.448139614 | AG17: 1.667224802 | AH17: 2.605846768 | AI17: 3.707730044 | AJ17: 3.082224266 | AK17: 3.228194433 | AL17: 2.078695804 | AM17: 2.785688246 | AN17: 5.533955336 | AO17: 2.956459448 | AP17: 2.701724835 | AQ17: 3.039187591 | AR17: 3.291086569 | AS17: 2.243130159 | AT17: 3.156279378 | AU17: 4.805032731 | AV17: 4.455911145 | AW17: 2.037299875 | AX17: 1.85109183 | AY17: 3.370340014 | AZ17: 2.750133214 | BA17: 1.751998164 | BB17: 2.199094588 | BC17: 1.853760019 | BD17: 1.987034082 | BE17: 2.713869508 | BF17: 2.019936707 | BG17: 2.996225765 | BH17: 1.434816618 | BI17: 4.703190152 | BJ17: 3.190514537 | BK17: 2.205922195 | BL17: 3.127895901 | BM17: 2.213677978 | BN17: 2.543535044 | BO17: 3.453127316 | BP17: 2.127384064 | BQ17: 3.549062771 | BR17: 3.269260064 | BS17: 3.443409826 | BT17: 1.652277311 | BU17: 2.237508448 | BV17: 3.708651042 | BW17: 6.607212624 | BX17: 2.27371333 | BY17: 1.911736413 | BZ17: 2.675293165 | CA17: 2.731277753 | CB17: 3.598518228 | CC17: 2.080224469 | CD17: 4.08045235 | CE17: 4.915140468 | CF17: 2.801612758 | CG17: 2.38277075 | CH17: 2.074987689 | CI17: 3.136740628 | CJ17: 2.319420825 | CK17: 0.6742072468 | CL17: 0.08176403488 | CM17: -104.7349565 | CN17: 42 | CP17: 0.55 | CQ17: =COUNTIFS($CK:$CK,"<="&$CP17) -> 13 | CR17: =AVERAGEIFS($CM:$CM,$CK:$CK,"<="&$CP17) -> -78.81925286 | CS17: =_xlfn.MAXIFS($CM:$CM,$CK:$CK,"<="&$CP17) -> 8.136254157 | CT17: =_xlfn.MINIFS($CM:$CM,$CK:$CK,"<="&$CP17) -> -94.01589637 | CU17: =_xlfn.NORM.DIST(CP17,$CK$14,$CK$13,TRUE)*1000 -> 19.28731373 | DQ17: 1.5 | DR17: ='Parameter Fitting Comparison'!N7 -> 7 | DS17: ='GEV Fitting'!$I$4*(DV17-DV16) -> 2.011075954 | DT17: ='GEV Fitting'!$I$4*(DW17-DW16) -> 2.575000655 | DU17: ='GEV Fitting'!$I$4*(DX17-DX16) -> 0.8990198858 | DV17: 0.02373682412 | DW17: 0.03039920636 | DX17: 0.01057769857
A18: 2 | C18: 2.07863874 | D18: 4.926537795 | E18: 2.434835148 | F18: 3.488474853 | G18: 2.039167302 | H18: 2.644055868 | I18: 2.400890866 | J18: 6.405664219 | K18: 2.693211249 | L18: 1.891793446 | M18: 4.57613358 | N18: 2.677094634 | O18: 3.047400013 | P18: 2.64973655 | Q18: 2.828027057 | R18: 2.112412363 | S18: 2.89695315 | T18: 3.189227799 | U18: 1.866698392 | V18: 2.704230482 | W18: 2.309107588 | X18: 4.207254155 | Y18: 3.608576509 | Z18: 1.596514373 | AA18: 2.427903161 | AB18: 2.431155491 | AC18: 2.420829392 | AD18: 1.846389286 | AE18: 3.951388086 | AF18: 1.965551089 | AG18: 1.452963937 | AH18: 1.438561956 | AI18: 2.425967034 | AJ18: 1.96589183 | AK18: 2.397959469 | AL18: 4.263134625 | AM18: 3.236077236 | AN18: 2.332557414 | AO18: 2.719666956 | AP18: 2.527285961 | AQ18: 2.058123307 | AR18: 3.153480404 | AS18: 2.40207822 | AT18: 2.560736611 | AU18: 3.330705024 | AV18: 2.668211107 | AW18: 3.598590495 | AX18: 3.820543534 | AY18: 1.208535102 | AZ18: 1.654113446 | BA18: 4.656072835 | BB18: 3.469575585 | BC18: 2.80447104 | BD18: 2.107592774 | BE18: 2.837493377 | BF18: 2.14675019 | BG18: 7.551828663 | BH18: 4.55109546 | BI18: 2.057004658 | BJ18: 3.06350827 | BK18: 2.024112001 | BL18: 1.731613627 | BM18: 3.010953444 | BN18: 4.315792191 | BO18: 1.540591394 | BP18: 2.361952425 | BQ18: 3.00994971 | BR18: 2.385571399 | BS18: 2.370080718 | BT18: 1.852641246 | BU18: 2.074828254 | BV18: 2.994359359 | BW18: 1.428370882 | BX18: 2.019410562 | BY18: 2.440598777 | BZ18: 1.594666878 | CA18: 2.173285004 | CB18: 2.583134228 | CC18: 2.467023324 | CD18: 2.663650203 | CE18: 2.428361234 | CF18: 2.466446378 | CG18: 3.48696859 | CH18: 1.864446198 | CI18: 3.691033723 | CJ18: 2.27326435 | CK18: 0.681017421 | CL18: 0.1094313285 | CM18: -106.5150576 | CN18: 14 | CP18: 0.6 | CQ18: =COUNTIFS($CK:$CK,"<="&$CP18,$CK:$CK,">"&$CP17) -> 94 | CR18: =AVERAGEIFS($CM:$CM,$CK:$CK,"<="&$CP18,$CK:$CK,">"&$CP17) -> -93.85007749 | CS18: =_xlfn.MAXIFS($CM:$CM,$CK:$CK,"<="&$CP18,$CK:$CK,">"&$CP17) -> -85.10214832 | CT18: =_xlfn.MINIFS($CM:$CM,$CK:$CK,"<="&$CP18,$CK:$CK,">"&$CP17) -> -103.771526 | CU18: =(_xlfn.NORM.DIST(CP18,$CK$14,$CK$13,TRUE)-_xlfn.NORM.DIST(CP17,$CK$14,$CK$13,TRUE))*1000 -> 88.29676609 | DQ18: 2 | DR18: ='Parameter Fitting Comparison'!N8 -> 26 | DS18: ='GEV Fitting'!$I$4*(DV18-DV17) -> 14.63853512 | DT18: ='GEV Fitting'!$I$4*(DW18-DW17) -> 18.60764893 | DU18: ='GEV Fitting'!$I$4*(DX18-DX17) -> 11.19145638 | DV18: 0.1959548844 | DW18: 0.2493127232 | DX18: 0.1422418913
A19: 3 | C19: 3.616412022 | D19: 4.40854388 | E19: 1.939965638 | F19: 3.550212098 | G19: 4.401213545 | H19: 3.676070749 | I19: 1.721427065 | J19: 2.301647277 | K19: 3.291414366 | L19: 2.110998792 | M19: 2.272232718 | N19: 2.27286524 | O19: 3.211985311 | P19: 3.325430368 | Q19: 2.992818562 | R19: 4.482120721 | S19: 2.479005246 | T19: 2.472772557 | U19: 2.557731927 | V19: 2.007710902 | W19: 3.21859361 | X19: 2.641609282 | Y19: 2.811910786 | Z19: 1.437596506 | AA19: 1.69705853 | AB19: 2.548955731 | AC19: 1.975403457 | AD19: 1.990074486 | AE19: 1.63328774 | AF19: 2.124458839 | AG19: 4.77657171 | AH19: 3.884833943 | AI19: 2.218673577 | AJ19: 3.442933459 | AK19: 2.879433127 | AL19: 1.980067219 | AM19: 2.687737855 | AN19: 3.48123929 | AO19: 2.99448643 | AP19: 1.809064504 | AQ19: 3.929294573 | AR19: 3.31925762 | AS19: 1.974508199 | AT19: 2.887613593 | AU19: 2.370152951 | AV19: 2.040921736 | AW19: 1.873202522 | AX19: 1.895191355 | AY19: 14.37682554 | AZ19: 2.077341306 | BA19: 3.598614911 | BB19: 1.680097775 | BC19: 2.566815291 | BD19: 2.086291361 | BE19: 2.765980515 | BF19: 3.200372161 | BG19: 4.114163393 | BH19: 6.213597094 | BI19: 3.080949217 | BJ19: 2.757925898 | BK19: 1.569315909 | BL19: 3.606617909 | BM19: 2.957127936 | BN19: 2.515768485 | BO19: 2.276177084 | BP19: 2.126426248 | BQ19: 2.737201074 | BR19: 2.32838139 | BS19: 5.25418529 | BT19: 2.919095988 | BU19: 4.017677904 | BV19: 2.102379911 | BW19: 1.756871907 | BX19: 2.124235199 | BY19: 2.298017884 | BZ19: 1.994938471 | CA19: 2.579195724 | CB19: 2.675910729 | CC19: 2.003012176 | CD19: 3.527250373 | CE19: 2.433811451 | CF19: 2.877073123 | CG19: 2.799863233 | CH19: 4.007726518 | CI19: 2.836534629 | CJ19: 2.342380771 | CK19: 0.6476407912 | CL19: 0.2380600795 | CM19: -108.5118999 | CN19: 76 | CP19: 0.65 | CQ19: 248 | CR19: -100.6531865 | CS19: -90.77369377 | CT19: -110.8364466 | CU19: =(_xlfn.NORM.DIST(CP19,$CK$14,$CK$13,TRUE)-_xlfn.NORM.DIST(CP18,$CK$14,$CK$13,TRUE))*1000 -> 233.2227814 | DQ19: 2.5 | DR19: ='Parameter Fitting Comparison'!N9 -> 23 | DS19: ='GEV Fitting'!$I$4*(DV19-DV18) -> 22.74744973 | DT19: ='GEV Fitting'!$I$4*(DW19-DW18) -> 26.69010267 | DU19: ='GEV Fitting'!$I$4*(DX19-DX18) -> 19.69734914 | DV19: 0.46357194 | DW19: 0.5633139311 | DX19: 0.3739754106
A20: 4 | C20: 1.763281758 | D20: 2.36546274 | E20: 2.082862739 | F20: 2.936690966 | G20: 5.529797245 | H20: 1.280756737 | I20: 3.916202415 | J20: 2.695499168 | K20: 1.634087589 | L20: 2.992185057 | M20: 2.402172264 | N20: 2.760403532 | O20: 2.283588871 | P20: 4.080047467 | Q20: 2.946444284 | R20: 2.254565072 | S20: 4.042011792 | T20: 1.872173682 | U20: 2.696332857 | V20: 1.618523652 | W20: 3.264873126 | X20: 3.281459851 | Y20: 2.194517933 | Z20: 2.045520162 | AA20: 2.180052431 | AB20: 2.128543421 | AC20: 3.150829812 | AD20: 2.369876532 | AE20: 2.965881847 | AF20: 3.091388687 | AG20: 4.940396716 | AH20: 2.124629458 | AI20: 2.843303515 | AJ20: 2.433569366 | AK20: 2.191104927 | AL20: 5.903072547 | AM20: 2.546158743 | AN20: 6.864809495 | AO20: 2.312100374 | AP20: 3.290909825 | AQ20: 2.484480833 | AR20: 2.368697637 | AS20: 2.537375691 | AT20: 3.039971501 | AU20: 1.743909489 | AV20: 2.602955995 | AW20: 2.242647369 | AX20: 3.440694129 | AY20: 1.72699438 | AZ20: 3.518891333 | BA20: 3.496104472 | BB20: 2.401858684 | BC20: 2.175474123 | BD20: 2.210579801 | BE20: 2.067692828 | BF20: 3.090345785 | BG20: 5.923882486 | BH20: 3.200298076 | BI20: 2.929821352 | BJ20: 2.691644783 | BK20: 2.318931285 | BL20: 1.643437456 | BM20: 2.675562628 | BN20: 2.772754356 | BO20: 2.283833477 | BP20: 1.783766644 | BQ20: 3.053102093 | BR20: 2.667202721 | BS20: 2.676323114 | BT20: 2.735893023 | BU20: 2.222665251 | BV20: 3.52947264 | BW20: 2.722459565 | BX20: 2.058577854 | BY20: 2.495442075 | BZ20: 2.228731761 | CA20: 2.596782898 | CB20: 2.237079659 | CC20: 2.943433909 | CD20: 2.631990022 | CE20: 3.190064202 | CF20: 2.25915198 | CG20: 3.423974659 | CH20: 3.618031539 | CI20: 3.987891863 | CJ20: 2.389701595 | CK20: 0.628405212 | CL20: 0.09317615503 | CM20: -98.87352578 | CN20: 39 | CP20: 0.7 | CQ20: 316 | CR20: -107.1114287 | CS20: -97.34463479 | CT20: -116.8145832 | CU20: 321.5685884 | DQ20: 3 | DR20: ='Parameter Fitting Comparison'!N10 -> 11 | DS20: ='GEV Fitting'!$I$4*(DV20-DV19) -> 18.30869792 | DT20: ='GEV Fitting'!$I$4*(DW20-DW19) -> 18.60524945 | DU20: ='GEV Fitting'!$I$4*(DX20-DX19) -> 17.06918151 | DV20: 0.6789683861 | DW20: 0.7821992187 | DX20: 0.5747893108
A21: 5 | C21: 4.107995667 | D21: 2.144817912 | E21: 1.824940833 | F21: 1.90461424 | G21: 1.540444802 | H21: 2.339926623 | I21: 2.71330768 | J21: 3.31344047 | K21: 2.688181539 | L21: 4.589425788 | M21: 3.258759079 | N21: 3.505330232 | O21: 3.526159461 | P21: 2.029682213 | Q21: 7.031586425 | R21: 1.990529556 | S21: 2.941375188 | T21: 1.432138019 | U21: 3.871310012 | V21: 4.364470716 | W21: 2.750106757 | X21: 1.854706625 | Y21: 1.840894013 | Z21: 2.924166821 | AA21: 2.071976693 | AB21: 4.468566986 | AC21: 2.981634725 | AD21: 2.368555353 | AE21: 1.780317151 | AF21: 2.179540062 | AG21: 5.496947663 | AH21: 2.767101125 | AI21: 2.474236955 | AJ21: 3.080056956 | AK21: 2.817127482 | AL21: 2.249573141 | AM21: 2.675818915 | AN21: 3.027697001 | AO21: 1.723586055 | AP21: 4.127811274 | AQ21: 1.793511337 | AR21: 2.415607791 | AS21: 4.25484588 | AT21: 2.671200271 | AU21: 5.939123488 | AV21: 2.875308855 | AW21: 6.328798501 | AX21: 2.479912807 | AY21: 1.889421805 | AZ21: 3.225779513 | BA21: 1.749792013 | BB21: 1.647111082 | BC21: 3.765700795 | BD21: 2.141943991 | BE21: 3.289778153 | BF21: 2.65292376 | BG21: 1.90866393 | BH21: 2.444893711 | BI21: 2.355159914 | BJ21: 2.757750017 | BK21: 2.61226444 | BL21: 1.722081501 | BM21: 2.552039625 | BN21: 2.410225141 | BO21: 3.745890042 | BP21: 3.468052566 | BQ21: 2.260678218 | BR21: 1.612650016 | BS21: 3.043197776 | BT21: 2.299814041 | BU21: 3.267180198 | BV21: 3.449004887 | BW21: 2.841989917 | BX21: 2.127932975 | BY21: 2.058356166 | BZ21: 1.709160014 | CA21: 1.289174548 | CB21: 3.177557994 | CC21: 1.973186203 | CD21: 2.301181883 | CE21: 4.694045898 | CF21: 3.396694085 | CG21: 2.841706906 | CH21: 2.563608466 | CI21: 2.515731636 | CJ21: 2.319420825 | CK21: 0.7016529299 | CL21: 0.144749771 | CM21: -111.0365919 | CN21: 21 | CP21: 0.75 | CQ21: 228 | CR21: -111.6842724 | CS21: -102.7869874 | CT21: -119.7596837 | CU21: 231.6404827 | DQ21: 3.5 | DR21: ='Parameter Fitting Comparison'!N11 -> 2 | DS21: ='GEV Fitting'!$I$4*(DV21-DV20) -> 11.46240277 | DT21: ='GEV Fitting'!$I$4*(DW21-DW20) -> 9.763962984 | DU21: ='GEV Fitting'!$I$4*(DX21-DX20) -> 11.79073216 | DV21: 0.8138201834 | DW21: 0.8970693715 | DX21: 0.7135038068
A22: 6 | C22: 2.968463832 | D22: 4.034190057 | E22: 2.009740331 | F22: 6.275505372 | G22: 2.461502456 | H22: 3.600513594 | I22: 3.628713922 | J22: 7.301826972 | K22: 4.593881035 | L22: 1.537903207 | M22: 2.391271412 | N22: 1.522486046 | O22: 3.770341955 | P22: 2.487000153 | Q22: 3.633015562 | R22: 3.850197014 | S22: 1.946312928 | T22: 2.110965717 | U22: 2.560972903 | V22: 10.40248984 | W22: 3.261093524 | X22: 3.676474648 | Y22: 4.495626023 | Z22: 2.172637006 | AA22: 2.19376689 | AB22: 2.079330564 | AC22: 4.583095928 | AD22: 5.188429099 | AE22: 2.428860381 | AF22: 2.842304686 | AG22: 3.309500638 | AH22: 3.540300741 | AI22: 1.767116986 | AJ22: 1.946847211 | AK22: 3.00134937 | AL22: 2.901994199 | AM22: 2.082591809 | AN22: 1.925865123 | AO22: 3.023127767 | AP22: 4.517680639 | AQ22: 2.942748704 | AR22: 2.121671872 | AS22: 2.769885333 | AT22: 3.865967196 | AU22: 1.895984451 | AV22: 1.843841406 | AW22: 2.063849685 | AX22: 2.560712316 | AY22: 4.192004137 | AZ22: 2.056882914 | BA22: 1.372965446 | BB22: 1.908214801 | BC22: 1.960545184 | BD22: 4.375255189 | BE22: 2.936458572 | BF22: 2.081912404 | BG22: 1.808062204 | BH22: 3.469506211 | BI22: 2.065257871 | BJ22: 1.812554898 | BK22: 4.51986856 | BL22: 2.094158472 | BM22: 2.402544635 | BN22: 2.222393115 | BO22: 2.268424702 | BP22: 2.10488625 | BQ22: 7.19747637 | BR22: 1.484985857 | BS22: 1.796809482 | BT22: 2.644076874 | BU22: 2.950054783 | BV22: 3.233339821 | BW22: 1.359254967 | BX22: 3.598830453 | BY22: 7.518338409 | BZ22: 2.188985262 | CA22: 4.779709132 | CB22: 2.575081863 | CC22: 3.261259575 | CD22: 5.050673357 | CE22: 2.298191531 | CF22: 2.248446556 | CG22: 2.348924699 | CH22: 6.314746658 | CI22: 3.488086466 | CJ22: 2.365804579 | CK22: 0.814597269 | CL22: 0.2655960954 | CM22: -130.9411441 | CN22: 101 | CP22: 0.8 | CQ22: 78 | CR22: -116.790944 | CS22: -108.8346629 | CT22: -127.515998 | CU22: 87.10122239 | DQ22: 4 | DR22: ='Parameter Fitting Comparison'!N12 -> 5 | DS22: ='GEV Fitting'!$I$4*(DV22-DV21) -> 6.600916079 | DT22: ='GEV Fitting'!$I$4*(DW22-DW21) -> 4.643814652 | DU22: ='GEV Fitting'!$I$4*(DX22-DX21) -> 7.665911336 | DV22: 0.8914780196 | DW22: 0.951702485 | DX22: 0.803690999
A23: 7 | C23: 2.862293574 | D23: 3.298795821 | E23: 2.130939935 | F23: 4.738184831 | G23: 2.668327826 | H23: 2.122365088 | I23: 2.175893976 | J23: 2.801541706 | K23: 2.942738073 | L23: 4.866470903 | M23: 2.306321105 | N23: 1.967991085 | O23: 3.401077906 | P23: 1.969835677 | Q23: 1.564249133 | R23: 2.238521256 | S23: 1.783920407 | T23: 2.179015759 | U23: 3.644785036 | V23: 3.346382493 | W23: 2.380899459 | X23: 2.942718937 | Y23: 2.014132197 | Z23: 2.681150091 | AA23: 3.187143604 | AB23: 4.730304777 | AC23: 3.025040852 | AD23: 2.17510371 | AE23: 2.042794714 | AF23: 2.910878529 | AG23: 2.395440783 | AH23: 4.473184542 | AI23: 1.786492709 | AJ23: 3.447067167 | AK23: 3.322368896 | AL23: 2.783806384 | AM23: 1.802015328 | AN23: 1.664939968 | AO23: 2.388425453 | AP23: 3.082482502 | AQ23: 1.338922099 | AR23: 4.408072334 | AS23: 2.31163986 | AT23: 2.382695111 | AU23: 2.467026217 | AV23: 2.148259074 | AW23: 2.773747418 | AX23: 1.95025939 | AY23: 1.492088168 | AZ23: 1.811266769 | BA23: 2.831204249 | BB23: 3.221698477 | BC23: 2.857010785 | BD23: 2.80843165 | BE23: 2.581754157 | BF23: 2.056452547 | BG23: 6.574420498 | BH23: 2.262330067 | BI23: 1.690954423 | BJ23: 2.557251175 | BK23: 2.687750009 | BL23: 3.568312892 | BM23: 2.234041914 | BN23: 3.585771249 | BO23: 2.596539176 | BP23: 2.177146303 | BQ23: 1.935007635 | BR23: 3.588580367 | BS23: 1.912538209 | BT23: 2.964573672 | BU23: 2.311813968 | BV23: 2.627587201 | BW23: 2.482947383 | BX23: 3.799356275 | BY23: 3.165349623 | BZ23: 3.357888988 | CA23: 3.855960048 | CB23: 2.198246875 | CC23: 2.771387273 | CD23: 4.515378915 | CE23: 2.487559871 | CF23: 2.931306344 | CG23: 2.531717001 | CH23: 3.047998881 | CI23: 1.919851993 | CJ23: 2.342615033 | CK23: 0.6221211599 | CL23: 0.06755088018 | CM23: -97.61588279 | CN23: 70 | CP23: 0.85 | CQ23: 19 | CR23: -123.3111098 | CS23: -117.3569733 | CT23: -130.9411441 | CU23: 17.05597831 | DQ23: 4.5 | DR23: ='Parameter Fitting Comparison'!N13 -> 5 | DS23: ='GEV Fitting'!$I$4*(DV23-DV22) -> 3.740473276 | DT23: ='GEV Fitting'!$I$4*(DW23-DW22) -> 2.155890199 | DU23: ='GEV Fitting'!$I$4*(DX23-DX22) -> 4.970435996 | DV23: 0.9354835876 | DW23: 0.9770658991 | DX23: 0.8621667166
A24: 8 | C24: 3.842299476 | D24: 1.777198527 | E24: 2.122970055 | F24: 2.414223494 | G24: 2.480682541 | H24: 2.616971696 | I24: 3.212141074 | J24: 6.173755842 | K24: 4.91447163 | L24: 2.878990954 | M24: 3.349743822 | N24: 1.321867046 | O24: 3.29445176 | P24: 3.724014612 | Q24: 2.445978095 | R24: 2.271167358 | S24: 1.782340073 | T24: 1.700972964 | U24: 2.277462199 | V24: 1.906377395 | W24: 2.182921092 | X24: 3.811154569 | Y24: 1.782360021 | Z24: 3.155121881 | AA24: 2.185505582 | AB24: 4.583565228 | AC24: 4.023953456 | AD24: 2.692586806 | AE24: 2.464508391 | AF24: 3.643546104 | AG24: 2.383133503 | AH24: 2.952574785 | AI24: 2.544457639 | AJ24: 4.067352228 | AK24: 4.519529769 | AL24: 1.957616586 | AM24: 3.579784642 | AN24: 2.462572541 | AO24: 3.572185179 | AP24: 1.956000663 | AQ24: 1.691611513 | AR24: 2.100810472 | AS24: 1.672552548 | AT24: 3.224934316 | AU24: 3.262370934 | AV24: 2.081305783 | AW24: 1.988605845 | AX24: 2.236538685 | AY24: 2.382548321 | AZ24: 2.452598367 | BA24: 2.46600836 | BB24: 2.120320935 | BC24: 3.227260251 | BD24: 1.960808615 | BE24: 1.884337994 | BF24: 2.966984321 | BG24: 2.167771581 | BH24: 2.679445251 | BI24: 2.24347119 | BJ24: 2.526920008 | BK24: 1.456356538 | BL24: 1.787655422 | BM24: 2.930953268 | BN24: 3.376330099 | BO24: 2.533618663 | BP24: 3.473254903 | BQ24: 2.642916981 | BR24: 2.420703275 | BS24: 7.0715596 | BT24: 2.094315817 | BU24: 2.621759977 | BV24: 3.345303248 | BW24: 1.996121087 | BX24: 1.715102337 | BY24: 5.147744219 | BZ24: 3.977075015 | CA24: 3.426214887 | CB24: 3.170219529 | CC24: 3.926553359 | CD24: 3.256224673 | CE24: 2.791702768 | CF24: 2.31768105 | CG24: 1.799337551 | CH24: 4.452982585 | CI24: 3.263577438 | CJ24: 2.342615033 | CK24: 0.681017421 | CL24: 0.1310400794 | CM24: -107.8894221 | CN24: 9 | CP24: 0.9 | CQ24: 5 | CR24: -126.5402867 | CS24: -121.5424694 | CT24: -130.1751511 | CU24: =(1-_xlfn.NORM.DIST(CP23,$CK$14,$CK$13,TRUE))*1000 -> 1.826866994 | DQ24: 5 | DR24: ='Parameter Fitting Comparison'!N14 -> 0 | DS24: ='GEV Fitting'!$I$4*(DV24-DV23) -> 2.142570319 | DT24: ='GEV Fitting'!$I$4*(DW24-DW23) -> 1.005949817 | DU24: ='GEV Fitting'!$I$4*(DX24-DX23) -> 3.279327415 | DV24: 0.9606902972 | DW24: 0.9889006028 | DX24: 0.9007470391
A25: 9 | C25: 1.701055364 | D25: 3.031434545 | E25: 2.277265468 | F25: 2.20278234 | G25: 2.235758002 | H25: 2.609820911 | I25: 2.335185151 | J25: 4.15253647 | K25: 2.99419522 | L25: 2.05739754 | M25: 1.984191955 | N25: 3.958156457 | O25: 3.170613225 | P25: 2.251370605 | Q25: 2.212333074 | R25: 2.535170156 | S25: 2.25739944 | T25: 2.825980127 | U25: 2.472165803 | V25: 2.31547238 | W25: 1.48222778 | X25: 3.293018295 | Y25: 2.762810652 | Z25: 2.409369021 | AA25: 3.184178896 | AB25: 2.1680944 | AC25: 2.186527243 | AD25: 3.136619853 | AE25: 3.290058855 | AF25: 2.827279811 | AG25: 2.239990444 | AH25: 3.732211969 | AI25: 4.886088203 | AJ25: 2.611239369 | AK25: 2.418946198 | AL25: 2.348080984 | AM25: 1.935067952 | AN25: 3.219462489 | AO25: 2.400662401 | AP25: 2.89690578 | AQ25: 5.058156709 | AR25: 4.140811186 | AS25: 2.637662417 | AT25: 3.180159243 | AU25: 2.745001333 | AV25: 2.828113593 | AW25: 7.909265853 | AX25: 3.538588446 | AY25: 1.815202375 | AZ25: 3.888186997 | BA25: 3.669164065 | BB25: 2.823394764 | BC25: 6.716476352 | BD25: 3.211560885 | BE25: 8.097583138 | BF25: 1.890260909 | BG25: 2.944696331 | BH25: 1.974280249 | BI25: 2.795888156 | BJ25: 3.45527482 | BK25: 2.652500479 | BL25: 2.086439738 | BM25: 2.783653689 | BN25: 2.725191296 | BO25: 2.070422747 | BP25: 2.403323588 | BQ25: 2.680832352 | BR25: 2.688007774 | BS25: 6.189589144 | BT25: 2.182706076 | BU25: 3.191308148 | BV25: 3.233066534 | BW25: 2.326027822 | BX25: 2.515678437 | BY25: 2.498796275 | BZ25: 1.646407038 | CA25: 2.107813027 | CB25: 2.950966477 | CC25: 2.893744561 | CD25: 2.667953082 | CE25: 6.701095138 | CF25: 1.773678466 | CG25: 2.84688733 | CH25: 5.072378054 | CI25: 3.995772505 | CJ25: 2.461865732 | CK25: 0.6541826173 | CL25: 0.2265059973 | CM25: -108.790867 | CN25: 75 | DQ25: 5.5 | DR25: ='Parameter Fitting Comparison'!N15 -> 1 | DS25: ='GEV Fitting'!$I$4*(DV25-DV24) -> 1.253364878 | DT25: ='GEV Fitting'!$I$4*(DW25-DW24) -> 0.4770765644 | DU25: ='GEV Fitting'!$I$4*(DX25-DX24) -> 2.21535978 | DV25: 0.9754357664 | DW25: 0.9945132683 | DX25: 0.9268100954
A26: 10 | C26: 1.967514542 | D26: 2.152801544 | E26: 2.61038919 | F26: 4.127076084 | G26: 2.306474257 | H26: 2.23896461 | I26: 3.869169968 | J26: 2.77480372 | K26: 2.151958073 | L26: 4.066963826 | M26: 2.445205679 | N26: 2.217499922 | O26: 1.910641826 | P26: 2.356958604 | Q26: 3.676649124 | R26: 3.038135908 | S26: 2.460479599 | T26: 2.598115154 | U26: 3.296254975 | V26: 2.208675118 | W26: 3.07677566 | X26: 2.904155348 | Y26: 3.947875921 | Z26: 2.959485065 | AA26: 3.247759349 | AB26: 2.365390267 | AC26: 1.970393473 | AD26: 2.328949641 | AE26: 1.644615935 | AF26: 2.444689154 | AG26: 2.481204704 | AH26: 2.858617077 | AI26: 2.307770526 | AJ26: 2.757195079 | AK26: 1.664074206 | AL26: 3.927267246 | AM26: 2.783260015 | AN26: 1.842389089 | AO26: 5.160979873 | AP26: 3.605593299 | AQ26: 9.321682622 | AR26: 2.36315923 | AS26: 5.759976746 | AT26: 2.792841058 | AU26: 2.627182416 | AV26: 2.776365256 | AW26: 2.177919441 | AX26: 1.970621481 | AY26: 2.521483885 | AZ26: 3.983532159 | BA26: 2.046485366 | BB26: 1.959568077 | BC26: 2.348553222 | BD26: 3.157634123 | BE26: 2.098526264 | BF26: 3.110986904 | BG26: 1.950978711 | BH26: 2.406042084 | BI26: 2.136432755 | BJ26: 2.964946151 | BK26: 2.645549224 | BL26: 4.6086869 | BM26: 1.811864438 | BN26: 1.786349116 | BO26: 2.712598195 | BP26: 1.69661473 | BQ26: 2.214298954 | BR26: 7.797996783 | BS26: 2.971624971 | BT26: 2.946278698 | BU26: 1.805888878 | BV26: 1.940545351 | BW26: 3.032436613 | BX26: 2.06424374 | BY26: 3.195275546 | BZ26: 2.571042956 | CA26: 2.203311587 | CB26: 3.522408613 | CC26: 4.315631716 | CD26: 2.326449858 | CE26: 2.973429903 | CF26: 1.505904816 | CG26: 2.914573081 | CH26: 2.356953932 | CI26: 2.183255817 | CJ26: 2.318956964 | CK26: 0.5798575754 | CL26: 0.2502035361 | CM26: -99.32975441 | CN26: 93 | DQ26: 6 | DR26: ='Parameter Fitting Comparison'!N16 -> 0 | DS26: ='GEV Fitting'!$I$4*(DV26-DV25) -> 0.7511811786 | DT26: ='GEV Fitting'!$I$4*(DW26-DW25) -> 0.2308637537 | DU26: ='GEV Fitting'!$I$4*(DX26-DX25) -> 1.533775172 | DV26: 0.984273192 | DW26: 0.9972293125 | DX26: 0.9448545091
A27: 11 | C27: 2.330107565 | D27: 1.964257827 | E27: 2.215426031 | F27: 2.010385172 | G27: 3.767871961 | H27: 2.253412269 | I27: 2.145937256 | J27: 2.214855321 | K27: 3.437072339 | L27: 5.365448027 | M27: 2.060752871 | N27: 1.693857808 | O27: 4.061524302 | P27: 3.419545338 | Q27: 2.934114809 | R27: 2.306090227 | S27: 2.750467229 | T27: 2.263064461 | U27: 2.584746651 | V27: 2.864149069 | W27: 2.729982497 | X27: 2.082759045 | Y27: 2.412508386 | Z27: 2.148527471 | AA27: 3.132944245 | AB27: 3.30528868 | AC27: 1.925977483 | AD27: 2.207469562 | AE27: 1.723105137 | AF27: 2.733330246 | AG27: 2.276516535 | AH27: 2.034792215 | AI27: 2.075776589 | AJ27: 3.101098537 | AK27: 2.309414799 | AL27: 1.835237126 | AM27: 3.958972776 | AN27: 4.126785376 | AO27: 2.80930677 | AP27: 1.9426429 | AQ27: 2.958205623 | AR27: 1.670065552 | AS27: 4.180271995 | AT27: 1.927032189 | AU27: 2.040335937 | AV27: 1.607111655 | AW27: 2.122018333 | AX27: 2.485505935 | AY27: 2.677008903 | AZ27: 3.004605617 | BA27: 3.226652362 | BB27: 1.770989379 | BC27: 2.729410998 | BD27: 1.434730238 | BE27: 3.284976578 | BF27: 2.039053912 | BG27: 4.934864539 | BH27: 3.782894774 | BI27: 2.494856404 | BJ27: 2.984181874 | BK27: 2.01721492 | BL27: 2.642569153 | BM27: 2.482139306 | BN27: 4.410235362 | BO27: 5.385230205 | BP27: 3.846616854 | BQ27: 3.325102447 | BR27: 2.028711774 | BS27: 2.919266441 | BT27: 2.610352117 | BU27: 1.679006342 | BV27: 4.002148235 | BW27: 1.981317911 | BX27: 2.412955796 | BY27: 1.62757411 | BZ27: 1.831925198 | CA27: 1.982971802 | CB27: 2.787300664 | CC27: 2.051247783 | CD27: 3.175976146 | CE27: 2.038290064 | CF27: 1.935494241 | CG27: 3.45348742 | CH27: 2.338414295 | CI27: 2.353088628 | CJ27: 2.22802639 | CK27: 0.5514387845 | CL27: 0.181974059 | CM27: -92.48828468 | CN27: 66 | CP27: Shape | CQ27: Count | CR27: Mean | CS27: Min | CT27: Max | DQ27: 6.5 | DR27: ='Parameter Fitting Comparison'!N17 -> 0 | DS27: ='GEV Fitting'!$I$4*(DV27-DV26) -> 0.4613454812 | DT27: ='GEV Fitting'!$I$4*(DW27-DW26) -> 0.1140974922 | DU27: ='GEV Fitting'!$I$4*(DX27-DX26) -> 1.087030434 | DV27: 0.9897007859 | DW27: 0.9985716359 | DX27: 0.9576431025
A28: 12 | C28: 2.792271851 | D28: 4.588015423 | E28: 4.215282098 | F28: 1.97642926 | G28: 2.072102256 | H28: 1.949184067 | I28: 1.594370814 | J28: 2.706376863 | K28: 1.639872357 | L28: 1.834664518 | M28: 2.036111321 | N28: 2.079365109 | O28: 3.047046137 | P28: 2.474214667 | Q28: 3.253719592 | R28: 2.20146305 | S28: 3.071936677 | T28: 1.665913662 | U28: 2.112691493 | V28: 1.542561701 | W28: 1.679498844 | X28: 2.706638068 | Y28: 2.056571215 | Z28: 5.193329894 | AA28: 5.487332523 | AB28: 4.728534902 | AC28: 5.478549604 | AD28: 2.089372512 | AE28: 3.594039304 | AF28: 2.742238468 | AG28: 3.244736628 | AH28: 1.946075307 | AI28: 2.611240121 | AJ28: 2.299130436 | AK28: 1.883967622 | AL28: 1.660646764 | AM28: 4.259749415 | AN28: 2.016627976 | AO28: 3.080097284 | AP28: 2.197084212 | AQ28: 2.986978825 | AR28: 3.253770714 | AS28: 3.754280443 | AT28: 3.036899574 | AU28: 2.020271288 | AV28: 2.191443987 | AW28: 1.533028049 | AX28: 1.348039069 | AY28: 6.345924938 | AZ28: 1.020405581 | BA28: 1.604192302 | BB28: 3.717837756 | BC28: 1.578682717 | BD28: 2.276860165 | BE28: 3.278657161 | BF28: 3.094048238 | BG28: 3.113954218 | BH28: 3.653877479 | BI28: 5.040890147 | BJ28: 2.165166307 | BK28: 3.078461195 | BL28: 5.557218665 | BM28: 2.576604353 | BN28: 1.734704058 | BO28: 2.204004111 | BP28: 2.413044427 | BQ28: 3.032403124 | BR28: 2.079724165 | BS28: 4.580925505 | BT28: 2.506289751 | BU28: 4.479880957 | BV28: 2.755255346 | BW28: 4.259069934 | BX28: 3.270411575 | BY28: 2.885335556 | BZ28: 5.936517756 | CA28: 2.467817666 | CB28: 2.054456184 | CC28: 2.23525131 | CD28: 4.273268576 | CE28: 4.17738428 | CF28: 2.168334571 | CG28: 1.588600606 | CH28: 2.198886511 | CI28: 2.324943614 | CJ28: 2.295996994 | CK28: 0.7985464847 | CL28: 0.1404927016 | CM28: -121.9483985 | CN28: 34 | CP28: 0.05 | CQ28: =COUNTIFS($CL:$CL,"<="&$CP28) -> 148 | CR28: =AVERAGEIFS($CM:$CM,$CL:$CL,"<="&$CP28) -> -102.4950079 | CS28: =_xlfn.MAXIFS($CM:$CM,$CL:$CL,"<="&$CP28) -> -90.77369377 | CT28: =_xlfn.MINIFS($CM:$CM,$CL:$CL,"<="&$CP28) -> -110.5677778 | DQ28: 7 | DR28: ='Parameter Fitting Comparison'!N18 -> 0 | DS28: ='GEV Fitting'!$I$4*(DV28-DV27) -> 0.2900496482 | DT28: ='GEV Fitting'!$I$4*(DW28-DW27) -> 0.05757279395 | DU28: ='GEV Fitting'!$I$4*(DX28-DX27) -> 0.787202778 | DV28: 0.9931131347 | DW28: 0.9992489629 | DX28: 0.9669043116
A29: 13 | C29: 2.209257392 | D29: 1.319220062 | E29: 2.72346118 | F29: 2.2789091 | G29: 2.210772403 | H29: 2.525838186 | I29: 7.344534992 | J29: 3.515215381 | K29: 4.16031792 | L29: 4.131861333 | M29: 2.157514512 | N29: 2.559295634 | O29: 2.637344901 | P29: 2.251257098 | Q29: 2.333699153 | R29: 2.260536505 | S29: 3.762808436 | T29: 1.417774892 | U29: 2.706749799 | V29: 2.228085167 | W29: 2.661756293 | X29: 2.250781157 | Y29: 3.333752803 | Z29: 2.455499032 | AA29: 1.870849137 | AB29: 4.17785958 | AC29: 1.983284583 | AD29: 7.604043701 | AE29: 2.241773267 | AF29: 1.506264119 | AG29: 1.57807698 | AH29: 1.750324932 | AI29: 2.300179793 | AJ29: 2.087996759 | AK29: 3.083597612 | AL29: 2.379891996 | AM29: 3.26201122 | AN29: 2.189838675 | AO29: 1.537552818 | AP29: 2.001712742 | AQ29: 2.151145879 | AR29: 2.093423868 | AS29: 4.246743738 | AT29: 2.822154602 | AU29: 1.777219632 | AV29: 3.714599222 | AW29: 1.849766255 | AX29: 1.866469593 | AY29: 2.178650966 | AZ29: 2.057761149 | BA29: 2.368280508 | BB29: 2.395192483 | BC29: 2.589228453 | BD29: 3.145356654 | BE29: 3.137018603 | BF29: 2.044093256 | BG29: 4.570231819 | BH29: 1.704853823 | BI29: 5.6496104 | BJ29: 3.347372436 | BK29: 2.629042719 | BL29: 3.349426231 | BM29: 3.136204274 | BN29: 2.057804125 | BO29: 2.377995359 | BP29: 3.243886123 | BQ29: 2.14475258 | BR29: 2.396360917 | BS29: 2.777267228 | BT29: 2.020945623 | BU29: 1.626558687 | BV29: 3.939711007 | BW29: 6.45524201 | BX29: 3.46206762 | BY29: 1.89430648 | BZ29: 1.986469552 | CA29: 2.641831669 | CB29: 1.536242481 | CC29: 1.904917035 | CD29: 2.321941913 | CE29: 2.976984343 | CF29: 3.724723816 | CG29: 2.076149471 | CH29: 3.12689219 | CI29: 1.668053049 | CJ29: 2.205746126 | CK29: 0.6347527394 | CL29: 0.2287710573 | CM29: -105.615888 | CN29: 76 | CP29: =CP28+0.02 -> 0.07 | CQ29: =COUNTIFS($CL:$CL,"<="&$CP29,$CL:$CL,">"&$CP28) -> 154 | CR29: =AVERAGEIFS($CM:$CM,$CL:$CL,"<="&$CP29,$CL:$CL,">"&$CP28) -> -103.0269834 | CS29: =_xlfn.MAXIFS($CM:$CM,$CL:$CL,"<="&$CP29,$CL:$CL,">"&$CP28) -> 8.136254157 | CT29: =_xlfn.MINIFS($CM:$CM,$CL:$CL,"<="&$CP29,$CL:$CL,">"&$CP28) -> -121.6446901 | DQ29: 7.5 | DR29: ='Parameter Fitting Comparison'!N19 -> 0 | DS29: ='GEV Fitting'!$I$4*(DV29-DV28) -> 0.1863940684 | DT29: ='GEV Fitting'!$I$4*(DW29-DW28) -> 0.02963743885 | DU29: ='GEV Fitting'!$I$4*(DX29-DX28) -> 0.58134927 | DV29: 0.9953060061 | DW29: 0.9995976386 | DX29: 0.9737437148
A30: 14 | C30: 2.789985958 | D30: 2.5317268 | E30: 3.525588244 | F30: 2.657528617 | G30: 1.772594856 | H30: 2.458964968 | I30: 3.392495158 | J30: 2.181363104 | K30: 1.728419611 | L30: 1.226757602 | M30: 3.513705007 | N30: 2.267720889 | O30: 3.513674801 | P30: 2.434898265 | Q30: 4.1163387 | R30: 2.04473236 | S30: 6.448410117 | T30: 3.09998277 | U30: 4.09932098 | V30: 4.808943775 | W30: 3.787156596 | X30: 1.857501449 | Y30: 3.29169765 | Z30: 2.072043752 | AA30: 2.92999462 | AB30: 1.7910868 | AC30: 1.689547267 | AD30: 4.074727737 | AE30: 1.951097384 | AF30: 2.092970707 | AG30: 3.352977885 | AH30: 2.833452278 | AI30: 3.170816888 | AJ30: 3.077078475 | AK30: 2.128103961 | AL30: 3.658680282 | AM30: 2.121429817 | AN30: 3.183785036 | AO30: 2.700796173 | AP30: 1.542017428 | AQ30: 3.11818224 | AR30: 2.658742086 | AS30: 3.95366632 | AT30: 1.738555686 | AU30: 3.111002118 | AV30: 2.249451421 | AW30: 2.406816219 | AX30: 1.612792453 | AY30: 2.420983102 | AZ30: 2.962202116 | BA30: 2.165503535 | BB30: 1.698089743 | BC30: 3.071920009 | BD30: 1.489159508 | BE30: 3.789818907 | BF30: 2.828410903 | BG30: 2.56463213 | BH30: 2.899017895 | BI30: 2.132889637 | BJ30: 3.967092911 | BK30: 2.514601506 | BL30: 2.74173114 | BM30: 1.839566915 | BN30: 2.725984279 | BO30: 4.164174901 | BP30: 1.622252 | BQ30: 2.774387446 | BR30: 3.254168172 | BS30: 3.674843484 | BT30: 1.428153706 | BU30: 2.842565265 | BV30: 1.903724362 | BW30: 2.499357948 | BX30: 6.457970907 | BY30: 2.51019465 | BZ30: 2.663379119 | CA30: 3.160135247 | CB30: 1.856995239 | CC30: 2.521844495 | CD30: 2.537402663 | CE30: 2.171591823 | CF30: 2.72435426 | CG30: 1.667403679 | CH30: 2.109463098 | CI30: 2.800456225 | CJ30: 2.319188882 | CK30: 0.6947058711 | CL30: 0.04657289259 | CM30: -105.3737316 | CN30: 101 | CP30: =CP29+0.02 -> 0.09 | CQ30: 70 | CR30: -103.7546353 | CS30: -88.00480846 | CT30: -133.1716751 | DQ30: 8 | DR30: ='Parameter Fitting Comparison'!N20 -> 0 | DS30: ='GEV Fitting'!$I$4*(DV30-DV29) -> 0.1222378292 | DT30: ='GEV Fitting'!$I$4*(DW30-DW29) -> 0.01555024782 | DU30: ='GEV Fitting'!$I$4*(DX30-DX29) -> 0.4369883107 | DV30: 0.9967440982 | DW30: 0.9997805827 | DX30: 0.9788847538
A31: 15 | C31: 5.763052163 | D31: 1.444141255 | E31: 1.704619548 | F31: 2.269737024 | G31: 2.412691506 | H31: 6.925811337 | I31: 2.656791363 | J31: 1.489905801 | K31: 2.355006909 | L31: 2.159917153 | M31: 2.256483329 | N31: 4.163878514 | O31: 1.958960868 | P31: 3.583770403 | Q31: 1.971049222 | R31: 1.858524606 | S31: 2.452565484 | T31: 2.5754111 | U31: 1.643425975 | V31: 1.787253858 | W31: 1.338782136 | X31: 2.784239384 | Y31: 2.835490026 | Z31: 1.879988187 | AA31: 6.432356839 | AB31: 2.826746607 | AC31: 4.385975834 | AD31: 2.318373262 | AE31: 1.729557866 | AF31: 2.135508957 | AG31: 2.389779997 | AH31: 3.675768922 | AI31: 1.918911966 | AJ31: 3.26931907 | AK31: 1.487984167 | AL31: 5.329300945 | AM31: 1.755654094 | AN31: 2.154881536 | AO31: 3.279378326 | AP31: 1.819657226 | AQ31: 3.601401421 | AR31: 3.369352183 | AS31: 2.217455193 | AT31: 2.601294862 | AU31: 3.201259724 | AV31: 1.365159204 | AW31: 1.548830196 | AX31: 2.383327616 | AY31: 1.923056459 | AZ31: 3.180980579 | BA31: 1.904572661 | BB31: 2.414056011 | BC31: 2.102704208 | BD31: 2.189754471 | BE31: 2.031833792 | BF31: 2.068224013 | BG31: 1.659198795 | BH31: 2.308057078 | BI31: 3.39911448 | BJ31: 2.459946659 | BK31: 3.76259146 | BL31: 4.452048933 | BM31: 2.440206072 | BN31: 3.108240449 | BO31: 3.111375611 | BP31: 2.842443265 | BQ31: 3.821006997 | BR31: 1.937170423 | BS31: 2.227360758 | BT31: 1.912029634 | BU31: 2.496323774 | BV31: 1.510456254 | BW31: 1.686856141 | BX31: 1.927370838 | BY31: 4.211594859 | BZ31: 2.581971046 | CA31: 2.370404382 | CB31: 1.930579347 | CC31: 2.030382998 | CD31: 4.535337685 | CE31: 2.264210282 | CF31: 3.723123194 | CG31: 3.68070084 | CH31: 1.984820296 | CI31: 2.332401663 | CJ31: 2.118830927 | CK31: 0.6158999483 | CL31: 0.2552326272 | CM31: -105.3721085 | CN31: 94 | CP31: 0.11 | CQ31: 87 | CR31: -105.5314293 | CS31: -85.45854059 | CT31: -122.81432 | DQ31: 8.5 | DR31: ='Parameter Fitting Comparison'!N21 -> 1 | DS31: ='GEV Fitting'!$I$4*(DV31-DV30) -> 0.08167910613 | DT31: ='GEV Fitting'!$I$4*(DW31-DW30) -> 0.008307808363 | DU31: ='GEV Fitting'!$I$4*(DX31-DX30) -> 0.3337589543 | DV31: 0.9977050288 | DW31: 0.9998783217 | DX31: 0.9828113297
A32: 16 | C32: 2.812194142 | D32: 2.085212663 | E32: 2.165385425 | F32: 2.576820564 | G32: 2.106648127 | H32: 2.531822165 | I32: 2.183387854 | J32: 2.694417053 | K32: 1.737849543 | L32: 2.082662721 | M32: 2.546273669 | N32: 3.451809443 | O32: 1.850481502 | P32: 1.402728768 | Q32: 3.099272419 | R32: 3.24964568 | S32: 2.936195176 | T32: 2.666745903 | U32: 1.574526248 | V32: 2.10594916 | W32: 4.734244466 | X32: 2.659799118 | Y32: 2.954843977 | Z32: 3.433377092 | AA32: 2.238105617 | AB32: 2.862304222 | AC32: 1.455201161 | AD32: 1.846980399 | AE32: 2.354025754 | AF32: 2.667999317 | AG32: 2.003556093 | AH32: 1.560566772 | AI32: 2.689113901 | AJ32: 2.809151547 | AK32: 2.742912509 | AL32: 2.508710021 | AM32: 3.521835588 | AN32: 2.374969663 | AO32: 3.078638293 | AP32: 3.586695612 | AQ32: 3.269601442 | AR32: 3.185459118 | AS32: 2.467033737 | AT32: 2.750629627 | AU32: 3.531045661 | AV32: 3.805006197 | AW32: 2.343979155 | AX32: 1.639460896 | AY32: 3.475288323 | AZ32: 4.241502231 | BA32: 2.443240333 | BB32: 2.659314127 | BC32: 2.989442407 | BD32: 2.800634714 | BE32: 3.304021253 | BF32: 2.811072329 | BG32: 2.615848205 | BH32: 1.966357534 | BI32: 4.393706126 | BJ32: 3.018231995 | BK32: 3.813732272 | BL32: 2.930371154 | BM32: 2.05864849 | BN32: 4.006828618 | BO32: 1.942965933 | BP32: 2.027641112 | BQ32: 2.366696011 | BR32: 1.819077929 | BS32: 2.761651386 | BT32: 4.831307282 | BU32: 2.478995589 | BV32: 2.259755405 | BW32: 6.044210405 | BX32: 3.566530615 | BY32: 3.866583379 | BZ32: 2.014567131 | CA32: 2.046673183 | CB32: 3.597156329 | CC32: 5.026599121 | CD32: 3.896904495 | CE32: 2.91013412 | CF32: 2.539444103 | CG32: 2.557063518 | CH32: 1.745583189 | CI32: 3.827796466 | CJ32: 2.389701595 | CK32: 0.6607905226 | CL32: 0.04751851096 | CM32: -100.5750087 | CN32: 101 | CP32: 0.13 | CQ32: 96 | CR32: -106.1151328 | CS32: -89.37272409 | CT32: -127.7947947 | DQ32: 9 | DR32: ='Parameter Fitting Comparison'!N22 -> 0 | DS32: ='GEV Fitting'!$I$4*(DV32-DV31) -> 0.05552793694 | DT32: ='GEV Fitting'!$I$4*(DW32-DW31) -> 0.004515229696 | DU32: ='GEV Fitting'!$I$4*(DX32-DX31) -> 0.2586159057 | DV32: 0.9983582987 | DW32: 0.999931442 | DX32: 0.9858538698
A33: 17 | C33: 2.581830428 | D33: 2.805946219 | E33: 2.523332952 | F33: 3.367592038 | G33: 3.364711923 | H33: 4.665204435 | I33: 1.931382276 | J33: 3.560560784 | K33: 2.743446624 | L33: 1.642256209 | M33: 2.787805009 | N33: 2.547422625 | O33: 5.17295971 | P33: 1.404986139 | Q33: 2.800198134 | R33: 1.750811552 | S33: 2.686557073 | T33: 2.233345451 | U33: 3.166798817 | V33: 3.414045236 | W33: 2.408847132 | X33: 1.625055696 | Y33: 3.597707084 | Z33: 3.8192402 | AA33: 2.22602629 | AB33: 2.068536164 | AC33: 3.904599307 | AD33: 2.001881576 | AE33: 1.904018951 | AF33: 2.561666295 | AG33: 1.626728687 | AH33: 1.674207399 | AI33: 2.927336726 | AJ33: 4.781943577 | AK33: 1.658273366 | AL33: 1.890989601 | AM33: 2.263804912 | AN33: 2.29098366 | AO33: 3.150221748 | AP33: 3.402240856 | AQ33: 3.15045306 | AR33: 2.504625 | AS33: 3.476042697 | AT33: 2.648326758 | AU33: 3.33892839 | AV33: 3.125353953 | AW33: 1.729746496 | AX33: 3.772336079 | AY33: 2.798551637 | AZ33: 1.756896719 | BA33: 2.980653314 | BB33: 2.039723215 | BC33: 2.402217934 | BD33: 2.118312926 | BE33: 2.836378756 | BF33: 2.172436495 | BG33: 3.161617844 | BH33: 5.516004516 | BI33: 3.112767576 | BJ33: 2.573877095 | BK33: 3.584593984 | BL33: 3.13723396 | BM33: 2.767819773 | BN33: 3.410548684 | BO33: 2.478622508 | BP33: 2.773590885 | BQ33: 1.456205755 | BR33: 2.893258402 | BS33: 3.244441473 | BT33: 2.438024514 | BU33: 2.623384944 | BV33: 2.192005024 | BW33: 2.580568231 | BX33: 2.077092642 | BY33: 1.966134169 | BZ33: 2.279656654 | CA33: 2.675829917 | CB33: 3.394063284 | CC33: 3.11060374 | CD33: 2.43536205 | CE33: 2.585347684 | CF33: 2.67049371 | CG33: 3.49831285 | CH33: 2.170929618 | CI33: 3.136212572 | CJ33: 2.366041183 | CK33: 0.6411643833 | CL33: 0.04848332921 | CM33: -95.94600926 | CN33: 101 | CP33: 0.15 | CQ33: 80 | CR33: -106.5621202 | CS33: -87.98198187 | CT33: -123.6297505 | DQ33: 9.5 | DR33: ='Parameter Fitting Comparison'!N23 -> 0 | DS33: ='GEV Fitting'!$I$4*(1-DV32) -> 0.1395446111 | DT33: ='GEV Fitting'!$I$4*(1-DW32) -> 0.005827429224 | DU33: ='GEV Fitting'!$I$4*(1-DX32) -> 1.20242107 | DV33: 0.9988095373 | DW33: 0.9999607855 | DX33: 0.9882423661
A34: 18 | C34: 3.347137062 | D34: 3.118391574 | E34: 1.42000582 | F34: 2.520226095 | G34: 5.360784573 | H34: 1.577399675 | I34: 2.746813368 | J34: 2.418191475 | K34: 2.488257744 | L34: 3.725484657 | M34: 2.762078661 | N34: 2.215332613 | O34: 2.200709638 | P34: 1.334373104 | Q34: 2.180900927 | R34: 4.464846515 | S34: 2.498019402 | T34: 3.11155133 | U34: 3.892404511 | V34: 2.22281573 | W34: 1.906621455 | X34: 2.329054213 | Y34: 4.796077385 | Z34: 1.976676864 | AA34: 2.592831581 | AB34: 2.928237193 | AC34: 2.245899953 | AD34: 2.982539287 | AE34: 2.499843973 | AF34: 3.494566309 | AG34: 1.547121775 | AH34: 2.100706911 | AI34: 4.003009992 | AJ34: 2.1695786 | AK34: 2.745164828 | AL34: 4.880116564 | AM34: 1.232648781 | AN34: 2.600388974 | AO34: 2.511032241 | AP34: 3.604273972 | AQ34: 5.74647795 | AR34: 1.256021218 | AS34: 5.39517761 | AT34: 2.885933209 | AU34: 3.84476752 | AV34: 3.012012115 | AW34: 1.876001953 | AX34: 3.375752285 | AY34: 3.152839739 | AZ34: 2.48161435 | BA34: 1.654020743 | BB34: 2.725041723 | BC34: 7.129404332 | BD34: 1.577430298 | BE34: 2.347130898 | BF34: 2.792295784 | BG34: 1.915120621 | BH34: 1.63207484 | BI34: 1.743348475 | BJ34: 2.586397438 | BK34: 2.85991002 | BL34: 2.239676252 | BM34: 2.551061228 | BN34: 4.113623173 | BO34: 3.896015231 | BP34: 2.542716443 | BQ34: 2.596524154 | BR34: 2.756024702 | BS34: 3.699324887 | BT34: 3.386355624 | BU34: 2.002263041 | BV34: 5.342293252 | BW34: 2.733805824 | BX34: 1.994478424 | BY34: 2.547085597 | BZ34: 3.59855371 | CA34: 1.70625853 | CB34: 3.06060661 | CC34: 2.02415447 | CD34: 2.036740325 | CE34: 2.586683055 | CF34: 4.068833266 | CG34: 2.331769307 | CH34: 2.98382636 | CI34: 2.661349579 | CJ34: 2.342615033 | CK34: 0.7673874759 | CL34: 0.07174965954 | CM34: -115.4004131 | CN34: 67 | CP34: 0.17 | CQ34: 97 | CR34: -108.4986542 | CS34: -92.13021837 | CT34: -130.1751511
A35: 19 | C35: 3.633845944 | D35: 2.980090619 | E35: 3.038763777 | F35: 1.425301979 | G35: 1.703585341 | H35: 2.078218783 | I35: 2.406617781 | J35: 3.513353858 | K35: 1.342673568 | L35: 3.015247189 | M35: 2.767843093 | N35: 1.465593435 | O35: 2.505170647 | P35: 2.272331098 | Q35: 3.279116854 | R35: 2.180317736 | S35: 2.621535262 | T35: 3.447660492 | U35: 3.212410567 | V35: 2.610826875 | W35: 2.758022211 | X35: 2.943713156 | Y35: 2.203703291 | Z35: 3.053558829 | AA35: 3.106142227 | AB35: 2.649489554 | AC35: 1.858751133 | AD35: 1.72697128 | AE35: 2.014432956 | AF35: 2.296351894 | AG35: 1.516122006 | AH35: 2.738973256 | AI35: 2.423394919 | AJ35: 3.680895432 | AK35: 2.321221662 | AL35: 2.314173397 | AM35: 3.83796774 | AN35: 2.21603575 | AO35: 3.459200574 | AP35: 3.500571589 | AQ35: 2.61135404 | AR35: 2.916965726 | AS35: 2.026038192 | AT35: 2.794616045 | AU35: 2.353785755 | AV35: 2.80846709 | AW35: 4.057195192 | AX35: 1.815069687 | AY35: 2.328139895 | AZ35: 2.208835828 | BA35: 1.63863825 | BB35: 1.761417447 | BC35: 2.243475901 | BD35: 1.441430744 | BE35: 2.498824231 | BF35: 2.605232708 | BG35: 2.344206611 | BH35: 1.894626689 | BI35: 2.452110924 | BJ35: 3.17998605 | BK35: 2.636053858 | BL35: 2.643532727 | BM35: 1.598366728 | BN35: 3.906097062 | BO35: 2.479228638 | BP35: 4.590004883 | BQ35: 2.658274529 | BR35: 2.549289979 | BS35: 2.792004899 | BT35: 3.64551392 | BU35: 1.724448723 | BV35: 2.377767432 | BW35: 2.595445556 | BX35: 2.406672104 | BY35: 3.000455545 | BZ35: 4.050699868 | CA35: 2.38532534 | CB35: 3.589326878 | CC35: 2.372517241 | CD35: 1.764962189 | CE35: 7.253279317 | CF35: 3.231913086 | CG35: 3.495311705 | CH35: 2.755142556 | CI35: 2.74747739 | CJ35: 2.296226616 | CK35: 0.6347527394 | CL35: 0.04848332921 | CM35: -95.56325659 | CN35: 101 | CP35: 0.19 | CQ35: 79 | CR35: -108.1365701 | CS35: -91.47655934 | CT35: -124.6945607
A36: 20 | C36: 1.770790279 | D36: 3.097784627 | E36: 2.219765927 | F36: 2.306806669 | G36: 1.714553449 | H36: 1.585943646 | I36: 3.221064142 | J36: 1.514138396 | K36: 2.451428789 | L36: 1.849725296 | M36: 2.068592831 | N36: 2.751393121 | O36: 6.129884099 | P36: 1.803049345 | Q36: 2.961903857 | R36: 2.40682356 | S36: 2.293566766 | T36: 2.924149939 | U36: 2.297611772 | V36: 2.900405445 | W36: 1.420600722 | X36: 4.032993835 | Y36: 1.990247774 | Z36: 2.985227688 | AA36: 2.677082705 | AB36: 2.965798785 | AC36: 1.433667115 | AD36: 1.596472908 | AE36: 1.913276814 | AF36: 4.29892241 | AG36: 2.132518556 | AH36: 2.571419194 | AI36: 2.431720728 | AJ36: 2.481136573 | AK36: 3.865095409 | AL36: 2.209017597 | AM36: 2.297136077 | AN36: 3.697496917 | AO36: 2.374434304 | AP36: 3.745429798 | AQ36: 2.80137911 | AR36: 3.020066839 | AS36: 2.412538151 | AT36: 2.506189532 | AU36: 1.403222381 | AV36: 5.933951239 | AW36: 1.954985023 | AX36: 2.524730088 | AY36: 2.350474473 | AZ36: 4.289267953 | BA36: 2.503359669 | BB36: 2.720896082 | BC36: 2.532958447 | BD36: 3.304348432 | BE36: 3.311509306 | BF36: 2.28592858 | BG36: 2.178105772 | BH36: 1.806520474 | BI36: 2.949878596 | BJ36: 1.960526286 | BK36: 2.704431752 | BL36: 2.170240974 | BM36: 2.429130944 | BN36: 2.08223721 | BO36: 2.661394951 | BP36: 1.778100139 | BQ36: 5.527040386 | BR36: 3.897273044 | BS36: 1.418440258 | BT36: 3.293991013 | BU36: 5.286889065 | BV36: 1.946766592 | BW36: 2.695722259 | BX36: 1.829500697 | BY36: 2.034230139 | BZ36: 3.285974476 | CA36: 1.630982834 | CB36: 1.688244726 | CC36: 2.201378413 | CD36: 4.523650865 | CE36: 2.501082368 | CF36: 2.183924006 | CG36: 2.586913561 | CH36: 4.675829438 | CI36: 3.64486767 | CJ36: 2.205746126 | CK36: 0.6411643833 | CL36: 0.1598937997 | CM36: -104.106683 | CN36: 39 | CP36: 0.21 | CQ36: 60 | CR36: -110.2994529 | CS36: -79.80896345 | CT36: -130.5853432
A37: 21 | C37: 2.012855666 | D37: 4.167097159 | E37: 2.776851395 | F37: 2.772295063 | G37: 1.872260112 | H37: 3.469907015 | I37: 1.631327552 | J37: 7.066536125 | K37: 3.526436945 | L37: 2.27377695 | M37: 4.989548832 | N37: 5.220919616 | O37: 1.63791818 | P37: 2.382681665 | Q37: 3.157504884 | R37: 1.73634592 | S37: 3.060683162 | T37: 3.217997668 | U37: 1.854027565 | V37: 3.604124917 | W37: 3.647755076 | X37: 2.390954804 | Y37: 1.852339667 | Z37: 1.870202824 | AA37: 2.142488877 | AB37: 2.24886123 | AC37: 4.862975 | AD37: 1.834245316 | AE37: 1.966376699 | AF37: 2.122771316 | AG37: 2.438595871 | AH37: 1.84813825 | AI37: 1.80383039 | AJ37: 3.994752154 | AK37: 2.692195498 | AL37: 5.524442309 | AM37: 1.90771264 | AN37: 2.077389306 | AO37: 2.238814744 | AP37: 2.546988696 | AQ37: 2.415975023 | AR37: 2.191260995 | AS37: 3.51431792 | AT37: 2.082734539 | AU37: 3.14738991 | AV37: 4.458057353 | AW37: 2.602171121 | AX37: 2.789529752 | AY37: 2.686029733 | AZ37: 1.262836119 | BA37: 3.968782568 | BB37: 5.022951771 | BC37: 2.106687096 | BD37: 3.322264899 | BE37: 2.043677282 | BF37: 2.187559091 | BG37: 2.571841493 | BH37: 2.646945414 | BI37: 3.026157445 | BJ37: 3.996450844 | BK37: 6.145962266 | BL37: 2.599990408 | BM37: 3.009770723 | BN37: 2.32904968 | BO37: 2.360145391 | BP37: 7.717252374 | BQ37: 2.370604914 | BR37: 5.747566037 | BS37: 2.712489066 | BT37: 3.179210159 | BU37: 2.919108311 | BV37: 1.692647301 | BW37: 8.500607093 | BX37: 2.73272092 | BY37: 5.037758637 | BZ37: 3.980461618 | CA37: 2.608508954 | CB37: 2.284154285 | CC37: 4.000350823 | CD37: 2.757701521 | CE37: 2.07319253 | CF37: 1.511863899 | CG37: 2.795139237 | CH37: 2.522653921 | CI37: 3.285519495 | CJ37: 2.389701595 | CK37: 0.7673874759 | CL37: 0.2502035361 | CM37: -123.2412449 | CN37: 88 | CP37: 0.23 | CQ37: 41 | CR37: -108.2831118 | CS37: -83.64572911 | CT37: -125.8951418
A38: 22 | C38: 1.765870746 | D38: 3.042250945 | E38: 2.708716269 | F38: 2.937616812 | G38: 2.003274576 | H38: 2.170562316 | I38: 2.196143931 | J38: 1.819931637 | K38: 1.575942594 | L38: 2.287128248 | M38: 2.816352157 | N38: 4.793239355 | O38: 2.590321664 | P38: 2.137281278 | Q38: 1.864848245 | R38: 3.335561194 | S38: 1.716080817 | T38: 3.012966805 | U38: 3.338888536 | V38: 2.492741656 | W38: 2.471968306 | X38: 2.694425019 | Y38: 2.463491565 | Z38: 3.619261437 | AA38: 2.440925754 | AB38: 2.609179874 | AC38: 1.709027339 | AD38: 2.93078195 | AE38: 1.771385403 | AF38: 2.424032682 | AG38: 4.106504705 | AH38: 3.343347016 | AI38: 1.911143811 | AJ38: 2.006307487 | AK38: 5.169875422 | AL38: 2.918066953 | AM38: 2.810208715 | AN38: 4.221016091 | AO38: 3.948902847 | AP38: 5.523566139 | AQ38: 2.857939712 | AR38: 1.769847296 | AS38: 3.797410231 | AT38: 3.071960198 | AU38: 3.085793817 | AV38: 2.254430954 | AW38: 5.266178153 | AX38: 1.993798294 | AY38: 1.618561048 | AZ38: 1.725230481 | BA38: 2.887245001 | BB38: 3.098729953 | BC38: 2.016870306 | BD38: 3.250212202 | BE38: 2.452785208 | BF38: 1.7472232 | BG38: 5.113712652 | BH38: 1.607831609 | BI38: 1.788797944 | BJ38: 3.102543174 | BK38: 2.562639901 | BL38: 2.607017249 | BM38: 3.341014243 | BN38: 3.07541607 | BO38: 3.178751033 | BP38: 2.386136936 | BQ38: 2.658748168 | BR38: 2.347843332 | BS38: 1.553222521 | BT38: 3.137334239 | BU38: 1.948740497 | BV38: 5.404637104 | BW38: 1.617589695 | BX38: 2.737704419 | BY38: 1.947821003 | BZ38: 2.670150998 | CA38: 3.852484786 | CB38: 3.207092454 | CC38: 1.437025856 | CD38: 2.05757786 | CE38: 2.437800077 | CF38: 2.577722996 | CG38: 3.010304637 | CH38: 2.940227112 | CI38: 1.847626387 | CJ38: 2.296226616 | CK38: 0.6541826173 | CL38: 0.1139202405 | CM38: -103.2126034 | CN38: 13 | CP38: 0.25 | CQ38: 31 | CR38: -110.042711 | CS38: -89.37338107 | CT38: -128.7505168
A39: 23 | C39: 3.10445949 | D39: 2.385074926 | E39: 3.011528466 | F39: 3.153617357 | G39: 1.873208258 | H39: 3.065278992 | I39: 2.224966818 | J39: 2.57439064 | K39: 1.535779445 | L39: 2.86954807 | M39: 4.645330289 | N39: 2.827740916 | O39: 4.894010032 | P39: 2.219382051 | Q39: 3.300870049 | R39: 3.304566851 | S39: 3.824557966 | T39: 3.056290077 | U39: 2.602888684 | V39: 1.763496355 | W39: 2.460824692 | X39: 2.711007774 | Y39: 2.358620782 | Z39: 2.171539344 | AA39: 2.933394296 | AB39: 3.473871562 | AC39: 2.156039004 | AD39: 1.234511752 | AE39: 2.796491996 | AF39: 4.603272004 | AG39: 2.013004182 | AH39: 2.559738229 | AI39: 2.762307038 | AJ39: 3.828565857 | AK39: 1.46898764 | AL39: 2.573755405 | AM39: 2.467593707 | AN39: 4.026679146 | AO39: 2.333491363 | AP39: 2.370801995 | AQ39: 1.84933168 | AR39: 6.645849594 | AS39: 4.167214275 | AT39: 2.733059308 | AU39: 2.605876366 | AV39: 2.229345251 | AW39: 3.086079458 | AX39: 1.741467639 | AY39: 2.593245203 | AZ39: 6.195118459 | BA39: 1.255465383 | BB39: 2.660239326 | BC39: 2.296763217 | BD39: 1.68894145 | BE39: 1.876098136 | BF39: 2.070275161 | BG39: 2.051159896 | BH39: 3.854475552 | BI39: 3.263715274 | BJ39: 2.673633804 | BK39: 1.543481769 | BL39: 2.473970089 | BM39: 2.120856156 | BN39: 2.758324021 | BO39: 2.642606133 | BP39: 2.317542618 | BQ39: 2.600941383 | BR39: 1.674018217 | BS39: 2.865174395 | BT39: 3.126567368 | BU39: 3.413299203 | BV39: 2.498797332 | BW39: 5.00415467 | BX39: 2.365611371 | BY39: 1.205592337 | BZ39: 2.371652979 | CA39: 3.186215504 | CB39: 2.766001978 | CC39: 1.794963197 | CD39: 2.140862636 | CE39: 3.442422307 | CF39: 2.738158147 | CG39: 3.699243588 | CH39: 1.942615745 | CI39: 5.279306712 | CJ39: 2.319188882 | CK39: 0.7301428524 | CL39: 0.04897305981 | CM39: -109.7826822 | CN39: 101 | CP39: 0.27 | CQ39: 26 | CR39: -113.221963 | CS39: -99.02889714 | CT39: -130.9411441
A40: 24 | C40: 3.133683154 | D40: 3.075498586 | E40: 6.715784142 | F40: 2.816806818 | G40: 3.212159451 | H40: 1.684913324 | I40: 3.666862711 | J40: 2.487247289 | K40: 2.075019574 | L40: 3.167832132 | M40: 3.014933647 | N40: 3.091751674 | O40: 2.433684017 | P40: 2.711022693 | Q40: 2.011233594 | R40: 2.265807736 | S40: 2.013657299 | T40: 2.530740693 | U40: 5.806524823 | V40: 3.026564037 | W40: 2.315930653 | X40: 2.873439657 | Y40: 3.785606946 | Z40: 2.14969515 | AA40: 1.89970207 | AB40: 3.861754006 | AC40: 2.80473338 | AD40: 4.071555909 | AE40: 7.015477414 | AF40: 2.487722722 | AG40: 3.2853715 | AH40: 4.605416861 | AI40: 2.679092983 | AJ40: 6.023618036 | AK40: 3.658755162 | AL40: 5.099036293 | AM40: 4.793459651 | AN40: 2.837836266 | AO40: 2.993467376 | AP40: 2.630045485 | AQ40: 2.254189346 | AR40: 2.620127168 | AS40: 1.689321948 | AT40: 2.135236373 | AU40: 2.761760987 | AV40: 2.747327281 | AW40: 3.057558952 | AX40: 2.074052884 | AY40: 2.34797531 | AZ40: 2.258470324 | BA40: 2.071394392 | BB40: 2.496758607 | BC40: 2.459370716 | BD40: 2.007833039 | BE40: 3.251309078 | BF40: 3.397439724 | BG40: 1.56759538 | BH40: 4.231967045 | BI40: 2.313997017 | BJ40: 4.989721225 | BK40: 3.319704908 | BL40: 2.06785981 | BM40: 1.784280328 | BN40: 4.391768662 | BO40: 2.762542452 | BP40: 4.011392214 | BQ40: 1.683073225 | BR40: 2.469120545 | BS40: 1.518246963 | BT40: 3.491266703 | BU40: 3.548741568 | BV40: 4.079148518 | BW40: 3.312105387 | BX40: 2.658255902 | BY40: 1.501844317 | BZ40: 2.322740869 | CA40: 2.320688461 | CB40: 5.170455643 | CC40: 2.242419942 | CD40: 5.457804292 | CE40: 2.168270254 | CF40: 2.138255494 | CG40: 2.578679579 | CH40: 2.457935874 | CI40: 1.904735948 | CJ40: 2.462111943 | CK40: 0.7301428524 | CL40: 0.181974059 | CM40: -115.9714441 | CN40: 54 | CP40: 0.29 | CQ40: 21 | CR40: -109.7701593 | CS40: -100.771757 | CT40: -119.5601612
A41: 25 | C41: 1.830800601 | D41: 3.717911099 | E41: 4.513423096 | F41: 2.162174154 | G41: 1.86721072 | H41: 3.625908011 | I41: 1.879868414 | J41: 2.45960412 | K41: 2.754955244 | L41: 5.189470066 | M41: 2.757015121 | N41: 3.782712068 | O41: 2.251343543 | P41: 4.719006641 | Q41: 2.031153174 | R41: 2.584464824 | S41: 1.641644397 | T41: 1.679448924 | U41: 2.066816532 | V41: 2.748065143 | W41: 3.03854871 | X41: 3.605188835 | Y41: 1.940597004 | Z41: 2.211135333 | AA41: 1.857565398 | AB41: 3.856983208 | AC41: 2.027591251 | AD41: 4.63669636 | AE41: 1.982728443 | AF41: 1.677677083 | AG41: 3.365722728 | AH41: 1.513241405 | AI41: 3.408287716 | AJ41: 4.53744226 | AK41: 2.321556995 | AL41: 4.239862609 | AM41: 2.460676311 | AN41: 2.193773482 | AO41: 2.790186085 | AP41: 2.649696817 | AQ41: 4.221987355 | AR41: 1.878306634 | AS41: 2.716505149 | AT41: 2.396364969 | AU41: 2.019605227 | AV41: 3.294264824 | AW41: 2.41609582 | AX41: 4.204712803 | AY41: 3.264589231 | AZ41: 1.981479501 | BA41: 1.963214633 | BB41: 3.408832318 | BC41: 3.916978868 | BD41: 3.320925745 | BE41: 3.545804956 | BF41: 4.549022492 | BG41: 2.534085624 | BH41: 1.824962123 | BI41: 2.804198192 | BJ41: 2.356092634 | BK41: 10.82009247 | BL41: 2.018515399 | BM41: 2.903405992 | BN41: 2.794881705 | BO41: 2.86040085 | BP41: 3.403933868 | BQ41: 3.220036077 | BR41: 5.183400263 | BS41: 3.208366536 | BT41: 1.555735185 | BU41: 2.545903979 | BV41: 2.756900781 | BW41: 2.874626091 | BX41: 2.38424723 | BY41: 2.63957968 | BZ41: 2.116534583 | CA41: 2.432688384 | CB41: 3.444201217 | CC41: 2.046836117 | CD41: 3.358977293 | CE41: 2.237312349 | CF41: 5.29139673 | CG41: 2.377642454 | CH41: 2.457473463 | CI41: 1.43485573 | CJ41: 2.366041183 | CK41: 0.6947058711 | CL41: 0.2050529245 | CM41: -113.2820948 | CN41: 57 | CP41: 0.31 | CQ41: 11 | CR41: -113.0076412 | CS41: -108.0385611 | CT41: -118.1010072
A42: 26 | C42: 1.8418337 | D42: 2.543310002 | E42: 3.384977679 | F42: 2.414654079 | G42: 3.660555575 | H42: 3.467464613 | I42: 2.921665359 | J42: 2.813067946 | K42: 2.018277945 | L42: 1.955787763 | M42: 2.37769918 | N42: 1.501781283 | O42: 1.9969321 | P42: 3.138514618 | Q42: 2.512547631 | R42: 4.58881426 | S42: 2.24071753 | T42: 5.047638372 | U42: 1.822682289 | V42: 1.883381684 | W42: 2.648972041 | X42: 1.865822077 | Y42: 2.455965077 | Z42: 4.074562569 | AA42: 2.259665208 | AB42: 3.335365825 | AC42: 2.907956503 | AD42: 1.919015402 | AE42: 1.989527986 | AF42: 2.673566199 | AG42: 2.692666751 | AH42: 1.265988692 | AI42: 1.947132703 | AJ42: 2.219724602 | AK42: 2.356661694 | AL42: 2.293410587 | AM42: 3.581127643 | AN42: 2.524692468 | AO42: 3.273025692 | AP42: 4.269976072 | AQ42: 2.280273216 | AR42: 2.658971393 | AS42: 4.932214232 | AT42: 2.376035038 | AU42: 4.450968719 | AV42: 4.857294768 | AW42: 2.480917755 | AX42: 4.645148318 | AY42: 2.474981777 | AZ42: 1.970676548 | BA42: 2.970615537 | BB42: 3.724650656 | BC42: 2.230460002 | BD42: 1.548756639 | BE42: 6.217191005 | BF42: 2.629922925 | BG42: 2.925266154 | BH42: 2.079201923 | BI42: 1.536346538 | BJ42: 2.979172076 | BK42: 2.888343669 | BL42: 2.154359394 | BM42: 1.936277149 | BN42: 3.233908929 | BO42: 1.994388841 | BP42: 2.505016988 | BQ42: 2.140375143 | BR42: 3.041555865 | BS42: 3.745657585 | BT42: 2.1353596 | BU42: 3.238162439 | BV42: 3.635329898 | BW42: 4.158248793 | BX42: 3.99693759 | BY42: 3.472761481 | BZ42: 1.900086081 | CA42: 3.353129333 | CB42: 1.778354492 | CC42: 4.758471614 | CD42: 2.946577067 | CE42: 3.041682944 | CF42: 2.203199089 | CG42: 3.294466679 | CH42: 1.941985064 | CI42: 2.65201035 | CJ42: 2.366041183 | CK42: 0.6878275952 | CL42: 0.08176403488 | CM42: -106.8316196 | CN42: 44 | CP42: 0.33 | CQ42: 1 | CR42: -118.6677022 | CS42: -118.6677022 | CT42: -118.6677022
A43: 27 | C43: 3.94858797 | D43: 4.418955041 | E43: 2.0371703 | F43: 1.513636207 | G43: 3.295289701 | H43: 2.524151947 | I43: 2.12733958 | J43: 1.735227823 | K43: 2.10234605 | L43: 2.206996257 | M43: 1.920399408 | N43: 2.524086966 | O43: 1.768172519 | P43: 5.198019801 | Q43: 3.633717934 | R43: 3.092699804 | S43: 3.64816592 | T43: 2.930794405 | U43: 2.147339936 | V43: 1.945009006 | W43: 2.348732517 | X43: 2.52898925 | Y43: 3.028902224 | Z43: 2.620472451 | AA43: 3.502774557 | AB43: 6.662416575 | AC43: 6.568123009 | AD43: 2.250712352 | AE43: 2.540439274 | AF43: 4.629726478 | AG43: 2.570005867 | AH43: 5.215537935 | AI43: 2.273157327 | AJ43: 2.192628766 | AK43: 3.878646821 | AL43: 3.227070529 | AM43: 2.603607572 | AN43: 2.586192786 | AO43: 2.27913505 | AP43: 2.223903684 | AQ43: 1.82905308 | AR43: 1.323799549 | AS43: 1.877051942 | AT43: 2.182308155 | AU43: 2.30719911 | AV43: 1.357972465 | AW43: 2.003643847 | AX43: 1.930965053 | AY43: 3.696472223 | AZ43: 2.569386583 | BA43: 1.861377619 | BB43: 2.412965078 | BC43: 1.955740115 | BD43: 2.576325024 | BE43: 2.409589131 | BF43: 4.560017659 | BG43: 3.24146235 | BH43: 2.814616423 | BI43: 3.680251123 | BJ43: 2.919875647 | BK43: 3.871774367 | BL43: 3.169963631 | BM43: 2.090351174 | BN43: 2.369088587 | BO43: 1.6748235 | BP43: 1.846727758 | BQ43: 2.398031424 | BR43: 1.757099823 | BS43: 2.895354826 | BT43: 2.935742024 | BU43: 2.236839081 | BV43: 1.814410132 | BW43: 2.662048078 | BX43: 2.190079851 | BY43: 2.789083008 | BZ43: 4.445598977 | CA43: 2.413200867 | CB43: 4.382137636 | CC43: 1.969044658 | CD43: 1.320808243 | CE43: 4.734268968 | CF43: 2.223881108 | CG43: 2.230861125 | CH43: 4.421098422 | CI43: 2.424101786 | CJ43: 2.27326435 | CK43: 0.681017421 | CL43: 0.1647387417 | CM43: -109.4866126 | CN43: 33
A44: 28 | C44: 2.39463183 | D44: 3.209786826 | E44: 3.498768573 | F44: 2.728112428 | G44: 3.593870899 | H44: 1.857734594 | I44: 4.383583625 | J44: 2.885383834 | K44: 2.955107014 | L44: 3.512589561 | M44: 2.79085365 | N44: 3.090284671 | O44: 2.463157499 | P44: 3.150830815 | Q44: 2.270908652 | R44: 2.191398487 | S44: 2.480866984 | T44: 2.798778686 | U44: 2.116369645 | V44: 1.948328229 | W44: 2.026160626 | X44: 2.450293563 | Y44: 2.97955582 | Z44: 2.421200059 | AA44: 2.105283938 | AB44: 1.990446664 | AC44: 1.432045263 | AD44: 3.428119725 | AE44: 1.876880875 | AF44: 3.204191999 | AG44: 6.27559034 | AH44: 2.162912512 | AI44: 3.167843764 | AJ44: 1.703379838 | AK44: 4.335360645 | AL44: 4.395729568 | AM44: 3.042921481 | AN44: 3.247425996 | AO44: 2.468232771 | AP44: 4.322732707 | AQ44: 2.12912879 | AR44: 2.837311031 | AS44: 2.302758187 | AT44: 4.370819391 | AU44: 2.161195829 | AV44: 3.162951415 | AW44: 3.345338948 | AX44: 2.915393389 | AY44: 2.441192815 | AZ44: 2.763752673 | BA44: 2.638833739 | BB44: 2.976195234 | BC44: 3.343728641 | BD44: 2.718979195 | BE44: 3.400971448 | BF44: 2.637868011 | BG44: 2.608072298 | BH44: 2.889791694 | BI44: 5.437557065 | BJ44: 1.621293774 | BK44: 12.65575473 | BL44: 2.200916577 | BM44: 3.859610791 | BN44: 4.183585094 | BO44: 19.13269718 | BP44: 3.511801976 | BQ44: 1.63129573 | BR44: 2.530603822 | BS44: 2.048277096 | BT44: 2.83848033 | BU44: 2.55235113 | BV44: 3.998840162 | BW44: 1.699204696 | BX44: 1.640824847 | BY44: 2.492501237 | BZ44: 2.336939117 | CA44: 2.984546183 | CB44: 2.244002403 | CC44: 3.015341445 | CD44: 3.654456135 | CE44: 1.840813127 | CF44: 3.022867062 | CG44: 3.107504022 | CH44: 3.029442397 | CI44: 1.523651641 | CJ44: 2.413598611 | CK44: 0.7229137153 | CL44: 0.2552326272 | CM44: -118.3777572 | CN44: 85
A45: 29 | C45: 4.01219445 | D45: 2.738273148 | E45: 4.065783074 | F45: 2.101433663 | G45: 4.317397065 | H45: 2.955532311 | I45: 2.312418534 | J45: 4.391818943 | K45: 4.21511788 | L45: 3.816814172 | M45: 2.49662343 | N45: 3.224779918 | O45: 2.328702039 | P45: 5.878112365 | Q45: 3.900978036 | R45: 2.480615941 | S45: 2.870919081 | T45: 2.25959419 | U45: 3.058972202 | V45: 2.834233014 | W45: 2.653038074 | X45: 3.006442178 | Y45: 3.123716862 | Z45: 2.910818805 | AA45: 2.426146409 | AB45: 2.261488945 | AC45: 1.569783919 | AD45: 1.655446472 | AE45: 2.20143341 | AF45: 2.761325156 | AG45: 3.941640067 | AH45: 8.102376821 | AI45: 2.229636598 | AJ45: 2.202244283 | AK45: 3.014453709 | AL45: 6.065812097 | AM45: 2.479676191 | AN45: 3.771491527 | AO45: 2.369789904 | AP45: 4.845130597 | AQ45: 2.52551194 | AR45: 2.103211773 | AS45: 1.759309647 | AT45: 2.580776358 | AU45: 1.908162038 | AV45: 2.561578299 | AW45: 3.374069785 | AX45: 2.408406479 | AY45: 3.060725653 | AZ45: 2.13328961 | BA45: 2.570881388 | BB45: 2.42762567 | BC45: 2.511087912 | BD45: 3.448695611 | BE45: 2.803644869 | BF45: 2.069081053 | BG45: 4.41275246 | BH45: 1.469512493 | BI45: 2.367179999 | BJ45: 3.308879231 | BK45: 3.695335465 | BL45: 4.42516203 | BM45: 4.22988785 | BN45: 3.10568986 | BO45: 3.251361851 | BP45: 2.118099109 | BQ45: 1.573359959 | BR45: 2.106793669 | BS45: 2.886042557 | BT45: 2.28889498 | BU45: 3.436330349 | BV45: 1.807664725 | BW45: 4.065883619 | BX45: 2.205549886 | BY45: 5.001756392 | BZ45: 3.437031796 | CA45: 2.71157441 | CB45: 2.318086439 | CC45: 3.728070469 | CD45: 1.879408497 | CE45: 3.15375996 | CF45: 2.714610673 | CG45: 2.474265977 | CH45: 1.546777693 | CI45: 2.111667727 | CJ45: 2.462111943 | CK45: 0.7086694592 | CL45: 0.1246801392 | CM45: -111.7833737 | CN45: 13
A46: 30 | C46: 2.812692839 | D46: 3.037062757 | E46: 2.507241386 | F46: 3.221811795 | G46: 1.439416491 | H46: 1.669799453 | I46: 3.373182994 | J46: 3.149270215 | K46: 2.63285023 | L46: 2.446312335 | M46: 2.015795246 | N46: 1.788724584 | O46: 3.133601573 | P46: 1.841537879 | Q46: 2.758789494 | R46: 3.897191841 | S46: 4.246831202 | T46: 2.068573066 | U46: 2.434159103 | V46: 1.741696242 | W46: 2.219254236 | X46: 2.04688607 | Y46: 1.936889958 | Z46: 1.35906711 | AA46: 2.350330753 | AB46: 3.203603472 | AC46: 2.951923815 | AD46: 2.853007737 | AE46: 2.597022559 | AF46: 3.093388078 | AG46: 5.324932143 | AH46: 2.202591685 | AI46: 3.881038432 | AJ46: 2.882499456 | AK46: 2.336409337 | AL46: 3.362345474 | AM46: 2.810735976 | AN46: 2.013190751 | AO46: 2.890428533 | AP46: 2.269390621 | AQ46: 1.921861343 | AR46: 1.787481411 | AS46: 2.593369472 | AT46: 2.14522441 | AU46: 5.309686023 | AV46: 1.766194852 | AW46: 2.59664036 | AX46: 2.76134542 | AY46: 2.258684572 | AZ46: 2.290518574 | BA46: 4.571429367 | BB46: 4.695744375 | BC46: 2.691140509 | BD46: 1.535164579 | BE46: 1.87214373 | BF46: 4.047506594 | BG46: 2.243987833 | BH46: 1.788075637 | BI46: 1.300790138 | BJ46: 2.181566059 | BK46: 2.352122831 | BL46: 2.435818842 | BM46: 3.309097055 | BN46: 1.475272727 | BO46: 2.361353734 | BP46: 1.76027829 | BQ46: 7.622287707 | BR46: 4.635727435 | BS46: 1.689600562 | BT46: 5.373274842 | BU46: 3.760571125 | BV46: 1.781976291 | BW46: 2.815467901 | BX46: 2.734478741 | BY46: 2.932948635 | BZ46: 1.943388481 | CA46: 2.176590065 | CB46: 1.797501232 | CC46: 2.710381596 | CD46: 1.930338804 | CE46: 2.360699794 | CF46: 3.505801257 | CG46: 2.991063138 | CH46: 2.352238501 | CI46: 2.213872399 | CJ46: 2.22802639 | CK46: 0.6541826173 | CL46: 0.1567432601 | CM46: -105.22898 | CN46: 34
A47: 31 | C47: 2.673741428 | D47: 2.086736236 | E47: 2.873567462 | F47: 5.508800895 | G47: 2.787955796 | H47: 2.018746926 | I47: 2.904738076 | J47: 2.514887618 | K47: 3.315728296 | L47: 4.960910092 | M47: 3.503324164 | N47: 4.447163384 | O47: 3.136794002 | P47: 2.293901334 | Q47: 1.868976735 | R47: 3.032014871 | S47: 2.624571789 | T47: 5.703648626 | U47: 2.402245449 | V47: 2.930972683 | W47: 2.58237107 | X47: 2.979551418 | Y47: 3.0673024 | Z47: 5.005777315 | AA47: 2.22418939 | AB47: 2.144850079 | AC47: 1.465128432 | AD47: 3.785230806 | AE47: 2.145466402 | AF47: 2.961983451 | AG47: 2.210871115 | AH47: 3.786712181 | AI47: 4.339643226 | AJ47: 1.39562455 | AK47: 2.8457758 | AL47: 1.810348044 | AM47: 3.890919878 | AN47: 2.188495024 | AO47: 2.746818203 | AP47: 1.606935172 | AQ47: 3.97216568 | AR47: 1.698225451 | AS47: 1.739356331 | AT47: 2.158407957 | AU47: 1.957017416 | AV47: 2.540278257 | AW47: 2.132901545 | AX47: 3.213902594 | AY47: 1.423974008 | AZ47: 2.640567232 | BA47: 3.009596123 | BB47: 1.709930396 | BC47: 2.67915928 | BD47: 2.773713117 | BE47: 3.308293962 | BF47: 2.126464834 | BG47: 3.906022874 | BH47: 1.947282113 | BI47: 2.703765204 | BJ47: 2.644727836 | BK47: 2.356603516 | BL47: 4.578791745 | BM47: 2.853445962 | BN47: 2.558752683 | BO47: 2.227865249 | BP47: 5.651766356 | BQ47: 2.138161707 | BR47: 2.609970662 | BS47: 2.799830642 | BT47: 2.204778892 | BU47: 1.339385909 | BV47: 2.371410394 | BW47: 4.512622594 | BX47: 2.895258188 | BY47: 2.09170753 | BZ47: 2.041215311 | CA47: 1.816437078 | CB47: 2.405862668 | CC47: 2.08493432 | CD47: 2.611331105 | CE47: 2.8016311 | CF47: 1.601011739 | CG47: 2.217843718 | CH47: 2.945829332 | CI47: 2.316541704 | CJ47: 2.296226616 | CK47: 0.6674651743 | CL47: 0.09411732832 | CM47: -105.1886123 | CN47: 30
A48: 32 | C48: 2.466517056 | D48: 2.164104024 | E48: 2.532564583 | F48: 4.804813418 | G48: 3.398900727 | H48: 1.985207146 | I48: 1.972106002 | J48: 3.502266804 | K48: 2.645881858 | L48: 2.071992203 | M48: 2.534816514 | N48: 3.967453508 | O48: 2.986991101 | P48: 6.108044796 | Q48: 5.361769278 | R48: 2.42779833 | S48: 2.129335142 | T48: 3.61675815 | U48: 3.435161201 | V48: 1.70005447 | W48: 1.989165525 | X48: 3.05971003 | Y48: 2.631247381 | Z48: 1.986417044 | AA48: 1.960614105 | AB48: 5.156414343 | AC48: 2.177040346 | AD48: 2.458487249 | AE48: 1.630604028 | AF48: 3.113622618 | AG48: 1.966683163 | AH48: 2.824162359 | AI48: 2.13319947 | AJ48: 1.900010639 | AK48: 3.991127013 | AL48: 3.041929416 | AM48: 2.952608293 | AN48: 2.225427521 | AO48: 2.785458359 | AP48: 2.014918097 | AQ48: 2.527042421 | AR48: 1.617286849 | AS48: 1.801447168 | AT48: 3.378235637 | AU48: 2.860964206 | AV48: 1.953184001 | AW48: 2.117355994 | AX48: 1.308996031 | AY48: 2.016227539 | AZ48: 5.188231312 | BA48: 2.652727115 | BB48: 2.481928422 | BC48: 2.124115115 | BD48: 3.701334208 | BE48: 6.221948403 | BF48: 1.667354378 | BG48: 3.473843227 | BH48: 2.281559682 | BI48: 2.275443468 | BJ48: 3.035378495 | BK48: 1.736694476 | BL48: 2.180318726 | BM48: 2.429134132 | BN48: 4.590420031 | BO48: 1.739081246 | BP48: 2.147261013 | BQ48: 3.336675486 | BR48: 2.107774635 | BS48: 2.218503772 | BT48: 2.278865534 | BU48: 2.679606382 | BV48: 2.045243791 | BW48: 3.436995881 | BX48: 5.422977879 | BY48: 2.944221091 | BZ48: 1.946381937 | CA48: 2.32276284 | CB48: 2.088066138 | CC48: 1.916309008 | CD48: 9.018208379 | CE48: 1.921305054 | CF48: 2.21372513 | CG48: 4.008471585 | CH48: 2.073498198 | CI48: 2.341871508 | CJ48: 2.250531707 | CK48: 0.6158999483 | CL48: 0.2791441655 | CM48: -106.2715257 | CN48: 97
A49: 33 | C49: 1.79808003 | D49: 2.341920501 | E49: 2.353008164 | F49: 2.252663259 | G49: 2.17851971 | H49: 4.966559616 | I49: 2.578596456 | J49: 2.986153916 | K49: 2.47957471 | L49: 1.95263938 | M49: 1.378881347 | N49: 4.462166637 | O49: 2.71068027 | P49: 2.415874287 | Q49: 3.413378206 | R49: 2.156011241 | S49: 3.018742695 | T49: 3.571879278 | U49: 2.607230727 | V49: 2.64474552 | W49: 4.225372028 | X49: 2.396607399 | Y49: 2.004543429 | Z49: 2.445299209 | AA49: 2.787925809 | AB49: 2.475200569 | AC49: 1.656326761 | AD49: 1.917183338 | AE49: 3.317534415 | AF49: 1.8868167 | AG49: 2.734755177 | AH49: 1.714350748 | AI49: 3.88735701 | AJ49: 2.548259686 | AK49: 3.521153636 | AL49: 3.366555499 | AM49: 3.081302082 | AN49: 2.412383785 | AO49: 1.555295233 | AP49: 2.282070866 | AQ49: 2.79880635 | AR49: 2.01879285 | AS49: 2.528596594 | AT49: 3.642536294 | AU49: 4.32884986 | AV49: 1.782289725 | AW49: 2.513277018 | AX49: 1.75291964 | AY49: 3.188562451 | AZ49: 2.021895321 | BA49: 3.223031306 | BB49: 3.099361114 | BC49: 3.337534729 | BD49: 2.908596402 | BE49: 1.512927126 | BF49: 2.291251977 | BG49: 2.901615463 | BH49: 4.272749694 | BI49: 3.67859627 | BJ49: 2.065952648 | BK49: 2.112192715 | BL49: 2.738328044 | BM49: 2.859546853 | BN49: 3.952097641 | BO49: 2.713707076 | BP49: 1.750346203 | BQ49: 1.389464164 | BR49: 1.99045256 | BS49: 2.559619861 | BT49: 0.9650329924 | BU49: 2.466957257 | BV49: 2.899814455 | BW49: 1.887685953 | BX49: 2.204481058 | BY49: 7.997755457 | BZ49: 3.630978266 | CA49: 2.117962334 | CB49: 1.785688627 | CC49: 2.448502621 | CD49: 2.153129077 | CE49: 4.195396756 | CF49: 2.527605841 | CG49: 2.724286918 | CH49: 2.306163552 | CI49: 2.508015748 | CJ49: 2.273037024 | CK49: 0.6878275952 | CL49: 0.04704332585 | CM49: -103.3465341 | CN49: 101
A50: 34 | C50: 2.908926163 | D50: 3.489110336 | E50: 2.935765424 | F50: 3.374000192 | G50: 2.27190753 | H50: 1.401837127 | I50: 2.401168609 | J50: 2.979253993 | K50: 2.508138367 | L50: 2.673654595 | M50: 2.258220571 | N50: 2.741887749 | O50: 5.23081616 | P50: 2.862082475 | Q50: 2.777607159 | R50: 2.708573919 | S50: 6.316906746 | T50: 3.994154565 | U50: 1.735468819 | V50: 2.552086764 | W50: 2.102641782 | X50: 2.05480497 | Y50: 4.928822941 | Z50: 2.530151241 | AA50: 3.081592055 | AB50: 3.709845972 | AC50: 2.327929798 | AD50: 2.828038723 | AE50: 2.4019711 | AF50: 2.898028926 | AG50: 2.608877411 | AH50: 4.013113971 | AI50: 3.039658762 | AJ50: 3.082379761 | AK50: 3.849822132 | AL50: 2.440422492 | AM50: 2.582479983 | AN50: 2.038664771 | AO50: 3.164337449 | AP50: 4.305284247 | AQ50: 1.779375915 | AR50: 2.561121255 | AS50: 4.921316266 | AT50: 2.231302453 | AU50: 4.134874375 | AV50: 2.227454556 | AW50: 1.396436805 | AX50: 3.536437699 | AY50: 2.958851129 | AZ50: 2.624462568 | BA50: 2.021033802 | BB50: 1.580423476 | BC50: 3.558190915 | BD50: 3.536478397 | BE50: 2.066357131 | BF50: 2.547307262 | BG50: 1.981755355 | BH50: 3.829796 | BI50: 4.142066714 | BJ50: 2.099063301 | BK50: 3.42149754 | BL50: 2.835697801 | BM50: 2.021606951 | BN50: 4.94604433 | BO50: 1.673292195 | BP50: 3.815992971 | BQ50: 2.64921445 | BR50: 6.51376635 | BS50: 1.972697352 | BT50: 1.819027516 | BU50: 2.038368988 | BV50: 4.224297889 | BW50: 3.257041763 | BX50: 2.850372553 | BY50: 2.165884558 | BZ50: 2.004685488 | CA50: 3.011250426 | CB50: 3.206884168 | CC50: 2.542742774 | CD50: 1.94594877 | CE50: 2.204979273 | CF50: 2.582061477 | CG50: 2.668914044 | CH50: 2.016229309 | CI50: 3.472700919 | CJ50: 2.437734597 | CK50: 0.7016529299 | CL50: 0.08342417599 | CM50: -108.1761538 | CN50: 47
A51: 35 | C51: 2.447402408 | D51: 3.03798921 | E51: 1.985765267 | F51: 3.623789103 | G51: 2.915558003 | H51: 2.397155133 | I51: 2.052913329 | J51: 2.396787039 | K51: 1.905651989 | L51: 2.510813827 | M51: 2.729921136 | N51: 1.607107207 | O51: 2.481122365 | P51: 1.957604571 | Q51: 3.797354425 | R51: 1.931959258 | S51: 2.311005401 | T51: 4.131288754 | U51: 2.69312968 | V51: 3.116285311 | W51: 1.748273909 | X51: 3.688171204 | Y51: 2.853706199 | Z51: 1.715536665 | AA51: 2.691934159 | AB51: 1.575654945 | AC51: 2.622806771 | AD51: 2.000219224 | AE51: 6.087636067 | AF51: 2.855781301 | AG51: 2.362168311 | AH51: 5.746248319 | AI51: 3.164500343 | AJ51: 2.314094687 | AK51: 2.567583766 | AL51: 4.402082652 | AM51: 2.27064052 | AN51: 2.4060772 | AO51: 4.69600837 | AP51: 1.547446458 | AQ51: 4.142908544 | AR51: 2.244033625 | AS51: 2.892846216 | AT51: 4.284078775 | AU51: 2.845099205 | AV51: 2.244917487 | AW51: 2.497288371 | AX51: 2.056596512 | AY51: 2.838866283 | AZ51: 3.559913324 | BA51: 3.24367958 | BB51: 2.120558389 | BC51: 1.619382887 | BD51: 1.957347894 | BE51: 7.676758815 | BF51: 3.878033751 | BG51: 2.403881706 | BH51: 3.097082678 | BI51: 3.35854936 | BJ51: 2.84650575 | BK51: 1.844604787 | BL51: 5.637574172 | BM51: 1.199949153 | BN51: 1.844439796 | BO51: 2.301209278 | BP51: 2.170510598 | BQ51: 2.213716358 | BR51: 3.222153559 | BS51: 1.801237267 | BT51: 2.477509468 | BU51: 3.545187073 | BV51: 2.475760892 | BW51: 2.643739272 | BX51: 3.515599899 | BY51: 1.674296286 | BZ51: 5.046350251 | CA51: 2.622802983 | CB51: 2.612662392 | CC51: 1.98015132 | CD51: 1.901914479 | CE51: 2.645704504 | CF51: 1.325899601 | CG51: 2.397962059 | CH51: 2.983140326 | CI51: 2.955107179 | CJ51: 2.296226616 | CK51: 0.6947058711 | CL51: 0.133673985 | CM51: -109.7907559 | CN51: 13
A52: 36 | C52: 3.461084202 | D52: 3.146063871 | E52: 3.744877285 | F52: 5.38094007 | G52: 2.626728872 | H52: 3.718890458 | I52: 3.73504603 | J52: 1.725706207 | K52: 1.87418259 | L52: 2.465469601 | M52: 1.493958745 | N52: 5.556700051 | O52: 2.549516628 | P52: 2.656361387 | Q52: 2.72869548 | R52: 1.789992356 | S52: 1.629193183 | T52: 2.111102725 | U52: 2.456754391 | V52: 3.034811976 | W52: 5.148790582 | X52: 3.261839183 | Y52: 2.49051854 | Z52: 2.22953426 | AA52: 2.158581075 | AB52: 2.47413898 | AC52: 3.128327776 | AD52: 3.307669102 | AE52: 2.540995923 | AF52: 2.446075897 | AG52: 2.064325838 | AH52: 1.723429152 | AI52: 2.122836298 | AJ52: 2.033695024 | AK52: 3.446317533 | AL52: 3.991800766 | AM52: 2.61096695 | AN52: 2.902673855 | AO52: 1.968528235 | AP52: 1.328244639 | AQ52: 2.886045819 | AR52: 1.847377677 | AS52: 2.489282138 | AT52: 2.086414254 | AU52: 8.713759348 | AV52: 1.744963067 | AW52: 3.021054896 | AX52: 2.543479352 | AY52: 3.229264841 | AZ52: 2.933956457 | BA52: 3.377032364 | BB52: 1.534603478 | BC52: 3.48089312 | BD52: 2.848592554 | BE52: 3.029456785 | BF52: 1.930747015 | BG52: 1.890473448 | BH52: 2.931909039 | BI52: 3.106206047 | BJ52: 5.652912182 | BK52: 2.167625059 | BL52: 3.179179806 | BM52: 2.041081178 | BN52: 2.498213269 | BO52: 1.719848487 | BP52: 3.861594519 | BQ52: 2.55739569 | BR52: 3.541769105 | BS52: 3.125756955 | BT52: 1.64833535 | BU52: 3.942715945 | BV52: 1.658355442 | BW52: 1.185675415 | BX52: 2.481907219 | BY52: 2.016715125 | BZ52: 3.489941806 | CA52: 3.702296865 | CB52: 3.789828196 | CC52: 2.31874174 | CD52: 2.39169177 | CE52: 1.69254925 | CF52: 2.424475753 | CG52: 2.13247982 | CH52: 2.035194189 | CI52: 2.333085656 | CJ52: 2.27326435 | CK52: 0.7016529299 | CL52: 0.1234456824 | CM52: -110.1796504 | CN52: 7
A53: 37 | C53: 2.712070936 | D53: 4.449193379 | E53: 2.033369272 | F53: 2.909826214 | G53: 2.013431196 | H53: 4.201868682 | I53: 3.535278864 | J53: 2.46356319 | K53: 2.030208212 | L53: 4.257513492 | M53: 5.068466186 | N53: 3.389012656 | O53: 1.796142791 | P53: 3.094071147 | Q53: 2.421222312 | R53: 1.918655385 | S53: 1.271722895 | T53: 2.084383762 | U53: 2.373367971 | V53: 3.300583035 | W53: 3.596636448 | X53: 1.626918322 | Y53: 2.264515905 | Z53: 1.702413865 | AA53: 3.319712332 | AB53: 4.095510935 | AC53: 1.504206779 | AD53: 2.680691844 | AE53: 5.339766725 | AF53: 2.963987253 | AG53: 4.06441635 | AH53: 3.058460938 | AI53: 2.556730077 | AJ53: 2.518274002 | AK53: 2.862029554 | AL53: 2.211634578 | AM53: 2.595251781 | AN53: 1.776109355 | AO53: 4.717849652 | AP53: 6.638471257 | AQ53: 3.344902023 | AR53: 2.811587303 | AS53: 3.199502709 | AT53: 4.307849491 | AU53: 2.231442695 | AV53: 2.069375937 | AW53: 2.286189937 | AX53: 3.834577007 | AY53: 2.357815976 | AZ53: 2.648285908 | BA53: 1.949880443 | BB53: 2.50088011 | BC53: 2.968057963 | BD53: 3.334662886 | BE53: 2.536489201 | BF53: 3.069933348 | BG53: 3.13084854 | BH53: 2.719261424 | BI53: 2.573133507 | BJ53: 3.125434071 | BK53: 3.076860707 | BL53: 3.278742434 | BM53: 3.18218883 | BN53: 3.464475592 | BO53: 2.211674829 | BP53: 2.772038768 | BQ53: 2.695105958 | BR53: 2.979721412 | BS53: 5.516670549 | BT53: 1.637968222 | BU53: 1.462865709 | BV53: 4.905385999 | BW53: 2.259677592 | BX53: 2.722869341 | BY53: 4.72994356 | BZ53: 1.341503098 | CA53: 4.306319027 | CB53: 3.686937166 | CC53: 2.120633364 | CD53: 3.93287433 | CE53: 1.822973298 | CF53: 1.607798326 | CG53: 2.671168028 | CH53: 2.849906455 | CI53: 2.313406732 | CJ53: 2.437734597 | CK53: 0.7828119642 | CL53: 0.0541508519 | CM53: -115.8190833 | CN53: 101
A54: 38 | C54: 1.91904313 | D54: 4.046573186 | E54: 3.28462242 | F54: 2.828768426 | G54: 2.913475512 | H54: 5.870131141 | I54: 1.796268233 | J54: 1.494623714 | K54: 2.26391749 | L54: 2.347036013 | M54: 3.16824793 | N54: 4.353882511 | O54: 2.717519521 | P54: 1.922316686 | Q54: 2.118455387 | R54: 1.349332225 | S54: 2.704364079 | T54: 3.042153109 | U54: 2.329055871 | V54: 3.402967959 | W54: 1.737613976 | X54: 3.219096288 | Y54: 2.749546859 | Z54: 2.2216031 | AA54: 2.251939902 | AB54: 3.485271982 | AC54: 2.061225115 | AD54: 1.767668082 | AE54: 1.651180696 | AF54: 2.978884741 | AG54: 3.32710913 | AH54: 2.254830898 | AI54: 5.880147465 | AJ54: 2.080145864 | AK54: 2.178123832 | AL54: 2.302392522 | AM54: 2.41708563 | AN54: 2.875794993 | AO54: 2.093588488 | AP54: 2.27238846 | AQ54: 1.953937929 | AR54: 2.569748161 | AS54: 2.586182425 | AT54: 2.088643272 | AU54: 3.015394709 | AV54: 2.782827503 | AW54: 2.812893134 | AX54: 1.411961627 | AY54: 2.374939142 | AZ54: 2.844258584 | BA54: 2.140870409 | BB54: 1.630781791 | BC54: 2.448620727 | BD54: 2.169644775 | BE54: 1.942298632 | BF54: 4.164150816 | BG54: 2.508369228 | BH54: 2.934257931 | BI54: 4.572225364 | BJ54: 2.064853497 | BK54: 3.704565597 | BL54: 3.076918402 | BM54: 2.47513623 | BN54: 5.574199162 | BO54: 1.518299871 | BP54: 1.934325382 | BQ54: 2.225209335 | BR54: 3.782530602 | BS54: 1.942255119 | BT54: 2.805617971 | BU54: 2.972704668 | BV54: 1.667697079 | BW54: 1.638561878 | BX54: 3.184783903 | BY54: 1.922546261 | BZ54: 1.94638369 | CA54: 2.044233396 | CB54: 1.424892855 | CC54: 2.091821992 | CD54: 2.376281974 | CE54: 2.281671532 | CF54: 2.493901636 | CG54: 3.013470189 | CH54: 1.49768189 | CI54: 4.126556903 | CJ54: 2.183688664 | CK54: 0.6097409488 | CL54: 0.1284580721 | CM54: -98.21460885 | CN54: 23
A55: 39 | C55: 3.159658145 | D55: 2.207346026 | E55: 1.798473551 | F55: 1.557586522 | G55: 2.474461477 | H55: 1.605041843 | I55: 2.433735925 | J55: 3.078394465 | K55: 3.443432294 | L55: 1.969392276 | M55: 3.078808524 | N55: 1.714942113 | O55: 2.255765584 | P55: 3.843627498 | Q55: 1.525990473 | R55: 1.956198264 | S55: 1.638075687 | T55: 4.117359546 | U55: 2.777418989 | V55: 3.265254045 | W55: 3.24839644 | X55: 3.153175397 | Y55: 2.834609396 | Z55: 2.494385528 | AA55: 2.746072642 | AB55: 3.081894644 | AC55: 2.722206197 | AD55: 1.986420544 | AE55: 3.82763331 | AF55: 2.889359286 | AG55: 2.832146923 | AH55: 3.312891086 | AI55: 2.057727481 | AJ55: 2.624295593 | AK55: 2.228164389 | AL55: 3.530085534 | AM55: 3.725906836 | AN55: 2.748506654 | AO55: 2.785729296 | AP55: 4.083340771 | AQ55: 1.828527191 | AR55: 2.579260453 | AS55: 4.279832757 | AT55: 4.19199394 | AU55: 2.37473646 | AV55: 6.032420911 | AW55: 3.304614217 | AX55: 3.135577188 | AY55: 1.878396551 | AZ55: 2.542459527 | BA55: 2.261663108 | BB55: 1.677387257 | BC55: 2.018144949 | BD55: 2.073369075 | BE55: 2.537959452 | BF55: 3.017926505 | BG55: 2.458212467 | BH55: 2.609943365 | BI55: 4.426031538 | BJ55: 3.097656739 | BK55: 2.579430087 | BL55: 1.938277568 | BM55: 3.158521894 | BN55: 2.221545557 | BO55: 4.559693256 | BP55: 2.28846153 | BQ55: 4.711370664 | BR55: 2.788432984 | BS55: 2.618033957 | BT55: 2.729632779 | BU55: 2.891094758 | BV55: 3.134142421 | BW55: 3.512137148 | BX55: 4.580228132 | BY55: 1.51842385 | BZ55: 2.212625336 | CA55: 1.421174596 | CB55: 3.036551643 | CC55: 5.912501497 | CD55: 1.739942776 | CE55: 1.443602634 | CF55: 4.593631167 | CG55: 3.0747547 | CH55: 3.271537196 | CI55: 3.244497623 | CJ55: 2.389701595 | CK55: 0.7229137153 | CL55: 0.04897305981 | CM55: -108.8374375 | CN55: 101
A56: 40 | C56: 3.124684731 | D56: 2.997560759 | E56: 1.947197775 | F56: 3.271293133 | G56: 2.031061507 | H56: 3.990082624 | I56: 3.020617365 | J56: 1.441162036 | K56: 2.203563798 | L56: 2.141444543 | M56: 3.534893422 | N56: 1.465232244 | O56: 2.231799981 | P56: 2.381827578 | Q56: 1.903409046 | R56: 1.801443347 | S56: 1.631724503 | T56: 2.497209027 | U56: 2.469163744 | V56: 1.596475979 | W56: 1.51524852 | X56: 2.453980774 | Y56: 1.642748581 | Z56: 3.652579474 | AA56: 1.441287348 | AB56: 2.751697371 | AC56: 2.683625092 | AD56: 3.656513238 | AE56: 3.465453151 | AF56: 1.76755273 | AG56: 2.846858066 | AH56: 1.604300807 | AI56: 2.015905692 | AJ56: 1.794660011 | AK56: 2.017455971 | AL56: 3.034204369 | AM56: 2.240616087 | AN56: 3.725368255 | AO56: 4.054385051 | AP56: 1.689161343 | AQ56: 1.723313588 | AR56: 1.901914084 | AS56: 2.71638868 | AT56: 2.863330781 | AU56: 5.054105701 | AV56: 1.740019588 | AW56: 2.128036861 | AX56: 2.143416406 | AY56: 1.639541084 | AZ56: 5.391047621 | BA56: 2.305220515 | BB56: 5.071055491 | BC56: 2.187898205 | BD56: 2.697392688 | BE56: 4.426355852 | BF56: 2.64433666 | BG56: 8.649951226 | BH56: 2.511435449 | BI56: 2.376759232 | BJ56: 3.313194278 | BK56: 2.816667433 | BL56: 4.330150742 | BM56: 2.436364338 | BN56: 3.215693746 | BO56: 3.164589631 | BP56: 2.995677528 | BQ56: 1.68646675 | BR56: 2.353808876 | BS56: 2.348142703 | BT56: 2.058215788 | BU56: 1.849909309 | BV56: 2.222032088 | BW56: 2.625929995 | BX56: 2.144093872 | BY56: 3.616101552 | BZ56: 4.247302568 | CA56: 3.483871315 | CB56: 2.392895066 | CC56: 3.118270702 | CD56: 2.976355912 | CE56: 2.818309508 | CF56: 1.717493556 | CG56: 3.204474952 | CH56: 3.158598304 | CI56: 2.152239065 | CJ56: 2.205746126 | CK56: 0.6476407912 | CL56: 0.19705183 | CM56: -105.8359861 | CN56: 59
A57: 41 | C57: 3.391563489 | D57: 3.110850373 | E57: 3.224226843 | F57: 2.961044685 | G57: 2.684623428 | H57: 4.177814422 | I57: 4.946482111 | J57: 3.923475135 | K57: 2.772323685 | L57: 5.263609791 | M57: 2.582029487 | N57: 2.234242295 | O57: 2.181744795 | P57: 1.572950476 | Q57: 1.341750593 | R57: 4.288805036 | S57: 2.413484565 | T57: 1.920496619 | U57: 2.399248499 | V57: 2.976989241 | W57: 2.666564779 | X57: 4.160022209 | Y57: 1.589679509 | Z57: 2.363286596 | AA57: 3.319927913 | AB57: 2.172403205 | AC57: 4.85875832 | AD57: 3.222789051 | AE57: 3.018906537 | AF57: 3.849617246 | AG57: 2.564816114 | AH57: 2.577425934 | AI57: 2.660071593 | AJ57: 1.980276428 | AK57: 1.873932272 | AL57: 1.60152059 | AM57: 3.187291433 | AN57: 2.313815351 | AO57: 2.710042159 | AP57: 1.912479348 | AQ57: 2.58210208 | AR57: 1.461206259 | AS57: 5.70893265 | AT57: 1.396727585 | AU57: 3.793730125 | AV57: 2.378299622 | AW57: 3.097870909 | AX57: 2.503103263 | AY57: 3.599233674 | AZ57: 3.320337894 | BA57: 1.396863408 | BB57: 2.671935137 | BC57: 3.830106235 | BD57: 1.678082946 | BE57: 1.930340587 | BF57: 2.083436934 | BG57: 2.762793022 | BH57: 3.280287851 | BI57: 3.376472699 | BJ57: 2.571049923 | BK57: 3.055308582 | BL57: 1.541148113 | BM57: 2.418413991 | BN57: 2.574950407 | BO57: 2.039813217 | BP57: 1.864051116 | BQ57: 2.312766799 | BR57: 1.952628676 | BS57: 4.415508584 | BT57: 1.604101478 | BU57: 3.200133885 | BV57: 5.049026682 | BW57: 1.69086603 | BX57: 2.30883002 | BY57: 3.585190921 | BZ57: 3.606506232 | CA57: 2.183244924 | CB57: 2.438258573 | CC57: 2.918037854 | CD57: 2.680533084 | CE57: 3.870736995 | CF57: 3.225319231 | CG57: 3.338208331 | CH57: 1.974936046 | CI57: 1.912441794 | CJ57: 2.342615033 | CK57: 0.737444281 | CL57: 0.04897305981 | CM57: -110.4629432 | CN57: 101
A58: 42 | C58: 2.773479673 | D58: 2.44744325 | E58: 3.9743455 | F58: 2.112241577 | G58: 4.277010281 | H58: 3.525550135 | I58: 4.04453837 | J58: 1.469987448 | K58: 2.585473318 | L58: 2.953389178 | M58: 3.462930035 | N58: 2.058632985 | O58: 2.256071198 | P58: 1.72470494 | Q58: 1.729330096 | R58: 1.560711504 | S58: 2.071638055 | T58: 2.912494362 | U58: 3.605234094 | V58: 3.051618571 | W58: 3.345475852 | X58: 3.09323143 | Y58: 3.513257361 | Z58: 2.554315611 | AA58: 2.407779352 | AB58: 5.677850229 | AC58: 3.088476156 | AD58: 4.815127213 | AE58: 3.80959652 | AF58: 2.303080731 | AG58: 2.842829043 | AH58: 2.212535519 | AI58: 3.284181928 | AJ58: 1.420037149 | AK58: 3.797239158 | AL58: 1.979476401 | AM58: 2.657133963 | AN58: 3.09133544 | AO58: 5.297933685 | AP58: 2.713864929 | AQ58: 2.727914323 | AR58: 2.327264197 | AS58: 4.693921989 | AT58: 5.516542121 | AU58: 2.719737037 | AV58: 4.639190998 | AW58: 3.438806458 | AX58: 5.098022988 | AY58: 2.026336118 | AZ58: 2.449071975 | BA58: 2.191230441 | BB58: 3.373721872 | BC58: 1.615599498 | BD58: 2.144351911 | BE58: 6.529025777 | BF58: 2.301576531 | BG58: 2.877978655 | BH58: 3.764700817 | BI58: 2.506824775 | BJ58: 2.519281907 | BK58: 4.183560474 | BL58: 2.410531946 | BM58: 3.897049981 | BN58: 2.077958513 | BO58: 3.796062913 | BP58: 1.645371746 | BQ58: 3.071837416 | BR58: 3.385122399 | BS58: 2.388946699 | BT58: 1.80888274 | BU58: 3.247700344 | BV58: 2.070614033 | BW58: 2.597138802 | BX58: 3.100632831 | BY58: 2.488388863 | BZ58: 3.829293263 | CA58: 2.837363276 | CB58: 2.819856047 | CC58: 2.301422168 | CD58: 2.842087955 | CE58: 2.114901566 | CF58: 2.136648991 | CG58: 3.992741429 | CH58: 3.222439716 | CI58: 4.87753653 | CJ58: 2.536716397 | CK58: 0.7750613507 | CL58: 0.05580841772 | CM58: -115.1670447 | CN58: 101
A59: 43 | C59: 1.963519162 | D59: 2.35813612 | E59: 3.462795386 | F59: 2.31466288 | G59: 2.464968079 | H59: 2.304881689 | I59: 3.647424887 | J59: 2.951584378 | K59: 2.808751373 | L59: 7.118096979 | M59: 3.677298647 | N59: 1.954714779 | O59: 3.124643529 | P59: 4.429785338 | Q59: 2.49825484 | R59: 2.190397963 | S59: 3.023089107 | T59: 2.14912692 | U59: 4.48924479 | V59: 2.81149061 | W59: 3.602224756 | X59: 3.8155733 | Y59: 2.21814541 | Z59: 2.126121781 | AA59: 3.182266714 | AB59: 3.391364948 | AC59: 4.144584951 | AD59: 2.934951575 | AE59: 2.191494323 | AF59: 1.875234762 | AG59: 6.074154861 | AH59: 2.15656625 | AI59: 1.737316654 | AJ59: 1.5888114 | AK59: 3.185761767 | AL59: 4.028436368 | AM59: 4.011642575 | AN59: 4.284221626 | AO59: 2.49876503 | AP59: 4.065765949 | AQ59: 2.751561739 | AR59: 8.34955676 | AS59: 1.574714313 | AT59: 5.641789796 | AU59: 1.910633361 | AV59: 1.729915806 | AW59: 2.838264013 | AX59: 8.935568947 | AY59: 1.739481111 | AZ59: 2.722645589 | BA59: 2.732194245 | BB59: 1.874176861 | BC59: 4.026910103 | BD59: 3.091852738 | BE59: 3.112572737 | BF59: 2.171804382 | BG59: 5.512404052 | BH59: 1.838597055 | BI59: 3.175832302 | BJ59: 3.017380044 | BK59: 3.012740983 | BL59: 2.741502041 | BM59: 4.164536257 | BN59: 3.449520583 | BO59: 2.90887907 | BP59: 5.884919784 | BQ59: 1.650698758 | BR59: 2.574857058 | BS59: 2.29940299 | BT59: 2.991666506 | BU59: 3.216041695 | BV59: 2.388180633 | BW59: 1.124401938 | BX59: 4.301385679 | BY59: 3.150732954 | BZ59: 2.690018979 | CA59: 2.624113722 | CB59: 3.033480674 | CC59: 2.948767639 | CD59: 2.172258576 | CE59: 5.238474137 | CF59: 2.960990115 | CG59: 1.639866779 | CH59: 2.358268993 | CI59: 1.625237451 | CJ59: 2.486733062 | CK59: 0.8561499165 | CL59: 0.1583106927 | CM59: -128.5366517 | CN59: 57
A60: 44 | C60: 2.596885712 | D60: 2.532155863 | E60: 2.517570341 | F60: 6.328274267 | G60: 2.365381682 | H60: 1.303577269 | I60: 2.860076997 | J60: 2.7376073 | K60: 3.180965685 | L60: 4.310097349 | M60: 2.202019919 | N60: 2.605795442 | O60: 2.083308542 | P60: 2.999541261 | Q60: 2.50381794 | R60: 7.713877869 | S60: 1.917046337 | T60: 1.761716456 | U60: 5.021717904 | V60: 2.616700273 | W60: 3.41239751 | X60: 3.491554454 | Y60: 1.971508958 | Z60: 5.760719875 | AA60: 2.158875559 | AB60: 7.292426267 | AC60: 4.718708366 | AD60: 6.596946898 | AE60: 2.777040894 | AF60: 2.171714971 | AG60: 2.892384818 | AH60: 2.49622734 | AI60: 3.473799025 | AJ60: 1.410438561 | AK60: 2.787538464 | AL60: 2.433597886 | AM60: 2.865375544 | AN60: 2.870382182 | AO60: 3.284222509 | AP60: 1.865477047 | AQ60: 1.885737918 | AR60: 2.436975751 | AS60: 2.719655862 | AT60: 2.290972123 | AU60: 3.687602542 | AV60: 2.574252626 | AW60: 1.68972813 | AX60: 5.136045582 | AY60: 4.084618653 | AZ60: 4.241823103 | BA60: 2.285265446 | BB60: 3.421096124 | BC60: 2.920245659 | BD60: 2.006216464 | BE60: 1.896498614 | BF60: 3.013415101 | BG60: 2.359811497 | BH60: 1.523938726 | BI60: 3.271919454 | BJ60: 3.476472264 | BK60: 2.350908549 | BL60: 1.957311097 | BM60: 1.939594313 | BN60: 2.155716675 | BO60: 1.850102165 | BP60: 3.145810052 | BQ60: 2.461176993 | BR60: 4.827984806 | BS60: 3.771783507 | BT60: 2.599795953 | BU60: 2.333863024 | BV60: 2.60978623 | BW60: 2.259007866 | BX60: 3.658807059 | BY60: 2.328289875 | BZ60: 3.503409064 | CA60: 3.611311791 | CB60: 2.439896802 | CC60: 2.784601902 | CD60: 2.419657333 | CE60: 2.441396048 | CF60: 2.836238667 | CG60: 2.286224749 | CH60: 2.541332398 | CI60: 2.609511187 | CJ60: 2.413598611 | CK60: 0.7157561538 | CL60: 0.1731420732 | CM60: -114.5153957 | CN60: 45
A61: 45 | C61: 3.449725012 | D61: 3.163978407 | E61: 3.369914614 | F61: 2.67341178 | G61: 1.942950727 | H61: 2.583126964 | I61: 1.711286848 | J61: 1.702575051 | K61: 2.867252875 | L61: 2.120405527 | M61: 2.955971852 | N61: 1.295450567 | O61: 1.442149569 | P61: 3.407935282 | Q61: 2.041052285 | R61: 1.834334993 | S61: 2.70040022 | T61: 3.219896687 | U61: 3.89506224 | V61: 3.647267059 | W61: 2.710025236 | X61: 2.577873818 | Y61: 2.68892045 | Z61: 2.067375281 | AA61: 2.341890019 | AB61: 2.237347735 | AC61: 2.616564956 | AD61: 2.170197855 | AE61: 2.802785005 | AF61: 3.214900717 | AG61: 2.082588972 | AH61: 2.434079687 | AI61: 2.617602269 | AJ61: 2.021678638 | AK61: 2.46089254 | AL61: 2.162704768 | AM61: 3.54943185 | AN61: 5.056367875 | AO61: 2.479449261 | AP61: 3.034200622 | AQ61: 2.679717359 | AR61: 1.994441608 | AS61: 3.295147854 | AT61: 5.260186457 | AU61: 2.191954362 | AV61: 2.430307814 | AW61: 3.915247827 | AX61: 2.460380615 | AY61: 2.995676152 | AZ61: 1.908493577 | BA61: 2.330190269 | BB61: 1.985458091 | BC61: 9.445322987 | BD61: 3.182859537 | BE61: 2.062674358 | BF61: 1.701063112 | BG61: 2.101637907 | BH61: 2.648571629 | BI61: 2.413136569 | BJ61: 7.115305978 | BK61: 2.158903305 | BL61: 2.219444094 | BM61: 3.136311759 | BN61: 2.410443169 | BO61: 2.125587832 | BP61: 3.812988146 | BQ61: 3.511274348 | BR61: 1.853691642 | BS61: 2.366301306 | BT61: 4.25663825 | BU61: 2.778207826 | BV61: 2.125504502 | BW61: 3.677529133 | BX61: 2.108946888 | BY61: 3.223398805 | BZ61: 2.685042242 | CA61: 5.474730905 | CB61: 1.846818271 | CC61: 2.784822796 | CD61: 3.733849599 | CE61: 3.311919872 | CF61: 3.92560869 | CG61: 1.923655022 | CH61: 4.259598069 | CI61: 2.694208645 | CJ61: 2.366041183 | CK61: 0.6607905226 | CL61: 0.163107665 | CM61: -106.3256923 | CN61: 35
A62: 46 | C62: 3.73474696 | D62: 2.570264102 | E62: 2.356113989 | F62: 4.731847658 | G62: 2.599145081 | H62: 2.140870076 | I62: 1.736958672 | J62: 1.645861834 | K62: 3.641171401 | L62: 2.757945829 | M62: 2.597043175 | N62: 4.499519857 | O62: 6.020207393 | P62: 1.644055525 | Q62: 2.841499997 | R62: 2.172700497 | S62: 1.893734671 | T62: 1.906052219 | U62: 3.569282702 | V62: 2.422832514 | W62: 3.127007665 | X62: 3.27712243 | Y62: 2.164910528 | Z62: 2.478915663 | AA62: 2.989051794 | AB62: 1.459054816 | AC62: 2.358615997 | AD62: 3.224580514 | AE62: 2.025173598 | AF62: 2.370891663 | AG62: 2.682678414 | AH62: 2.898659339 | AI62: 2.90106854 | AJ62: 1.416434059 | AK62: 2.019345001 | AL62: 2.345292932 | AM62: 2.647527683 | AN62: 2.074375963 | AO62: 1.754808453 | AP62: 2.262165544 | AQ62: 1.785982419 | AR62: 2.541532319 | AS62: 3.210612746 | AT62: 2.462183193 | AU62: 3.669866675 | AV62: 2.237227117 | AW62: 2.157934556 | AX62: 4.227914405 | AY62: 2.446939548 | AZ62: 3.39339042 | BA62: 2.398641927 | BB62: 1.981063053 | BC62: 3.837502525 | BD62: 5.125025467 | BE62: 3.058792124 | BF62: 1.869822991 | BG62: 3.69608745 | BH62: 3.482459654 | BI62: 1.713362194 | BJ62: 2.602126517 | BK62: 2.419255793 | BL62: 2.070879931 | BM62: 2.853867594 | BN62: 2.948712376 | BO62: 3.888457962 | BP62: 2.44626555 | BQ62: 2.711397067 | BR62: 2.486179771 | BS62: 3.950784783 | BT62: 2.510803073 | BU62: 2.667361405 | BV62: 2.631869335 | BW62: 3.947766724 | BX62: 1.714071968 | BY62: 1.887568189 | BZ62: 3.050311773 | CA62: 3.153040718 | CB62: 3.321131772 | CC62: 2.913897524 | CD62: 2.998635363 | CE62: 2.710331353 | CF62: 1.919198257 | CG62: 1.605399882 | CH62: 1.610545657 | CI62: 6.452285746 | CJ62: 2.319420825 | CK62: 0.6476407912 | CL62: 0.09699827405 | CM62: -101.8891929 | CN62: 29
A63: 47 | C63: 2.606051717 | D63: 2.235615252 | E63: 2.445140005 | F63: 2.441781732 | G63: 2.84604481 | H63: 4.750284716 | I63: 5.485669633 | J63: 3.418966305 | K63: 3.602781918 | L63: 2.967239159 | M63: 1.447677901 | N63: 2.271636417 | O63: 2.411446795 | P63: 2.549081217 | Q63: 1.71363118 | R63: 3.667136913 | S63: 1.842362238 | T63: 5.451985784 | U63: 1.550995949 | V63: 5.170334346 | W63: 1.466517295 | X63: 3.222386365 | Y63: 2.78146625 | Z63: 4.212201704 | AA63: 2.701480465 | AB63: 2.097932648 | AC63: 5.903506775 | AD63: 2.214771988 | AE63: 4.261518645 | AF63: 3.29554242 | AG63: 4.153867998 | AH63: 2.301226991 | AI63: 2.719828905 | AJ63: 3.040346807 | AK63: 3.24515 | AL63: 2.020438549 | AM63: 1.804284083 | AN63: 1.570126266 | AO63: 1.572127187 | AP63: 2.830198274 | AQ63: 2.281088366 | AR63: 2.02377103 | AS63: 1.83742469 | AT63: 3.527132535 | AU63: 2.835060621 | AV63: 1.372289035 | AW63: 1.903217381 | AX63: 3.044648156 | AY63: 2.308313577 | AZ63: 4.226124834 | BA63: 2.128653973 | BB63: 1.854170279 | BC63: 5.275814207 | BD63: 2.748487839 | BE63: 1.613353802 | BF63: 3.019598586 | BG63: 3.649134252 | BH63: 2.837396321 | BI63: 2.079473969 | BJ63: 2.495448642 | BK63: 3.133131727 | BL63: 2.79515001 | BM63: 2.987897042 | BN63: 2.114932915 | BO63: 2.153818927 | BP63: 2.257667376 | BQ63: 2.56720668 | BR63: 4.863878978 | BS63: 4.468753981 | BT63: 2.331707813 | BU63: 2.821988729 | BV63: 1.918354204 | BW63: 4.487731394 | BX63: 3.378241506 | BY63: 2.342774645 | BZ63: 1.741432539 | CA63: 3.031087753 | CB63: 1.928151933 | CC63: 2.761916318 | CD63: 3.106702176 | CE63: 2.259499829 | CF63: 4.026765814 | CG63: 2.854850494 | CH63: 1.912758156 | CI63: 2.752254197 | CJ63: 2.342615033 | CK63: 0.7229137153 | CL63: 0.1127810381 | CM63: -112.6521105 | CN63: 16
A64: 48 | C64: 2.996903204 | D64: 5.091876699 | E64: 2.234863044 | F64: 3.323275821 | G64: 2.163945136 | H64: 3.702984489 | I64: 3.408675629 | J64: 2.054280959 | K64: 2.746944901 | L64: 2.10506538 | M64: 5.221703304 | N64: 3.456360625 | O64: 3.368388382 | P64: 1.699552901 | Q64: 2.484793701 | R64: 3.225051269 | S64: 6.429908934 | T64: 2.788122883 | U64: 3.09900524 | V64: 3.237010032 | W64: 4.370241925 | X64: 1.998340862 | Y64: 4.39906821 | Z64: 2.175260934 | AA64: 5.577590376 | AB64: 2.167806335 | AC64: 1.973599417 | AD64: 2.007980918 | AE64: 2.465485904 | AF64: 2.612819318 | AG64: 3.565835831 | AH64: 2.599089248 | AI64: 1.681741273 | AJ64: 2.095682941 | AK64: 1.799243032 | AL64: 2.598813218 | AM64: 3.351315081 | AN64: 2.049493813 | AO64: 1.750297583 | AP64: 1.74585664 | AQ64: 3.185009684 | AR64: 2.680423618 | AS64: 3.320870109 | AT64: 2.193979487 | AU64: 2.725882734 | AV64: 3.96931416 | AW64: 2.553672232 | AX64: 2.019956121 | AY64: 4.223175537 | AZ64: 4.114897828 | BA64: 2.680753619 | BB64: 4.784236473 | BC64: 1.923630261 | BD64: 5.638673352 | BE64: 1.841491113 | BF64: 1.713894682 | BG64: 2.542067673 | BH64: 1.916824894 | BI64: 2.361676737 | BJ64: 1.823303479 | BK64: 1.777840392 | BL64: 2.294860603 | BM64: 4.299787844 | BN64: 2.411284797 | BO64: 3.366223006 | BP64: 3.457830989 | BQ64: 2.235094426 | BR64: 2.031720104 | BS64: 2.886894874 | BT64: 3.289786967 | BU64: 1.857302725 | BV64: 5.101607308 | BW64: 1.78110247 | BX64: 2.519581545 | BY64: 4.764744701 | BZ64: 4.33667334 | CA64: 2.053280738 | CB64: 2.280023536 | CC64: 3.645196225 | CD64: 5.337366884 | CE64: 1.962376362 | CF64: 2.44901113 | CG64: 4.968784522 | CH64: 3.047814952 | CI64: 1.478066803 | CJ64: 2.365804579 | CK64: 0.6944974802 | CL64: 0.2847549632 | CM64: -115.9768786 | CN64: 98
A65: 49 | C65: 1.857257051 | D65: 2.488598529 | E65: 3.088075022 | F65: 3.114094076 | G65: 1.800819677 | H65: 2.824080088 | I65: 2.078261647 | J65: 2.356128671 | K65: 2.656389807 | L65: 2.04657442 | M65: 4.82556848 | N65: 3.742094246 | O65: 2.660022378 | P65: 2.095398546 | Q65: 1.554599298 | R65: 2.350630859 | S65: 3.912929263 | T65: 3.066723527 | U65: 2.597185376 | V65: 3.083202547 | W65: 4.388100222 | X65: 3.370310417 | Y65: 3.591081603 | Z65: 2.156113002 | AA65: 3.749008174 | AB65: 2.170671815 | AC65: 3.050378124 | AD65: 3.52240353 | AE65: 1.787837838 | AF65: 2.043342782 | AG65: 1.862045181 | AH65: 1.580468109 | AI65: 1.663531529 | AJ65: 3.088901373 | AK65: 3.613253268 | AL65: 3.069183956 | AM65: 1.592176777 | AN65: 1.850604233 | AO65: 3.131929471 | AP65: 3.652046629 | AQ65: 2.52815357 | AR65: 2.595290361 | AS65: 3.340243343 | AT65: 2.225070817 | AU65: 2.31088927 | AV65: 1.928360504 | AW65: 1.859762003 | AX65: 2.694915638 | AY65: 5.555112457 | AZ65: 2.739642422 | BA65: 2.349126439 | BB65: 2.749086716 | BC65: 3.534651204 | BD65: 2.691151104 | BE65: 1.957646313 | BF65: 2.128865816 | BG65: 3.561465703 | BH65: 2.826676102 | BI65: 1.54221769 | BJ65: 3.758973776 | BK65: 3.482579235 | BL65: 2.825690651 | BM65: 2.430010584 | BN65: 3.228561972 | BO65: 1.955540813 | BP65: 2.937084801 | BQ65: 1.822097934 | BR65: 2.519482412 | BS65: 3.832120764 | BT65: 2.049314046 | BU65: 3.132313529 | BV65: 6.676533035 | BW65: 2.739022827 | BX65: 2.719856102 | BY65: 2.668072515 | BZ65: 1.997733505 | CA65: 1.961002719 | CB65: 2.290007152 | CC65: 2.954350337 | CD65: 3.014036285 | CE65: 2.494748082 | CF65: 2.662255217 | CG65: 2.081554854 | CH65: 3.262775635 | CI65: 1.642257317 | CJ65: 2.342615033 | CK65: 0.6221211599 | CL65: 0.07394592753 | CM65: -97.57026214 | CN65: 61
A66: 50 | C66: 2.665892402 | D66: 1.829330145 | E66: 3.106032422 | F66: 2.939654836 | G66: 2.789582086 | H66: 2.904533059 | I66: 2.258355146 | J66: 2.494968953 | K66: 2.412906219 | L66: 3.166152381 | M66: 2.994007933 | N66: 3.91430497 | O66: 1.731670772 | P66: 2.023848594 | Q66: 1.666567754 | R66: 2.559004234 | S66: 1.955218449 | T66: 2.368824192 | U66: 2.32151229 | V66: 2.084492253 | W66: 1.953234628 | X66: 4.196232699 | Y66: 2.631060731 | Z66: 4.015435763 | AA66: 1.765379363 | AB66: 3.346569599 | AC66: 2.182870915 | AD66: 3.189086348 | AE66: 2.336751888 | AF66: 3.179352855 | AG66: 2.134330827 | AH66: 2.664007574 | AI66: 1.532245503 | AJ66: 3.508926519 | AK66: 1.906812728 | AL66: 3.26189052 | AM66: 1.482814234 | AN66: 1.966088949 | AO66: 2.152009225 | AP66: 5.078375621 | AQ66: 4.273903798 | AR66: 2.004767099 | AS66: 2.293526319 | AT66: 2.751123322 | AU66: 3.320029253 | AV66: 3.311906097 | AW66: 2.577238963 | AX66: 3.530977736 | AY66: 2.136378277 | AZ66: 4.073457413 | BA66: 2.586798797 | BB66: 3.907104517 | BC66: 1.814508156 | BD66: 2.646997649 | BE66: 2.26617511 | BF66: 2.40079923 | BG66: 2.987012585 | BH66: 2.896627405 | BI66: 4.321975995 | BJ66: 2.03058066 | BK66: 3.799899421 | BL66: 2.624593533 | BM66: 1.883045485 | BN66: 1.974740371 | BO66: 2.192983252 | BP66: 2.412584213 | BQ66: 1.827227036 | BR66: 2.646200844 | BS66: 2.979018923 | BT66: 2.200609844 | BU66: 3.120661016 | BV66: 2.053010575 | BW66: 2.368504243 | BX66: 6.85664354 | BY66: 2.221814964 | BZ66: 3.020065431 | CA66: 2.581014636 | CB66: 2.481224387 | CC66: 3.537516229 | CD66: 3.253939502 | CE66: 3.364536692 | CF66: 2.360583874 | CG66: 4.468304389 | CH66: 4.053308704 | CI66: 1.93226026 | CJ66: 2.342380771 | CK66: 0.5976071039 | CL66: 0.1197912013 | CM66: -95.98314079 | CN66: 19
A67: 51 | C67: 1.691422807 | D67: 2.961931498 | E67: 2.900827526 | F67: 2.318535213 | G67: 2.383128908 | H67: 1.775608893 | I67: 2.185332118 | J67: 3.373764275 | K67: 2.129683749 | L67: 2.403879787 | M67: 4.001838393 | N67: 2.869044562 | O67: 1.739407146 | P67: 1.877978606 | Q67: 2.366798291 | R67: 2.232371678 | S67: 2.967996669 | T67: 3.021901952 | U67: 1.900390418 | V67: 1.848401252 | W67: 2.126608802 | X67: 1.750889796 | Y67: 2.787463237 | Z67: 1.649514515 | AA67: 4.2525745 | AB67: 1.621267089 | AC67: 2.018092406 | AD67: 9.94852162 | AE67: 1.49089348 | AF67: 1.967463735 | AG67: 3.066299305 | AH67: 1.805420073 | AI67: 1.951712345 | AJ67: 2.644426725 | AK67: 2.552276784 | AL67: 2.493621479 | AM67: 2.046039449 | AN67: 2.294505879 | AO67: 2.358582942 | AP67: 4.287329012 | AQ67: 2.830243101 | AR67: 1.807187992 | AS67: 2.716039066 | AT67: 2.198839185 | AU67: 5.459347001 | AV67: 3.231730723 | AW67: 3.20407757 | AX67: 3.256678923 | AY67: 4.367837114 | AZ67: 2.030047078 | BA67: 2.913469302 | BB67: 2.377435807 | BC67: 1.942071359 | BD67: 2.023061141 | BE67: 3.143407622 | BF67: 2.038348298 | BG67: 3.51224003 | BH67: 2.050001841 | BI67: 1.725454858 | BJ67: 2.003010627 | BK67: 4.908490669 | BL67: 3.366367072 | BM67: 3.04931086 | BN67: 3.165507394 | BO67: 2.581066156 | BP67: 5.610505871 | BQ67: 3.770165382 | BR67: 2.064827742 | BS67: 2.107460299 | BT67: 2.045513566 | BU67: 4.093372644 | BV67: 1.616095348 | BW67: 2.056880155 | BX67: 2.132407913 | BY67: 1.819688183 | BZ67: 2.795599712 | CA67: 2.083586754 | CB67: 2.52592753 | CC67: 5.961918189 | CD67: 3.2590969 | CE67: 3.193648684 | CF67: 2.25318305 | CG67: 2.84327464 | CH67: 2.554571117 | CI67: 3.815071538 | CJ67: 2.22802639 | CK67: 0.5798575754 | CL67: 0.2709345769 | CM67: -100.771757 | CN67: 101
A68: 52 | C68: 2.015017632 | D68: 2.518339138 | E68: 3.283021496 | F68: 3.467761779 | G68: 2.323041516 | H68: 2.163574893 | I68: 2.962419493 | J68: 2.277574008 | K68: 2.13631179 | L68: 2.169266462 | M68: 3.471158233 | N68: 3.109350154 | O68: 1.522460725 | P68: 2.954500803 | Q68: 5.042967362 | R68: 2.936458734 | S68: 2.061470538 | T68: 2.077829787 | U68: 4.871988479 | V68: 3.271874622 | W68: 4.203945035 | X68: 2.469155521 | Y68: 3.452718355 | Z68: 1.578363797 | AA68: 3.72145294 | AB68: 2.632164082 | AC68: 1.78947039 | AD68: 3.273385078 | AE68: 1.702269195 | AF68: 5.483515477 | AG68: 3.013740603 | AH68: 2.598815207 | AI68: 2.817224488 | AJ68: 2.098064613 | AK68: 2.524315955 | AL68: 2.669923266 | AM68: 2.619871692 | AN68: 3.132687894 | AO68: 2.993936186 | AP68: 2.277338762 | AQ68: 1.941874983 | AR68: 3.934833206 | AS68: 1.831799165 | AT68: 2.495657274 | AU68: 3.126255953 | AV68: 3.434351585 | AW68: 4.498374656 | AX68: 2.753420803 | AY68: 4.187862301 | AZ68: 3.463134707 | BA68: 2.416181152 | BB68: 3.829987031 | BC68: 1.716902651 | BD68: 2.506805787 | BE68: 1.989099764 | BF68: 2.636353514 | BG68: 2.398656794 | BH68: 3.346516841 | BI68: 2.747793839 | BJ68: 2.916050078 | BK68: 2.510680522 | BL68: 2.846237083 | BM68: 2.112930372 | BN68: 2.12062219 | BO68: 4.773649626 | BP68: 2.490871049 | BQ68: 1.868873836 | BR68: 3.032962432 | BS68: 3.098746122 | BT68: 2.19124352 | BU68: 2.603296961 | BV68: 1.812497628 | BW68: 1.437979667 | BX68: 3.991803814 | BY68: 2.481348892 | BZ68: 2.382520645 | CA68: 1.713247727 | CB68: 1.960654986 | CC68: 2.437268547 | CD68: 1.986534369 | CE68: 3.422891164 | CF68: 1.359299736 | CG68: 2.049481691 | CH68: 2.026255404 | CI68: 3.423115156 | CJ68: 2.342615033 | CK68: 0.6476407912 | CL68: 0.04751851096 | CM68: -99.40069606 | CN68: 101
A69: 53 | C69: 1.721381709 | D69: 1.61998975 | E69: 3.799931693 | F69: 3.007818513 | G69: 1.883968833 | H69: 5.114204832 | I69: 1.643871236 | J69: 2.676667998 | K69: 2.496560304 | L69: 2.561413501 | M69: 2.136702353 | N69: 3.284387158 | O69: 2.591812908 | P69: 2.631310365 | Q69: 4.019849209 | R69: 5.145353244 | S69: 4.337008009 | T69: 2.496205402 | U69: 3.461565155 | V69: 2.271315082 | W69: 3.109808233 | X69: 2.76336388 | Y69: 1.989814388 | Z69: 1.867727909 | AA69: 3.088938479 | AB69: 3.165371404 | AC69: 2.892195345 | AD69: 2.412137767 | AE69: 2.113697177 | AF69: 1.892248668 | AG69: 2.458994022 | AH69: 1.77281002 | AI69: 1.990439446 | AJ69: 2.942244405 | AK69: 2.008616872 | AL69: 1.991099658 | AM69: 1.510423937 | AN69: 1.580022544 | AO69: 2.905124519 | AP69: 2.275086934 | AQ69: 2.386282542 | AR69: 2.994412761 | AS69: 3.048347479 | AT69: 2.7399972 | AU69: 3.462243562 | AV69: 2.434033819 | AW69: 3.50952882 | AX69: 2.232086159 | AY69: 2.578238719 | AZ69: 3.431317929 | BA69: 2.741054282 | BB69: 2.995762977 | BC69: 3.272633646 | BD69: 2.195080839 | BE69: 2.553596137 | BF69: 4.375502009 | BG69: 2.176270286 | BH69: 1.817556101 | BI69: 1.72226961 | BJ69: 2.204645889 | BK69: 4.830394541 | BL69: 5.351407599 | BM69: 2.03996673 | BN69: 1.408139442 | BO69: 3.108355878 | BP69: 2.18400443 | BQ69: 3.061082131 | BR69: 2.5363755 | BS69: 3.630146506 | BT69: 2.768289779 | BU69: 1.672645085 | BV69: 3.968301244 | BW69: 2.294498734 | BX69: 1.732485124 | BY69: 3.04039438 | BZ69: 4.320006395 | CA69: 3.249479879 | CB69: 2.852886289 | CC69: 1.803603559 | CD69: 3.465220731 | CE69: 4.572446925 | CF69: 3.4692065 | CG69: 2.761198684 | CH69: 2.681744749 | CI69: 2.446535952 | CJ69: 2.342615033 | CK69: 0.6607905226 | CL69: 0.04946773718 | CM69: -102.3054255 | CN69: 95
A70: 54 | C70: 2.336417972 | D70: 4.739069951 | E70: 2.533719152 | F70: 3.615419562 | G70: 3.809043246 | H70: 2.984567447 | I70: 6.762434781 | J70: 2.58724247 | K70: 2.53401754 | L70: 1.995476238 | M70: 2.737429955 | N70: 2.671282643 | O70: 2.089185303 | P70: 2.592073117 | Q70: 1.70724806 | R70: 5.71584512 | S70: 2.359124206 | T70: 5.521654773 | U70: 2.021824115 | V70: 2.042704066 | W70: 8.725162467 | X70: 2.411745022 | Y70: 2.252278898 | Z70: 3.279104012 | AA70: 3.997960478 | AB70: 2.442994691 | AC70: 2.477788982 | AD70: 1.885783983 | AE70: 3.299503828 | AF70: 6.193404737 | AG70: 2.567056088 | AH70: 1.891997309 | AI70: 2.790257188 | AJ70: 2.057541315 | AK70: 3.576365118 | AL70: 2.095047546 | AM70: 2.129191856 | AN70: 2.728428913 | AO70: 1.33445722 | AP70: 2.23245593 | AQ70: 2.479129621 | AR70: 1.530722263 | AS70: 3.50552859 | AT70: 2.789566786 | AU70: 3.37770635 | AV70: 3.39538164 | AW70: 2.586729697 | AX70: 3.774725697 | AY70: 2.052863436 | AZ70: 1.550165792 | BA70: 2.268387203 | BB70: 4.130890786 | BC70: 3.071625222 | BD70: 1.517875935 | BE70: 2.260501872 | BF70: 2.07170889 | BG70: 1.401835303 | BH70: 2.462470233 | BI70: 2.176704401 | BJ70: 1.461290284 | BK70: 5.009505838 | BL70: 4.533610998 | BM70: 1.599592488 | BN70: 2.192722718 | BO70: 3.210801787 | BP70: 5.716270967 | BQ70: 1.11650581 | BR70: 2.440582189 | BS70: 2.778557087 | BT70: 4.473529896 | BU70: 3.940122824 | BV70: 3.45654575 | BW70: 2.978384206 | BX70: 2.341366643 | BY70: 3.275592029 | BZ70: 3.329216455 | CA70: 2.009188619 | CB70: 3.063283132 | CC70: 2.20394792 | CD70: 3.966103758 | CE70: 3.878766091 | CF70: 4.043413654 | CG70: 2.217980642 | CH70: 2.226116148 | CI70: 2.522176165 | CJ70: 2.366041183 | CK70: 0.814597269 | CL70: 0.1433166049 | CM70: -123.6297505 | CN70: 37
A71: 55 | C71: 3.009736567 | D71: 2.507408904 | E71: 2.745722801 | F71: 3.316692508 | G71: 3.421479083 | H71: 2.292169288 | I71: 2.522176284 | J71: 2.978966805 | K71: 2.779900504 | L71: 3.157444107 | M71: 2.193752936 | N71: 2.783982868 | O71: 3.794200005 | P71: 1.530034209 | Q71: 2.190537448 | R71: 1.855942093 | S71: 4.237930609 | T71: 1.903418241 | U71: 2.306189866 | V71: 4.22782348 | W71: 4.073669192 | X71: 2.468871673 | Y71: 5.878871194 | Z71: 3.329892033 | AA71: 2.361886481 | AB71: 1.273190326 | AC71: 2.501403555 | AD71: 1.839114898 | AE71: 2.036646077 | AF71: 1.916813128 | AG71: 2.309667717 | AH71: 2.790521038 | AI71: 2.638958186 | AJ71: 2.1103704 | AK71: 2.005539895 | AL71: 4.691712317 | AM71: 1.8915722 | AN71: 2.981602664 | AO71: 2.403887347 | AP71: 1.954256593 | AQ71: 1.807152433 | AR71: 1.709999553 | AS71: 2.690621064 | AT71: 4.487419606 | AU71: 2.64848105 | AV71: 4.724011531 | AW71: 3.234626262 | AX71: 1.922131261 | AY71: 2.985199092 | AZ71: 2.272930391 | BA71: 2.376830485 | BB71: 5.158835364 | BC71: 2.091192436 | BD71: 4.123106232 | BE71: 1.851408479 | BF71: 3.366312163 | BG71: 1.481761185 | BH71: 1.863861585 | BI71: 8.457433603 | BJ71: 3.23488249 | BK71: 2.929740384 | BL71: 4.143607565 | BM71: 4.705450508 | BN71: 2.292536987 | BO71: 3.179933767 | BP71: 2.066474708 | BQ71: 2.587394543 | BR71: 2.232274387 | BS71: 1.902607277 | BT71: 2.148579109 | BU71: 3.21026698 | BV71: 3.265594878 | BW71: 2.912571995 | BX71: 2.846346432 | BY71: 2.513028297 | BZ71: 2.664547306 | CA71: 2.923421211 | CB71: 3.375252909 | CC71: 3.048781449 | CD71: 5.046834521 | CE71: 2.307415821 | CF71: 6.321642625 | CG71: 2.237910943 | CH71: 2.814135016 | CI71: 1.70111772 | CJ71: 2.366041183 | CK71: 0.7016529299 | CL71: 0.1680499904 | CM71: -112.3312793 | CN71: 38
A72: 56 | C72: 1.928778779 | D72: 1.827706529 | E72: 2.595244214 | F72: 3.237106543 | G72: 2.055796736 | H72: 4.040633631 | I72: 2.648903156 | J72: 3.769412875 | K72: 2.770938345 | L72: 5.597318171 | M72: 1.480309452 | N72: 2.470878852 | O72: 4.40514457 | P72: 4.101756819 | Q72: 2.991077858 | R72: 2.508075935 | S72: 1.998738794 | T72: 2.323202611 | U72: 3.06529555 | V72: 2.296126835 | W72: 4.017178518 | X72: 2.477146178 | Y72: 2.006030478 | Z72: 3.800547958 | AA72: 2.731875884 | AB72: 1.562079403 | AC72: 3.52942834 | AD72: 1.874473996 | AE72: 2.843427999 | AF72: 2.663003737 | AG72: 2.842804815 | AH72: 1.578506552 | AI72: 2.111979885 | AJ72: 3.76408474 | AK72: 2.074795683 | AL72: 3.166111637 | AM72: 3.495230754 | AN72: 2.709512826 | AO72: 2.122990151 | AP72: 2.56622192 | AQ72: 2.080049422 | AR72: 2.304139258 | AS72: 3.959480361 | AT72: 3.578549013 | AU72: 3.886035789 | AV72: 3.41351449 | AW72: 3.391538377 | AX72: 3.235009207 | AY72: 2.50978922 | AZ72: 2.005146536 | BA72: 2.158229747 | BB72: 2.369784992 | BC72: 2.424894682 | BD72: 4.140802164 | BE72: 3.037961628 | BF72: 3.620294211 | BG72: 2.271171635 | BH72: 3.020864818 | BI72: 1.368516103 | BJ72: 1.922515046 | BK72: 3.30098671 | BL72: 2.493165648 | BM72: 3.362129572 | BN72: 3.452636142 | BO72: 2.029372909 | BP72: 2.113003981 | BQ72: 2.087356511 | BR72: 1.827283355 | BS72: 2.420316333 | BT72: 2.391022325 | BU72: 3.097982098 | BV72: 2.035886308 | BW72: 3.955356698 | BX72: 11.95592557 | BY72: 2.054297653 | BZ72: 1.529380336 | CA72: 2.813540606 | CB72: 2.769232435 | CC72: 2.466946266 | CD72: 2.939372073 | CE72: 1.827191341 | CF72: 1.878126087 | CG72: 3.364665409 | CH72: 4.310544544 | CI72: 3.220534989 | CJ72: 2.366041183 | CK72: 0.681017421 | CL72: 0.1461972687 | CM72: -107.8223614 | CN72: 21
A73: 57 | C73: 2.081798902 | D73: 3.406111227 | E73: 2.041562774 | F73: 1.839513551 | G73: 2.66677297 | H73: 3.52513765 | I73: 2.754968314 | J73: 5.068357337 | K73: 2.539552116 | L73: 3.898042111 | M73: 1.435807201 | N73: 1.675653679 | O73: 2.035799926 | P73: 3.492234036 | Q73: 1.697556741 | R73: 2.766964662 | S73: 3.600396806 | T73: 2.953514893 | U73: 2.996941933 | V73: 2.704675723 | W73: 3.459761709 | X73: 2.234612379 | Y73: 2.027517745 | Z73: 2.927310442 | AA73: 3.04388785 | AB73: 2.429284458 | AC73: 3.654000109 | AD73: 1.965906947 | AE73: 1.768941061 | AF73: 2.549103661 | AG73: 1.752657815 | AH73: 2.358656509 | AI73: 3.761479215 | AJ73: 2.172695096 | AK73: 2.980451312 | AL73: 4.757590246 | AM73: 2.61618548 | AN73: 2.622956155 | AO73: 2.707296532 | AP73: 3.194400832 | AQ73: 1.448550957 | AR73: 3.032168017 | AS73: 2.264230891 | AT73: 3.673694418 | AU73: 2.908623191 | AV73: 2.048502835 | AW73: 3.220987144 | AX73: 3.650825161 | AY73: 2.094227326 | AZ73: 4.053085969 | BA73: 2.645160904 | BB73: 2.186445309 | BC73: 3.005048753 | BD73: 2.487812798 | BE73: 2.63288468 | BF73: 2.660540646 | BG73: 2.597129487 | BH73: 2.598683054 | BI73: 5.062543109 | BJ73: 3.02463221 | BK73: 5.441345974 | BL73: 2.995420189 | BM73: 1.651862822 | BN73: 3.951752013 | BO73: 1.942615871 | BP73: 4.963423736 | BQ73: 3.688129802 | BR73: 3.715071907 | BS73: 2.61639872 | BT73: 2.393573575 | BU73: 2.109126748 | BV73: 2.856545015 | BW73: 2.517115093 | BX73: 7.123182449 | BY73: 2.423472188 | BZ73: 2.755222384 | CA73: 2.471510175 | CB73: 3.265750419 | CC73: 2.189214153 | CD73: 3.107192031 | CE73: 1.640413434 | CF73: 2.000895685 | CG73: 2.462580163 | CH73: 1.834714387 | CI73: 2.639536009 | CJ73: 2.413598611 | CK73: 0.6741398261 | CL73: 0.07544732938 | CM73: -103.8347421 | CN73: 56
A74: 58 | C74: 4.194938155 | D74: 1.866695223 | E74: 3.468972552 | F74: 2.476327054 | G74: 2.539610566 | H74: 2.997036954 | I74: 2.963428503 | J74: 3.00882071 | K74: 2.868430248 | L74: 5.83131124 | M74: 3.292713437 | N74: 2.745427982 | O74: 2.763780538 | P74: 2.388686571 | Q74: 3.768642476 | R74: 2.47491036 | S74: 3.24426796 | T74: 3.516097703 | U74: 1.904795746 | V74: 2.100362425 | W74: 2.739532519 | X74: 4.410896383 | Y74: 2.213092285 | Z74: 2.645480116 | AA74: 3.065045365 | AB74: 3.926907635 | AC74: 3.17810854 | AD74: 2.965590241 | AE74: 2.279969869 | AF74: 1.668641041 | AG74: 1.692208583 | AH74: 2.13095018 | AI74: 5.162995936 | AJ74: 1.985005821 | AK74: 5.672490413 | AL74: 4.276399471 | AM74: 1.83320906 | AN74: 2.891936102 | AO74: 1.896455957 | AP74: 1.833778647 | AQ74: 2.866870258 | AR74: 1.439207555 | AS74: 2.703928434 | AT74: 2.557178559 | AU74: 4.781835412 | AV74: 1.006213937 | AW74: 1.316440266 | AX74: 2.036704023 | AY74: 3.63620387 | AZ74: 2.385209607 | BA74: 3.724073472 | BB74: 3.26634501 | BC74: 2.036064761 | BD74: 2.597332434 | BE74: 1.651561712 | BF74: 3.472227033 | BG74: 2.244259082 | BH74: 2.940589101 | BI74: 2.447587233 | BJ74: 2.539403299 | BK74: 1.83775837 | BL74: 1.612161546 | BM74: 1.94766592 | BN74: 3.395420635 | BO74: 4.118497683 | BP74: 3.698922111 | BQ74: 2.773930511 | BR74: 2.230694146 | BS74: 2.020522289 | BT74: 2.583806103 | BU74: 1.940315146 | BV74: 2.010971805 | BW74: 4.869762338 | BX74: 2.23069831 | BY74: 3.450407602 | BZ74: 2.221567149 | CA74: 3.615685991 | CB74: 2.173833742 | CC74: 2.234443004 | CD74: 3.147913632 | CE74: 4.703777847 | CF74: 1.94812872 | CG74: 2.116985258 | CH74: 2.386397865 | CI74: 3.052450799 | CJ74: 2.342615033 | CK74: 0.737444281 | CL74: 0.04897305981 | CM74: -110.5677778 | CN74: 101
A75: 59 | C75: 3.566178289 | D75: 3.758558907 | E75: 1.951322851 | F75: 4.333549593 | G75: 3.339326056 | H75: 2.28691947 | I75: 4.221359931 | J75: 2.210951292 | K75: 1.638064022 | L75: 2.492286021 | M75: 1.365868327 | N75: 1.27616007 | O75: 2.134709604 | P75: 1.947990565 | Q75: 1.661833027 | R75: 2.626182826 | S75: 4.446683761 | T75: 3.260272698 | U75: 3.601398155 | V75: 3.999272905 | W75: 1.606468759 | X75: 1.476395984 | Y75: 2.483971736 | Z75: 1.45140094 | AA75: 4.39025677 | AB75: 3.632097052 | AC75: 3.929844504 | AD75: 2.304846244 | AE75: 2.156961614 | AF75: 4.07522845 | AG75: 2.778558929 | AH75: 3.415708165 | AI75: 2.635812853 | AJ75: 3.206445427 | AK75: 2.661848101 | AL75: 3.305504252 | AM75: 2.377772691 | AN75: 1.344166249 | AO75: 2.312493255 | AP75: 3.024023879 | AQ75: 3.197115925 | AR75: 5.032320922 | AS75: 3.595770219 | AT75: 2.679933692 | AU75: 2.802926972 | AV75: 2.1110701 | AW75: 2.678750515 | AX75: 3.719004893 | AY75: 2.738773755 | AZ75: 4.632513842 | BA75: 4.232132418 | BB75: 3.118349083 | BC75: 2.293555445 | BD75: 3.237453843 | BE75: 2.226764431 | BF75: 2.163565507 | BG75: 2.730642105 | BH75: 2.761158858 | BI75: 2.783017214 | BJ75: 2.301131055 | BK75: 3.923663624 | BL75: 2.206949298 | BM75: 3.168355532 | BN75: 2.186274399 | BO75: 2.153597143 | BP75: 3.199031075 | BQ75: 3.512491371 | BR75: 1.886551641 | BS75: 3.008163839 | BT75: 4.583163097 | BU75: 2.083909947 | BV75: 1.549246523 | BW75: 3.265974506 | BX75: 3.105395673 | BY75: 1.923307792 | BZ75: 3.540074747 | CA75: 1.374496495 | CB75: 2.3242107 | CC75: 1.983171536 | CD75: 5.362481081 | CE75: 1.760529572 | CF75: 3.274083503 | CG75: 2.298218474 | CH75: 3.106898549 | CI75: 2.374950657 | CJ75: 2.366041183 | CK75: 0.7750613507 | CL75: 0.05201709228 | CM75: -112.649469 | CN75: 101
A76: 60 | C76: 2.614976133 | D76: 2.212077105 | E76: 2.399562704 | F76: 3.905357765 | G76: 2.786131466 | H76: 3.304316392 | I76: 2.048660857 | J76: 1.863368984 | K76: 1.399498055 | L76: 2.053608219 | M76: 5.697514414 | N76: 3.15854898 | O76: 3.939266844 | P76: 4.099515531 | Q76: 2.252350555 | R76: 3.336254818 | S76: 3.003790946 | T76: 4.752604282 | U76: 1.868010505 | V76: 3.301948016 | W76: 3.202350293 | X76: 4.127756158 | Y76: 1.775963851 | Z76: 2.914369255 | AA76: 1.618152547 | AB76: 2.357918793 | AC76: 2.965937671 | AD76: 1.877561241 | AE76: 2.079424994 | AF76: 1.672354178 | AG76: 1.924598387 | AH76: 2.257581571 | AI76: 3.767632076 | AJ76: 3.628329797 | AK76: 1.968201071 | AL76: 2.584512757 | AM76: 4.088675462 | AN76: 2.210682464 | AO76: 2.072048656 | AP76: 1.990744759 | AQ76: 2.675895011 | AR76: 2.536041387 | AS76: 2.86457756 | AT76: 2.650259224 | AU76: 2.012736108 | AV76: 3.090387661 | AW76: 2.825505566 | AX76: 3.660197922 | AY76: 3.251306851 | AZ76: 4.057212698 | BA76: 3.320418426 | BB76: 2.423509459 | BC76: 1.720607216 | BD76: 5.25037321 | BE76: 2.965209853 | BF76: 2.97285018 | BG76: 3.555203092 | BH76: 2.687442234 | BI76: 3.110334459 | BJ76: 2.328480313 | BK76: 2.396831388 | BL76: 4.647241072 | BM76: 2.274974819 | BN76: 2.231318887 | BO76: 2.200110422 | BP76: 2.20559696 | BQ76: 2.338863111 | BR76: 1.793262884 | BS76: 2.639127066 | BT76: 1.838611277 | BU76: 2.995047616 | BV76: 2.035182543 | BW76: 2.461933939 | BX76: 4.133828904 | BY76: 1.470710405 | BZ76: 2.30050431 | CA76: 3.175438331 | CB76: 1.873162642 | CC76: 2.132888079 | CD76: 1.560453955 | CE76: 3.061545227 | CF76: 2.553088836 | CG76: 3.144168803 | CH76: 2.346360442 | CI76: 3.269080346 | CJ76: 2.342615033 | CK76: 0.6475112695 | CL76: 0.05637213911 | CM76: -99.90569349 | CN76: 88
A77: 61 | C77: 2.120623755 | D77: 3.446180103 | E77: 2.064142056 | F77: 2.051179158 | G77: 1.747907871 | H77: 4.060667651 | I77: 2.470039379 | J77: 2.201954278 | K77: 4.106680015 | L77: 2.661693405 | M77: 2.597631065 | N77: 2.342597816 | O77: 1.837761966 | P77: 3.357294185 | Q77: 2.26219207 | R77: 2.611254658 | S77: 1.825178953 | T77: 3.573512381 | U77: 2.29982977 | V77: 2.065077957 | W77: 4.120581426 | X77: 4.5926823 | Y77: 3.702206514 | Z77: 2.577649247 | AA77: 1.780521177 | AB77: 2.742151329 | AC77: 2.603041012 | AD77: 1.584539415 | AE77: 1.860644648 | AF77: 3.322645398 | AG77: 2.195591751 | AH77: 3.491405656 | AI77: 3.020901457 | AJ77: 3.387602624 | AK77: 2.55532018 | AL77: 3.359139225 | AM77: 2.38266833 | AN77: 9.487832519 | AO77: 1.46848766 | AP77: 4.841639834 | AQ77: 3.67670421 | AR77: 1.552175664 | AS77: 1.67056916 | AT77: 2.852849781 | AU77: 3.049693424 | AV77: 1.945555148 | AW77: 3.741329698 | AX77: 4.014307971 | AY77: 2.001649185 | AZ77: 5.276166638 | BA77: 3.331342882 | BB77: 2.458456703 | BC77: 3.937598926 | BD77: 1.940698917 | BE77: 2.972791636 | BF77: 2.66044374 | BG77: 2.57567765 | BH77: 3.558697638 | BI77: 2.437416957 | BJ77: 2.223830695 | BK77: 2.069436347 | BL77: 3.065976515 | BM77: 3.61348363 | BN77: 2.131938588 | BO77: 1.895838225 | BP77: 4.152940047 | BQ77: 2.806698848 | BR77: 1.514972783 | BS77: 4.072972741 | BT77: 3.43425474 | BU77: 3.229575774 | BV77: 2.360993117 | BW77: 3.005005732 | BX77: 1.7942698 | BY77: 1.863996752 | BZ77: 2.707840137 | CA77: 2.427850916 | CB77: 2.249831921 | CC77: 2.228176004 | CD77: 3.026383211 | CE77: 2.14190636 | CF77: 2.351621521 | CG77: 2.855509253 | CH77: 2.812166751 | CI77: 2.100542554 | CJ77: 2.342615033 | CK77: 0.6541826173 | CL77: 0.1551913467 | CM77: -105.2397736 | CN77: 30
A78: 62 | C78: 2.545837614 | D78: 2.511861798 | E78: 3.926090326 | F78: 2.091019054 | G78: 2.174611404 | H78: 4.637691503 | I78: 1.630185272 | J78: 1.999120114 | K78: 2.168194133 | L78: 2.896315708 | M78: 1.914435068 | N78: 2.697199519 | O78: 2.454145866 | P78: 3.158878119 | Q78: 2.562873659 | R78: 6.132206654 | S78: 1.71721211 | T78: 2.169846383 | U78: 2.907791121 | V78: 2.212871534 | W78: 1.554641213 | X78: 3.901438132 | Y78: 3.161451783 | Z78: 3.144231149 | AA78: 1.573564336 | AB78: 2.343284883 | AC78: 4.43692575 | AD78: 2.088890376 | AE78: 2.294962065 | AF78: 1.662719638 | AG78: 2.11486865 | AH78: 2.396454893 | AI78: 2.987886632 | AJ78: 4.170528463 | AK78: 2.694763188 | AL78: 2.080188802 | AM78: 2.108185573 | AN78: 2.021883924 | AO78: 3.363924023 | AP78: 2.438272859 | AQ78: 2.218000594 | AR78: 2.329307138 | AS78: 2.60156211 | AT78: 3.528342008 | AU78: 2.968148235 | AV78: 1.450622337 | AW78: 3.104949197 | AX78: 1.690189241 | AY78: 2.842003516 | AZ78: 2.179934085 | BA78: 3.224591988 | BB78: 2.908194639 | BC78: 1.791736962 | BD78: 2.481498798 | BE78: 2.936660227 | BF78: 7.363895312 | BG78: 1.721202217 | BH78: 3.065324804 | BI78: 2.94236964 | BJ78: 1.464707419 | BK78: 1.920233416 | BL78: 2.088566556 | BM78: 4.353510092 | BN78: 3.305060189 | BO78: 2.599851065 | BP78: 2.907016027 | BQ78: 2.78449567 | BR78: 2.359863934 | BS78: 9.077177834 | BT78: 2.346191345 | BU78: 1.564490195 | BV78: 2.269776611 | BW78: 2.70714656 | BX78: 3.039782016 | BY78: 2.317146864 | BZ78: 3.629948213 | CA78: 3.829886016 | CB78: 2.873103931 | CC78: 2.02815425 | CD78: 2.693533462 | CE78: 2.007314385 | CF78: 2.418761978 | CG78: 3.164400895 | CH78: 2.767980215 | CI78: 2.78482066 | CJ78: 2.27326435 | CK78: 0.628405212 | CL78: 0.1837937996 | CM78: -102.7554451 | CN78: 52
A79: 63 | C79: 1.421573996 | D79: 3.845131229 | E79: 2.91039051 | F79: 2.067722545 | G79: 4.426949211 | H79: 4.046434287 | I79: 2.591261928 | J79: 1.723914185 | K79: 2.241700306 | L79: 1.877847247 | M79: 3.174944602 | N79: 3.369872388 | O79: 2.250214396 | P79: 1.526226285 | Q79: 2.803867383 | R79: 3.464388661 | S79: 2.846881928 | T79: 2.282320265 | U79: 2.255314783 | V79: 3.506307773 | W79: 2.099464509 | X79: 3.231878182 | Y79: 2.617624417 | Z79: 2.247232786 | AA79: 3.138940093 | AB79: 2.628424727 | AC79: 3.708560778 | AD79: 2.814637155 | AE79: 2.248105615 | AF79: 2.855715363 | AG79: 1.611805945 | AH79: 3.388273061 | AI79: 3.128416957 | AJ79: 4.170789133 | AK79: 1.725035976 | AL79: 2.155565457 | AM79: 3.163618887 | AN79: 3.005403572 | AO79: 2.828813345 | AP79: 2.377663153 | AQ79: 2.504276199 | AR79: 2.445791675 | AS79: 3.097696453 | AT79: 2.138680726 | AU79: 2.856751614 | AV79: 4.006460315 | AW79: 3.377296648 | AX79: 4.859968574 | AY79: 1.722253802 | AZ79: 2.092854043 | BA79: 3.505906354 | BB79: 3.707282227 | BC79: 3.079653579 | BD79: 3.040077564 | BE79: 3.33055114 | BF79: 2.243758652 | BG79: 2.472080911 | BH79: 1.973209034 | BI79: 2.305966148 | BJ79: 2.841788336 | BK79: 2.988101502 | BL79: 2.496269925 | BM79: 4.422756847 | BN79: 5.120039147 | BO79: 3.139296778 | BP79: 2.193165434 | BQ79: 3.092696968 | BR79: 1.119321655 | BS79: 3.250303838 | BT79: 1.56795772 | BU79: 2.086876543 | BV79: 2.373430214 | BW79: 3.524526918 | BX79: 2.268908695 | BY79: 1.79123723 | BZ79: 3.240316497 | CA79: 1.969248807 | CB79: 2.027197811 | CC79: 3.665768503 | CD79: 3.160746086 | CE79: 4.251922316 | CF79: 2.123233754 | CG79: 1.982837416 | CH79: 2.479819461 | CI79: 3.10449852 | CJ79: 2.389701595 | CK79: 0.6947058711 | CL79: 0.04704332585 | CM79: -101.715704 | CN79: 101
A80: 64 | C80: 2.051887192 | D80: 2.585398479 | E80: 1.887715291 | F80: 5.160826532 | G80: 3.129783516 | H80: 2.558256361 | I80: 1.427487999 | J80: 1.803910444 | K80: 2.142127146 | L80: 1.877635366 | M80: 2.391375007 | N80: 1.965970486 | O80: 2.73470577 | P80: 4.470563322 | Q80: 1.961311212 | R80: 2.948879818 | S80: 1.251050673 | T80: 2.19680986 | U80: 2.295317359 | V80: 2.657742988 | W80: 2.356464138 | X80: 2.238296565 | Y80: 1.359267535 | Z80: 2.952968364 | AA80: 1.470020267 | AB80: 3.015676668 | AC80: 2.394657701 | AD80: 2.168738544 | AE80: 4.390329276 | AF80: 3.807046504 | AG80: 2.382490728 | AH80: 4.408375558 | AI80: 2.341046463 | AJ80: 2.842762494 | AK80: 1.668287495 | AL80: 2.438814893 | AM80: 2.956147884 | AN80: 2.925939266 | AO80: 2.748109121 | AP80: 2.182980622 | AQ80: 1.745316232 | AR80: 2.760324492 | AS80: 2.368219471 | AT80: 2.103515274 | AU80: 2.127109126 | AV80: 1.927147344 | AW80: 2.782421584 | AX80: 1.784949184 | AY80: 2.81231071 | AZ80: 3.056613805 | BA80: 2.690387425 | BB80: 3.382197993 | BC80: 1.800960591 | BD80: 3.328228784 | BE80: 3.562340276 | BF80: 3.116588754 | BG80: 2.288335432 | BH80: 2.023967104 | BI80: 2.147026783 | BJ80: 2.278400919 | BK80: 3.329011531 | BL80: 2.100226419 | BM80: 2.532105064 | BN80: 1.385942446 | BO80: 1.981503987 | BP80: 1.477981026 | BQ80: 2.311551155 | BR80: 1.059715928 | BS80: 2.665903065 | BT80: 2.089412101 | BU80: 1.758543068 | BV80: 3.933772142 | BW80: 4.575526089 | BX80: 1.944494307 | BY80: 2.022760321 | BZ80: 1.749572928 | CA80: 4.084149242 | CB80: 3.450673545 | CC80: 1.51950055 | CD80: 3.194403559 | CE80: 3.905541495 | CF80: 2.256900177 | CG80: 2.150674433 | CH80: 3.119172654 | CI80: 1.543353593 | CJ80: 2.140019237 | CK80: 0.6411643833 | CL80: 0.05254251745 | CM80: -97.74002813 | CN80: 101
A81: 65 | C81: 3.775218141 | D81: 5.710459179 | E81: 1.233268435 | F81: 2.069483053 | G81: 2.251070073 | H81: 2.817142259 | I81: 2.103556652 | J81: 2.255079524 | K81: 3.223724483 | L81: 2.505675191 | M81: 2.834356086 | N81: 3.014508852 | O81: 2.846952465 | P81: 2.245118844 | Q81: 3.585369246 | R81: 4.030829749 | S81: 2.997590383 | T81: 2.258333886 | U81: 2.642911733 | V81: 3.767743935 | W81: 3.456715898 | X81: 1.861111944 | Y81: 3.712556664 | Z81: 1.415905863 | AA81: 2.117489442 | AB81: 2.12584517 | AC81: 2.053037996 | AD81: 3.717974395 | AE81: 1.830896588 | AF81: 3.451644912 | AG81: 2.54161162 | AH81: 3.047273847 | AI81: 6.682972124 | AJ81: 2.11075907 | AK81: 1.961899928 | AL81: 3.063564287 | AM81: 4.800234967 | AN81: 3.043538253 | AO81: 1.919378237 | AP81: 1.866592547 | AQ81: 3.287660986 | AR81: 1.884643631 | AS81: 2.375197961 | AT81: 4.01308327 | AU81: 2.233114609 | AV81: 2.074898635 | AW81: 1.705584624 | AX81: 2.09500433 | AY81: 2.297040963 | AZ81: 1.74668301 | BA81: 4.076626035 | BB81: 3.901538524 | BC81: 2.360026037 | BD81: 2.467931795 | BE81: 3.048134725 | BF81: 1.871605201 | BG81: 4.541697362 | BH81: 1.719030142 | BI81: 2.038155222 | BJ81: 2.695948177 | BK81: 5.020541351 | BL81: 2.405069939 | BM81: 2.093109838 | BN81: 2.846808543 | BO81: 2.728028281 | BP81: 2.439679399 | BQ81: 4.087112636 | BR81: 3.347454362 | BS81: 5.713267726 | BT81: 3.469057668 | BU81: 2.053697364 | BV81: 3.105995631 | BW81: 3.088805128 | BX81: 2.180529091 | BY81: 1.416662601 | BZ81: 3.701606483 | CA81: 1.524484427 | CB81: 2.324100042 | CC81: 4.011389098 | CD81: 1.857855324 | CE81: 3.029889739 | CF81: 1.86316639 | CG81: 2.89515874 | CH81: 1.513240002 | CI81: 3.620260188 | CJ81: 2.319420825 | CK81: 0.7229137153 | CL81: 0.1009771778 | CM81: -111.9111628 | CN81: 26
A82: 66 | C82: 2.438492653 | D82: 3.322881606 | E82: 3.444585785 | F82: 2.094286922 | G82: 2.114523117 | H82: 2.32651858 | I82: 1.493393973 | J82: 3.28769894 | K82: 2.36316781 | L82: 1.917853685 | M82: 2.278758102 | N82: 1.318476042 | O82: 2.178840687 | P82: 3.553637983 | Q82: 2.583585275 | R82: 2.231770947 | S82: 2.066944714 | T82: 2.810458204 | U82: 2.784154537 | V82: 5.848341103 | W82: 3.052190688 | X82: 1.83349457 | Y82: 2.761040368 | Z82: 2.929663139 | AA82: 1.391697117 | AB82: 2.452494662 | AC82: 1.722995942 | AD82: 1.717399822 | AE82: 2.106775028 | AF82: 2.396163408 | AG82: 2.264013296 | AH82: 1.609115283 | AI82: 2.3203033 | AJ82: 2.090762461 | AK82: 2.650218448 | AL82: 2.772487249 | AM82: 2.746646208 | AN82: 2.277204024 | AO82: 2.16872299 | AP82: 2.442849265 | AQ82: 1.438983481 | AR82: 2.337418794 | AS82: 2.380196543 | AT82: 3.079427788 | AU82: 2.833856902 | AV82: 2.805099333 | AW82: 4.15235364 | AX82: 3.910430606 | AY82: 2.102702521 | AZ82: 2.489806805 | BA82: 2.221996467 | BB82: 7.676283734 | BC82: 1.858799495 | BD82: 2.332530865 | BE82: 1.856254108 | BF82: 1.76758597 | BG82: 2.458435264 | BH82: 3.837196922 | BI82: 2.854471706 | BJ82: 4.481726152 | BK82: 2.056959824 | BL82: 3.798206155 | BM82: 3.649769474 | BN82: 4.440919567 | BO82: 2.657248224 | BP82: 2.130033543 | BQ82: 3.864187134 | BR82: 2.333642281 | BS82: 3.569065348 | BT82: 3.409660261 | BU82: 2.329437918 | BV82: 3.888705968 | BW82: 2.728632272 | BX82: 1.658170956 | BY82: 2.22338092 | BZ82: 1.689651322 | CA82: 1.973374335 | CB82: 4.065484819 | CC82: 1.448157134 | CD82: 2.713403815 | CE82: 1.88608354 | CF82: 4.523569497 | CG82: 2.385615925 | CH82: 1.910105275 | CI82: 2.350250788 | CJ82: 2.205746126 | CK82: 0.6221211599 | CL82: 0.1377244404 | CM82: -100.7575523 | CN82: 27
A83: 67 | C83: 2.439255283 | D83: 2.610947905 | E83: 2.130960871 | F83: 4.591608786 | G83: 2.272900667 | H83: 2.18214022 | I83: 2.953512415 | J83: 3.625828796 | K83: 2.955854623 | L83: 2.720263441 | M83: 2.366715753 | N83: 2.053262997 | O83: 6.715194827 | P83: 2.278100586 | Q83: 1.356887683 | R83: 3.351311611 | S83: 2.327788006 | T83: 2.226049192 | U83: 1.070348497 | V83: 2.260285086 | W83: 2.308677473 | X83: 2.852527601 | Y83: 2.594268632 | Z83: 3.354681989 | AA83: 2.309737117 | AB83: 3.826227707 | AC83: 2.158832118 | AD83: 1.989250068 | AE83: 2.002838485 | AF83: 2.363212605 | AG83: 3.797504335 | AH83: 2.070951249 | AI83: 4.709436145 | AJ83: 3.33832537 | AK83: 1.688254094 | AL83: 3.400494501 | AM83: 1.40279047 | AN83: 2.846849362 | AO83: 2.966474161 | AP83: 3.793082523 | AQ83: 2.489574331 | AR83: 2.679826244 | AS83: 2.268214728 | AT83: 3.088341737 | AU83: 2.747058346 | AV83: 2.539293494 | AW83: 4.05045499 | AX83: 2.044919332 | AY83: 3.19630511 | AZ83: 1.897787079 | BA83: 3.098812132 | BB83: 2.776681168 | BC83: 2.454693919 | BD83: 3.723593709 | BE83: 2.436637645 | BF83: 1.972256557 | BG83: 2.933308035 | BH83: 2.553482785 | BI83: 4.493498073 | BJ83: 3.000948756 | BK83: 2.381663351 | BL83: 3.48943747 | BM83: 2.640175121 | BN83: 2.497691127 | BO83: 2.746276461 | BP83: 4.559057302 | BQ83: 2.400898418 | BR83: 2.145026435 | BS83: 1.562800547 | BT83: 1.869533832 | BU83: 2.293994431 | BV83: 1.749667776 | BW83: 4.160956403 | BX83: 3.525809123 | BY83: 3.001193634 | BZ83: 2.13107301 | CA83: 1.973878022 | CB83: 3.518121134 | CC83: 2.463836656 | CD83: 4.428921325 | CE83: 2.67925381 | CF83: 4.083826667 | CG83: 4.204055506 | CH83: 2.846936706 | CI83: 2.473021872 | CJ83: 2.389701595 | CK83: 0.6947058711 | CL83: 0.04704332585 | CM83: -103.7237736 | CN83: 101
A84: 68 | C84: 2.653755479 | D84: 2.078593838 | E84: 1.957331292 | F84: 2.430926195 | G84: 4.213798043 | H84: 2.441286076 | I84: 3.920658713 | J84: 3.065677386 | K84: 1.987519719 | L84: 2.707019118 | M84: 3.6976814 | N84: 5.840899129 | O84: 1.559867883 | P84: 2.003660516 | Q84: 2.975629849 | R84: 2.727812355 | S84: 2.327851994 | T84: 1.860676895 | U84: 2.184241627 | V84: 2.975743037 | W84: 2.386202334 | X84: 2.217643317 | Y84: 1.971554933 | Z84: 5.107182291 | AA84: 3.893988459 | AB84: 1.65389803 | AC84: 3.037314204 | AD84: 2.492904449 | AE84: 2.799814346 | AF84: 2.600817391 | AG84: 3.07792785 | AH84: 2.673717366 | AI84: 2.019753149 | AJ84: 2.26609168 | AK84: 2.658942533 | AL84: 2.267686461 | AM84: 1.941594629 | AN84: 3.01016708 | AO84: 1.733935895 | AP84: 2.100694528 | AQ84: 1.678548028 | AR84: 2.308403668 | AS84: 1.956955571 | AT84: 3.502470339 | AU84: 1.778527872 | AV84: 2.266915693 | AW84: 2.118353183 | AX84: 3.316869902 | AY84: 3.765916571 | AZ84: 2.393584032 | BA84: 2.121590221 | BB84: 2.373707249 | BC84: 2.265213004 | BD84: 1.901702458 | BE84: 3.204865075 | BF84: 1.705795373 | BG84: 2.000776124 | BH84: 1.891988783 | BI84: 2.159577866 | BJ84: 1.843520406 | BK84: 2.166088965 | BL84: 2.413696961 | BM84: 1.833368417 | BN84: 3.982253014 | BO84: 2.369171403 | BP84: 1.876125887 | BQ84: 1.638156656 | BR84: 1.610287015 | BS84: 2.1763995 | BT84: 2.761905133 | BU84: 2.718771382 | BV84: 2.021210732 | BW84: 5.12975942 | BX84: 2.26466828 | BY84: 2.056186203 | BZ84: 3.159547252 | CA84: 1.92263566 | CB84: 3.190475051 | CC84: 2.24044234 | CD84: 3.412860831 | CE84: 1.85243913 | CF84: 2.760764166 | CG84: 3.309546597 | CH84: 3.23018183 | CI84: 2.932737298 | CJ84: 2.183688664 | CK84: 0.4887869963 | CL84: 0.2242633636 | CM84: -83.64572911 | CN84: 101
A85: 69 | C85: 1.775610015 | D85: 2.044529851 | E85: 2.981636082 | F85: 2.21069398 | G85: 1.813164428 | H85: 2.543721979 | I85: 2.012423032 | J85: 5.766750376 | K85: 2.648370308 | L85: 1.912222286 | M85: 2.874119092 | N85: 2.870019642 | O85: 1.601832278 | P85: 2.579349137 | Q85: 2.017890465 | R85: 2.207213054 | S85: 1.631999457 | T85: 2.825010576 | U85: 3.171301554 | V85: 2.417677217 | W85: 4.053073445 | X85: 3.349897216 | Y85: 2.349649654 | Z85: 2.100723684 | AA85: 2.193644383 | AB85: 1.895690647 | AC85: 3.419643837 | AD85: 3.107119899 | AE85: 1.696269508 | AF85: 2.799262748 | AG85: 2.340758442 | AH85: 2.341384265 | AI85: 1.665571352 | AJ85: 4.09846409 | AK85: 4.187391104 | AL85: 3.203748134 | AM85: 2.31420217 | AN85: 1.729523417 | AO85: 2.288361025 | AP85: 3.134937281 | AQ85: 3.309494716 | AR85: 1.745294732 | AS85: 4.436124425 | AT85: 2.463290103 | AU85: 2.50149671 | AV85: 2.961840585 | AW85: 2.5211016 | AX85: 2.102591614 | AY85: 6.463003341 | AZ85: 2.574184909 | BA85: 5.533114139 | BB85: 5.053433057 | BC85: 2.462736984 | BD85: 2.836710903 | BE85: 2.448974165 | BF85: 2.376946037 | BG85: 4.458983526 | BH85: 1.363957336 | BI85: 4.452551942 | BJ85: 1.879363533 | BK85: 2.144200817 | BL85: 2.654821741 | BM85: 4.68326555 | BN85: 2.678036843 | BO85: 4.719237297 | BP85: 1.680070662 | BQ85: 4.7346284 | BR85: 1.504897024 | BS85: 2.210511797 | BT85: 3.73454359 | BU85: 2.049834824 | BV85: 2.652093036 | BW85: 1.511049585 | BX85: 2.00192855 | BY85: 4.634131232 | BZ85: 2.321661528 | CA85: 3.440253313 | CB85: 2.233163144 | CC85: 2.5834258 | CD85: 1.905739883 | CE85: 2.196571744 | CF85: 2.599461466 | CG85: 1.773429684 | CH85: 1.838265392 | CI85: 2.352413179 | CJ85: 2.22802639 | CK85: 0.6347527394 | CL85: 0.2333693555 | CM85: -106.9156524 | CN85: 77
A86: 70 | C86: 2.615290977 | D86: 2.663842123 | E86: 2.894022842 | F86: 2.663397813 | G86: 1.985340902 | H86: 2.304313823 | I86: 4.668813019 | J86: 2.785683114 | K86: 2.306218822 | L86: 1.792337557 | M86: 1.987416963 | N86: 2.95682496 | O86: 7.793340664 | P86: 4.620119013 | Q86: 3.053020294 | R86: 2.286974272 | S86: 2.757059273 | T86: 2.526290308 | U86: 2.492711324 | V86: 2.034240977 | W86: 3.312054551 | X86: 3.565147858 | Y86: 4.512124925 | Z86: 2.495761188 | AA86: 2.110288981 | AB86: 4.867394504 | AC86: 1.5956873 | AD86: 4.031513325 | AE86: 4.421111618 | AF86: 2.106627575 | AG86: 2.442976713 | AH86: 1.850861048 | AI86: 2.137778422 | AJ86: 2.299111298 | AK86: 1.173709702 | AL86: 1.551700267 | AM86: 5.367377557 | AN86: 2.072876329 | AO86: 2.943419834 | AP86: 2.466965819 | AQ86: 3.709288678 | AR86: 2.599470297 | AS86: 2.26688642 | AT86: 1.807890097 | AU86: 5.368277186 | AV86: 1.61179475 | AW86: 2.156723515 | AX86: 4.046710485 | AY86: 1.619592109 | AZ86: 3.298746407 | BA86: 2.615306306 | BB86: 2.08058406 | BC86: 1.730574422 | BD86: 3.175562779 | BE86: 2.995648817 | BF86: 3.718632568 | BG86: 2.094337375 | BH86: 2.538978278 | BI86: 4.894353046 | BJ86: 2.99386084 | BK86: 1.549478236 | BL86: 2.790200963 | BM86: 2.426181102 | BN86: 1.718785565 | BO86: 2.916781417 | BP86: 2.652822857 | BQ86: 2.610923849 | BR86: 2.224944901 | BS86: 2.886691875 | BT86: 3.112148083 | BU86: 3.478127377 | BV86: 2.06359988 | BW86: 3.392118439 | BX86: 3.555566951 | BY86: 1.48947554 | BZ86: 2.005747704 | CA86: 2.149298207 | CB86: 2.419138145 | CC86: 2.213771735 | CD86: 2.290383876 | CE86: 1.553613124 | CF86: 3.23802037 | CG86: 3.232440303 | CH86: 1.302303856 | CI86: 2.413223168 | CJ86: 2.27326435 | CK86: 0.7086694592 | CL86: 0.1105366954 | CM86: -110.5210211 | CN86: 17
A87: 71 | C87: 3.550437575 | D87: 1.830847869 | E87: 2.343127658 | F87: 1.713564271 | G87: 3.20840868 | H87: 4.302545874 | I87: 2.681416354 | J87: 1.797000566 | K87: 2.172612976 | L87: 2.866160963 | M87: 2.902994913 | N87: 2.445769892 | O87: 3.196382461 | P87: 2.040615806 | Q87: 2.183543324 | R87: 2.500909977 | S87: 4.823389946 | T87: 4.40784478 | U87: 2.29460294 | V87: 4.918725768 | W87: 3.055270326 | X87: 2.149376867 | Y87: 3.630285472 | Z87: 1.979570986 | AA87: 2.040691597 | AB87: 2.229741017 | AC87: 1.842344242 | AD87: 2.231577568 | AE87: 1.736077362 | AF87: 1.961995528 | AG87: 2.418291276 | AH87: 1.648042488 | AI87: 2.101835272 | AJ87: 3.44083811 | AK87: 2.479309391 | AL87: 2.633231631 | AM87: 2.362971588 | AN87: 5.216622808 | AO87: 2.427253187 | AP87: 2.433225673 | AQ87: 2.536187771 | AR87: 2.737228636 | AS87: 2.055123307 | AT87: 2.404146756 | AU87: 2.842733483 | AV87: 1.866513705 | AW87: 3.86236418 | AX87: 3.182726063 | AY87: 1.801565003 | AZ87: 2.682387826 | BA87: 2.053757483 | BB87: 1.869515439 | BC87: 3.376028674 | BD87: 1.846003202 | BE87: 4.390991663 | BF87: 6.462942487 | BG87: 2.786290746 | BH87: 3.627811946 | BI87: 2.84696147 | BJ87: 3.027243169 | BK87: 2.42554475 | BL87: 3.649496442 | BM87: 2.361883585 | BN87: 2.160932654 | BO87: 1.947976686 | BP87: 2.095309419 | BQ87: 2.520977793 | BR87: 2.343023769 | BS87: 1.738678607 | BT87: 1.854298513 | BU87: 2.018486309 | BV87: 2.158882413 | BW87: 2.253950589 | BX87: 3.424265991 | BY87: 2.073316991 | BZ87: 2.31094425 | CA87: 3.606383074 | CB87: 2.193389145 | CC87: 5.005716239 | CD87: 3.174491399 | CE87: 2.261199921 | CF87: 2.014522604 | CG87: 2.098079037 | CH87: 1.800143991 | CI87: 3.229123225 | CJ87: 2.250531707 | CK87: 0.5088372127 | CL87: 0.2404406803 | CM87: -89.37338107 | CN87: 101
A88: 72 | C88: 2.814185512 | D88: 2.336739155 | E88: 5.05138842 | F88: 3.099118459 | G88: 2.369724153 | H88: 2.092726078 | I88: 4.246120896 | J88: 2.430021065 | K88: 3.293928806 | L88: 3.547258996 | M88: 2.328683801 | N88: 3.217678451 | O88: 6.739847736 | P88: 3.706741249 | Q88: 2.409646903 | R88: 2.53574075 | S88: 2.450937453 | T88: 3.446985464 | U88: 4.659769929 | V88: 8.957186557 | W88: 3.556640775 | X88: 1.713678836 | Y88: 1.680348877 | Z88: 1.566696804 | AA88: 3.207780333 | AB88: 2.49926172 | AC88: 3.190837587 | AD88: 3.408571976 | AE88: 2.42295896 | AF88: 3.591312124 | AG88: 2.931082705 | AH88: 2.08320158 | AI88: 3.234914441 | AJ88: 1.759916019 | AK88: 2.356657912 | AL88: 3.121566324 | AM88: 2.625727053 | AN88: 2.389927792 | AO88: 3.389504846 | AP88: 3.22765045 | AQ88: 5.982538408 | AR88: 2.847074941 | AS88: 2.824467506 | AT88: 1.841457789 | AU88: 2.716320936 | AV88: 6.420244669 | AW88: 2.408898108 | AX88: 2.070876735 | AY88: 4.325860138 | AZ88: 1.817575276 | BA88: 3.073592596 | BB88: 2.884635205 | BC88: 1.981003029 | BD88: 1.915869184 | BE88: 2.202314094 | BF88: 3.985311164 | BG88: 2.564134706 | BH88: 2.166237629 | BI88: 1.529901281 | BJ88: 2.882508746 | BK88: 3.18635591 | BL88: 2.337137315 | BM88: 2.686389057 | BN88: 4.278208578 | BO88: 2.759767857 | BP88: 5.756474025 | BQ88: 2.674359483 | BR88: 3.324436359 | BS88: 3.261079575 | BT88: 2.590265892 | BU88: 1.741797177 | BV88: 1.593356174 | BW88: 2.634037725 | BX88: 3.046288014 | BY88: 2.156075616 | BZ88: 2.508702466 | CA88: 2.575878786 | CB88: 2.18725372 | CC88: 1.923245543 | CD88: 1.148425816 | CE88: 2.833920123 | CF88: 1.63353115 | CG88: 3.607487502 | CH88: 2.378302644 | CI88: 2.419397613 | CJ88: 2.413598611 | CK88: 0.752266911 | CL88: 0.1284580721 | CM88: -116.0768122 | CN88: 20
A89: 73 | C89: 3.930221419 | D89: 3.75339638 | E89: 1.592481541 | F89: 2.76879947 | G89: 2.256575815 | H89: 4.020386838 | I89: 1.443478314 | J89: 2.994387004 | K89: 2.186868387 | L89: 2.767692922 | M89: 2.452666203 | N89: 1.885454753 | O89: 4.693635164 | P89: 3.134599929 | Q89: 1.55027099 | R89: 2.853269837 | S89: 4.918339386 | T89: 2.7737501 | U89: 5.300962084 | V89: 2.434758907 | W89: 4.668603481 | X89: 2.942876288 | Y89: 4.416638693 | Z89: 2.244448606 | AA89: 1.959000205 | AB89: 2.440455323 | AC89: 2.451983792 | AD89: 2.67634827 | AE89: 2.623877918 | AF89: 2.845757059 | AG89: 2.469109426 | AH89: 1.634958201 | AI89: 2.946303313 | AJ89: 2.591133616 | AK89: 1.915084218 | AL89: 1.637600471 | AM89: 2.607698029 | AN89: 2.812032424 | AO89: 1.773389739 | AP89: 3.321281225 | AQ89: 6.788586223 | AR89: 2.661087228 | AS89: 2.488437128 | AT89: 2.489351587 | AU89: 4.059190938 | AV89: 1.986535938 | AW89: 2.943232786 | AX89: 2.936353206 | AY89: 1.924493418 | AZ89: 1.729856846 | BA89: 1.973673499 | BB89: 3.12540515 | BC89: 2.164501497 | BD89: 1.506716343 | BE89: 2.970572729 | BF89: 2.741693573 | BG89: 1.576542516 | BH89: 1.390134976 | BI89: 2.008310798 | BJ89: 3.240022934 | BK89: 2.438925326 | BL89: 2.274927429 | BM89: 4.488577585 | BN89: 2.838670012 | BO89: 4.008432764 | BP89: 1.56069378 | BQ89: 3.959475954 | BR89: 4.346525006 | BS89: 3.190374777 | BT89: 2.478781063 | BU89: 1.537571873 | BV89: 2.698066203 | BW89: 3.850844246 | BX89: 1.988997142 | BY89: 2.870657648 | BZ89: 2.698279733 | CA89: 3.196283672 | CB89: 2.07956612 | CC89: 3.431398778 | CD89: 2.347318679 | CE89: 2.628134138 | CF89: 2.273290375 | CG89: 2.272724738 | CH89: 2.428871084 | CI89: 2.832203828 | CJ89: 2.319188882 | CK89: 0.6947058711 | CL89: 0.07032184131 | CM89: -107.1071008 | CN89: 60
A90: 74 | C90: 2.97450504 | D90: 3.626642422 | E90: 3.357201905 | F90: 2.174005438 | G90: 3.008261456 | H90: 4.722122553 | I90: 2.1133245 | J90: 3.017304384 | K90: 2.167498172 | L90: 1.445515757 | M90: 2.90467126 | N90: 6.366984674 | O90: 2.052347144 | P90: 3.965718072 | Q90: 2.060260539 | R90: 4.12489722 | S90: 3.101962663 | T90: 5.526107848 | U90: 2.710291322 | V90: 2.271360156 | W90: 2.237326262 | X90: 2.829573397 | Y90: 2.525543979 | Z90: 2.337639161 | AA90: 1.88802066 | AB90: 2.827486873 | AC90: 2.265897523 | AD90: 2.487587207 | AE90: 1.907579734 | AF90: 1.780178864 | AG90: 2.759795774 | AH90: 3.670575488 | AI90: 3.798826519 | AJ90: 2.782855943 | AK90: 2.515336056 | AL90: 2.252007504 | AM90: 2.042287973 | AN90: 2.255845356 | AO90: 1.76544973 | AP90: 1.97515777 | AQ90: 3.152662911 | AR90: 3.724076846 | AS90: 2.956385069 | AT90: 2.296065486 | AU90: 3.723019085 | AV90: 3.514074956 | AW90: 9.511430907 | AX90: 4.333837468 | AY90: 2.962844714 | AZ90: 1.741841017 | BA90: 2.230872629 | BB90: 3.478647661 | BC90: 3.116394517 | BD90: 1.67307594 | BE90: 2.087286543 | BF90: 3.130818673 | BG90: 1.985805726 | BH90: 2.116318506 | BI90: 1.635070489 | BJ90: 2.305649963 | BK90: 2.185823018 | BL90: 1.815839877 | BM90: 2.05339363 | BN90: 3.903063223 | BO90: 4.043323717 | BP90: 1.770191699 | BQ90: 1.958013737 | BR90: 2.733022267 | BS90: 2.397484092 | BT90: 1.411590126 | BU90: 2.190427201 | BV90: 3.669021002 | BW90: 4.714465103 | BX90: 2.788878632 | BY90: 2.015979789 | BZ90: 2.375356952 | CA90: 3.078228218 | CB90: 2.246632318 | CC90: 2.132547718 | CD90: 3.067325997 | CE90: 2.780833323 | CF90: 2.614987314 | CG90: 2.302904986 | CH90: 2.999013357 | CI90: 1.899247775 | CJ90: 2.296226616 | CK90: 0.6221211599 | CL90: 0.2071034537 | CM90: -104.0773609 | CN90: 64
A91: 75 | C91: 2.89287591 | D91: 3.989608772 | E91: 2.983029059 | F91: 2.94480825 | G91: 3.99068202 | H91: 1.65450005 | I91: 2.906009456 | J91: 2.680481833 | K91: 1.578809259 | L91: 2.338183701 | M91: 2.856891184 | N91: 1.592313622 | O91: 2.573343024 | P91: 2.439427597 | Q91: 2.418355241 | R91: 1.543679338 | S91: 2.911629958 | T91: 4.051607217 | U91: 2.715395943 | V91: 2.065158302 | W91: 2.389717332 | X91: 3.465441922 | Y91: 2.622377009 | Z91: 2.696693444 | AA91: 1.728302524 | AB91: 1.667946171 | AC91: 1.879876806 | AD91: 3.352935683 | AE91: 2.438145541 | AF91: 2.027948313 | AG91: 2.295246673 | AH91: 2.393313172 | AI91: 6.808501693 | AJ91: 2.470627 | AK91: 1.875364271 | AL91: 3.575639499 | AM91: 2.962426656 | AN91: 3.959348175 | AO91: 3.105135076 | AP91: 3.061441484 | AQ91: 2.648419383 | AR91: 1.708500667 | AS91: 6.275958616 | AT91: 2.769120348 | AU91: 4.959241575 | AV91: 3.295250271 | AW91: 2.157800443 | AX91: 3.841465767 | AY91: 3.952263221 | AZ91: 4.324532948 | BA91: 2.112179266 | BB91: 3.750448147 | BC91: 2.445917444 | BD91: 6.818389533 | BE91: 1.86912453 | BF91: 1.994891 | BG91: 3.171915361 | BH91: 2.415265871 | BI91: 1.905994868 | BJ91: 2.584200417 | BK91: 5.605680022 | BL91: 2.397428926 | BM91: 2.096874299 | BN91: 2.138824717 | BO91: 3.359360428 | BP91: 4.734846696 | BQ91: 1.520195793 | BR91: 5.757371601 | BS91: 3.192046121 | BT91: 1.67669551 | BU91: 5.357275648 | BV91: 2.618992537 | BW91: 2.110179858 | BX91: 2.282838842 | BY91: 3.870278496 | BZ91: 3.501963049 | CA91: 2.8754281 | CB91: 3.09966799 | CC91: 2.698554415 | CD91: 3.078244617 | CE91: 2.357598555 | CF91: 2.391147371 | CG91: 3.543991784 | CH91: 1.799582979 | CI91: 3.655976988 | CJ91: 2.413598611 | CK91: 0.737444281 | CL91: 0.1731420732 | CM91: -116.287692 | CN91: 48
A92: 76 | C92: 2.189523618 | D92: 2.908991651 | E92: 2.377270678 | F92: 4.499993478 | G92: 2.316395139 | H92: 2.90012509 | I92: 1.615598536 | J92: 2.223274064 | K92: 2.54150961 | L92: 3.280293592 | M92: 2.613138363 | N92: 2.958868231 | O92: 2.424050299 | P92: 2.095310209 | Q92: 2.376795921 | R92: 2.132730814 | S92: 1.852264673 | T92: 3.589405172 | U92: 3.44436468 | V92: 3.738922955 | W92: 2.058473216 | X92: 1.986984012 | Y92: 8.319067818 | Z92: 2.990063482 | AA92: 3.424933776 | AB92: 2.951033229 | AC92: 2.218129514 | AD92: 3.497111892 | AE92: 2.341549185 | AF92: 1.939795187 | AG92: 2.127102659 | AH92: 3.361555834 | AI92: 2.105491579 | AJ92: 2.482313621 | AK92: 4.750576864 | AL92: 2.28184134 | AM92: 4.509219295 | AN92: 2.6012138 | AO92: 3.049092653 | AP92: 2.798904042 | AQ92: 5.129430574 | AR92: 2.200977615 | AS92: 4.486276425 | AT92: 2.180839396 | AU92: 4.118505894 | AV92: 3.066036351 | AW92: 2.31023693 | AX92: 2.39284358 | AY92: 2.815644115 | AZ92: 3.043451277 | BA92: 2.227475267 | BB92: 7.054618781 | BC92: 3.217299183 | BD92: 3.669830349 | BE92: 2.423614118 | BF92: 2.085729589 | BG92: 2.694405769 | BH92: 6.9582549 | BI92: 2.534492382 | BJ92: 3.496935142 | BK92: 3.867037314 | BL92: 2.011053272 | BM92: 2.811905396 | BN92: 2.40165709 | BO92: 2.356717759 | BP92: 5.299520422 | BQ92: 2.866975942 | BR92: 2.859031667 | BS92: 1.919263111 | BT92: 2.989264511 | BU92: 3.135191852 | BV92: 6.565992292 | BW92: 2.352072386 | BX92: 2.155880608 | BY92: 2.191584992 | BZ92: 2.24391279 | CA92: 2.417025549 | CB92: 2.181558134 | CC92: 1.909959713 | CD92: 2.22301191 | CE92: 1.545665173 | CF92: 5.111607973 | CG92: 3.729157666 | CH92: 2.240769128 | CI92: 4.445970319 | CJ92: 2.437247074 | CK92: 0.628405212 | CL92: 0.2791441655 | CM92: -108.6126176 | CN92: 101
A93: 77 | C93: 3.198231069 | D93: 2.327258561 | E93: 2.557194803 | F93: 2.616050838 | G93: 5.060784091 | H93: 6.182408924 | I93: 1.597745967 | J93: 4.29996204 | K93: 3.600954133 | L93: 2.411876837 | M93: 3.974206583 | N93: 2.074519828 | O93: 2.797350257 | P93: 2.037677722 | Q93: 2.426522033 | R93: 1.680777757 | S93: 1.52778344 | T93: 2.401137271 | U93: 2.895727046 | V93: 2.149426057 | W93: 1.765431239 | X93: 2.365074634 | Y93: 2.420788185 | Z93: 1.268013267 | AA93: 4.478276882 | AB93: 1.638741919 | AC93: 1.895353619 | AD93: 4.523080517 | AE93: 1.634904534 | AF93: 1.984150956 | AG93: 2.588591141 | AH93: 3.529381932 | AI93: 3.368268988 | AJ93: 1.84187258 | AK93: 2.747152315 | AL93: 2.042563216 | AM93: 5.520294868 | AN93: 2.829065607 | AO93: 1.934892313 | AP93: 2.680593537 | AQ93: 5.014666495 | AR93: 5.58640584 | AS93: 2.315427943 | AT93: 2.244452988 | AU93: 3.237142079 | AV93: 2.565969056 | AW93: 2.384025149 | AX93: 3.039141867 | AY93: 2.550867354 | AZ93: 1.606638333 | BA93: 3.08340877 | BB93: 1.937018441 | BC93: 1.915000008 | BD93: 8.265324424 | BE93: 2.071050177 | BF93: 3.027606574 | BG93: 2.632708501 | BH93: 2.277154979 | BI93: 1.659939096 | BJ93: 3.698213597 | BK93: 2.315719265 | BL93: 1.798097099 | BM93: 1.99331082 | BN93: 2.449925688 | BO93: 3.932347666 | BP93: 5.053245199 | BQ93: 2.954868954 | BR93: 1.975400654 | BS93: 2.452386363 | BT93: 1.881749151 | BU93: 3.60504684 | BV93: 3.412628479 | BW93: 2.567941906 | BX93: 2.721092313 | BY93: 1.212432833 | BZ93: 1.990888006 | CA93: 3.569405893 | CB93: 2.094984697 | CC93: 2.0328734 | CD93: 1.664442886 | CE93: 4.855740289 | CF93: 4.158165368 | CG93: 2.273606164 | CH93: 2.774703276 | CI93: 3.848064862 | CJ93: 2.250531707 | CK93: 0.7228414239 | CL93: 0.2050529245 | CM93: -116.8109667 | CN93: 64
A94: 78 | C94: 4.033480969 | D94: 2.416004712 | E94: 2.574230707 | F94: 5.803634922 | G94: 2.205999333 | H94: 2.024241399 | I94: 2.197067409 | J94: 2.207528038 | K94: 2.354822 | L94: 1.596959888 | M94: 3.531100004 | N94: 4.622581758 | O94: 1.936476823 | P94: 4.031263628 | Q94: 4.75633194 | R94: 3.260830107 | S94: 2.29218753 | T94: 3.070591742 | U94: 3.018059651 | V94: 2.277222676 | W94: 2.514619505 | X94: 4.828165769 | Y94: 2.314221241 | Z94: 2.071642276 | AA94: 2.102659779 | AB94: 2.609154844 | AC94: 2.027828015 | AD94: 2.259177844 | AE94: 2.149212232 | AF94: 3.098447326 | AG94: 1.7187517 | AH94: 2.909860969 | AI94: 3.804112171 | AJ94: 2.882150187 | AK94: 2.522326209 | AL94: 2.006371413 | AM94: 2.04391094 | AN94: 3.243399106 | AO94: 3.565636883 | AP94: 2.164400365 | AQ94: 3.490215574 | AR94: 3.108649022 | AS94: 7.300575821 | AT94: 3.839818234 | AU94: 1.455102214 | AV94: 2.443910507 | AW94: 1.593675481 | AX94: 2.262299705 | AY94: 1.518933856 | AZ94: 2.429919907 | BA94: 2.101986828 | BB94: 2.402484976 | BC94: 5.141540959 | BD94: 2.333491584 | BE94: 2.33098542 | BF94: 2.343841755 | BG94: 2.174446117 | BH94: 5.140728625 | BI94: 1.94605163 | BJ94: 2.651232282 | BK94: 2.439742983 | BL94: 5.025957165 | BM94: 1.924483805 | BN94: 3.9393659 | BO94: 3.039124295 | BP94: 2.648508801 | BQ94: 2.899771051 | BR94: 1.759094536 | BS94: 2.318386059 | BT94: 3.664119377 | BU94: 4.806477219 | BV94: 3.073948268 | BW94: 1.920117499 | BX94: 3.745523518 | BY94: 7.655273426 | BZ94: 2.729490328 | CA94: 3.439585941 | CB94: 2.449419164 | CC94: 8.597908414 | CD94: 2.761285047 | CE94: 4.743562683 | CF94: 2.968783377 | CG94: 2.62764471 | CH94: 2.807958106 | CI94: 2.259258395 | CJ94: 2.389462625 | CK94: 0.6946364006 | CL94: 0.2655960954 | CM94: -116.7091719 | CN94: 88
A95: 79 | C95: 2.426173936 | D95: 3.241729246 | E95: 2.985903674 | F95: 1.885073899 | G95: 2.039216908 | H95: 5.361974552 | I95: 2.502851715 | J95: 2.944633904 | K95: 2.110011621 | L95: 2.323458011 | M95: 7.019997115 | N95: 1.904482282 | O95: 3.344293381 | P95: 1.537928261 | Q95: 2.708975383 | R95: 1.524789258 | S95: 2.896109421 | T95: 2.030732627 | U95: 5.223843028 | V95: 2.032599623 | W95: 1.856728575 | X95: 3.72906491 | Y95: 4.816091247 | Z95: 3.399955097 | AA95: 1.654666157 | AB95: 2.275482303 | AC95: 4.164704322 | AD95: 4.052141197 | AE95: 1.711658286 | AF95: 2.658815455 | AG95: 3.583720135 | AH95: 3.77138552 | AI95: 2.11555388 | AJ95: 1.519923328 | AK95: 2.60575623 | AL95: 2.782783279 | AM95: 4.408583729 | AN95: 2.910408451 | AO95: 1.499804052 | AP95: 2.071882601 | AQ95: 3.218156564 | AR95: 2.075439047 | AS95: 2.343356512 | AT95: 1.531021402 | AU95: 1.455563098 | AV95: 3.001594169 | AW95: 2.610394075 | AX95: 2.550073116 | AY95: 2.190352127 | AZ95: 1.876133096 | BA95: 2.551323023 | BB95: 3.260833481 | BC95: 1.990361241 | BD95: 2.795604023 | BE95: 4.298450841 | BF95: 2.145478934 | BG95: 2.488533897 | BH95: 2.82872602 | BI95: 3.104867084 | BJ95: 2.928494307 | BK95: 2.217662393 | BL95: 2.240645446 | BM95: 6.609038927 | BN95: 3.549026118 | BO95: 1.52724706 | BP95: 3.188306654 | BQ95: 2.221530322 | BR95: 2.424055527 | BS95: 3.256190652 | BT95: 2.04725454 | BU95: 1.844051994 | BV95: 2.461753624 | BW95: 2.770921022 | BX95: 2.178483702 | BY95: 2.478834692 | BZ95: 1.799854665 | CA95: 4.232451248 | CB95: 2.821291551 | CC95: 3.78667073 | CD95: 1.489410889 | CE95: 5.424889657 | CF95: 2.124085651 | CG95: 2.976767507 | CH95: 2.721311736 | CI95: 3.06281979 | CJ95: 2.27326435 | CK95: 0.6876900366 | CL95: 0.1731420732 | CM95: -111.0653697 | CN95: 43
A96: 80 | C96: 2.129246007 | D96: 2.34190864 | E96: 2.635144687 | F96: 3.381976616 | G96: 2.262295869 | H96: 2.383728093 | I96: 7.749045747 | J96: 1.535890729 | K96: 4.209128095 | L96: 7.850730904 | M96: 2.579318183 | N96: 4.068416508 | O96: 2.39226616 | P96: 2.530076259 | Q96: 2.402554785 | R96: 2.293545333 | S96: 3.175736211 | T96: 2.983141855 | U96: 2.715462696 | V96: 4.639952195 | W96: 1.679553948 | X96: 2.829107138 | Y96: 1.931795496 | Z96: 1.832568183 | AA96: 3.770673074 | AB96: 2.585620417 | AC96: 4.273797547 | AD96: 3.556000175 | AE96: 1.811993502 | AF96: 4.257033923 | AG96: 2.43493673 | AH96: 2.201440656 | AI96: 3.915038785 | AJ96: 2.079544418 | AK96: 3.63474897 | AL96: 2.013938665 | AM96: 1.604179828 | AN96: 2.353347591 | AO96: 3.101874881 | AP96: 3.988960995 | AQ96: 2.254956361 | AR96: 3.245067709 | AS96: 1.966977385 | AT96: 1.456251321 | AU96: 2.726983703 | AV96: 2.40010636 | AW96: 2.271133689 | AX96: 2.34239971 | AY96: 2.025511901 | AZ96: 2.724051522 | BA96: 3.928931768 | BB96: 5.101933518 | BC96: 1.759096028 | BD96: 2.141079044 | BE96: 5.873287707 | BF96: 2.183934788 | BG96: 2.492687902 | BH96: 2.288775137 | BI96: 2.479489409 | BJ96: 1.267972583 | BK96: 2.047995631 | BL96: 2.888870672 | BM96: 1.835334749 | BN96: 2.965494338 | BO96: 2.529249396 | BP96: 2.38290455 | BQ96: 2.539316295 | BR96: 3.816275914 | BS96: 2.142803295 | BT96: 1.689607759 | BU96: 2.742331394 | BV96: 2.664547696 | BW96: 2.840229769 | BX96: 1.932521144 | BY96: 1.880171126 | BZ96: 2.676701154 | CA96: 3.268607614 | CB96: 2.61661551 | CC96: 6.958244264 | CD96: 2.556069688 | CE96: 3.023296545 | CF96: 3.147993614 | CG96: 2.992178717 | CH96: 3.474890238 | CI96: 4.094986582 | CJ96: 2.342615033 | CK96: 0.6947058711 | CL96: 0.1837937996 | CM96: -112.4843861 | CN96: 45
A97: 81 | C97: 3.597814413 | D97: 2.272738448 | E97: 1.75486949 | F97: 2.451803451 | G97: 2.207122101 | H97: 4.161080093 | I97: 2.98111508 | J97: 1.834988958 | K97: 2.075513163 | L97: 2.430856567 | M97: 2.453668108 | N97: 1.745568694 | O97: 3.338904917 | P97: 3.212422323 | Q97: 4.424260259 | R97: 2.672742524 | S97: 3.757785446 | T97: 2.335115311 | U97: 2.915298333 | V97: 3.434600392 | W97: 1.87810221 | X97: 2.958150037 | Y97: 2.901577344 | Z97: 2.580672107 | AA97: 2.027326004 | AB97: 1.894267292 | AC97: 2.27164903 | AD97: 1.981798739 | AE97: 1.599594261 | AF97: 2.052295967 | AG97: 2.868773311 | AH97: 1.488800063 | AI97: 3.069668521 | AJ97: 1.504833731 | AK97: 1.93738925 | AL97: 3.581641771 | AM97: 2.154427777 | AN97: 2.716081026 | AO97: 5.752395625 | AP97: 2.273908798 | AQ97: 1.833392317 | AR97: 1.845466369 | AS97: 2.160316419 | AT97: 3.207266557 | AU97: 2.136232516 | AV97: 4.104137088 | AW97: 2.680391293 | AX97: 2.37873497 | AY97: 1.920177391 | AZ97: 3.990406612 | BA97: 3.762629055 | BB97: 4.146910511 | BC97: 2.759375277 | BD97: 1.510941528 | BE97: 2.487443056 | BF97: 2.257365798 | BG97: 4.005406879 | BH97: 2.763594593 | BI97: 2.771851444 | BJ97: 3.242725205 | BK97: 2.446907088 | BL97: 3.498522774 | BM97: 2.762947222 | BN97: 6.64706816 | BO97: 2.166518832 | BP97: 3.509256792 | BQ97: 1.962616164 | BR97: 2.954962087 | BS97: 1.947256962 | BT97: 3.090114365 | BU97: 1.749881241 | BV97: 2.411984782 | BW97: 3.060593059 | BX97: 1.060571792 | BY97: 3.697766923 | BZ97: 2.517839106 | CA97: 3.37134334 | CB97: 2.081925456 | CC97: 3.933085749 | CD97: 2.311836117 | CE97: 2.338875628 | CF97: 4.06715026 | CG97: 3.617717511 | CH97: 5.377704806 | CI97: 2.386809383 | CJ97: 2.342615033 | CK97: 0.7157561538 | CL97: 0.04751851096 | CM97: -107.3953535 | CN97: 101
A98: 82 | C98: 2.607761922 | D98: 1.896348507 | E98: 3.36976266 | F98: 5.154041694 | G98: 1.754392521 | H98: 3.998920037 | I98: 2.390695295 | J98: 3.454438783 | K98: 3.130843627 | L98: 3.612304646 | M98: 2.257980355 | N98: 6.581358723 | O98: 2.55169603 | P98: 3.367564042 | Q98: 5.229278035 | R98: 4.027805968 | S98: 2.829328714 | T98: 1.907325494 | U98: 3.877575901 | V98: 2.327234361 | W98: 3.593184002 | X98: 3.427863254 | Y98: 2.209799382 | Z98: 2.063221844 | AA98: 1.566048348 | AB98: 1.737610332 | AC98: 5.274187205 | AD98: 4.320114639 | AE98: 1.971219856 | AF98: 2.065794423 | AG98: 1.516091844 | AH98: 2.585003012 | AI98: 2.398518712 | AJ98: 3.864433674 | AK98: 2.348094749 | AL98: 3.655322397 | AM98: 2.459892218 | AN98: 4.089638098 | AO98: 1.969365324 | AP98: 1.63369302 | AQ98: 2.059727327 | AR98: 2.637031531 | AS98: 2.761948897 | AT98: 2.05098757 | AU98: 3.591040606 | AV98: 2.885876364 | AW98: 3.354752129 | AX98: 2.287344609 | AY98: 2.716923198 | AZ98: 2.247760733 | BA98: 2.099287341 | BB98: 2.682410329 | BC98: 2.376560133 | BD98: 3.365598896 | BE98: 2.162573556 | BF98: 2.599153164 | BG98: 2.741432425 | BH98: 2.218263586 | BI98: 3.231149838 | BJ98: 1.997091153 | BK98: 2.630361827 | BL98: 3.079890993 | BM98: 1.790813708 | BN98: 3.412269072 | BO98: 6.688782486 | BP98: 3.390329455 | BQ98: 2.960836404 | BR98: 4.354179334 | BS98: 2.420827803 | BT98: 2.150338506 | BU98: 1.812342132 | BV98: 1.761073023 | BW98: 2.84191206 | BX98: 3.58490747 | BY98: 2.148883606 | BZ98: 2.36172363 | CA98: 2.84609475 | CB98: 2.365641365 | CC98: 1.85142609 | CD98: 2.47081464 | CE98: 3.680547697 | CF98: 3.32233575 | CG98: 1.687927834 | CH98: 2.895738641 | CI98: 2.544665373 | CJ98: 2.389701595 | CK98: 0.6607905226 | CL98: 0.1647387417 | CM98: -106.3535714 | CN98: 37
A99: 83 | C99: 2.498891188 | D99: 2.429191756 | E99: 2.650645435 | F99: 1.874651347 | G99: 3.140783572 | H99: 2.067223004 | I99: 2.814467951 | J99: 3.09539281 | K99: 4.175218571 | L99: 2.068254864 | M99: 1.956668608 | N99: 2.659879275 | O99: 1.619027296 | P99: 1.913280449 | Q99: 2.848309427 | R99: 3.492623922 | S99: 2.988520788 | T99: 2.05870293 | U99: 3.582033793 | V99: 1.948121344 | W99: 3.980911508 | X99: 4.499780047 | Y99: 4.062150144 | Z99: 2.8968948 | AA99: 3.100479613 | AB99: 1.598552095 | AC99: 1.759073319 | AD99: 3.180680665 | AE99: 2.896907192 | AF99: 3.813639326 | AG99: 1.600289558 | AH99: 3.852007948 | AI99: 2.557328159 | AJ99: 3.314049691 | AK99: 2.022497375 | AL99: 1.284580264 | AM99: 2.515650831 | AN99: 4.77855476 | AO99: 2.707738638 | AP99: 2.598350915 | AQ99: 2.581740133 | AR99: 2.463375583 | AS99: 2.701991676 | AT99: 2.265585956 | AU99: 3.501641281 | AV99: 2.364136258 | AW99: 2.263219564 | AX99: 2.36202472 | AY99: 3.23087718 | AZ99: 2.700120361 | BA99: 1.934065889 | BB99: 1.944662809 | BC99: 3.796594675 | BD99: 1.768885322 | BE99: 1.902503927 | BF99: 2.980922653 | BG99: 2.092264534 | BH99: 2.702418546 | BI99: 1.985418345 | BJ99: 2.601582286 | BK99: 1.74597729 | BL99: 1.950257643 | BM99: 1.950792819 | BN99: 2.268103657 | BO99: 2.630758205 | BP99: 2.279287918 | BQ99: 2.449446491 | BR99: 2.48603957 | BS99: 3.109144837 | BT99: 2.449220649 | BU99: 2.506071397 | BV99: 3.117191073 | BW99: 1.883845246 | BX99: 3.313099861 | BY99: 3.698271496 | BZ99: 2.971867647 | CA99: 2.071944987 | CB99: 4.1067917 | CC99: 2.533449161 | CD99: 4.617957531 | CE99: 1.917650658 | CF99: 1.870424404 | CG99: 1.381532862 | CH99: 4.036602882 | CI99: 4.20807672 | CJ99: 2.296226616 | CK99: 0.628405212 | CL99: 0.04897305981 | CM99: -96.51951131 | CN99: 101
A100: 84 | C100: 2.175110541 | D100: 2.696899974 | E100: 2.561830145 | F100: 2.93225789 | G100: 3.082103404 | H100: 2.918203825 | I100: 2.499398837 | J100: 2.143203798 | K100: 2.617293367 | L100: 2.438622162 | M100: 2.980669076 | N100: 2.052602889 | O100: 1.973874483 | P100: 1.844860663 | Q100: 3.325815539 | R100: 2.811076405 | S100: 2.045298768 | T100: 3.15015962 | U100: 1.786526795 | V100: 2.541268005 | W100: 2.086117826 | X100: 4.780937402 | Y100: 3.478787536 | Z100: 2.515792065 | AA100: 2.04173294 | AB100: 2.483063248 | AC100: 2.096258959 | AD100: 2.698775214 | AE100: 7.10619742 | AF100: 2.139637559 | AG100: 2.86106357 | AH100: 1.982842017 | AI100: 1.606712075 | AJ100: 2.62058958 | AK100: 3.995084492 | AL100: 2.774245236 | AM100: 2.597503233 | AN100: 2.326054779 | AO100: 3.799332596 | AP100: 2.285659763 | AQ100: 2.453558949 | AR100: 2.05233896 | AS100: 2.910241749 | AT100: 2.083779541 | AU100: 2.226939868 | AV100: 1.969110833 | AW100: 2.079741548 | AX100: 2.205520368 | AY100: 3.611178394 | AZ100: 3.225711237 | BA100: 2.482289268 | BB100: 1.968162192 | BC100: 4.000005726 | BD100: 3.321774372 | BE100: 1.585771378 | BF100: 3.002090341 | BG100: 3.855171166 | BH100: 2.971240735 | BI100: 1.742190387 | BJ100: 2.807471253 | BK100: 1.922742516 | BL100: 3.707869918 | BM100: 2.912151604 | BN100: 3.711902619 | BO100: 4.072365328 | BP100: 2.478600174 | BQ100: 2.900454065 | BR100: 3.112577752 | BS100: 1.371056197 | BT100: 2.133284379 | BU100: 1.023696851 | BV100: 2.525933367 | BW100: 2.495204503 | BX100: 4.959900274 | BY100: 1.597475923 | BZ100: 2.066803724 | CA100: 3.336532559 | CB100: 2.600928934 | CC100: 1.861006368 | CD100: 5.251677446 | CE100: 3.476830108 | CF100: 4.529113798 | CG100: 2.681837614 | CH100: 4.03192043 | CI100: 3.227808355 | CJ100: 2.342615033 | CK100: 0.6878275952 | CL100: 0.04564609203 | CM100: -103.7496172 | CN100: 101
A101: 85 | C101: 2.041578782 | D101: 2.922771167 | E101: 1.399661291 | F101: 2.368833009 | G101: 2.627305132 | H101: 2.085269211 | I101: 4.848688845 | J101: 2.973624842 | K101: 2.943453713 | L101: 2.072754691 | M101: 1.636824352 | N101: 2.336648035 | O101: 3.247881142 | P101: 2.634454807 | Q101: 3.006466323 | R101: 2.068874539 | S101: 2.084163478 | T101: 1.901467474 | U101: 3.476000661 | V101: 1.820181059 | W101: 1.584825925 | X101: 2.924157496 | Y101: 3.730278669 | Z101: 2.774555803 | AA101: 1.483281379 | AB101: 3.19021248 | AC101: 3.241234082 | AD101: 2.988625124 | AE101: 3.071778716 | AF101: 1.950513356 | AG101: 2.15174095 | AH101: 3.670729745 | AI101: 1.998027593 | AJ101: 4.217585673 | AK101: 2.872125275 | AL101: 2.224023578 | AM101: 2.443959309 | AN101: 2.561129153 | AO101: 2.126081964 | AP101: 2.677095814 | AQ101: 2.789581657 | AR101: 2.992946647 | AS101: 4.864372309 | AT101: 1.403851139 | AU101: 3.601109516 | AV101: 2.255044679 | AW101: 1.885061397 | AX101: 2.026229045 | AY101: 2.003505248 | AZ101: 2.78977142 | BA101: 2.576387924 | BB101: 4.521367029 | BC101: 3.899358614 | BD101: 2.089129647 | BE101: 3.287365269 | BF101: 3.412923102 | BG101: 2.843080764 | BH101: 2.255407156 | BI101: 3.485064254 | BJ101: 5.043609693 | BK101: 2.467656437 | BL101: 1.791350414 | BM101: 6.117005391 | BN101: 2.02759488 | BO101: 2.826509296 | BP101: 1.813974205 | BQ101: 3.031504131 | BR101: 1.940249111 | BS101: 3.441575855 | BT101: 2.854029767 | BU101: 1.979370757 | BV101: 3.599666737 | BW101: 2.740725062 | BX101: 2.095750509 | BY101: 3.097303943 | BZ101: 2.263458634 | CA101: 1.76536316 | CB101: 3.621906434 | CC101: 3.27944577 | CD101: 5.494138115 | CE101: 1.615614163 | CF101: 2.84891589 | CG101: 3.105085684 | CH101: 2.482139889 | CI101: 3.877691457 | CJ101: 2.342615033 | CK101: 0.6741398261 | CL101: 0.06233221629 | CM101: -104.2434947 | CN101: 72
A102: 86 | C102: 2.809845121 | D102: 2.837407783 | E102: 2.40946986 | F102: 2.020041066 | G102: 2.00806031 | H102: 2.193335195 | I102: 2.015193306 | J102: 2.744930147 | K102: 1.841616959 | L102: 3.00026178 | M102: 3.919358188 | N102: 2.327237455 | O102: 2.640942193 | P102: 2.27106076 | Q102: 2.540820563 | R102: 1.52679177 | S102: 2.403536578 | T102: 2.348544673 | U102: 2.681608489 | V102: 2.577303125 | W102: 2.067973524 | X102: 2.521884554 | Y102: 3.928180147 | Z102: 4.711134028 | AA102: 3.529511518 | AB102: 1.985711882 | AC102: 2.697295967 | AD102: 3.05349427 | AE102: 2.583097909 | AF102: 2.788972383 | AG102: 2.002146229 | AH102: 2.45399734 | AI102: 2.611642447 | AJ102: 1.691063337 | AK102: 2.551346341 | AL102: 3.052896519 | AM102: 2.856277173 | AN102: 2.337195558 | AO102: 4.483688353 | AP102: 2.581871763 | AQ102: 1.42400037 | AR102: 1.344205218 | AS102: 3.939603775 | AT102: 2.345678101 | AU102: 2.472943559 | AV102: 3.226475776 | AW102: 3.402270191 | AX102: 2.636231453 | AY102: 2.904796681 | AZ102: 2.590420477 | BA102: 3.181501202 | BB102: 2.153481376 | BC102: 4.209711793 | BD102: 2.387968606 | BE102: 1.959389661 | BF102: 3.425678095 | BG102: 1.66514052 | BH102: 1.742570045 | BI102: 6.330701036 | BJ102: 1.600817796 | BK102: 2.630449648 | BL102: 2.217350606 | BM102: 3.076438892 | BN102: 5.523027347 | BO102: 3.278054971 | BP102: 3.348863293 | BQ102: 1.590130511 | BR102: 6.262624786 | BS102: 3.928213223 | BT102: 2.004395882 | BU102: 3.006459896 | BV102: 2.866047877 | BW102: 2.69696049 | BX102: 2.880430197 | BY102: 2.102354037 | BZ102: 2.677592345 | CA102: 1.893424608 | CB102: 1.663416014 | CC102: 2.856173382 | CD102: 3.082796405 | CE102: 1.766061672 | CF102: 2.035945911 | CG102: 2.410564404 | CH102: 3.499723571 | CI102: 2.721908428 | CJ102: 2.319420825 | CK102: 0.6411643833 | CL102: 0.07775678361 | CM102: -99.8646409 | CN102: 52
A103: 87 | C103: 2.944871671 | D103: 3.258145025 | E103: 1.613927678 | F103: 2.2826823 | G103: 1.795396956 | H103: 2.19305951 | I103: 1.287823254 | J103: 5.298843121 | K103: 1.418194498 | L103: 2.568863588 | M103: 4.009253031 | N103: 1.823547391 | O103: 2.380108423 | P103: 1.805465301 | Q103: 6.658413214 | R103: 2.113143688 | S103: 4.332906136 | T103: 5.408145914 | U103: 2.302051414 | V103: 2.642152842 | W103: 2.026011712 | X103: 1.407254631 | Y103: 3.343306724 | Z103: 4.150441079 | AA103: 2.456400468 | AB103: 2.601513788 | AC103: 5.054651755 | AD103: 2.681661887 | AE103: 1.931777567 | AF103: 2.86304506 | AG103: 1.387663608 | AH103: 2.536436603 | AI103: 2.360248048 | AJ103: 1.895314217 | AK103: 1.8029524 | AL103: 2.489099758 | AM103: 4.131903606 | AN103: 2.619827332 | AO103: 2.53444415 | AP103: 1.821830118 | AQ103: 3.764236169 | AR103: 1.813120847 | AS103: 2.779546749 | AT103: 2.317779334 | AU103: 2.773555177 | AV103: 3.136049194 | AW103: 2.82548921 | AX103: 1.516895561 | AY103: 3.07681567 | AZ103: 2.279548227 | BA103: 1.781559144 | BB103: 3.13548005 | BC103: 2.371020752 | BD103: 2.01082745 | BE103: 5.514179938 | BF103: 1.365795219 | BG103: 1.579251846 | BH103: 6.387728254 | BI103: 3.095590187 | BJ103: 3.395612775 | BK103: 1.372272378 | BL103: 2.373911882 | BM103: 3.357233578 | BN103: 4.459567929 | BO103: 3.261387621 | BP103: 3.950289453 | BQ103: 2.350565438 | BR103: 1.946091468 | BS103: 1.876817955 | BT103: 3.027260539 | BU103: 2.337596637 | BV103: 2.094310738 | BW103: 1.248301346 | BX103: 1.727830848 | BY103: 2.546065144 | BZ103: 2.179354216 | CA103: 1.301706905 | CB103: 4.164423201 | CC103: 3.260616908 | CD103: 2.532153353 | CE103: 3.055491139 | CF103: 2.249381194 | CG103: 2.122672276 | CH103: 4.138207119 | CI103: 3.67050984 | CJ103: 2.183688664 | CK103: 0.752266911 | CL103: 0.1506271921 | CM103: -117.9126693 | CN103: 38
A104: 88 | C104: 3.712347599 | D104: 1.61686951 | E104: 3.188097814 | F104: 1.443800608 | G104: 2.755953033 | H104: 2.286346975 | I104: 2.784855414 | J104: 2.395453159 | K104: 3.267281421 | L104: 1.511711717 | M104: 2.010994422 | N104: 4.239166603 | O104: 2.570414004 | P104: 2.160486812 | Q104: 2.141614512 | R104: 2.507052768 | S104: 3.566097607 | T104: 2.804777543 | U104: 2.899307244 | V104: 2.802146507 | W104: 4.487965083 | X104: 5.558480098 | Y104: 2.987257463 | Z104: 2.197227865 | AA104: 3.072886079 | AB104: 2.251815984 | AC104: 3.994585012 | AD104: 1.652415652 | AE104: 2.485170557 | AF104: 2.094417848 | AG104: 3.8138659 | AH104: 2.030590239 | AI104: 6.384080465 | AJ104: 4.122872226 | AK104: 2.321922705 | AL104: 2.633107411 | AM104: 3.573366153 | AN104: 2.179769169 | AO104: 3.226897771 | AP104: 1.434350211 | AQ104: 3.206821053 | AR104: 2.941596062 | AS104: 2.737000202 | AT104: 1.470066716 | AU104: 2.613167222 | AV104: 2.016905797 | AW104: 2.656482692 | AX104: 2.662331361 | AY104: 5.271435328 | AZ104: 1.671774125 | BA104: 2.752876096 | BB104: 3.503508612 | BC104: 2.009168936 | BD104: 2.517467044 | BE104: 2.179023026 | BF104: 1.86585188 | BG104: 1.861704818 | BH104: 2.086100948 | BI104: 2.664872154 | BJ104: 4.693057326 | BK104: 2.108634713 | BL104: 2.49836382 | BM104: 2.352219278 | BN104: 1.918418088 | BO104: 2.915617187 | BP104: 2.468403305 | BQ104: 1.981552713 | BR104: 3.15861771 | BS104: 2.104718459 | BT104: 4.600173438 | BU104: 1.515702509 | BV104: 2.553160676 | BW104: 2.340227332 | BX104: 2.738087752 | BY104: 2.247022441 | BZ104: 2.064032122 | CA104: 2.529683372 | CB104: 2.71362304 | CC104: 3.252869013 | CD104: 1.47139363 | CE104: 1.900013409 | CF104: 2.965824856 | CG104: 2.286252422 | CH104: 3.404187644 | CI104: 2.410981981 | CJ104: 2.27326435 | CK104: 0.6411643833 | CL104: 0.09411732832 | CM104: -101.4103682 | CN104: 35
A105: 89 | C105: 2.336387084 | D105: 4.41350693 | E105: 1.92594242 | F105: 2.070497734 | G105: 2.370126826 | H105: 3.124541413 | I105: 2.609271488 | J105: 2.114062413 | K105: 2.221501386 | L105: 2.089134172 | M105: 2.261326622 | N105: 3.751600734 | O105: 2.756681182 | P105: 2.525918714 | Q105: 3.32948411 | R105: 2.358230933 | S105: 3.081060596 | T105: 2.039700685 | U105: 2.542838121 | V105: 3.070886042 | W105: 3.035902787 | X105: 3.220041464 | Y105: 3.067441409 | Z105: 4.153102261 | AA105: 3.285355109 | AB105: 3.067965351 | AC105: 2.706435261 | AD105: 2.375622736 | AE105: 2.219972551 | AF105: 2.057015464 | AG105: 3.051120251 | AH105: 1.803128747 | AI105: 1.776807618 | AJ105: 2.317175761 | AK105: 1.571881313 | AL105: 1.552803201 | AM105: 3.05835477 | AN105: 3.058607509 | AO105: 4.35571552 | AP105: 7.45225292 | AQ105: 2.025559604 | AR105: 2.04765194 | AS105: 2.385348218 | AT105: 2.926050231 | AU105: 2.044412318 | AV105: 2.600687808 | AW105: 3.550361073 | AX105: 3.309053487 | AY105: 6.210904438 | AZ105: 1.774972433 | BA105: 2.943154899 | BB105: 3.196506699 | BC105: 4.138248498 | BD105: 1.798523182 | BE105: 2.76223543 | BF105: 2.263549834 | BG105: 2.020338924 | BH105: 1.914480443 | BI105: 3.531218665 | BJ105: 3.217579375 | BK105: 4.246243532 | BL105: 2.561340587 | BM105: 3.000715682 | BN105: 3.489423633 | BO105: 1.594977825 | BP105: 2.35214372 | BQ105: 2.420367748 | BR105: 2.720394466 | BS105: 1.634807595 | BT105: 3.278987292 | BU105: 2.244655549 | BV105: 1.103210198 | BW105: 2.694168294 | BX105: 1.784426688 | BY105: 1.425352722 | BZ105: 1.654167172 | CA105: 2.126937751 | CB105: 2.74813844 | CC105: 1.523650633 | CD105: 4.348198503 | CE105: 1.995881418 | CF105: 2.476325078 | CG105: 2.962837881 | CH105: 2.625600038 | CI105: 1.853713967 | CJ105: 2.273037024 | CK105: 0.6741398261 | CL105: 0.06755088018 | CM105: -103.0555855 | CN105: 67
A106: 90 | C106: 3.051529088 | D106: 1.595485243 | E106: 2.195442688 | F106: 2.204307336 | G106: 4.135706383 | H106: 2.473872707 | I106: 2.04783616 | J106: 2.336682468 | K106: 2.438726756 | L106: 4.057710674 | M106: 1.627931696 | N106: 2.840319153 | O106: 3.300074935 | P106: 5.186039397 | Q106: 3.790887377 | R106: 2.326578906 | S106: 1.989129634 | T106: 3.915711714 | U106: 3.458941041 | V106: 3.261982395 | W106: 2.963925859 | X106: 3.58263414 | Y106: 1.812657579 | Z106: 2.844753716 | AA106: 4.949421169 | AB106: 2.682841765 | AC106: 2.351495537 | AD106: 3.187960488 | AE106: 1.644703932 | AF106: 1.925932182 | AG106: 1.747075164 | AH106: 2.135369609 | AI106: 3.392739304 | AJ106: 2.065394856 | AK106: 2.244538 | AL106: 2.497546614 | AM106: 3.156937444 | AN106: 1.804912751 | AO106: 3.7715208 | AP106: 2.807143022 | AQ106: 2.234178533 | AR106: 2.594668118 | AS106: 2.314293559 | AT106: 2.05828931 | AU106: 2.179773462 | AV106: 2.25138452 | AW106: 4.824639525 | AX106: 2.696865395 | AY106: 2.140468205 | AZ106: 3.201617262 | BA106: 4.524538073 | BB106: 2.043987506 | BC106: 3.042201486 | BD106: 2.574289608 | BE106: 3.666739699 | BF106: 1.994248877 | BG106: 4.432746622 | BH106: 2.666214307 | BI106: 3.017144481 | BJ106: 1.432868692 | BK106: 3.05676321 | BL106: 3.469526515 | BM106: 2.498244623 | BN106: 2.057672092 | BO106: 2.984976646 | BP106: 2.20028883 | BQ106: 4.736262801 | BR106: 1.731700484 | BS106: 2.387881621 | BT106: 2.486127238 | BU106: 3.041561796 | BV106: 2.582892194 | BW106: 2.466047219 | BX106: 2.982081309 | BY106: 2.159348639 | BZ106: 2.154684924 | CA106: 3.207965411 | CB106: 1.942569857 | CC106: 3.827046281 | CD106: 2.608404375 | CE106: 2.154432978 | CF106: 1.670524986 | CG106: 4.426991549 | CH106: 2.288718456 | CI106: 5.093105152 | CJ106: 2.366041183 | CK106: 0.6347527394 | CL106: 0.1009771778 | CM106: -100.8796899 | CN106: 29
A107: 91 | C107: 3.021751208 | D107: 2.162517889 | E107: 4.039215276 | F107: 3.339605209 | G107: 1.927999368 | H107: 2.286009292 | I107: 2.456113269 | J107: 1.90478342 | K107: 2.107991505 | L107: 2.998129458 | M107: 4.214275676 | N107: 2.857112683 | O107: 2.410449163 | P107: 3.057741184 | Q107: 2.738815218 | R107: 3.123433844 | S107: 1.886312124 | T107: 3.222681882 | U107: 5.829482361 | V107: 1.735614888 | W107: 2.654720447 | X107: 2.251382219 | Y107: 1.958821074 | Z107: 4.072277397 | AA107: 1.876627666 | AB107: 2.898298857 | AC107: 1.911505666 | AD107: 2.566669611 | AE107: 1.315841335 | AF107: 2.222626891 | AG107: 2.696429776 | AH107: 2.125606907 | AI107: 1.577607409 | AJ107: 2.496921371 | AK107: 2.863304901 | AL107: 3.346655645 | AM107: 2.716650378 | AN107: 4.248980495 | AO107: 2.408834926 | AP107: 2.014180752 | AQ107: 1.921889496 | AR107: 3.288157528 | AS107: 2.066513022 | AT107: 4.396853369 | AU107: 3.156125516 | AV107: 1.785085753 | AW107: 2.278907673 | AX107: 2.470369962 | AY107: 3.590997675 | AZ107: 1.644729007 | BA107: 4.649211145 | BB107: 2.614729681 | BC107: 2.13206472 | BD107: 1.604624594 | BE107: 2.250804056 | BF107: 2.665408186 | BG107: 4.054015948 | BH107: 2.195359642 | BI107: 2.342742272 | BJ107: 2.015025897 | BK107: 3.146255077 | BL107: 2.854580479 | BM107: 2.088794887 | BN107: 2.322763061 | BO107: 2.047089103 | BP107: 2.399305164 | BQ107: 2.188251706 | BR107: 2.037922827 | BS107: 4.16998373 | BT107: 4.216375483 | BU107: 2.283149627 | BV107: 2.885463475 | BW107: 1.968186721 | BX107: 3.252512675 | BY107: 1.751469313 | BZ107: 3.790697351 | CA107: 2.364226429 | CB107: 3.055977937 | CC107: 3.440712159 | CD107: 2.335244587 | CE107: 1.94555753 | CF107: 2.931187884 | CG107: 2.18992101 | CH107: 1.535857796 | CI107: 1.399513462 | CJ107: 2.250531707 | CK107: 0.6036435393 | CL107: 0.07544732938 | CM107: -95.301026 | CN107: 64
A108: 92 | C108: 4.933604372 | D108: 1.887019054 | E108: 2.486035367 | F108: 1.773146779 | G108: 3.909440618 | H108: 1.774264918 | I108: 3.028588939 | J108: 2.331710135 | K108: 2.353596234 | L108: 3.520670637 | M108: 1.676998331 | N108: 3.959190067 | O108: 1.926031354 | P108: 3.488713323 | Q108: 2.3296504 | R108: 2.281677569 | S108: 3.85411405 | T108: 2.90829669 | U108: 2.055354255 | V108: 5.513512935 | W108: 3.007407403 | X108: 2.367107492 | Y108: 3.105388396 | Z108: 2.718090576 | AA108: 1.373693638 | AB108: 2.275796831 | AC108: 2.166415425 | AD108: 3.551812017 | AE108: 2.718787336 | AF108: 4.718503073 | AG108: 4.107851382 | AH108: 4.465971354 | AI108: 2.790152752 | AJ108: 1.493907218 | AK108: 2.414563358 | AL108: 2.376176621 | AM108: 2.39668101 | AN108: 2.033013594 | AO108: 2.049688108 | AP108: 1.812383671 | AQ108: 1.864939983 | AR108: 3.017323342 | AS108: 1.858677955 | AT108: 3.034397822 | AU108: 3.223287027 | AV108: 1.704633785 | AW108: 2.635785468 | AX108: 1.56985585 | AY108: 2.240330379 | AZ108: 3.09968227 | BA108: 3.261254625 | BB108: 1.999508367 | BC108: 2.729206427 | BD108: 1.616173354 | BE108: 3.255390846 | BF108: 2.393317557 | BG108: 2.738485336 | BH108: 2.350796471 | BI108: 4.84748011 | BJ108: 2.458457279 | BK108: 3.588681454 | BL108: 3.448752111 | BM108: 2.404563393 | BN108: 1.971102311 | BO108: 2.566642548 | BP108: 2.337244501 | BQ108: 2.030103868 | BR108: 2.48481365 | BS108: 4.302540098 | BT108: 2.885435686 | BU108: 1.763117051 | BV108: 1.766777485 | BW108: 2.3785559 | BX108: 2.100175077 | BY108: 2.285856653 | BZ108: 2.171213761 | CA108: 1.995819248 | CB108: 7.245278361 | CC108: 5.136342542 | CD108: 1.872272967 | CE108: 3.450960011 | CF108: 4.800902334 | CG108: 1.366255921 | CH108: 2.581693881 | CI108: 2.494962973 | CJ108: 2.250531707 | CK108: 0.6541826173 | CL108: 0.181974059 | CM108: -107.1717196 | CN108: 48
A109: 93 | C109: 5.052996427 | D109: 2.146967365 | E109: 1.694361383 | F109: 4.336174573 | G109: 2.24575129 | H109: 1.934404128 | I109: 3.018189126 | J109: 2.519828153 | K109: 3.293513959 | L109: 3.677207251 | M109: 4.303855798 | N109: 1.974131672 | O109: 2.819907374 | P109: 2.844613961 | Q109: 4.349248701 | R109: 2.464557858 | S109: 2.135246827 | T109: 2.752308728 | U109: 2.53119103 | V109: 3.108074917 | W109: 4.3100158 | X109: 2.575579971 | Y109: 2.26283833 | Z109: 2.660128711 | AA109: 2.529019678 | AB109: 5.079186671 | AC109: 3.448638012 | AD109: 3.619812345 | AE109: 3.337691973 | AF109: 3.295288068 | AG109: 2.680588412 | AH109: 2.337660977 | AI109: 1.579466365 | AJ109: 2.682197029 | AK109: 3.108674383 | AL109: 2.759825366 | AM109: 2.748544145 | AN109: 3.070773195 | AO109: 2.014895426 | AP109: 2.631811536 | AQ109: 3.215879503 | AR109: 2.533725134 | AS109: 2.195587796 | AT109: 1.995211998 | AU109: 1.8482004 | AV109: 2.41753322 | AW109: 2.49833493 | AX109: 1.405409746 | AY109: 1.447828113 | AZ109: 5.174291055 | BA109: 2.41455056 | BB109: 2.809130765 | BC109: 1.792247735 | BD109: 2.314590116 | BE109: 2.563695715 | BF109: 3.498717893 | BG109: 2.43527335 | BH109: 3.461673901 | BI109: 1.977879062 | BJ109: 4.884147851 | BK109: 2.769794011 | BL109: 3.468905479 | BM109: 6.952420253 | BN109: 2.295506226 | BO109: 1.982095718 | BP109: 3.802850495 | BQ109: 2.554568575 | BR109: 1.755149495 | BS109: 2.674217796 | BT109: 2.26960105 | BU109: 2.95786452 | BV109: 1.493684561 | BW109: 2.912497862 | BX109: 2.791044328 | BY109: 2.533481457 | BZ109: 1.652317335 | CA109: 2.261905994 | CB109: 2.371517165 | CC109: 3.146890038 | CD109: 2.942510915 | CE109: 3.402196593 | CF109: 2.639342823 | CG109: 1.697841808 | CH109: 2.81678678 | CI109: 2.018084395 | CJ109: 2.366041183 | CK109: 0.6607905226 | CL109: 0.07032184131 | CM109: -102.6247709 | CN109: 61
A110: 94 | C110: 3.149741058 | D110: 2.409429275 | E110: 1.588293868 | F110: 3.261432182 | G110: 3.312018445 | H110: 2.472770353 | I110: 3.05122748 | J110: 3.424223868 | K110: 4.207153658 | L110: 2.552379056 | M110: 2.423198461 | N110: 2.220308406 | O110: 2.572952036 | P110: 2.700022911 | Q110: 5.42845818 | R110: 2.884567258 | S110: 3.814390647 | T110: 3.105326927 | U110: 7.470539286 | V110: 2.333873757 | W110: 2.535693923 | X110: 2.830669852 | Y110: 2.20494701 | Z110: 2.907138549 | AA110: 2.245533828 | AB110: 2.320239624 | AC110: 2.39344472 | AD110: 2.564302567 | AE110: 2.692485654 | AF110: 2.783151766 | AG110: 2.107855346 | AH110: 2.879112596 | AI110: 2.309067934 | AJ110: 3.263869151 | AK110: 2.123879843 | AL110: 2.315305994 | AM110: 1.879218057 | AN110: 3.216319372 | AO110: 2.756064365 | AP110: 3.463280329 | AQ110: 3.804148292 | AR110: 3.050517368 | AS110: 2.829990882 | AT110: 2.235530128 | AU110: 3.179105268 | AV110: 1.705925356 | AW110: 3.288395591 | AX110: 2.103770055 | AY110: 1.65700619 | AZ110: 1.366258176 | BA110: 2.516806004 | BB110: 3.645856788 | BC110: 2.397886277 | BD110: 3.769158762 | BE110: 2.51054959 | BF110: 2.485009422 | BG110: 8.198763056 | BH110: 1.617663032 | BI110: 2.187059407 | BJ110: 1.551493382 | BK110: 2.233054022 | BL110: 1.883967487 | BM110: 1.696516699 | BN110: 3.397195365 | BO110: 1.646695389 | BP110: 1.954507949 | BQ110: 2.579476153 | BR110: 1.92655365 | BS110: 2.001311315 | BT110: 2.063199159 | BU110: 1.905363091 | BV110: 1.468668751 | BW110: 2.467882253 | BX110: 2.12998052 | BY110: 4.934422053 | BZ110: 1.830228442 | CA110: 3.711650083 | CB110: 1.992888716 | CC110: 6.914013077 | CD110: 3.445550664 | CE110: 3.071934084 | CF110: 2.028089313 | CG110: 2.541710031 | CH110: 4.66890749 | CI110: 2.968503372 | CJ110: 2.296226616 | CK110: 0.6541826173 | CL110: 0.1893629355 | CM110: -107.108458 | CN110: 50
A111: 95 | C111: 2.330481289 | D111: 1.714431255 | E111: 1.957751587 | F111: 1.975320958 | G111: 2.424751545 | H111: 2.293168906 | I111: 2.22509394 | J111: 1.804229483 | K111: 3.859255479 | L111: 2.781636857 | M111: 1.735875012 | N111: 2.774049389 | O111: 2.242308968 | P111: 3.416417064 | Q111: 1.630893675 | R111: 2.051708481 | S111: 1.66211904 | T111: 4.482253166 | U111: 3.704746422 | V111: 2.449764682 | W111: 3.754287814 | X111: 2.548115203 | Y111: 2.828125554 | Z111: 1.857706537 | AA111: 1.703972772 | AB111: 1.987574712 | AC111: 3.04016497 | AD111: 2.73200453 | AE111: 5.475946536 | AF111: 1.67114355 | AG111: 2.790695204 | AH111: 2.640715212 | AI111: 2.215985864 | AJ111: 2.96201609 | AK111: 2.03496194 | AL111: 2.9897217 | AM111: 1.896747494 | AN111: 2.824920734 | AO111: 2.096494988 | AP111: 2.008519719 | AQ111: 4.598072102 | AR111: 2.289994188 | AS111: 4.316704296 | AT111: 3.217298754 | AU111: 3.806207597 | AV111: 1.943686529 | AW111: 4.636665967 | AX111: 2.572449943 | AY111: 2.369418858 | AZ111: 2.492146926 | BA111: 3.064671123 | BB111: 2.841390358 | BC111: 1.850425772 | BD111: 2.067125596 | BE111: 3.092770331 | BF111: 3.744845043 | BG111: 3.836229238 | BH111: 4.007111278 | BI111: 2.244527811 | BJ111: 2.484518393 | BK111: 4.863840007 | BL111: 2.087721257 | BM111: 3.078455789 | BN111: 2.169452092 | BO111: 3.589074643 | BP111: 3.272939113 | BQ111: 5.555981137 | BR111: 2.08893778 | BS111: 3.90563775 | BT111: 1.783588671 | BU111: 3.175809256 | BV111: 3.909423041 | BW111: 2.582875699 | BX111: 3.887601096 | BY111: 3.094091028 | BZ111: 2.195616027 | CA111: 2.475215784 | CB111: 2.951798452 | CC111: 3.202738495 | CD111: 2.202401466 | CE111: 2.354351371 | CF111: 2.117272543 | CG111: 5.443180244 | CH111: 3.318931629 | CI111: 3.175687038 | CJ111: 2.365804579 | CK111: 0.628405212 | CL111: 0.1856317376 | CM111: -103.1696955 | CN111: 55
A112: 96 | C112: 2.052407309 | D112: 2.214726922 | E112: 2.207473073 | F112: 3.193780325 | G112: 2.85570024 | H112: 1.820719961 | I112: 1.853239082 | J112: 3.479519171 | K112: 1.627486331 | L112: 1.940692492 | M112: 2.029549896 | N112: 1.736619535 | O112: 4.046466713 | P112: 3.81731276 | Q112: 2.994821525 | R112: 2.1428367 | S112: 3.731832157 | T112: 3.007585983 | U112: 2.424268758 | V112: 3.122602424 | W112: 3.066907419 | X112: 3.710514007 | Y112: 1.574151397 | Z112: 3.186902961 | AA112: 2.187447369 | AB112: 2.287957915 | AC112: 4.314684114 | AD112: 1.991169039 | AE112: 3.795224626 | AF112: 1.727345884 | AG112: 3.001840064 | AH112: 2.246537664 | AI112: 2.565034704 | AJ112: 2.246555412 | AK112: 3.292359368 | AL112: 3.619932704 | AM112: 4.299717312 | AN112: 2.50169809 | AO112: 2.33732766 | AP112: 1.986944195 | AQ112: 2.621215218 | AR112: 4.084266007 | AS112: 2.775055643 | AT112: 2.06754412 | AU112: 2.80505342 | AV112: 2.181500462 | AW112: 3.241660917 | AX112: 5.954061082 | AY112: 4.095084803 | AZ112: 7.224749151 | BA112: 1.819616935 | BB112: 3.190963619 | BC112: 2.290201609 | BD112: 3.255697937 | BE112: 3.206926034 | BF112: 2.342058283 | BG112: 1.803106193 | BH112: 3.00717566 | BI112: 2.8752947 | BJ112: 5.317256999 | BK112: 3.471218692 | BL112: 2.431169396 | BM112: 1.8276099 | BN112: 2.726529523 | BO112: 1.710706737 | BP112: 2.968093468 | BQ112: 2.597596901 | BR112: 2.22707191 | BS112: 2.215563853 | BT112: 3.338647731 | BU112: 5.740564951 | BV112: 3.273073313 | BW112: 3.023410963 | BX112: 3.456466803 | BY112: 3.078069451 | BZ112: 2.433995368 | CA112: 2.405879378 | CB112: 2.952161221 | CC112: 2.106204485 | CD112: 2.979177831 | CE112: 2.145539929 | CF112: 2.754222949 | CG112: 2.075552668 | CH112: 3.134206104 | CI112: 2.314008702 | CJ112: 2.389462625 | CK112: 0.6221211599 | CL112: 0.163107665 | CM112: -102.2473602 | CN112: 44
A113: 97 | C113: 3.578748305 | D113: 1.98463172 | E113: 1.56708531 | F113: 1.854778685 | G113: 2.881509214 | H113: 3.119066442 | I113: 3.879112379 | J113: 2.839500032 | K113: 2.413392185 | L113: 3.876709939 | M113: 1.818683408 | N113: 8.531046846 | O113: 2.064971625 | P113: 3.57253545 | Q113: 2.270261525 | R113: 2.247573941 | S113: 2.495481595 | T113: 3.128338752 | U113: 1.944490041 | V113: 2.731188896 | W113: 3.375011586 | X113: 3.591972054 | Y113: 3.594243053 | Z113: 3.75942786 | AA113: 2.334283183 | AB113: 4.9816546 | AC113: 6.274678705 | AD113: 1.229217962 | AE113: 2.286825351 | AF113: 1.68310329 | AG113: 3.555327464 | AH113: 2.138297386 | AI113: 2.524219905 | AJ113: 1.932078247 | AK113: 2.315210509 | AL113: 2.36199999 | AM113: 1.83012478 | AN113: 2.486877414 | AO113: 1.671311142 | AP113: 3.580769525 | AQ113: 2.493890153 | AR113: 3.160941409 | AS113: 2.843963942 | AT113: 2.179550851 | AU113: 4.406427937 | AV113: 7.029601236 | AW113: 1.665540255 | AX113: 2.58247186 | AY113: 4.323762871 | AZ113: 2.33263496 | BA113: 1.721850521 | BB113: 2.033051498 | BC113: 3.241531546 | BD113: 2.108234059 | BE113: 2.782722847 | BF113: 2.510821864 | BG113: 3.677382582 | BH113: 2.936331418 | BI113: 2.7783291 | BJ113: 1.829500843 | BK113: 2.013199026 | BL113: 3.992386593 | BM113: 2.008323611 | BN113: 2.790245457 | BO113: 1.787085836 | BP113: 2.469630304 | BQ113: 1.462784532 | BR113: 4.32233323 | BS113: 1.592662588 | BT113: 1.861283054 | BU113: 3.042681966 | BV113: 5.283776574 | BW113: 4.952890231 | BX113: 2.495108122 | BY113: 3.196564093 | BZ113: 6.478841322 | CA113: 2.966545736 | CB113: 2.179698159 | CC113: 2.888983734 | CD113: 2.318492187 | CE113: 2.720778818 | CF113: 3.163286718 | CG113: 1.884841988 | CH113: 2.904425512 | CI113: 2.817457306 | CJ113: 2.319188882 | CK113: 0.7300698382 | CL113: 0.2010125718 | CM113: -117.5444322 | CN113: 62
A114: 98 | C114: 2.109386699 | D114: 3.879691765 | E114: 3.33109239 | F114: 2.524877955 | G114: 1.826464988 | H114: 1.879865707 | I114: 2.939266259 | J114: 1.623585056 | K114: 6.049235829 | L114: 1.394781236 | M114: 3.909916266 | N114: 1.824697919 | O114: 3.532211138 | P114: 2.941960472 | Q114: 3.256335473 | R114: 2.214462884 | S114: 1.514319063 | T114: 4.245984728 | U114: 2.734418945 | V114: 2.233498066 | W114: 3.713662017 | X114: 1.855441312 | Y114: 1.835541786 | Z114: 2.283186953 | AA114: 1.269096326 | AB114: 2.047380891 | AC114: 2.47663907 | AD114: 3.45613219 | AE114: 2.711503282 | AF114: 1.445144253 | AG114: 3.984661501 | AH114: 2.125940313 | AI114: 1.814364103 | AJ114: 3.596142192 | AK114: 2.21046233 | AL114: 2.984517435 | AM114: 1.859283215 | AN114: 2.174810513 | AO114: 2.903270158 | AP114: 3.42277517 | AQ114: 2.881499158 | AR114: 2.399027258 | AS114: 2.916760656 | AT114: 4.367121048 | AU114: 1.661452231 | AV114: 4.462865452 | AW114: 4.322002561 | AX114: 3.582235782 | AY114: 2.420438686 | AZ114: 4.00886248 | BA114: 1.945084501 | BB114: 4.831400681 | BC114: 3.016677375 | BD114: 2.47442154 | BE114: 3.13373518 | BF114: 3.933039185 | BG114: 2.399150381 | BH114: 5.389304812 | BI114: 2.168107418 | BJ114: 1.555203299 | BK114: 2.947643041 | BL114: 2.30296364 | BM114: 5.967861579 | BN114: 2.847405209 | BO114: 1.812222445 | BP114: 2.837795465 | BQ114: 2.800566172 | BR114: 3.654185125 | BS114: 2.528263183 | BT114: 3.048694206 | BU114: 1.807361065 | BV114: 2.279476125 | BW114: 1.826582738 | BX114: 2.68817546 | BY114: 2.440214422 | BZ114: 4.469929027 | CA114: 4.858038272 | CB114: 2.582200762 | CC114: 2.481075199 | CD114: 2.580575607 | CE114: 2.787373455 | CF114: 3.337839963 | CG114: 2.18109333 | CH114: 2.123552016 | CI114: 3.188325414 | CJ114: 2.366041183 | CK114: 0.752266911 | CL114: 0.06233221629 | CM114: -113.2860231 | CN114: 80
A115: 99 | C115: 2.292680182 | D115: 3.519690213 | E115: 1.953853026 | F115: 3.408729439 | G115: 1.605251993 | H115: 2.384938569 | I115: 2.978377611 | J115: 3.423648564 | K115: 3.5560337 | L115: 4.959126872 | M115: 2.76783635 | N115: 2.643900251 | O115: 2.359215815 | P115: 1.974693672 | Q115: 2.360854916 | R115: 4.492549866 | S115: 1.378022045 | T115: 1.757552005 | U115: 2.81457715 | V115: 3.128918286 | W115: 2.788082038 | X115: 3.292082626 | Y115: 2.672847466 | Z115: 2.159723752 | AA115: 1.50438327 | AB115: 2.342077682 | AC115: 2.082085368 | AD115: 3.604189777 | AE115: 3.149833811 | AF115: 2.515155057 | AG115: 2.929923661 | AH115: 3.411314959 | AI115: 2.56950881 | AJ115: 2.457278063 | AK115: 1.858785698 | AL115: 2.440764205 | AM115: 2.79291074 | AN115: 2.256963407 | AO115: 1.813623104 | AP115: 3.262712079 | AQ115: 1.684710507 | AR115: 3.677368711 | AS115: 1.695838613 | AT115: 2.938789331 | AU115: 2.202615174 | AV115: 2.772604154 | AW115: 3.145551512 | AX115: 2.168573627 | AY115: 4.046529947 | AZ115: 2.838968679 | BA115: 2.546838654 | BB115: 3.123916838 | BC115: 3.058124198 | BD115: 1.957577817 | BE115: 1.946118652 | BF115: 3.546603557 | BG115: 1.913485669 | BH115: 3.178701913 | BI115: 4.67751393 | BJ115: 2.401915624 | BK115: 4.043316717 | BL115: 2.073688618 | BM115: 2.640735276 | BN115: 2.883106135 | BO115: 2.655369369 | BP115: 2.858655437 | BQ115: 2.948593307 | BR115: 2.821045207 | BS115: 3.378331579 | BT115: 2.820440867 | BU115: 3.319142481 | BV115: 2.236442826 | BW115: 3.228246588 | BX115: 2.991758994 | BY115: 5.552721997 | BZ115: 3.280917209 | CA115: 2.613529763 | CB115: 2.28242389 | CC115: 2.101218822 | CD115: 2.217255117 | CE115: 1.316391063 | CF115: 3.125943072 | CG115: 3.983241372 | CH115: 2.370113318 | CI115: 1.374507925 | CJ115: 2.366041183 | CK115: 0.6674651743 | CL115: 0.04657289259 | CM115: -98.67967903 | CN115: 101
A116: 100 | C116: 2.003710164 | D116: 2.033743519 | E116: 2.300835773 | F116: 2.681374011 | G116: 2.672391815 | H116: 2.631218557 | I116: 2.834484516 | J116: 2.461218423 | K116: 1.827353417 | L116: 2.204285387 | M116: 1.584938585 | N116: 1.859164406 | O116: 2.380301797 | P116: 2.960047403 | Q116: 2.814603867 | R116: 3.290859665 | S116: 3.281594353 | T116: 1.625940641 | U116: 2.147180647 | V116: 2.61625664 | W116: 2.529072779 | X116: 2.024989879 | Y116: 1.861809456 | Z116: 1.980845981 | AA116: 6.474540184 | AB116: 2.329894179 | AC116: 3.418338057 | AD116: 8.407265443 | AE116: 2.428251718 | AF116: 3.135338901 | AG116: 1.542105725 | AH116: 3.046557095 | AI116: 2.312375664 | AJ116: 1.73052595 | AK116: 2.979992715 | AL116: 3.797938729 | AM116: 3.690930428 | AN116: 3.991363047 | AO116: 3.147360134 | AP116: 2.624409984 | AQ116: 2.928160862 | AR116: 2.342372883 | AS116: 3.419913227 | AT116: 4.498524807 | AU116: 3.432217682 | AV116: 1.622205381 | AW116: 3.085717209 | AX116: 3.03899359 | AY116: 2.2345083 | AZ116: 2.302732767 | BA116: 2.366780334 | BB116: 1.578989857 | BC116: 2.167821892 | BD116: 3.003513584 | BE116: 1.622276719 | BF116: 2.512812261 | BG116: 1.606341702 | BH116: 2.577345819 | BI116: 2.606540531 | BJ116: 2.629755215 | BK116: 3.317942864 | BL116: 3.991164064 | BM116: 4.203192133 | BN116: 4.098126495 | BO116: 2.007917187 | BP116: 1.966246963 | BQ116: 2.661022944 | BR116: 3.25419274 | BS116: 2.979024676 | BT116: 4.579675935 | BU116: 1.468594531 | BV116: 2.183956352 | BW116: 2.315223189 | BX116: 1.927026693 | BY116: 3.000136939 | BZ116: 2.804720493 | CA116: 3.701103663 | CB116: 3.154935375 | CC116: 1.976469313 | CD116: 3.132998595 | CE116: 3.537933524 | CF116: 1.779614845 | CG116: 2.495709465 | CH116: 5.129125064 | CI116: 1.854520691 | CJ116: 2.296226616 | CK116: 0.6476407912 | CL116: 0.1536547987 | CM116: -104.5760852 | CN116: 30
A117: 101 | C117: 2.171857851 | D117: 3.419198942 | E117: 2.612722727 | F117: 1.620784016 | G117: 1.574991346 | H117: 2.109634846 | I117: 2.098810288 | J117: 3.378840801 | K117: 2.19572027 | L117: 2.219535734 | M117: 3.403946201 | N117: 2.089286884 | O117: 4.255986496 | P117: 3.237524503 | Q117: 3.898083664 | R117: 1.597276356 | S117: 2.759678947 | T117: 3.372466164 | U117: 4.191672152 | V117: 3.403066785 | W117: 1.650962384 | X117: 2.511840632 | Y117: 3.412279135 | Z117: 2.761420472 | AA117: 2.793917993 | AB117: 2.249045288 | AC117: 1.374267713 | AD117: 3.389264658 | AE117: 3.011617845 | AF117: 2.116005272 | AG117: 4.776095244 | AH117: 1.587277156 | AI117: 4.646020418 | AJ117: 2.919956366 | AK117: 2.556922304 | AL117: 2.640786012 | AM117: 2.368495874 | AN117: 3.411158373 | AO117: 3.541346361 | AP117: 2.577181061 | AQ117: 3.771227721 | AR117: 2.615044222 | AS117: 2.616968426 | AT117: 1.472202912 | AU117: 3.053126997 | AV117: 1.723954983 | AW117: 3.996641322 | AX117: 1.20790492 | AY117: 3.162808473 | AZ117: 2.19030695 | BA117: 2.63632905 | BB117: 2.496527568 | BC117: 2.521282929 | BD117: 4.777225727 | BE117: 1.925956752 | BF117: 1.565634967 | BG117: 2.732523204 | BH117: 2.413054728 | BI117: 3.119741383 | BJ117: 3.265978803 | BK117: 2.59335448 | BL117: 2.716438883 | BM117: 2.933269123 | BN117: 1.632364107 | BO117: 2.689246543 | BP117: 4.010640003 | BQ117: 2.669245765 | BR117: 1.477148972 | BS117: 5.356767313 | BT117: 4.225527569 | BU117: 4.074896284 | BV117: 4.719408318 | BW117: 2.524023297 | BX117: 3.489229359 | BY117: 2.088363777 | BZ117: 1.676922347 | CA117: 4.338495278 | CB117: 2.216347343 | CC117: 2.47028595 | CD117: 2.735495964 | CE117: 2.158421776 | CF117: 3.653931171 | CG117: 2.206423634 | CH117: 4.134175665 | CI117: 3.512525677 | CJ117: 2.366041183 | CK117: 0.7597895801 | CL117: 0.05098195214 | CM117: -111.9911923 | CN117: 101
A118: 102 | C118: 4.131577973 | D118: 2.312879658 | E118: 2.076385618 | F118: 2.691702282 | G118: 3.171654917 | H118: 7.39825136 | I118: 2.120328869 | J118: 6.438802045 | K118: 1.935020687 | L118: 3.163799341 | M118: 1.993012024 | N118: 1.484810916 | O118: 3.470361906 | P118: 3.614637658 | Q118: 1.630056599 | R118: 1.961545331 | S118: 2.373311763 | T118: 1.876875575 | U118: 1.917046854 | V118: 1.623157128 | W118: 2.509668505 | X118: 1.822064298 | Y118: 4.162964046 | Z118: 1.333510699 | AA118: 2.05615952 | AB118: 2.01737759 | AC118: 3.405005612 | AD118: 1.887593244 | AE118: 3.058223034 | AF118: 2.376090284 | AG118: 2.937688602 | AH118: 2.551997805 | AI118: 1.810908774 | AJ118: 1.647737169 | AK118: 2.033807983 | AL118: 2.476826766 | AM118: 2.687698356 | AN118: 1.220814628 | AO118: 3.567423353 | AP118: 2.634012155 | AQ118: 3.645264832 | AR118: 3.61810607 | AS118: 2.567945444 | AT118: 2.116699622 | AU118: 2.988004728 | AV118: 2.610620795 | AW118: 1.910348777 | AX118: 2.419109329 | AY118: 1.488525696 | AZ118: 2.002472918 | BA118: 1.925579811 | BB118: 2.562363738 | BC118: 3.323973558 | BD118: 2.188819251 | BE118: 1.722470563 | BF118: 2.292188519 | BG118: 2.807856336 | BH118: 3.551866396 | BI118: 3.028142874 | BJ118: 2.058226357 | BK118: 1.889781952 | BL118: 5.011966717 | BM118: 2.08697721 | BN118: 4.094691414 | BO118: 2.293317277 | BP118: 4.054286354 | BQ118: 1.226687246 | BR118: 1.938532502 | BS118: 1.927107853 | BT118: 4.035549093 | BU118: 6.174922923 | BV118: 2.642917621 | BW118: 2.320578318 | BX118: 2.861948656 | BY118: 6.766901062 | BZ118: 1.933417224 | CA118: 3.327280554 | CB118: 3.232586343 | CC118: 3.766737709 | CD118: 1.792564687 | CE118: 2.738121096 | CF118: 3.175479675 | CG118: 6.671041587 | CH118: 3.101872782 | CI118: 1.327855612 | CJ118: 2.183688664 | CK118: 0.7228414239 | CL118: 0.2091744883 | CM118: -117.2494567 | CN118: 69
A119: 103 | C119: 4.583915138 | D119: 1.811312441 | E119: 2.318134205 | F119: 2.060754133 | G119: 4.82467172 | H119: 2.176184473 | I119: 2.446803403 | J119: 2.510508704 | K119: 1.902128024 | L119: 2.000560363 | M119: 2.490933765 | N119: 2.400062075 | O119: 2.657970065 | P119: 2.874450353 | Q119: 2.824016659 | R119: 3.654011542 | S119: 3.581283128 | T119: 2.145385999 | U119: 2.394318139 | V119: 2.644063681 | W119: 3.273051439 | X119: 3.101611199 | Y119: 2.926334215 | Z119: 2.358772927 | AA119: 3.025895441 | AB119: 3.063638492 | AC119: 2.888452163 | AD119: 3.608473144 | AE119: 2.375922536 | AF119: 2.999522797 | AG119: 2.814908895 | AH119: 2.477167916 | AI119: 2.011187065 | AJ119: 2.65170206 | AK119: 2.485906615 | AL119: 3.905717433 | AM119: 2.108328224 | AN119: 2.877952437 | AO119: 2.993701583 | AP119: 4.689527995 | AQ119: 1.840969021 | AR119: 1.632748186 | AS119: 2.71758395 | AT119: 1.675853325 | AU119: 2.900285868 | AV119: 1.860333361 | AW119: 3.031325815 | AX119: 3.847093369 | AY119: 4.974647329 | AZ119: 2.039895549 | BA119: 2.705661556 | BB119: 1.817544804 | BC119: 4.007287534 | BD119: 3.021976716 | BE119: 2.848717608 | BF119: 3.443065469 | BG119: 2.543992311 | BH119: 2.010534194 | BI119: 2.422302259 | BJ119: 2.7467302 | BK119: 3.709608406 | BL119: 2.1037171 | BM119: 1.753992814 | BN119: 2.354861583 | BO119: 2.085874605 | BP119: 3.943347393 | BQ119: 1.497244531 | BR119: 2.263435176 | BS119: 2.343048051 | BT119: 3.221835324 | BU119: 3.721231299 | BV119: 3.778718828 | BW119: 1.565561063 | BX119: 2.266860545 | BY119: 2.875336088 | BZ119: 1.773026384 | CA119: 3.759604641 | CB119: 2.653175339 | CC119: 2.201783366 | CD119: 2.644559206 | CE119: 2.464135 | CF119: 2.28834378 | CG119: 2.375522436 | CH119: 4.037665959 | CI119: 3.001198819 | CJ119: 2.389701595 | CK119: 0.5975473432 | CL119: 0.05360934338 | CM119: -91.85514403 | CN119: 101
A120: 104 | C120: 4.669790779 | D120: 5.868993373 | E120: 2.174948133 | F120: 2.19709212 | G120: 4.120255241 | H120: 3.831194186 | I120: 2.780644233 | J120: 3.22456969 | K120: 3.215767315 | L120: 1.678946358 | M120: 1.76696366 | N120: 2.028755165 | O120: 3.024210122 | P120: 2.536302059 | Q120: 2.351170484 | R120: 6.54783697 | S120: 2.955044144 | T120: 3.866777705 | U120: 2.563544949 | V120: 1.605782567 | W120: 2.766843373 | X120: 1.659969838 | Y120: 2.174911552 | Z120: 3.690592817 | AA120: 3.887404378 | AB120: 2.315006975 | AC120: 1.801695341 | AD120: 2.454323857 | AE120: 2.012851054 | AF120: 2.240443764 | AG120: 2.937090008 | AH120: 3.331840672 | AI120: 2.623723894 | AJ120: 2.898637346 | AK120: 1.870613296 | AL120: 2.179742526 | AM120: 2.254057421 | AN120: 2.345852504 | AO120: 2.945286208 | AP120: 3.210138602 | AQ120: 1.980625108 | AR120: 2.455933183 | AS120: 3.754223029 | AT120: 2.140252649 | AU120: 2.520011972 | AV120: 2.064243053 | AW120: 3.453426192 | AX120: 3.195237964 | AY120: 2.398447309 | AZ120: 2.911879541 | BA120: 1.846994723 | BB120: 2.208596792 | BC120: 2.24851963 | BD120: 2.118901176 | BE120: 2.420689767 | BF120: 2.128903815 | BG120: 1.968875159 | BH120: 3.348219438 | BI120: 3.899407546 | BJ120: 1.781119767 | BK120: 2.210050788 | BL120: 3.229906183 | BM120: 1.955654864 | BN120: 3.638940618 | BO120: 2.475728597 | BP120: 2.579401834 | BQ120: 2.856571349 | BR120: 2.82785061 | BS120: 1.464207118 | BT120: 2.319700891 | BU120: 2.689387663 | BV120: 2.56443867 | BW120: 2.829080091 | BX120: 1.828794277 | BY120: 4.873155149 | BZ120: 2.734220969 | CA120: 3.341267185 | CB120: 3.005732473 | CC120: 2.327467636 | CD120: 2.161834039 | CE120: 1.486950281 | CF120: 1.70379975 | CG120: 1.576286505 | CH120: 5.588093844 | CI120: 1.768025213 | CJ120: 2.27326435 | CK120: 0.6036435393 | CL120: 0.1598937997 | CM120: -99.03328392 | CN120: 42
A121: 105 | C121: 2.881254907 | D121: 2.150601336 | E121: 3.296272959 | F121: 2.544699316 | G121: 2.475112887 | H121: 1.840157361 | I121: 2.758968172 | J121: 1.995122826 | K121: 1.705339734 | L121: 2.08084514 | M121: 2.62948225 | N121: 3.264266143 | O121: 2.521115146 | P121: 1.543308266 | Q121: 2.417915 | R121: 2.570551823 | S121: 2.069207943 | T121: 1.665148822 | U121: 2.949264145 | V121: 1.626968904 | W121: 1.365397439 | X121: 2.977199027 | Y121: 2.152266632 | Z121: 1.852891381 | AA121: 2.070834514 | AB121: 3.87042496 | AC121: 2.152708117 | AD121: 2.642334244 | AE121: 1.674001401 | AF121: 2.604428476 | AG121: 2.027805194 | AH121: 2.4133846 | AI121: 2.774679968 | AJ121: 2.880882368 | AK121: 1.338595316 | AL121: 3.520692423 | AM121: 2.168282059 | AN121: 1.846732582 | AO121: 1.60713167 | AP121: 2.371391855 | AQ121: 3.096125822 | AR121: 2.860291371 | AS121: 2.560558048 | AT121: 2.526256827 | AU121: 2.495570254 | AV121: 2.907293542 | AW121: 3.842973961 | AX121: 2.189701265 | AY121: 2.348519584 | AZ121: 5.100991634 | BA121: 4.01526778 | BB121: 2.646593033 | BC121: 1.442401779 | BD121: 2.159666724 | BE121: 2.653999079 | BF121: 1.66111112 | BG121: 2.195311198 | BH121: 1.754557197 | BI121: 2.342256928 | BJ121: 5.220833017 | BK121: 2.626006296 | BL121: 3.600350812 | BM121: 1.936892108 | BN121: 3.576267319 | BO121: 2.651571629 | BP121: 2.149814458 | BQ121: 2.912995252 | BR121: 2.020503707 | BS121: 1.988652715 | BT121: 1.938585904 | BU121: 2.908130307 | BV121: 2.457872147 | BW121: 1.653889462 | BX121: 1.823781643 | BY121: 2.371329872 | BZ121: 2.889552485 | CA121: 2.323047147 | CB121: 3.194732743 | CC121: 1.83075842 | CD121: 4.751591794 | CE121: 2.054922598 | CF121: 1.58404675 | CG121: 3.707509971 | CH121: 1.757903079 | CI121: 1.614521733 | CJ121: 2.118830927 | CK121: 0.5514387845 | CL121: 0.08426684443 | CM121: -88.00480846 | CN121: 68
A122: 106 | C122: 1.697754366 | D122: 2.597878558 | E122: 1.787792866 | F122: 2.167149163 | G122: 3.452894432 | H122: 2.095405654 | I122: 2.309051412 | J122: 2.304289829 | K122: 2.146054683 | L122: 11.0942727 | M122: 3.738542919 | N122: 3.887504987 | O122: 5.943841393 | P122: 2.263431997 | Q122: 3.038293018 | R122: 1.70786536 | S122: 2.634385073 | T122: 2.643978505 | U122: 3.788801748 | V122: 2.637868266 | W122: 2.563865724 | X122: 3.997728806 | Y122: 2.142979526 | Z122: 1.79889689 | AA122: 2.791488786 | AB122: 2.240142938 | AC122: 6.123422251 | AD122: 1.933972017 | AE122: 1.707261834 | AF122: 1.983298622 | AG122: 3.260900509 | AH122: 1.369197321 | AI122: 2.236416095 | AJ122: 2.294059281 | AK122: 3.383674945 | AL122: 2.782851677 | AM122: 3.400432809 | AN122: 2.645467552 | AO122: 3.221055083 | AP122: 2.526695703 | AQ122: 1.833517886 | AR122: 3.806097339 | AS122: 1.542679691 | AT122: 1.449265517 | AU122: 2.655126312 | AV122: 3.193413955 | AW122: 2.18526975 | AX122: 3.652369894 | AY122: 2.554265144 | AZ122: 3.832002982 | BA122: 1.988862949 | BB122: 2.635278754 | BC122: 2.657740014 | BD122: 2.879849212 | BE122: 2.402520726 | BF122: 2.748015772 | BG122: 2.58230228 | BH122: 2.899832225 | BI122: 4.536366849 | BJ122: 2.820151428 | BK122: 3.680320707 | BL122: 2.716301099 | BM122: 2.701560938 | BN122: 3.474826129 | BO122: 2.22239432 | BP122: 2.049260816 | BQ122: 2.908320303 | BR122: 2.882144924 | BS122: 3.629978898 | BT122: 4.05484051 | BU122: 1.900703207 | BV122: 3.356003352 | BW122: 2.938307074 | BX122: 4.310602827 | BY122: 4.004596885 | BZ122: 2.317199696 | CA122: 3.13459125 | CB122: 2.583588354 | CC122: 1.632858491 | CD122: 2.372891295 | CE122: 2.256166313 | CF122: 3.483802842 | CG122: 4.986744242 | CH122: 2.497411385 | CI122: 1.540770831 | CJ122: 2.366041183 | CK122: 0.7016529299 | CL122: 0.1536547987 | CM122: -111.0651863 | CN122: 29
A123: 107 | C123: 2.159371297 | D123: 1.748673038 | E123: 3.045350938 | F123: 3.188327916 | G123: 2.054078772 | H123: 2.259889002 | I123: 5.105344674 | J123: 1.867819001 | K123: 2.885778214 | L123: 2.639662302 | M123: 2.281323472 | N123: 2.250109327 | O123: 2.144837767 | P123: 2.01612986 | Q123: 3.493652371 | R123: 3.140267818 | S123: 6.932536889 | T123: 2.812549708 | U123: 1.961987016 | V123: 1.916740981 | W123: 2.236358579 | X123: 5.033604375 | Y123: 2.247380576 | Z123: 2.218586427 | AA123: 2.180003662 | AB123: 7.79190156 | AC123: 2.916918927 | AD123: 2.268853212 | AE123: 2.593770592 | AF123: 3.061317959 | AG123: 3.179768878 | AH123: 3.255849841 | AI123: 2.55299136 | AJ123: 2.255052787 | AK123: 2.291766991 | AL123: 2.745161241 | AM123: 2.069799683 | AN123: 3.103757024 | AO123: 2.885382903 | AP123: 3.15032938 | AQ123: 1.641651944 | AR123: 3.077422347 | AS123: 2.650073232 | AT123: 2.921619481 | AU123: 2.955816874 | AV123: 1.237650889 | AW123: 2.640488904 | AX123: 2.060093224 | AY123: 2.529397504 | AZ123: 1.891960138 | BA123: 2.743371115 | BB123: 4.174224211 | BC123: 2.056713217 | BD123: 3.335989347 | BE123: 2.214072081 | BF123: 1.768602143 | BG123: 3.265880433 | BH123: 1.911846561 | BI123: 2.575345296 | BJ123: 3.404342254 | BK123: 1.843685202 | BL123: 4.529096123 | BM123: 3.248193572 | BN123: 2.552701746 | BO123: 4.235230859 | BP123: 1.955624336 | BQ123: 2.507124721 | BR123: 2.212791588 | BS123: 3.546878519 | BT123: 2.787450247 | BU123: 1.525765425 | BV123: 2.373308187 | BW123: 2.53713536 | BX123: 1.797793476 | BY123: 2.15620934 | BZ123: 2.68884231 | CA123: 2.66959308 | CB123: 2.718594288 | CC123: 2.00642797 | CD123: 1.867582302 | CE123: 1.338932859 | CF123: 3.443106555 | CG123: 3.933582903 | CH123: 1.98670394 | CI123: 3.390784587 | CJ123: 2.296226616 | CK123: 0.6347527394 | CL123: 0.1162332828 | CM123: -100.599423 | CN123: 14
A124: 108 | C124: 3.798859977 | D124: 3.126841112 | E124: 3.709805021 | F124: 2.698992585 | G124: 2.707345186 | H124: 3.776297715 | I124: 5.258936083 | J124: 3.50840116 | K124: 2.021640327 | L124: 4.358013252 | M124: 1.425944072 | N124: 2.031107866 | O124: 2.921059805 | P124: 4.570948793 | Q124: 2.02966959 | R124: 1.89321965 | S124: 2.619614117 | T124: 2.687625041 | U124: 4.4330575 | V124: 2.725400673 | W124: 3.327693549 | X124: 2.542167071 | Y124: 2.239013798 | Z124: 1.718093618 | AA124: 2.43390124 | AB124: 2.055965485 | AC124: 2.05527601 | AD124: 2.080621083 | AE124: 2.797326224 | AF124: 1.10411484 | AG124: 2.166463542 | AH124: 1.934213273 | AI124: 3.269660469 | AJ124: 4.953458566 | AK124: 2.302547787 | AL124: 2.283924492 | AM124: 2.095328824 | AN124: 2.887063861 | AO124: 1.907987925 | AP124: 3.171270423 | AQ124: 1.594826768 | AR124: 2.938258372 | AS124: 1.817834897 | AT124: 1.584922341 | AU124: 3.36832679 | AV124: 3.003829586 | AW124: 2.720821471 | AX124: 2.313820972 | AY124: 1.450670591 | AZ124: 2.824633139 | BA124: 1.800542183 | BB124: 5.555853014 | BC124: 3.181544255 | BD124: 1.643691701 | BE124: 2.087406324 | BF124: 2.415043499 | BG124: 1.830866485 | BH124: 1.408382819 | BI124: 2.157718071 | BJ124: 3.579661289 | BK124: 2.742817475 | BL124: 3.63056077 | BM124: 2.517353554 | BN124: 2.603064947 | BO124: 6.615135956 | BP124: 2.450500783 | BQ124: 2.381422404 | BR124: 3.378244823 | BS124: 2.085462529 | BT124: 3.171738718 | BU124: 2.861535287 | BV124: 1.550345934 | BW124: 5.443510285 | BX124: 2.288259751 | BY124: 2.724074734 | BZ124: 1.641799284 | CA124: 2.822367965 | CB124: 2.772024249 | CC124: 2.941258725 | CD124: 2.875530277 | CE124: 2.839860368 | CF124: 2.825410824 | CG124: 3.10111646 | CH124: 2.301943363 | CI124: 1.472471002 | CJ124: 2.273037024 | CK124: 0.7229137153 | CL124: 0.06296183464 | CM124: -109.3252082 | CN124: 77
A125: 109 | C125: 4.102030762 | D125: 2.772260944 | E125: 3.140078769 | F125: 1.947640404 | G125: 5.246879678 | H125: 1.722233863 | I125: 2.438321548 | J125: 3.283226472 | K125: 2.193450126 | L125: 1.54165862 | M125: 6.386324257 | N125: 1.754350674 | O125: 2.705377788 | P125: 3.270371358 | Q125: 2.629448767 | R125: 2.743008102 | S125: 1.637302696 | T125: 2.975009303 | U125: 3.897891896 | V125: 2.638884538 | W125: 2.413092422 | X125: 1.920779823 | Y125: 4.201365491 | Z125: 1.925578787 | AA125: 2.747533513 | AB125: 3.274067536 | AC125: 1.790258219 | AD125: 3.713113056 | AE125: 4.989613476 | AF125: 2.615292987 | AG125: 2.325694859 | AH125: 2.962800384 | AI125: 4.393783712 | AJ125: 2.916891935 | AK125: 1.890192676 | AL125: 1.820437923 | AM125: 2.57226659 | AN125: 2.390675299 | AO125: 3.081008643 | AP125: 1.978819677 | AQ125: 2.181588071 | AR125: 2.099886257 | AS125: 3.22609408 | AT125: 2.773753205 | AU125: 3.183908282 | AV125: 2.032631354 | AW125: 2.054952291 | AX125: 2.167926925 | AY125: 2.595327701 | AZ125: 2.707262891 | BA125: 2.416060464 | BB125: 2.091061666 | BC125: 2.124670745 | BD125: 2.970499035 | BE125: 2.13141408 | BF125: 2.509929079 | BG125: 2.688946101 | BH125: 1.921718896 | BI125: 4.5435389 | BJ125: 2.101621816 | BK125: 1.666648581 | BL125: 2.223744116 | BM125: 2.982964853 | BN125: 3.053434079 | BO125: 1.57570199 | BP125: 3.057052963 | BQ125: 3.67038985 | BR125: 2.539809095 | BS125: 1.36373527 | BT125: 1.578403307 | BU125: 2.201543404 | BV125: 3.932980746 | BW125: 3.145997617 | BX125: 2.384053959 | BY125: 4.672844899 | BZ125: 1.473122107 | CA125: 2.31824452 | CB125: 2.675195501 | CC125: 2.660529893 | CD125: 2.374380426 | CE125: 1.288472371 | CF125: 2.765218066 | CG125: 3.509768202 | CH125: 2.916037789 | CI125: 2.177324618 | CJ125: 2.27326435 | CK125: 0.6541826173 | CL125: 0.06687537138 | CM125: -101.6057075 | CN125: 67
A126: 110 | C126: 3.85990284 | D126: 3.332112483 | E126: 2.704154663 | F126: 2.414438891 | G126: 1.8709597 | H126: 2.175298394 | I126: 2.278107609 | J126: 2.241005538 | K126: 3.921087962 | L126: 4.241015751 | M126: 1.890204828 | N126: 1.886459466 | O126: 1.450654664 | P126: 5.472411576 | Q126: 3.459485282 | R126: 4.152645576 | S126: 3.28658385 | T126: 3.96094602 | U126: 3.912677128 | V126: 2.574003813 | W126: 3.328049693 | X126: 3.198910726 | Y126: 4.228385107 | Z126: 3.785822817 | AA126: 2.659005689 | AB126: 1.848087421 | AC126: 4.643961113 | AD126: 2.465523714 | AE126: 1.501123739 | AF126: 2.043232812 | AG126: 2.13860495 | AH126: 4.17449722 | AI126: 2.700670533 | AJ126: 1.764648095 | AK126: 2.515205754 | AL126: 1.725158043 | AM126: 5.395248442 | AN126: 2.222748875 | AO126: 2.974926029 | AP126: 1.910378347 | AQ126: 7.833174471 | AR126: 3.269254844 | AS126: 1.605071695 | AT126: 1.893252373 | AU126: 4.028000174 | AV126: 3.047754192 | AW126: 2.822849497 | AX126: 2.790992361 | AY126: 2.299357344 | AZ126: 1.798456648 | BA126: 2.025863485 | BB126: 2.627371496 | BC126: 2.908740977 | BD126: 2.168791492 | BE126: 3.442292853 | BF126: 2.864799641 | BG126: 5.405397976 | BH126: 2.902175421 | BI126: 4.900607896 | BJ126: 3.190869564 | BK126: 1.918911579 | BL126: 3.400087566 | BM126: 2.906691109 | BN126: 2.624589235 | BO126: 2.586244347 | BP126: 3.921952248 | BQ126: 2.062445027 | BR126: 2.467560607 | BS126: 4.731557951 | BT126: 1.946201578 | BU126: 3.238859258 | BV126: 4.911975217 | BW126: 2.461145603 | BX126: 3.760010631 | BY126: 2.433605073 | BZ126: 4.863165662 | CA126: 2.807878983 | CB126: 1.914388005 | CC126: 2.445021382 | CD126: 2.550442717 | CE126: 2.801582719 | CF126: 2.854457958 | CG126: 4.141308128 | CH126: 3.090375588 | CI126: 2.186341708 | CJ126: 2.486733062 | CK126: 0.7597895801 | CL126: 0.12718621 | CM126: -117.069054 | CN126: 23
A127: 111 | C127: 3.203196078 | D127: 2.026932259 | E127: 1.68754382 | F127: 2.866716942 | G127: 3.203091928 | H127: 2.507185707 | I127: 3.385944365 | J127: 2.134402248 | K127: 3.021767427 | L127: 2.194514637 | M127: 2.661839283 | N127: 2.563604816 | O127: 3.401306034 | P127: 3.828392011 | Q127: 2.419775117 | R127: 2.278141625 | S127: 1.414751538 | T127: 1.838309087 | U127: 1.87413717 | V127: 1.208343915 | W127: 3.843133546 | X127: 2.238548205 | Y127: 2.522245717 | Z127: 2.440293804 | AA127: 2.616912075 | AB127: 3.470357954 | AC127: 5.98147633 | AD127: 2.15802588 | AE127: 1.755674127 | AF127: 8.012056854 | AG127: 4.800315226 | AH127: 1.351225324 | AI127: 2.121053906 | AJ127: 3.002062491 | AK127: 2.777358962 | AL127: 2.169955455 | AM127: 1.723743617 | AN127: 2.585013489 | AO127: 2.579436229 | AP127: 2.880244898 | AQ127: 1.648480273 | AR127: 3.312821187 | AS127: 2.318587837 | AT127: 2.207424361 | AU127: 2.535673683 | AV127: 2.415618441 | AW127: 4.209587611 | AX127: 2.464593225 | AY127: 11.1292051 | AZ127: 2.226160967 | BA127: 1.793612423 | BB127: 2.484556654 | BC127: 2.477695148 | BD127: 3.286806253 | BE127: 2.822174438 | BF127: 2.943075219 | BG127: 4.590870238 | BH127: 2.115538545 | BI127: 2.558413577 | BJ127: 1.948363851 | BK127: 1.936185143 | BL127: 2.60536379 | BM127: 1.934316505 | BN127: 1.673061518 | BO127: 1.142627781 | BP127: 3.172199655 | BQ127: 2.80598347 | BR127: 3.163473613 | BS127: 2.224622053 | BT127: 1.788210781 | BU127: 3.38471015 | BV127: 2.654784062 | BW127: 1.675268807 | BX127: 2.760795038 | BY127: 2.395653659 | BZ127: 3.145694937 | CA127: 2.811039723 | CB127: 4.209138491 | CC127: 3.565952899 | CD127: 2.632542638 | CE127: 2.165081969 | CF127: 3.795712378 | CG127: 2.127480498 | CH127: 2.755771862 | CI127: 2.114655132 | CJ127: 2.250531707 | CK127: 0.7016529299 | CL127: 0.144749771 | CM127: -110.4920278 | CN127: 24
A128: 112 | C128: 3.346639372 | D128: 2.140574035 | E128: 2.705919006 | F128: 2.736354746 | G128: 2.229861105 | H128: 2.413634011 | I128: 1.657810383 | J128: 2.587149899 | K128: 2.556233369 | L128: 2.110532671 | M128: 3.216248336 | N128: 1.827016492 | O128: 4.126624374 | P128: 2.596905953 | Q128: 3.192731261 | R128: 1.793890468 | S128: 2.180956403 | T128: 2.679642761 | U128: 2.123801489 | V128: 3.795293301 | W128: 2.150691489 | X128: 1.69584091 | Y128: 2.632143626 | Z128: 3.555150061 | AA128: 2.340823935 | AB128: 1.681933962 | AC128: 3.877214609 | AD128: 1.491215164 | AE128: 2.184866264 | AF128: 1.466134697 | AG128: 1.93726954 | AH128: 4.640116293 | AI128: 2.379372091 | AJ128: 2.306895858 | AK128: 2.427336829 | AL128: 2.743518003 | AM128: 2.622298872 | AN128: 1.940627491 | AO128: 3.145449192 | AP128: 3.294755086 | AQ128: 4.902522902 | AR128: 1.843439703 | AS128: 2.250145263 | AT128: 3.311367585 | AU128: 3.153192284 | AV128: 3.126415365 | AW128: 1.761374552 | AX128: 1.789494602 | AY128: 1.791019357 | AZ128: 3.050407494 | BA128: 1.742592186 | BB128: 2.821394479 | BC128: 2.332741822 | BD128: 3.279155382 | BE128: 2.570362447 | BF128: 3.392142012 | BG128: 3.71468899 | BH128: 2.666018424 | BI128: 3.309843252 | BJ128: 2.333380059 | BK128: 1.879572621 | BL128: 3.356905424 | BM128: 6.414330332 | BN128: 1.938384777 | BO128: 2.949745899 | BP128: 3.384878728 | BQ128: 2.639808658 | BR128: 1.796335031 | BS128: 2.378315961 | BT128: 1.900293908 | BU128: 4.684914155 | BV128: 2.799619543 | BW128: 4.628832507 | BX128: 3.018310359 | BY128: 1.786723413 | BZ128: 1.806873936 | CA128: 3.163182317 | CB128: 2.879716678 | CC128: 2.741720269 | CD128: 5.20384201 | CE128: 2.725052726 | CF128: 1.851269831 | CG128: 2.182544093 | CH128: 2.49533126 | CI128: 2.402834265 | CJ128: 2.27326435 | CK128: 0.6036435393 | CL128: 0.1377244404 | CM128: -98.07826611 | CN128: 27
A129: 113 | C129: 3.95629628 | D129: 2.410994876 | E129: 1.920424903 | F129: 2.305043284 | G129: 1.922133446 | H129: 2.555618224 | I129: 2.563774085 | J129: 4.475819586 | K129: 4.796235935 | L129: 3.587754072 | M129: 2.761420612 | N129: 2.768468836 | O129: 2.487051306 | P129: 1.920521853 | Q129: 2.22582882 | R129: 2.535086828 | S129: 3.30625301 | T129: 2.589842405 | U129: 2.978778491 | V129: 2.537149623 | W129: 3.622263728 | X129: 2.273948067 | Y129: 2.189463924 | Z129: 2.46418573 | AA129: 2.956189454 | AB129: 5.281143725 | AC129: 2.29216676 | AD129: 3.130605897 | AE129: 3.267851147 | AF129: 1.929835739 | AG129: 2.727359383 | AH129: 4.295054467 | AI129: 3.702838064 | AJ129: 1.676589686 | AK129: 2.773129588 | AL129: 4.517064495 | AM129: 3.559109017 | AN129: 2.232372992 | AO129: 2.654782384 | AP129: 2.012390266 | AQ129: 4.568010483 | AR129: 2.514720398 | AS129: 3.722759616 | AT129: 2.039235379 | AU129: 2.145872054 | AV129: 2.776364266 | AW129: 2.31561407 | AX129: 2.189093552 | AY129: 2.43606023 | AZ129: 1.982075728 | BA129: 2.864376856 | BB129: 2.8039665 | BC129: 2.551078986 | BD129: 2.255092454 | BE129: 2.54670682 | BF129: 2.38502738 | BG129: 2.024859022 | BH129: 1.633933634 | BI129: 4.256574493 | BJ129: 2.762534618 | BK129: 2.554705844 | BL129: 5.644370494 | BM129: 1.771566972 | BN129: 2.433326278 | BO129: 1.658093495 | BP129: 2.053826467 | BQ129: 3.194153546 | BR129: 2.823746645 | BS129: 2.45871941 | BT129: 2.660150729 | BU129: 2.95536002 | BV129: 2.540841701 | BW129: 1.899963682 | BX129: 3.043985672 | BY129: 2.861755256 | BZ129: 2.745304471 | CA129: 1.891466887 | CB129: 1.803537929 | CC129: 2.396162958 | CD129: 2.342946381 | CE129: 2.661131944 | CF129: 3.320155765 | CG129: 1.854664423 | CH129: 2.266912732 | CI129: 2.67534488 | CJ129: 2.366041183 | CK129: 0.5404651527 | CL129: 0.1404927016 | CM129: -87.98198187 | CN129: 40
A130: 114 | C130: 2.292391928 | D130: 3.609745627 | E130: 1.868886751 | F130: 3.020937393 | G130: 2.818374829 | H130: 2.220855362 | I130: 2.003197159 | J130: 2.063157685 | K130: 1.456948565 | L130: 1.996598731 | M130: 2.513356421 | N130: 4.335097739 | O130: 2.998785544 | P130: 2.119633832 | Q130: 2.410340938 | R130: 4.282107378 | S130: 2.438960881 | T130: 1.477136197 | U130: 2.200103396 | V130: 6.484890734 | W130: 2.151453613 | X130: 2.708602629 | Y130: 3.074768257 | Z130: 5.711988054 | AA130: 6.999717206 | AB130: 2.802832133 | AC130: 2.124118686 | AD130: 2.590405389 | AE130: 1.567703566 | AF130: 3.612602222 | AG130: 3.136006526 | AH130: 4.286328162 | AI130: 3.023101993 | AJ130: 2.566040098 | AK130: 1.9542638 | AL130: 2.556583195 | AM130: 2.413007186 | AN130: 2.009689247 | AO130: 2.775430727 | AP130: 3.943593078 | AQ130: 2.718482635 | AR130: 1.48946191 | AS130: 2.736001657 | AT130: 3.674970107 | AU130: 2.009231778 | AV130: 3.490359559 | AW130: 2.347488709 | AX130: 1.925630377 | AY130: 2.147894016 | AZ130: 3.332257157 | BA130: 1.993216111 | BB130: 3.80068451 | BC130: 1.293577225 | BD130: 2.225581159 | BE130: 2.846203035 | BF130: 3.009931409 | BG130: 2.626678487 | BH130: 1.788464536 | BI130: 2.520084175 | BJ130: 3.186679442 | BK130: 3.304356678 | BL130: 2.371621147 | BM130: 3.354445741 | BN130: 2.595187774 | BO130: 2.821363497 | BP130: 2.867842402 | BQ130: 1.626250742 | BR130: 1.559811625 | BS130: 2.122114714 | BT130: 2.077639868 | BU130: 3.409685345 | BV130: 2.302191817 | BW130: 4.109925786 | BX130: 3.187215225 | BY130: 2.146716598 | BZ130: 2.067148348 | CA130: 2.754524684 | CB130: 1.608973353 | CC130: 2.663836799 | CD130: 1.713279099 | CE130: 2.289869166 | CF130: 1.713839723 | CG130: 3.032287345 | CH130: 1.96700452 | CI130: 2.946441002 | CJ130: 2.250531707 | CK130: 0.6476407912 | CL130: 0.1162332828 | CM130: -102.6666449 | CN130: 14
A131: 115 | C131: 2.672919872 | D131: 2.311807466 | E131: 1.912084106 | F131: 6.089211745 | G131: 1.682478364 | H131: 2.668908831 | I131: 2.878890316 | J131: 3.211951341 | K131: 2.517231059 | L131: 2.675505798 | M131: 2.055360354 | N131: 2.397448515 | O131: 2.358818671 | P131: 2.18741262 | Q131: 3.152003506 | R131: 4.294838285 | S131: 1.708833253 | T131: 3.622977074 | U131: 2.703142413 | V131: 2.209786438 | W131: 2.555021823 | X131: 1.780016528 | Y131: 2.55493683 | Z131: 2.792611537 | AA131: 2.860455822 | AB131: 4.361216468 | AC131: 2.726543939 | AD131: 4.641330072 | AE131: 1.736124019 | AF131: 2.224681121 | AG131: 2.279189481 | AH131: 1.44907248 | AI131: 4.150411285 | AJ131: 5.091075206 | AK131: 2.213132092 | AL131: 2.940784508 | AM131: 2.924576729 | AN131: 1.341446672 | AO131: 2.806933535 | AP131: 3.219315217 | AQ131: 3.122924382 | AR131: 1.636432121 | AS131: 5.411960553 | AT131: 2.313140764 | AU131: 4.464848247 | AV131: 2.456352445 | AW131: 5.186339204 | AX131: 1.954974592 | AY131: 2.328093918 | AZ131: 3.240538821 | BA131: 2.368785578 | BB131: 1.674192414 | BC131: 2.458945599 | BD131: 2.757482479 | BE131: 1.505348661 | BF131: 1.537284937 | BG131: 2.010410642 | BH131: 2.710842198 | BI131: 2.677418205 | BJ131: 2.253036009 | BK131: 4.831045295 | BL131: 2.820028955 | BM131: 3.292140991 | BN131: 3.804365051 | BO131: 1.638211147 | BP131: 2.478671946 | BQ131: 1.624027399 | BR131: 3.530335274 | BS131: 1.360823725 | BT131: 2.368503574 | BU131: 1.644922285 | BV131: 2.692868028 | BW131: 3.394121174 | BX131: 2.252649234 | BY131: 2.946898834 | BZ131: 3.258557342 | CA131: 2.409778845 | CB131: 1.429403373 | CC131: 1.933060215 | CD131: 3.485606342 | CE131: 3.375041589 | CF131: 2.725922427 | CG131: 3.305149787 | CH131: 2.481105246 | CI131: 3.225208094 | CJ131: 2.295996994 | CK131: 0.7157561538 | CL131: 0.05525033354 | CM131: -108.7196168 | CN131: 88
A132: 116 | C132: 2.112468953 | D132: 2.093722502 | E132: 2.960921907 | F132: 2.44471024 | G132: 2.550066114 | H132: 4.26442566 | I132: 3.428329104 | J132: 3.647314164 | K132: 1.778550199 | L132: 3.668920943 | M132: 5.797513837 | N132: 2.913104752 | O132: 3.763936083 | P132: 2.165310474 | Q132: 3.249444989 | R132: 2.194291506 | S132: 2.072921813 | T132: 2.370782901 | U132: 4.850463205 | V132: 2.276288551 | W132: 2.400202933 | X132: 1.979995492 | Y132: 3.807370673 | Z132: 7.530965551 | AA132: 2.687825444 | AB132: 3.154776692 | AC132: 2.803350514 | AD132: 5.268668596 | AE132: 2.237880378 | AF132: 2.766348093 | AG132: 3.254696962 | AH132: 2.708440035 | AI132: 2.918292257 | AJ132: 2.693830671 | AK132: 2.148524812 | AL132: 5.560296956 | AM132: 3.165429625 | AN132: 2.756692321 | AO132: 2.848997678 | AP132: 4.095174468 | AQ132: 2.226346818 | AR132: 6.505854686 | AS132: 1.894018568 | AT132: 2.263282921 | AU132: 2.038075126 | AV132: 4.251381012 | AW132: 3.20913116 | AX132: 3.00398381 | AY132: 1.662645872 | AZ132: 1.514063573 | BA132: 3.143988758 | BB132: 1.569724337 | BC132: 2.238240584 | BD132: 2.508686174 | BE132: 5.46287772 | BF132: 3.573802059 | BG132: 2.757860392 | BH132: 1.652156137 | BI132: 2.262489 | BJ132: 2.75319806 | BK132: 1.592161453 | BL132: 3.268061455 | BM132: 2.104117556 | BN132: 1.594522104 | BO132: 2.178659885 | BP132: 2.308450366 | BQ132: 2.917365434 | BR132: 2.546459568 | BS132: 2.233348299 | BT132: 2.480218595 | BU132: 1.73883801 | BV132: 2.180521055 | BW132: 3.413643103 | BX132: 2.817034141 | BY132: 1.888081184 | BZ132: 3.373614731 | CA132: 2.695165862 | CB132: 3.723887158 | CC132: 1.680996193 | CD132: 2.198094564 | CE132: 2.387966698 | CF132: 2.303667754 | CG132: 2.909420355 | CH132: 2.631795404 | CI132: 1.782142455 | CJ132: 2.342380771 | CK132: 0.6607905226 | CL132: 0.2050529245 | CM132: -108.568175 | CN132: 59
A133: 117 | C133: 2.385319733 | D133: 2.312252013 | E133: 1.681845469 | F133: 2.895018901 | G133: 2.716702481 | H133: 3.40887189 | I133: 2.154529354 | J133: 3.274300684 | K133: 1.979945972 | L133: 2.051111568 | M133: 2.282398533 | N133: 3.12270512 | O133: 1.693881857 | P133: 2.708829785 | Q133: 2.842409329 | R133: 2.180277445 | S133: 2.439662588 | T133: 2.515193672 | U133: 1.943685147 | V133: 1.661331012 | W133: 1.796358787 | X133: 3.252835113 | Y133: 2.90907316 | Z133: 4.170095013 | AA133: 1.154082669 | AB133: 1.334802427 | AC133: 2.241980755 | AD133: 3.422094241 | AE133: 3.42574259 | AF133: 2.571819361 | AG133: 2.509528547 | AH133: 3.32845336 | AI133: 4.101722295 | AJ133: 2.222367139 | AK133: 3.849829481 | AL133: 2.102574067 | AM133: 2.939148719 | AN133: 3.243690845 | AO133: 3.116658479 | AP133: 2.586591998 | AQ133: 3.358471439 | AR133: 4.820540679 | AS133: 2.87238183 | AT133: 2.488255173 | AU133: 1.74711443 | AV133: 3.443923727 | AW133: 1.532735207 | AX133: 2.992762498 | AY133: 2.429921957 | AZ133: 1.650755606 | BA133: 3.039844456 | BB133: 2.922277026 | BC133: 3.991218881 | BD133: 3.266761154 | BE133: 2.73267815 | BF133: 2.204118685 | BG133: 2.132473253 | BH133: 3.678907255 | BI133: 4.148091661 | BJ133: 3.298960709 | BK133: 3.22166934 | BL133: 1.680302655 | BM133: 2.607384729 | BN133: 2.330659426 | BO133: 3.834707457 | BP133: 1.803880159 | BQ133: 2.374276362 | BR133: 4.741130735 | BS133: 3.179126121 | BT133: 7.581205855 | BU133: 2.679297926 | BV133: 2.214889751 | BW133: 2.46565692 | BX133: 3.133658324 | BY133: 1.613617645 | BZ133: 1.584097496 | CA133: 3.542071624 | CB133: 1.885964859 | CC133: 2.340010274 | CD133: 2.574834273 | CE133: 2.274945968 | CF133: 1.852578381 | CG133: 1.377694448 | CH133: 1.754369422 | CI133: 2.313429659 | CJ133: 2.273037024 | CK133: 0.6947058711 | CL133: 0.04751851096 | CM133: -104.5713276 | CN133: 101
A134: 118 | C134: 4.528532539 | D134: 2.055970316 | E134: 3.34172913 | F134: 2.693723986 | G134: 3.788700904 | H134: 2.005518731 | I134: 3.691819302 | J134: 2.829592028 | K134: 1.854113028 | L134: 2.245425481 | M134: 4.45599175 | N134: 2.029386354 | O134: 1.514910767 | P134: 3.441277842 | Q134: 2.131510616 | R134: 2.018827822 | S134: 2.203469631 | T134: 2.447611671 | U134: 2.019513547 | V134: 1.740995453 | W134: 3.477314091 | X134: 3.263557813 | Y134: 1.213453726 | Z134: 2.993020212 | AA134: 2.328357074 | AB134: 2.229405844 | AC134: 3.436534553 | AD134: 1.749651039 | AE134: 5.131946302 | AF134: 2.167840096 | AG134: 4.251496199 | AH134: 4.535799632 | AI134: 1.698204518 | AJ134: 2.121172326 | AK134: 2.297270667 | AL134: 3.331912985 | AM134: 2.26884444 | AN134: 2.311751597 | AO134: 2.728023515 | AP134: 3.466968992 | AQ134: 2.513770413 | AR134: 2.702940134 | AS134: 2.533831132 | AT134: 3.628166906 | AU134: 2.289733819 | AV134: 2.075605833 | AW134: 3.17410393 | AX134: 2.536682593 | AY134: 2.496455528 | AZ134: 1.537819462 | BA134: 2.056047495 | BB134: 2.820691928 | BC134: 2.566328316 | BD134: 4.226459399 | BE134: 3.840817681 | BF134: 1.645298414 | BG134: 2.136840312 | BH134: 2.589820028 | BI134: 2.804195731 | BJ134: 2.724026545 | BK134: 3.689721399 | BL134: 2.985050676 | BM134: 2.941987113 | BN134: 1.417911161 | BO134: 4.656220601 | BP134: 2.253681044 | BQ134: 1.699635022 | BR134: 3.590257508 | BS134: 2.701889018 | BT134: 2.686827155 | BU134: 2.508456811 | BV134: 3.15972331 | BW134: 3.820705383 | BX134: 3.826315675 | BY134: 1.613490593 | BZ134: 2.921188553 | CA134: 2.309561856 | CB134: 3.784831935 | CC134: 3.912961307 | CD134: 5.056554707 | CE134: 2.092661811 | CF134: 7.033495502 | CG134: 2.376527249 | CH134: 4.3364738 | CI134: 1.678579654 | CJ134: 2.366041183 | CK134: 0.737444281 | CL134: 0.05987607826 | CM134: -111.6933128 | CN134: 82
A135: 119 | C135: 2.991002375 | D135: 1.95865342 | E135: 2.327081429 | F135: 2.829474779 | G135: 2.796626608 | H135: 4.642652023 | I135: 3.03743825 | J135: 1.647224206 | K135: 2.243375114 | L135: 3.66849159 | M135: 1.195997747 | N135: 2.260687972 | O135: 1.772692772 | P135: 4.941714393 | Q135: 2.865258876 | R135: 3.445287863 | S135: 4.338301341 | T135: 1.684047159 | U135: 3.387684339 | V135: 1.791395245 | W135: 4.179712427 | X135: 2.975440611 | Y135: 2.692774281 | Z135: 2.270410337 | AA135: 3.613360498 | AB135: 2.081912971 | AC135: 1.64907717 | AD135: 2.453766228 | AE135: 5.550387208 | AF135: 3.256867492 | AG135: 4.454260352 | AH135: 3.438290262 | AI135: 1.993737581 | AJ135: 2.483283921 | AK135: 1.513228421 | AL135: 1.980490938 | AM135: 2.10858859 | AN135: 3.717756974 | AO135: 2.301337121 | AP135: 3.876572676 | AQ135: 2.388853176 | AR135: 1.35639967 | AS135: 2.205189635 | AT135: 1.512767192 | AU135: 2.029572222 | AV135: 1.597527451 | AW135: 1.70505765 | AX135: 2.280200341 | AY135: 2.876866806 | AZ135: 4.120391578 | BA135: 2.362491829 | BB135: 5.032395043 | BC135: 2.267602256 | BD135: 2.328045179 | BE135: 2.497746188 | BF135: 2.724351137 | BG135: 2.2099728 | BH135: 2.273127822 | BI135: 1.947969934 | BJ135: 3.555665308 | BK135: 2.890895988 | BL135: 2.247419249 | BM135: 2.664810947 | BN135: 5.597152586 | BO135: 2.873865831 | BP135: 2.068091687 | BQ135: 2.4350172 | BR135: 3.326368267 | BS135: 1.841366816 | BT135: 2.303247016 | BU135: 2.533027686 | BV135: 2.756947296 | BW135: 1.671294815 | BX135: 3.015940472 | BY135: 2.254699409 | BZ135: 3.441455271 | CA135: 2.256735147 | CB135: 2.30934309 | CC135: 1.709186507 | CD135: 2.528931736 | CE135: 3.620663873 | CF135: 2.588751619 | CG135: 4.634635102 | CH135: 2.045286963 | CI135: 3.51246239 | CJ135: 2.27326435 | CK135: 0.6878275952 | CL135: 0.08342417599 | CM135: -107.0626927 | CN135: 42
A136: 120 | C136: 1.98599774 | D136: 2.14748359 | E136: 2.245727955 | F136: 2.457325644 | G136: 3.133148074 | H136: 3.108771608 | I136: 1.963885295 | J136: 2.878884451 | K136: 1.898394196 | L136: 2.954238907 | M136: 3.923274938 | N136: 1.878110079 | O136: 1.591571764 | P136: 5.96490023 | Q136: 1.902452247 | R136: 3.826928754 | S136: 2.567160952 | T136: 4.996999985 | U136: 2.499759827 | V136: 2.492939586 | W136: 2.373841695 | X136: 2.551926254 | Y136: 2.446689056 | Z136: 1.824200923 | AA136: 4.632355286 | AB136: 2.654863681 | AC136: 2.523445374 | AD136: 3.035891705 | AE136: 2.394125262 | AF136: 3.714302901 | AG136: 2.957538948 | AH136: 6.766910013 | AI136: 1.910379519 | AJ136: 4.086100177 | AK136: 4.066603795 | AL136: 2.357301708 | AM136: 4.12310859 | AN136: 1.74060053 | AO136: 2.17500675 | AP136: 2.842857906 | AQ136: 2.098215276 | AR136: 1.992913451 | AS136: 3.406242749 | AT136: 3.897512136 | AU136: 2.412277182 | AV136: 1.771753486 | AW136: 1.785442523 | AX136: 1.882135046 | AY136: 2.185013669 | AZ136: 3.09061405 | BA136: 3.415279795 | BB136: 3.226701396 | BC136: 3.016041454 | BD136: 1.964656439 | BE136: 3.113784638 | BF136: 2.043302805 | BG136: 3.52871682 | BH136: 2.319586575 | BI136: 2.844537875 | BJ136: 2.28713308 | BK136: 1.873670678 | BL136: 2.619631632 | BM136: 1.686023383 | BN136: 2.629463987 | BO136: 2.186521855 | BP136: 2.091756796 | BQ136: 2.706687234 | BR136: 2.20634639 | BS136: 2.426344907 | BT136: 3.060062856 | BU136: 4.474482712 | BV136: 2.104321582 | BW136: 2.943073583 | BX136: 1.610774294 | BY136: 6.743819645 | BZ136: 1.144365512 | CA136: 3.966690501 | CB136: 1.954718381 | CC136: 2.394612259 | CD136: 2.799432699 | CE136: 3.378928635 | CF136: 2.861438162 | CG136: 3.766922649 | CH136: 1.736942164 | CI136: 1.696319417 | CJ136: 2.296226616 | CK136: 0.6674651743 | CL136: 0.1377244404 | CM136: -106.8861861 | CN136: 16
A137: 121 | C137: 3.504352871 | D137: 2.41460685 | E137: 2.188377269 | F137: 1.454928939 | G137: 2.517268293 | H137: 1.991663006 | I137: 5.452409004 | J137: 2.06199522 | K137: 2.304537706 | L137: 2.042985382 | M137: 1.705979877 | N137: 2.909944923 | O137: 2.033839107 | P137: 2.794092361 | Q137: 2.289861586 | R137: 3.50730637 | S137: 4.838568785 | T137: 4.020132931 | U137: 1.978647752 | V137: 2.392680246 | W137: 1.849599297 | X137: 3.275380489 | Y137: 2.964939138 | Z137: 5.862819154 | AA137: 2.858695313 | AB137: 3.705039562 | AC137: 4.109367839 | AD137: 1.159334389 | AE137: 2.854712079 | AF137: 4.575300834 | AG137: 2.864070306 | AH137: 1.763290962 | AI137: 3.415563846 | AJ137: 2.248029912 | AK137: 1.289432441 | AL137: 2.739611923 | AM137: 3.254970744 | AN137: 2.529435816 | AO137: 3.123943959 | AP137: 2.028721365 | AQ137: 3.322699458 | AR137: 4.058569932 | AS137: 2.181464582 | AT137: 2.070323331 | AU137: 3.11905887 | AV137: 2.180130592 | AW137: 3.009701716 | AX137: 2.803157017 | AY137: 2.122337282 | AZ137: 4.750272842 | BA137: 1.728659534 | BB137: 2.636211196 | BC137: 2.270456066 | BD137: 2.342297834 | BE137: 1.508279676 | BF137: 2.073514494 | BG137: 3.72079939 | BH137: 2.022654631 | BI137: 3.074942291 | BJ137: 5.334576106 | BK137: 2.809890055 | BL137: 2.224371421 | BM137: 2.640835216 | BN137: 2.161053084 | BO137: 2.636832937 | BP137: 2.057733111 | BQ137: 1.077367425 | BR137: 2.618687509 | BS137: 1.842177963 | BT137: 3.247959906 | BU137: 3.188125115 | BV137: 2.840816637 | BW137: 1.934662894 | BX137: 3.935960857 | BY137: 3.633198633 | BZ137: 1.760809632 | CA137: 2.937941127 | CB137: 4.322305178 | CC137: 2.473371821 | CD137: 2.236060482 | CE137: 1.502446868 | CF137: 3.946523021 | CG137: 2.777560857 | CH137: 1.640071321 | CI137: 2.781795836 | CJ137: 2.295767394 | CK137: 0.752266911 | CL137: 0.05201709228 | CM137: -111.1818908 | CN137: 101
A138: 122 | C138: 1.859023007 | D138: 2.086391148 | E138: 1.957924587 | F138: 2.127087161 | G138: 2.132714898 | H138: 2.941257255 | I138: 3.158102557 | J138: 2.53106177 | K138: 2.138874935 | L138: 4.831584914 | M138: 1.935415712 | N138: 2.427035162 | O138: 4.027591702 | P138: 4.568245584 | Q138: 3.95538009 | R138: 2.548242921 | S138: 2.197263998 | T138: 1.979437301 | U138: 5.642988009 | V138: 4.688609789 | W138: 4.930459264 | X138: 2.314850636 | Y138: 2.110110658 | Z138: 4.551314748 | AA138: 3.312588706 | AB138: 3.505943347 | AC138: 2.584031149 | AD138: 2.9339915 | AE138: 2.531038237 | AF138: 2.331185914 | AG138: 1.430056632 | AH138: 3.405567716 | AI138: 2.189051995 | AJ138: 2.509146399 | AK138: 2.26573527 | AL138: 2.129387619 | AM138: 3.459184682 | AN138: 2.419945562 | AO138: 2.198395341 | AP138: 1.896543257 | AQ138: 1.729974758 | AR138: 1.61846743 | AS138: 2.154776648 | AT138: 3.972210386 | AU138: 1.807345031 | AV138: 2.530989857 | AW138: 3.068169395 | AX138: 3.228109687 | AY138: 2.386371278 | AZ138: 2.056583519 | BA138: 3.559744986 | BB138: 2.616381116 | BC138: 4.112114528 | BD138: 2.641595599 | BE138: 3.233637227 | BF138: 2.517713259 | BG138: 1.823553867 | BH138: 4.431954039 | BI138: 3.007111866 | BJ138: 2.684924508 | BK138: 2.602270423 | BL138: 1.735355312 | BM138: 2.460162819 | BN138: 3.658488061 | BO138: 1.914807589 | BP138: 3.763166525 | BQ138: 2.104546723 | BR138: 2.124838563 | BS138: 2.801839229 | BT138: 2.933061614 | BU138: 3.148951709 | BV138: 2.620103976 | BW138: 1.551897077 | BX138: 5.522677292 | BY138: 1.899498843 | BZ138: 2.235992449 | CA138: 2.947644356 | CB138: 2.145431801 | CC138: 7.907035403 | CD138: 3.505315856 | CE138: 2.270234 | CF138: 1.369517336 | CG138: 3.028573677 | CH138: 2.181709136 | CI138: 2.574196175 | CJ138: 2.319188882 | CK138: 0.6541826173 | CL138: 0.181974059 | CM138: -107.0834744 | CN138: 47
